Workbook

Sheet EcoReviva
B2: Selectiontool Ecoreviva
F4: Taal/Language/Sprache/Språk/Jazyk | J4: English
F5: =IF(data!$CC$17=1,NL!F4,IF(data!$CC$17=2,EN!F4,IF(data!$CC$17=3,FR!F4,IF(data!$CC$17=4,DE!F4,IF(data!$CC$17=5,NR!F4,IF(data!$CC$17=6,SP!F4,IF(data!$CC$17=7,SW!F4,IF(data!$CC$17=8,TS!F4,IF(data!$CC$17=9,ExtraTaal1!F4,IF(data!$CC$17=10,ExtraTaal2!F4,IF(data!$CC$17=11,ExtraTaal3!F4,))))))))))) -> Hybrid device | J5: Ecoreviva Hybrid
F6: =IF(data!$CC$17=1,NL!E4,IF(data!$CC$17=2,EN!E4,IF(data!$CC$17=3,FR!E4,IF(data!$CC$17=4,DE!E4,IF(data!$CC$17=5,NR!E4,IF(data!$CC$17=6,SP!E4,IF(data!$CC$17=7,SW!E4,IF(data!$CC$17=8,TS!E4,IF(data!$CC$17=9,ExtraTaal1!E4,IF(data!$CC$17=10,ExtraTaal2!E4,IF(data!$CC$17=11,ExtraTaal38E4,)))))))))))&IF(data!$CC$17=8," [centimetr]"," [centimeter]") -> Version [centimeter] | M6: =data!H6 -> 
G7: =IF($J$4=data!$CC$3,NL!B3,IF($J$4=data!$CC$4,EN!B3,IF($J$4=data!$CC$5,FR!B3,IF($J$4=data!$CC$6,DE!B3,IF($J$4=data!$CC$7,NR!B3,IF($J$4=data!$CC$8,SP!B3,IF($J$4=data!$CC$9,SW!B3,))))))) -> Length | H7: =IF(data!$CC$17=1,NL!B16,IF(data!$CC$17=2,EN!B16,IF(data!$CC$17=3,FR!B16,IF(data!$CC$17=4,DE!B16,IF(data!$CC$17=5,NR!B16,IF(data!$CC$17=6,SP!B16,IF(data!$CC$17=7,SW!B16,IF(data!$CC$17=8,TS!B16,IF(data!$CC$17=9,ExtraTaal1!B16,IF(data!$CC$17=10,ExtraTaal2!B16,IF(data!$CC$17=11,ExtraTaal3!B16,))))))))))) -> Fan speed | K7: =IF(data!$CC$17=1,NL!B4,IF(data!$CC$17=2,EN!B4,IF(data!$CC$17=3,FR!B4,IF(data!$CC$17=4,DE!B4,IF(data!$CC$17=5,NR!B4,IF(data!$CC$17=6,SP!B4,IF(data!$CC$17=7,SW!B4,IF(data!$CC$17=8,TS!B4,IF(data!$CC$17=9,ExtraTaal1!B4,IF(data!$CC$17=10,ExtraTaal2!B4,IF(data!$CC$17=11,ExtraTaal3!B4,))))))))))) -> Heigth | L7: =IF(data!$CC$17=1,NL!B5,IF(data!$CC$17=2,EN!B5,IF(data!$CC$17=3,FR!B5,IF(data!$CC$17=4,DE!B5,IF(data!$CC$17=5,NR!B5,IF(data!$CC$17=6,SP!B5,IF(data!$CC$17=7,SW!B5,IF(data!$CC$17=8,TS!B5,IF(data!$CC$17=9,ExtraTaal1!B5,IF(data!$CC$17=10,ExtraTaal2!B5,IF(data!$CC$17=11,ExtraTaal3!B5,))))))))))) -> Type | M7: =IF(data!$CC$17=1,NL!B6,IF(data!$CC$17=2,EN!B6,IF(data!$CC$17=3,FR!B6,IF(data!$CC$17=4,DE!B6,IF(data!$CC$17=5,NR!B6,IF(data!$CC$17=6,SP!B6,IF(data!$CC$17=7,SW!B6,IF(data!$CC$17=8,TS!B6,IF(data!$CC$17=9,ExtraTaal1!B6,IF(data!$CC$17=10,ExtraTaal2!B6,IF(data!$CC$17=11,ExtraTaal3!B6,))))))))))) -> Depth
B8: =IF(data!$CC$17=1,NL!E5,IF(data!$CC$17=2,EN!E5,IF(data!$CC$17=3,FR!E5,IF(data!$CC$17=4,DE!E5,IF(data!$CC$17=5,NR!E5,IF(data!$CC$17=6,SP!E5,IF(data!$CC$17=7,SW!E5,IF(data!$CC$17=8,TS!E5,IF(data!$CC$17=9,ExtraTaal1!E5,IF(data!$CC$17=10,ExtraTaal2!E5,IF(data!$CC$17=11,ExtraTaal3!E5,))))))))))) -> Temperatures
B9: =IF(data!$CC$17=1,NL!B8,IF(data!$CC$17=2,EN!B8,IF(data!$CC$17=3,FR!B8,IF(data!$CC$17=4,DE!B8,IF(data!$CC$17=5,NR!B8,IF(data!$CC$17=6,SP!B8,IF(data!$CC$17=7,SW!B8,IF(data!$CC$17=8,TS!B8,IF(data!$CC$17=9,ExtraTaal1!B8,IF(data!$CC$17=10,ExtraTaal2!B8,IF(data!$CC$17=11,ExtraTaal3!B8,))))))))))) -> Heating: | G9: =IF(data!$CC$17=1,NL!G8,IF(data!$CC$17=2,EN!G8,IF(data!$CC$17=3,FR!G8,IF(data!$CC$17=4,DE!G8,IF(data!$CC$17=5,NR!G8,IF(data!$CC$17=6,SP!G8,IF(data!$CC$17=7,SW!G8,IF(data!$CC$17=8,TS!G8,IF(data!$CC$17=9,ExtraTaal1!G8,IF(data!$CC$17=10,ExtraTaal2!G8,IF(data!$CC$17=11,ExtraTaal3!G8,))))))))))) -> Cooling:
B10: =IF(data!$CC$17=1,NL!B9,IF(data!$CC$17=2,EN!B9,IF(data!$CC$17=3,FR!B9,IF(data!$CC$17=4,DE!B9,IF(data!$CC$17=5,NR!B9,IF(data!$CC$17=6,SP!B9,IF(data!$CC$17=7,SW!B9,IF(data!$CC$17=8,TS!B9,IF(data!$CC$17=9,ExtraTaal1!B9,IF(data!$CC$17=10,ExtraTaal2!B9,IF(data!$CC$17=11,ExtraTaal3!B9,))))))))))) -> Supply water | C10: 0 | D10: 0 | E10: 35 | F10: =IF(data!$BZ$2=1,"°C",IF(data!$BZ$2=2,"°F",)) -> °C | G10: =B10 -> Supply water | H10: 0 | I10: 0 | J10: 16 | K10: =F10 -> °C | L10: =IF(data!$CC$17=1,NL!G4,IF(data!$CC$17=2,EN!G4,IF(data!$CC$17=3,FR!G4,IF(data!$CC$17=4,DE!G4,IF(data!$CC$17=5,NR!G4,IF(data!$CC$17=6,SP!G4,IF(data!$CC$17=7,SW!G4,IF(data!$CC$17=8,TS!G4,IF(data!$CC$17=9,ExtraTaal1!G4,IF(data!$CC$17=10,ExtraTaal2!G4,IF(data!$CC$17=11,ExtraTaal3!G4,))))))))))) -> Unit conversion
B11: =IF(data!$CC$17=1,NL!B10,IF(data!$CC$17=2,EN!B10,IF(data!$CC$17=3,FR!B10,IF(data!$CC$17=4,DE!B10,IF(data!$CC$17=5,NR!B10,IF(data!$CC$17=6,SP!B10,IF(data!$CC$17=7,SW!B10,IF(data!$CC$17=8,TS!B10,IF(data!$CC$17=9,ExtraTaal1!B10,IF(data!$CC$17=10,ExtraTaal2!B10,IF(data!$CC$17=11,ExtraTaal3!B10,))))))))))) -> Return water | C11: 0 | D11: 0 | E11: 30 | F11: =F10 -> °C | G11: =B11 -> Return water | H11: 0 | I11: 0 | J11: 18 | K11: =F10 -> °C
B12: =IF(data!$CC$17=1,NL!B11,IF(data!$CC$17=2,EN!B11,IF(data!$CC$17=3,FR!B11,IF(data!$CC$17=4,DE!B11,IF(data!$CC$17=5,NR!B11,IF(data!$CC$17=6,SP!B11,IF(data!$CC$17=7,SW!B11,IF(data!$CC$17=8,TS!B11,IF(data!$CC$17=9,ExtraTaal1!B11,IF(data!$CC$17=10,ExtraTaal2!B11,IF(data!$CC$17=11,ExtraTaal3!B11,))))))))))) -> Entering air (dry bulb) | C12: 0 | D12: 0 | E12: 20 | F12: =F10 -> °C | G12: =B12 -> Entering air (dry bulb) | H12: 0 | I12: 0 | J12: 27 | K12: =F10 -> °C
G13: =IF(data!$CC$17=1,NL!$G$3,IF(data!$CC$17=2,EN!$G$3,IF(data!$CC$17=3,FR!$G$3,IF(data!$CC$17=4,DE!$G$3,IF(data!$CC$17=5,NR!$G$3,IF(data!$CC$17=6,SP!$G$3,IF(data!$CC$17=7,SW!$G$3,IF(data!$CC$17=8,TS!G3,IF(data!$CC$17=9,ExtraTaal1!G3,IF(data!$CC$17=10,ExtraTaal2!G3,IF(data!$CC$17=11,ExtraTaal3!G3,))))))))))) -> rel. humid. | J13: 50%
B16: =IF(data!$CC$17=1,NL!B3,IF(data!$CC$17=2,EN!B3,IF(data!$CC$17=3,FR!B3,IF(data!$CC$17=4,DE!B3,IF(data!$CC$17=5,NR!B3,IF(data!$CC$17=6,SP!B3,IF(data!$CC$17=7,SW!B3,IF(data!$CC$17=8,TS!B3,IF(data!$CC$17=9,ExtraTaal1!B3,IF(data!$CC$17=10,ExtraTaal2!B3,IF(data!$CC$17=11,ExtraTaal3!B3,)))))))))))&" [cm]" -> Length [cm] | D16: =IF(data!$CC$17=1,NL!C14,IF(data!$CC$17=2,EN!C14,IF(data!$CC$17=3,FR!C14,IF(data!$CC$17=4,DE!C14,IF(data!$CC$17=5,NR!C14,IF(data!$CC$17=6,SP!C14,IF(data!$CC$17=7,SW!C14,IF(data!$CC$17=8,TS!C14,IF(data!$CC$17=9,ExtraTaal1!C14,IF(data!$CC$17=10,ExtraTaal2!C14,IF(data!$CC$17=11,ExtraTaal3!C14,)))))))))))&IF(data!BZ2=1," [W]",IF(data!BZ2=2," [Btu/h]",)) -> Heating capacity [W] | E16: =IF(data!$CC$17=1,NL!D14,IF(data!$CC$17=2,EN!D14,IF(data!$CC$17=3,FR!D14,IF(data!$CC$17=4,DE!D14,IF(data!$CC$17=5,NR!D14,IF(data!$CC$17=6,SP!D14,IF(data!$CC$17=7,SW!D14,IF(data!$CC$17=8,TS!D14,IF(data!$CC$17=9,ExtraTaal1!D14,IF(data!$CC$17=10,ExtraTaal2!D14,IF(data!$CC$17=11,ExtraTaal3!D14,)))))))))))&IF(data!BZ2=1," [kg/h]",IF(data!BZ2=2," [GPM]**",)) -> Water flow [kg/h] | F16: =IF(data!$CC$17=1,NL!F6,IF(data!$CC$17=2,EN!F6,IF(data!$CC$17=3,FR!F6,IF(data!$CC$17=4,DE!F6,IF(data!$CC$17=5,NR!F6,IF(data!$CC$17=6,SP!F6,IF(data!$CC$17=7,SW!F6,IF(data!$CC$17=8,TS!F6,IF(data!$CC$17=9,ExtraTaal1!F6,IF(data!$CC$17=10,ExtraTaal2!F6,IF(data!$CC$17=11,ExtraTaal3!F6,)))))))))))&" ["&IF(data!BZ2=1,"kPa",IF(data!BZ2=2,"ftH2O"))&"]" -> Water side pressure loss [kPa] | G16: =IF(data!$CC$17=1,NL!E14,IF(data!$CC$17=2,EN!E14,IF(data!$CC$17=3,FR!E14,IF(data!$CC$17=4,DE!E14,IF(data!$CC$17=5,NR!E14,IF(data!$CC$17=6,SP!E14,IF(data!$CC$17=7,SW!E14,IF(data!$CC$17=8,TS!E14,IF(data!$CC$17=9,ExtraTaal1!E14,IF(data!$CC$17=10,ExtraTaal2!E14,IF(data!$CC$17=11,ExtraTaal3!E14,)))))))))))&IF(data!BZ2=1," [W]**",IF(data!BZ2=2," [Btu/h]*",)) -> Cooling capacity [W]** | H16: =E16 -> Water flow [kg/h] | I16: =F16 -> Water side pressure loss [kPa] | J16: =IF(data!$CC$17=1,NL!I13,IF(data!$CC$17=2,EN!I13,IF(data!$CC$17=3,FR!I13,IF(data!$CC$17=4,DE!I13,IF(data!$CC$17=5,NR!I13,IF(data!$CC$17=6,SP!I13,IF(data!$CC$17=7,SW!I13,IF(data!$CC$17=8,TS!I13,IF(data!$CC$17=9,ExtraTaal1!I13,IF(data!$CC$17=10,ExtraTaal2!I13,IF(data!$CC$17=11,ExtraTaal3!I13,))))))))))) -> Sound pressure level [dB(A)]**** | K16: =IF(data!$CC$17=1,NL!J13,IF(data!$CC$17=2,EN!J13,IF(data!$CC$17=3,FR!J13,IF(data!$CC$17=4,DE!J13,IF(data!$CC$17=5,NR!J13,IF(data!$CC$17=6,SP!J13,IF(data!$CC$17=7,SW!J13,IF(data!$CC$17=8,TS!J13,IF(data!$CC$17=9,ExtraTaal1!J13,IF(data!$CC$17=10,ExtraTaal2!J13,IF(data!$CC$17=11,ExtraTaal3!J13,))))))))))) -> Sound power [dB(A)]**** | L16: =IF(data!$CC$17=1,NL!H13,IF(data!$CC$17=2,EN!H13,IF(data!$CC$17=3,FR!H13,IF(data!$CC$17=4,DE!H13,IF(data!$CC$17=5,NR!H13,IF(data!$CC$17=6,SP!H13,IF(data!$CC$17=7,SW!H13,IF(data!$CC$17=8,TS!H13,IF(data!$CC$17=9,ExtraTaal1!H13,IF(data!$CC$17=10,ExtraTaal2!H13,IF(data!$CC$17=11,ExtraTaal3!H13,))))))))))) -> Electrical consumption [W] | M16: =IF(data!$CC$17=1,NL!G13,IF(data!$CC$17=2,EN!G13,IF(data!$CC$17=3,FR!G13,IF(data!$CC$17=4,DE!G13,IF(data!$CC$17=5,NR!G13,IF(data!$CC$17=6,SP!G13,IF(data!$CC$17=7,SW!G13,IF(data!$CC$17=8,TS!G13,IF(data!$CC$17=9,ExtraTaal1!G13,IF(data!$CC$17=10,ExtraTaal2!G13,IF(data!$CC$17=11,ExtraTaal3!G13,)))))))))))&IF(data!BZ2=1," [l]",IF(data!BZ2=2," [Gal]**",)) -> Water volume [l]
B17: =CONCATENATE($J$5,", ",$K$7, " ",$K$6,"cm, ",$L$7, " ",$L$6) -> Ecoreviva Hybrid, Heigth cm, Type | C17: 0 | D17: 0 | E17: 0 | F17: 0 | G17: 0 | H17: 0 | I17: 0 | J17: 0 | K17: 0 | L17: 0 | M17: 0
B18: 55 | D18: =IF($J$6="OFF",data!DH18,IF($J$6="26dB(A)",data!DH19,IF($J$6="30dB(A)",data!DH20,IF($J$6="MAX",data!DH21,IF($J$6="n.a.",data!DH19,""))))) ->  | E18: =IF($J$6="OFF",data!DI18,IF($J$6="26dB(A)",data!DI19,IF($J$6="30dB(A)",data!DI20,IF($J$6="MAX",data!DI21,IF($J$6="n.a.",data!DI19,""))))) ->  | F18: =IF($J$6="OFF",data!DJ18,IF($J$6="26dB(A)",data!DJ19,IF($J$6="30dB(A)",data!DJ20,IF($J$6="MAX",data!DJ21,IF($J$6="n.a.",data!DJ19,""))))) ->  | G18: =IF($J$6="OFF",data!DK18,IF($J$6="26dB(A)",data!DK19,IF($J$6="30dB(A)",data!DK20,IF($J$6="MAX",data!DK21,IF($J$6="n.a.",data!DK19,""))))) ->  | H18: =IF($J$6="OFF",data!DL18,IF($J$6="26dB(A)",data!DL19,IF($J$6="30dB(A)",data!DL20,IF($J$6="MAX",data!DL21,IF($J$6="n.a.",data!DL19,""))))) ->  | I18: =IF($J$6="OFF",data!DM18,IF($J$6="26dB(A)",data!DM19,IF($J$6="30dB(A)",data!DM20,IF($J$6="MAX",data!DM21,IF($J$6="n.a.",data!DM19,""))))) ->  | J18: =IF($J$6="OFF",data!DN18,IF($J$6="26dB(A)",data!DN19,IF($J$6="30dB(A)",data!DN20,IF($J$6="MAX",data!DN21,IF($J$6="n.a.",data!DN19,""))))) ->  | K18: =IF($J$6="OFF",data!DO18,IF($J$6="26dB(A)",data!DO19,IF($J$6="30dB(A)",data!DO20,IF($J$6="MAX",data!DO21,IF($J$6="n.a.",data!DO19,""))))) ->  | L18: =IF($J$6="OFF",data!DP18,IF($J$6="26dB(A)",data!DP19,IF($J$6="30dB(A)",data!DP20,IF($J$6="MAX",data!DP21,IF($J$6="n.a.",data!DP19,""))))) ->  | M18: =IF($J$6="OFF",data!DQ18,IF($J$6="26dB(A)",data!DQ19,IF($J$6="30dB(A)",data!DQ20,IF($J$6="MAX",data!DQ21,IF($J$6="n.a.",data!DQ19,""))))) -> 
B19: 65 | C19: 65 | D19: =IF($J$6="OFF",data!DH22,IF($J$6="26dB(A)",data!DH23,IF($J$6="30dB(A)",data!DH24,IF($J$6="MAX",data!DH25,IF($J$6="n.a.",data!DH23,""))))) ->  | E19: =IF($J$6="OFF",data!DI22,IF($J$6="26dB(A)",data!DI23,IF($J$6="30dB(A)",data!DI24,IF($J$6="MAX",data!DI25,IF($J$6="n.a.",data!DI23,""))))) ->  | F19: =IF($J$6="OFF",data!DJ22,IF($J$6="26dB(A)",data!DJ23,IF($J$6="30dB(A)",data!DJ24,IF($J$6="MAX",data!DJ25,IF($J$6="n.a.",data!DJ23,""))))) ->  | G19: =IF($J$6="OFF",data!DK22,IF($J$6="26dB(A)",data!DK23,IF($J$6="30dB(A)",data!DK24,IF($J$6="MAX",data!DK25,IF($J$6="n.a.",data!DK23,""))))) ->  | H19: =IF($J$6="OFF",data!DL22,IF($J$6="26dB(A)",data!DL23,IF($J$6="30dB(A)",data!DL24,IF($J$6="MAX",data!DL25,IF($J$6="n.a.",data!DL23,""))))) ->  | I19: =IF($J$6="OFF",data!DM22,IF($J$6="26dB(A)",data!DM23,IF($J$6="30dB(A)",data!DM24,IF($J$6="MAX",data!DM25,IF($J$6="n.a.",data!DM23,""))))) ->  | J19: =IF($J$6="OFF",data!DN22,IF($J$6="26dB(A)",data!DN23,IF($J$6="30dB(A)",data!DN24,IF($J$6="MAX",data!DN25,IF($J$6="n.a.",data!DN23,""))))) ->  | K19: =IF($J$6="OFF",data!DO22,IF($J$6="26dB(A)",data!DO23,IF($J$6="30dB(A)",data!DO24,IF($J$6="MAX",data!DO25,IF($J$6="n.a.",data!DO23,""))))) ->  | L19: =IF($J$6="OFF",data!DP22,IF($J$6="26dB(A)",data!DP23,IF($J$6="30dB(A)",data!DP24,IF($J$6="MAX",data!DP25,IF($J$6="n.a.",data!DP23,""))))) ->  | M19: =IF($J$6="OFF",data!DQ22,IF($J$6="26dB(A)",data!DQ23,IF($J$6="30dB(A)",data!DQ24,IF($J$6="MAX",data!DQ25,IF($J$6="n.a.",data!DQ23,""))))) -> 
B20: 75 | C20: 75 | D20: =IF($J$6="OFF",data!DH26,IF($J$6="26dB(A)",data!DH27,IF($J$6="30dB(A)",data!DH28,IF($J$6="MAX",data!DH29,IF($J$6="n.a.",data!DH27,""))))) ->  | E20: =IF($J$6="OFF",data!DI26,IF($J$6="26dB(A)",data!DI27,IF($J$6="30dB(A)",data!DI28,IF($J$6="MAX",data!DI29,IF($J$6="n.a.",data!DI27,""))))) ->  | F20: =IF($J$6="OFF",data!DJ26,IF($J$6="26dB(A)",data!DJ27,IF($J$6="30dB(A)",data!DJ28,IF($J$6="MAX",data!DJ29,IF($J$6="n.a.",data!DJ27,""))))) ->  | G20: =IF($J$6="OFF",data!DK26,IF($J$6="26dB(A)",data!DK27,IF($J$6="30dB(A)",data!DK28,IF($J$6="MAX",data!DK29,IF($J$6="n.a.",data!DK27,""))))) ->  | H20: =IF($J$6="OFF",data!DL26,IF($J$6="26dB(A)",data!DL27,IF($J$6="30dB(A)",data!DL28,IF($J$6="MAX",data!DL29,IF($J$6="n.a.",data!DL27,""))))) ->  | I20: =IF($J$6="OFF",data!DM26,IF($J$6="26dB(A)",data!DM27,IF($J$6="30dB(A)",data!DM28,IF($J$6="MAX",data!DM29,IF($J$6="n.a.",data!DM27,""))))) ->  | J20: =IF($J$6="OFF",data!DN26,IF($J$6="26dB(A)",data!DN27,IF($J$6="30dB(A)",data!DN28,IF($J$6="MAX",data!DN29,IF($J$6="n.a.",data!DN27,""))))) ->  | K20: =IF($J$6="OFF",data!DO26,IF($J$6="26dB(A)",data!DO27,IF($J$6="30dB(A)",data!DO28,IF($J$6="MAX",data!DO29,IF($J$6="n.a.",data!DO27,""))))) ->  | L20: =IF($J$6="OFF",data!DP26,IF($J$6="26dB(A)",data!DP27,IF($J$6="30dB(A)",data!DP28,IF($J$6="MAX",data!DP29,IF($J$6="n.a.",data!DP27,""))))) ->  | M20: =IF($J$6="OFF",data!DQ26,IF($J$6="26dB(A)",data!DQ27,IF($J$6="30dB(A)",data!DQ28,IF($J$6="MAX",data!DQ29,IF($J$6="n.a.",data!DQ27,""))))) -> 
B21: 85 | C21: 85 | D21: =IF($J$6="OFF",data!DH30,IF($J$6="26dB(A)",data!DH31,IF($J$6="30dB(A)",data!DH32,IF($J$6="MAX",data!DH33,IF($J$6="n.a.",data!DH31,""))))) ->  | E21: =IF($J$6="OFF",data!DI30,IF($J$6="26dB(A)",data!DI31,IF($J$6="30dB(A)",data!DI32,IF($J$6="MAX",data!DI33,IF($J$6="n.a.",data!DI31,""))))) ->  | F21: =IF($J$6="OFF",data!DJ30,IF($J$6="26dB(A)",data!DJ31,IF($J$6="30dB(A)",data!DJ32,IF($J$6="MAX",data!DJ33,IF($J$6="n.a.",data!DJ31,""))))) ->  | G21: =IF($J$6="OFF",data!DK30,IF($J$6="26dB(A)",data!DK31,IF($J$6="30dB(A)",data!DK32,IF($J$6="MAX",data!DK33,IF($J$6="n.a.",data!DK31,""))))) ->  | H21: =IF($J$6="OFF",data!DL30,IF($J$6="26dB(A)",data!DL31,IF($J$6="30dB(A)",data!DL32,IF($J$6="MAX",data!DL33,IF($J$6="n.a.",data!DL31,""))))) ->  | I21: =IF($J$6="OFF",data!DM30,IF($J$6="26dB(A)",data!DM31,IF($J$6="30dB(A)",data!DM32,IF($J$6="MAX",data!DM33,IF($J$6="n.a.",data!DM31,""))))) ->  | J21: =IF($J$6="OFF",data!DN30,IF($J$6="26dB(A)",data!DN31,IF($J$6="30dB(A)",data!DN32,IF($J$6="MAX",data!DN33,IF($J$6="n.a.",data!DN31,""))))) ->  | K21: =IF($J$6="OFF",data!DO30,IF($J$6="26dB(A)",data!DO31,IF($J$6="30dB(A)",data!DO32,IF($J$6="MAX",data!DO33,IF($J$6="n.a.",data!DO31,""))))) ->  | L21: =IF($J$6="OFF",data!DP30,IF($J$6="26dB(A)",data!DP31,IF($J$6="30dB(A)",data!DP32,IF($J$6="MAX",data!DP33,IF($J$6="n.a.",data!DP31,""))))) ->  | M21: =IF($J$6="OFF",data!DQ30,IF($J$6="26dB(A)",data!DQ31,IF($J$6="30dB(A)",data!DQ32,IF($J$6="MAX",data!DQ33,IF($J$6="n.a.",data!DQ31,""))))) -> 
B22: 95 | C22: 95 | D22: =IF($J$6="OFF",data!DH34,IF($J$6="26dB(A)",data!DH35,IF($J$6="30dB(A)",data!DH36,IF($J$6="MAX",data!DH37,IF($J$6="n.a.",data!DH35,""))))) ->  | E22: =IF($J$6="OFF",data!DI34,IF($J$6="26dB(A)",data!DI35,IF($J$6="30dB(A)",data!DI36,IF($J$6="MAX",data!DI37,IF($J$6="n.a.",data!DI35,""))))) ->  | F22: =IF($J$6="OFF",data!DJ34,IF($J$6="26dB(A)",data!DJ35,IF($J$6="30dB(A)",data!DJ36,IF($J$6="MAX",data!DJ37,IF($J$6="n.a.",data!DJ35,""))))) ->  | G22: =IF($J$6="OFF",data!DK34,IF($J$6="26dB(A)",data!DK35,IF($J$6="30dB(A)",data!DK36,IF($J$6="MAX",data!DK37,IF($J$6="n.a.",data!DK35,""))))) ->  | H22: =IF($J$6="OFF",data!DL34,IF($J$6="26dB(A)",data!DL35,IF($J$6="30dB(A)",data!DL36,IF($J$6="MAX",data!DL37,IF($J$6="n.a.",data!DL35,""))))) ->  | I22: =IF($J$6="OFF",data!DM34,IF($J$6="26dB(A)",data!DM35,IF($J$6="30dB(A)",data!DM36,IF($J$6="MAX",data!DM37,IF($J$6="n.a.",data!DM35,""))))) ->  | J22: =IF($J$6="OFF",data!DN34,IF($J$6="26dB(A)",data!DN35,IF($J$6="30dB(A)",data!DN36,IF($J$6="MAX",data!DN37,IF($J$6="n.a.",data!DN35,""))))) ->  | K22: =IF($J$6="OFF",data!DO34,IF($J$6="26dB(A)",data!DO35,IF($J$6="30dB(A)",data!DO36,IF($J$6="MAX",data!DO37,IF($J$6="n.a.",data!DO35,""))))) ->  | L22: =IF($J$6="OFF",data!DP34,IF($J$6="26dB(A)",data!DP35,IF($J$6="30dB(A)",data!DP36,IF($J$6="MAX",data!DP37,IF($J$6="n.a.",data!DP35,""))))) ->  | M22: =IF($J$6="OFF",data!DQ34,IF($J$6="26dB(A)",data!DQ35,IF($J$6="30dB(A)",data!DQ36,IF($J$6="MAX",data!DQ37,IF($J$6="n.a.",data!DQ35,""))))) -> 
B23: 105 | C23: 105 | D23: =IF($J$6="OFF",data!DH38,IF($J$6="26dB(A)",data!DH39,IF($J$6="30dB(A)",data!DH40,IF($J$6="MAX",data!DH41,IF($J$6="n.a.",data!DH39,""))))) ->  | E23: =IF($J$6="OFF",data!DI38,IF($J$6="26dB(A)",data!DI39,IF($J$6="30dB(A)",data!DI40,IF($J$6="MAX",data!DI41,IF($J$6="n.a.",data!DI39,""))))) ->  | F23: =IF($J$6="OFF",data!DJ38,IF($J$6="26dB(A)",data!DJ39,IF($J$6="30dB(A)",data!DJ40,IF($J$6="MAX",data!DJ41,IF($J$6="n.a.",data!DJ39,""))))) ->  | G23: =IF($J$6="OFF",data!DK38,IF($J$6="26dB(A)",data!DK39,IF($J$6="30dB(A)",data!DK40,IF($J$6="MAX",data!DK41,IF($J$6="n.a.",data!DK39,""))))) ->  | H23: =IF($J$6="OFF",data!DL38,IF($J$6="26dB(A)",data!DL39,IF($J$6="30dB(A)",data!DL40,IF($J$6="MAX",data!DL41,IF($J$6="n.a.",data!DL39,""))))) ->  | I23: =IF($J$6="OFF",data!DM38,IF($J$6="26dB(A)",data!DM39,IF($J$6="30dB(A)",data!DM40,IF($J$6="MAX",data!DM41,IF($J$6="n.a.",data!DM39,""))))) ->  | J23: =IF($J$6="OFF",data!DN38,IF($J$6="26dB(A)",data!DN39,IF($J$6="30dB(A)",data!DN40,IF($J$6="MAX",data!DN41,IF($J$6="n.a.",data!DN39,""))))) ->  | K23: =IF($J$6="OFF",data!DO38,IF($J$6="26dB(A)",data!DO39,IF($J$6="30dB(A)",data!DO40,IF($J$6="MAX",data!DO41,IF($J$6="n.a.",data!DO39,""))))) ->  | L23: =IF($J$6="OFF",data!DP38,IF($J$6="26dB(A)",data!DP39,IF($J$6="30dB(A)",data!DP40,IF($J$6="MAX",data!DP41,IF($J$6="n.a.",data!DP39,""))))) ->  | M23: =IF($J$6="OFF",data!DQ38,IF($J$6="26dB(A)",data!DQ39,IF($J$6="30dB(A)",data!DQ40,IF($J$6="MAX",data!DQ41,IF($J$6="n.a.",data!DQ39,""))))) -> 
B24: 115 | C24: 115 | D24: =IF($J$6="OFF",data!DH42,IF($J$6="26dB(A)",data!DH43,IF($J$6="30dB(A)",data!DH44,IF($J$6="MAX",data!DH45,IF($J$6="n.a.",data!DH43,""))))) ->  | E24: =IF($J$6="OFF",data!DI42,IF($J$6="26dB(A)",data!DI43,IF($J$6="30dB(A)",data!DI44,IF($J$6="MAX",data!DI45,IF($J$6="n.a.",data!DI43,""))))) ->  | F24: =IF($J$6="OFF",data!DJ42,IF($J$6="26dB(A)",data!DJ43,IF($J$6="30dB(A)",data!DJ44,IF($J$6="MAX",data!DJ45,IF($J$6="n.a.",data!DJ43,""))))) ->  | G24: =IF($J$6="OFF",data!DK42,IF($J$6="26dB(A)",data!DK43,IF($J$6="30dB(A)",data!DK44,IF($J$6="MAX",data!DK45,IF($J$6="n.a.",data!DK43,""))))) ->  | H24: =IF($J$6="OFF",data!DL42,IF($J$6="26dB(A)",data!DL43,IF($J$6="30dB(A)",data!DL44,IF($J$6="MAX",data!DL45,IF($J$6="n.a.",data!DL43,""))))) ->  | I24: =IF($J$6="OFF",data!DM42,IF($J$6="26dB(A)",data!DM43,IF($J$6="30dB(A)",data!DM44,IF($J$6="MAX",data!DM45,IF($J$6="n.a.",data!DM43,""))))) ->  | J24: =IF($J$6="OFF",data!DN42,IF($J$6="26dB(A)",data!DN43,IF($J$6="30dB(A)",data!DN44,IF($J$6="MAX",data!DN45,IF($J$6="n.a.",data!DN43,""))))) ->  | K24: =IF($J$6="OFF",data!DO42,IF($J$6="26dB(A)",data!DO43,IF($J$6="30dB(A)",data!DO44,IF($J$6="MAX",data!DO45,IF($J$6="n.a.",data!DO43,""))))) ->  | L24: =IF($J$6="OFF",data!DP42,IF($J$6="26dB(A)",data!DP43,IF($J$6="30dB(A)",data!DP44,IF($J$6="MAX",data!DP45,IF($J$6="n.a.",data!DP43,""))))) ->  | M24: =IF($J$6="OFF",data!DQ42,IF($J$6="26dB(A)",data!DQ43,IF($J$6="30dB(A)",data!DQ44,IF($J$6="MAX",data!DQ45,IF($J$6="n.a.",data!DQ43,""))))) -> 
B25: 135 | C25: 135 | D25: =IF($J$6="OFF",data!DH46,IF($J$6="26dB(A)",data!DH47,IF($J$6="30dB(A)",data!DH48,IF($J$6="MAX",data!DH49,IF($J$6="n.a.",data!DH47,""))))) ->  | E25: =IF($J$6="OFF",data!DI46,IF($J$6="26dB(A)",data!DI47,IF($J$6="30dB(A)",data!DI48,IF($J$6="MAX",data!DI49,IF($J$6="n.a.",data!DI47,""))))) ->  | F25: =IF($J$6="OFF",data!DJ46,IF($J$6="26dB(A)",data!DJ47,IF($J$6="30dB(A)",data!DJ48,IF($J$6="MAX",data!DJ49,IF($J$6="n.a.",data!DJ47,""))))) ->  | G25: =IF($J$6="OFF",data!DK46,IF($J$6="26dB(A)",data!DK47,IF($J$6="30dB(A)",data!DK48,IF($J$6="MAX",data!DK49,IF($J$6="n.a.",data!DK47,""))))) ->  | H25: =IF($J$6="OFF",data!DL46,IF($J$6="26dB(A)",data!DL47,IF($J$6="30dB(A)",data!DL48,IF($J$6="MAX",data!DL49,IF($J$6="n.a.",data!DL47,""))))) ->  | I25: =IF($J$6="OFF",data!DM46,IF($J$6="26dB(A)",data!DM47,IF($J$6="30dB(A)",data!DM48,IF($J$6="MAX",data!DM49,IF($J$6="n.a.",data!DM47,""))))) ->  | J25: =IF($J$6="OFF",data!DN46,IF($J$6="26dB(A)",data!DN47,IF($J$6="30dB(A)",data!DN48,IF($J$6="MAX",data!DN49,IF($J$6="n.a.",data!DN47,""))))) ->  | K25: =IF($J$6="OFF",data!DO46,IF($J$6="26dB(A)",data!DO47,IF($J$6="30dB(A)",data!DO48,IF($J$6="MAX",data!DO49,IF($J$6="n.a.",data!DO47,""))))) ->  | L25: =IF($J$6="OFF",data!DP46,IF($J$6="26dB(A)",data!DP47,IF($J$6="30dB(A)",data!DP48,IF($J$6="MAX",data!DP49,IF($J$6="n.a.",data!DP47,""))))) ->  | M25: =IF($J$6="OFF",data!DQ46,IF($J$6="26dB(A)",data!DQ47,IF($J$6="30dB(A)",data!DQ48,IF($J$6="MAX",data!DQ49,IF($J$6="n.a.",data!DQ47,""))))) -> 
B26: 155 | C26: 155 | D26: =IF($J$6="OFF",data!DH50,IF($J$6="26dB(A)",data!DH51,IF($J$6="30dB(A)",data!DH52,IF($J$6="MAX",data!DH53,IF($J$6="n.a.",data!DH51,""))))) ->  | E26: =IF($J$6="OFF",data!DI50,IF($J$6="26dB(A)",data!DI51,IF($J$6="30dB(A)",data!DI52,IF($J$6="MAX",data!DI53,IF($J$6="n.a.",data!DI51,""))))) ->  | F26: =IF($J$6="OFF",data!DJ50,IF($J$6="26dB(A)",data!DJ51,IF($J$6="30dB(A)",data!DJ52,IF($J$6="MAX",data!DJ53,IF($J$6="n.a.",data!DJ51,""))))) ->  | G26: =IF($J$6="OFF",data!DK50,IF($J$6="26dB(A)",data!DK51,IF($J$6="30dB(A)",data!DK52,IF($J$6="MAX",data!DK53,IF($J$6="n.a.",data!DK51,""))))) ->  | H26: =IF($J$6="OFF",data!DL50,IF($J$6="26dB(A)",data!DL51,IF($J$6="30dB(A)",data!DL52,IF($J$6="MAX",data!DL53,IF($J$6="n.a.",data!DL51,""))))) ->  | I26: =IF($J$6="OFF",data!DM50,IF($J$6="26dB(A)",data!DM51,IF($J$6="30dB(A)",data!DM52,IF($J$6="MAX",data!DM53,IF($J$6="n.a.",data!DM51,""))))) ->  | J26: =IF($J$6="OFF",data!DN50,IF($J$6="26dB(A)",data!DN51,IF($J$6="30dB(A)",data!DN52,IF($J$6="MAX",data!DN53,IF($J$6="n.a.",data!DN51,""))))) ->  | K26: =IF($J$6="OFF",data!DO50,IF($J$6="26dB(A)",data!DO51,IF($J$6="30dB(A)",data!DO52,IF($J$6="MAX",data!DO53,IF($J$6="n.a.",data!DO51,""))))) ->  | L26: =IF($J$6="OFF",data!DP50,IF($J$6="26dB(A)",data!DP51,IF($J$6="30dB(A)",data!DP52,IF($J$6="MAX",data!DP53,IF($J$6="n.a.",data!DP51,""))))) ->  | M26: =IF($J$6="OFF",data!DQ50,IF($J$6="26dB(A)",data!DQ51,IF($J$6="30dB(A)",data!DQ52,IF($J$6="MAX",data!DQ53,IF($J$6="n.a.",data!DQ51,""))))) -> 
B27: 175 | C27: 175 | D27: =IF($J$6="OFF",data!DH54,IF($J$6="26dB(A)",data!DH55,IF($J$6="30dB(A)",data!DH56,IF($J$6="MAX",data!DH57,IF($J$6="n.a.",data!DH55,""))))) ->  | E27: =IF($J$6="OFF",data!DI54,IF($J$6="26dB(A)",data!DI55,IF($J$6="30dB(A)",data!DI56,IF($J$6="MAX",data!DI57,IF($J$6="n.a.",data!DI55,""))))) ->  | F27: =IF($J$6="OFF",data!DJ54,IF($J$6="26dB(A)",data!DJ55,IF($J$6="30dB(A)",data!DJ56,IF($J$6="MAX",data!DJ57,IF($J$6="n.a.",data!DJ55,""))))) ->  | G27: =IF($J$6="OFF",data!DK54,IF($J$6="26dB(A)",data!DK55,IF($J$6="30dB(A)",data!DK56,IF($J$6="MAX",data!DK57,IF($J$6="n.a.",data!DK55,""))))) ->  | H27: =IF($J$6="OFF",data!DL54,IF($J$6="26dB(A)",data!DL55,IF($J$6="30dB(A)",data!DL56,IF($J$6="MAX",data!DL57,IF($J$6="n.a.",data!DL55,""))))) ->  | I27: =IF($J$6="OFF",data!DM54,IF($J$6="26dB(A)",data!DM55,IF($J$6="30dB(A)",data!DM56,IF($J$6="MAX",data!DM57,IF($J$6="n.a.",data!DM55,""))))) ->  | J27: =IF($J$6="OFF",data!DN54,IF($J$6="26dB(A)",data!DN55,IF($J$6="30dB(A)",data!DN56,IF($J$6="MAX",data!DN57,IF($J$6="n.a.",data!DN55,""))))) ->  | K27: =IF($J$6="OFF",data!DO54,IF($J$6="26dB(A)",data!DO55,IF($J$6="30dB(A)",data!DO56,IF($J$6="MAX",data!DO57,IF($J$6="n.a.",data!DO55,""))))) ->  | L27: =IF($J$6="OFF",data!DP54,IF($J$6="26dB(A)",data!DP55,IF($J$6="30dB(A)",data!DP56,IF($J$6="MAX",data!DP57,IF($J$6="n.a.",data!DP55,""))))) ->  | M27: =IF($J$6="OFF",data!DQ54,IF($J$6="26dB(A)",data!DQ55,IF($J$6="30dB(A)",data!DQ56,IF($J$6="MAX",data!DQ57,IF($J$6="n.a.",data!DQ55,""))))) -> 
B28: 195 | C28: 195 | D28: =IF($J$6="OFF",data!DH58,IF($J$6="26dB(A)",data!DH59,IF($J$6="30dB(A)",data!DH60,IF($J$6="MAX",data!DH61,IF($J$6="n.a.",data!DH59,""))))) ->  | E28: =IF($J$6="OFF",data!DI58,IF($J$6="26dB(A)",data!DI59,IF($J$6="30dB(A)",data!DI60,IF($J$6="MAX",data!DI61,IF($J$6="n.a.",data!DI59,""))))) ->  | F28: =IF($J$6="OFF",data!DJ58,IF($J$6="26dB(A)",data!DJ59,IF($J$6="30dB(A)",data!DJ60,IF($J$6="MAX",data!DJ61,IF($J$6="n.a.",data!DJ59,""))))) ->  | G28: =IF($J$6="OFF",data!DK58,IF($J$6="26dB(A)",data!DK59,IF($J$6="30dB(A)",data!DK60,IF($J$6="MAX",data!DK61,IF($J$6="n.a.",data!DK59,""))))) ->  | H28: =IF($J$6="OFF",data!DL58,IF($J$6="26dB(A)",data!DL59,IF($J$6="30dB(A)",data!DL60,IF($J$6="MAX",data!DL61,IF($J$6="n.a.",data!DL59,""))))) ->  | I28: =IF($J$6="OFF",data!DM58,IF($J$6="26dB(A)",data!DM59,IF($J$6="30dB(A)",data!DM60,IF($J$6="MAX",data!DM61,IF($J$6="n.a.",data!DM59,""))))) ->  | J28: =IF($J$6="OFF",data!DN58,IF($J$6="26dB(A)",data!DN59,IF($J$6="30dB(A)",data!DN60,IF($J$6="MAX",data!DN61,IF($J$6="n.a.",data!DN59,""))))) ->  | K28: =IF($J$6="OFF",data!DO58,IF($J$6="26dB(A)",data!DO59,IF($J$6="30dB(A)",data!DO60,IF($J$6="MAX",data!DO61,IF($J$6="n.a.",data!DO59,""))))) ->  | L28: =IF($J$6="OFF",data!DP58,IF($J$6="26dB(A)",data!DP59,IF($J$6="30dB(A)",data!DP60,IF($J$6="MAX",data!DP61,IF($J$6="n.a.",data!DP59,""))))) ->  | M28: =IF($J$6="OFF",data!DQ58,IF($J$6="26dB(A)",data!DQ59,IF($J$6="30dB(A)",data!DQ60,IF($J$6="MAX",data!DQ61,IF($J$6="n.a.",data!DQ59,""))))) -> 
B29: 215 | C29: 215 | D29: =IF($J$6="OFF",data!DH62,IF($J$6="26dB(A)",data!DH63,IF($J$6="30dB(A)",data!DH64,IF($J$6="MAX",data!DH65,IF($J$6="n.a.",data!DH63,""))))) ->  | E29: =IF($J$6="OFF",data!DI62,IF($J$6="26dB(A)",data!DI63,IF($J$6="30dB(A)",data!DI64,IF($J$6="MAX",data!DI65,IF($J$6="n.a.",data!DI63,""))))) ->  | F29: =IF($J$6="OFF",data!DJ62,IF($J$6="26dB(A)",data!DJ63,IF($J$6="30dB(A)",data!DJ64,IF($J$6="MAX",data!DJ65,IF($J$6="n.a.",data!DJ63,""))))) ->  | G29: =IF($J$6="OFF",data!DK62,IF($J$6="26dB(A)",data!DK63,IF($J$6="30dB(A)",data!DK64,IF($J$6="MAX",data!DK65,IF($J$6="n.a.",data!DK63,""))))) ->  | H29: =IF($J$6="OFF",data!DL62,IF($J$6="26dB(A)",data!DL63,IF($J$6="30dB(A)",data!DL64,IF($J$6="MAX",data!DL65,IF($J$6="n.a.",data!DL63,""))))) ->  | I29: =IF($J$6="OFF",data!DM62,IF($J$6="26dB(A)",data!DM63,IF($J$6="30dB(A)",data!DM64,IF($J$6="MAX",data!DM65,IF($J$6="n.a.",data!DM63,""))))) ->  | J29: =IF($J$6="OFF",data!DN62,IF($J$6="26dB(A)",data!DN63,IF($J$6="30dB(A)",data!DN64,IF($J$6="MAX",data!DN65,IF($J$6="n.a.",data!DN63,""))))) ->  | K29: =IF($J$6="OFF",data!DO62,IF($J$6="26dB(A)",data!DO63,IF($J$6="30dB(A)",data!DO64,IF($J$6="MAX",data!DO65,IF($J$6="n.a.",data!DO63,""))))) ->  | L29: =IF($J$6="OFF",data!DP62,IF($J$6="26dB(A)",data!DP63,IF($J$6="30dB(A)",data!DP64,IF($J$6="MAX",data!DP65,IF($J$6="n.a.",data!DP63,""))))) ->  | M29: =IF($J$6="OFF",data!DQ62,IF($J$6="26dB(A)",data!DQ63,IF($J$6="30dB(A)",data!DQ64,IF($J$6="MAX",data!DQ65,IF($J$6="n.a.",data!DQ63,""))))) -> 
B30: 235 | C30: 235 | D30: =IF($J$6="OFF",data!DH66,IF($J$6="26dB(A)",data!DH67,IF($J$6="30dB(A)",data!DH68,IF($J$6="MAX",data!DH69,IF($J$6="n.a.",data!DH67,""))))) ->  | E30: =IF($J$6="OFF",data!DI66,IF($J$6="26dB(A)",data!DI67,IF($J$6="30dB(A)",data!DI68,IF($J$6="MAX",data!DI69,IF($J$6="n.a.",data!DI67,""))))) ->  | F30: =IF($J$6="OFF",data!DJ66,IF($J$6="26dB(A)",data!DJ67,IF($J$6="30dB(A)",data!DJ68,IF($J$6="MAX",data!DJ69,IF($J$6="n.a.",data!DJ67,""))))) ->  | G30: =IF($J$6="OFF",data!DK66,IF($J$6="26dB(A)",data!DK67,IF($J$6="30dB(A)",data!DK68,IF($J$6="MAX",data!DK69,IF($J$6="n.a.",data!DK67,""))))) ->  | H30: =IF($J$6="OFF",data!DL66,IF($J$6="26dB(A)",data!DL67,IF($J$6="30dB(A)",data!DL68,IF($J$6="MAX",data!DL69,IF($J$6="n.a.",data!DL67,""))))) ->  | I30: =IF($J$6="OFF",data!DM66,IF($J$6="26dB(A)",data!DM67,IF($J$6="30dB(A)",data!DM68,IF($J$6="MAX",data!DM69,IF($J$6="n.a.",data!DM67,""))))) ->  | J30: =IF($J$6="OFF",data!DN66,IF($J$6="26dB(A)",data!DN67,IF($J$6="30dB(A)",data!DN68,IF($J$6="MAX",data!DN69,IF($J$6="n.a.",data!DN67,""))))) ->  | K30: =IF($J$6="OFF",data!DO66,IF($J$6="26dB(A)",data!DO67,IF($J$6="30dB(A)",data!DO68,IF($J$6="MAX",data!DO69,IF($J$6="n.a.",data!DO67,""))))) ->  | L30: =IF($J$6="OFF",data!DP66,IF($J$6="26dB(A)",data!DP67,IF($J$6="30dB(A)",data!DP68,IF($J$6="MAX",data!DP69,IF($J$6="n.a.",data!DP67,""))))) ->  | M30: =IF($J$6="OFF",data!DQ66,IF($J$6="26dB(A)",data!DQ67,IF($J$6="30dB(A)",data!DQ68,IF($J$6="MAX",data!DQ69,IF($J$6="n.a.",data!DQ67,""))))) -> 
B31: =IF($J$6="OFF",data!DF70,IF($J$6="26dB(A)",data!DF71,IF($J$6="30dB(A)",data!DF72,IF($J$6="MAX",data!DF73)))) -> FALSE | D31: =IF($J$6="OFF",data!DH70,IF($J$6="26dB(A)",data!DH71,IF($J$6="30dB(A)",data!DH72,IF($J$6="MAX",data!DH73,IF($J$6="n.a.",data!DH71,""))))) ->  | E31: =IF($J$6="OFF",data!DI70,IF($J$6="26dB(A)",data!DI71,IF($J$6="30dB(A)",data!DI72,IF($J$6="MAX",data!DI73,IF($J$6="n.a.",data!DI71,""))))) ->  | F31: =IF($J$6="OFF",data!DJ70,IF($J$6="26dB(A)",data!DJ71,IF($J$6="30dB(A)",data!DJ72,IF($J$6="MAX",data!DJ73,IF($J$6="n.a.",data!DJ71,""))))) ->  | G31: =IF($J$6="OFF",data!DK70,IF($J$6="26dB(A)",data!DK71,IF($J$6="30dB(A)",data!DK72,IF($J$6="MAX",data!DK73,IF($J$6="n.a.",data!DK71,""))))) ->  | H31: =IF($J$6="OFF",data!DL70,IF($J$6="26dB(A)",data!DL71,IF($J$6="30dB(A)",data!DL72,IF($J$6="MAX",data!DL73,IF($J$6="n.a.",data!DL71,""))))) ->  | I31: =IF($J$6="OFF",data!DM70,IF($J$6="26dB(A)",data!DM71,IF($J$6="30dB(A)",data!DM72,IF($J$6="MAX",data!DM73,IF($J$6="n.a.",data!DM71,""))))) ->  | J31: =IF($J$6="OFF",data!DN70,IF($J$6="26dB(A)",data!DN71,IF($J$6="30dB(A)",data!DN72,IF($J$6="MAX",data!DN73,IF($J$6="n.a.",data!DN71,""))))) ->  | K31: =IF($J$6="OFF",data!DO70,IF($J$6="26dB(A)",data!DO71,IF($J$6="30dB(A)",data!DO72,IF($J$6="MAX",data!DO73,IF($J$6="n.a.",data!DO71,""))))) ->  | L31: =IF($J$6="OFF",data!DP70,IF($J$6="26dB(A)",data!DP71,IF($J$6="30dB(A)",data!DP72,IF($J$6="MAX",data!DP73,IF($J$6="n.a.",data!DP71,""))))) ->  | M31: =IF($J$6="OFF",data!DQ70,IF($J$6="26dB(A)",data!DQ71,IF($J$6="30dB(A)",data!DQ72,IF($J$6="MAX",data!DQ73,IF($J$6="n.a.",data!DQ71,""))))) -> 
B32: =IF($J$6="OFF",data!DF74,IF($J$6="26dB(A)",data!DF75,IF($J$6="30dB(A)",data!DF76,IF($J$6="MAX",data!DF77)))) -> FALSE | D32: =IF($J$6="OFF",data!DH74,IF($J$6="26dB(A)",data!DH75,IF($J$6="30dB(A)",data!DH76,IF($J$6="MAX",data!DH77)))) -> FALSE | E32: =IF($J$6="OFF",data!DI74,IF($J$6="26dB(A)",data!DI75,IF($J$6="30dB(A)",data!DI76,IF($J$6="MAX",data!DI77)))) -> FALSE | F32: =IF($J$6="OFF",data!DJ74,IF($J$6="26dB(A)",data!DJ75,IF($J$6="30dB(A)",data!DJ76,IF($J$6="MAX",data!DJ77)))) -> FALSE | G32: =IF($J$6="OFF",data!DK74,IF($J$6="26dB(A)",data!DK75,IF($J$6="30dB(A)",data!DK76,IF($J$6="MAX",data!DK77)))) -> FALSE | H32: =IF($J$6="OFF",data!DL74,IF($J$6="26dB(A)",data!DL75,IF($J$6="30dB(A)",data!DL76,IF($J$6="MAX",data!DL77)))) -> FALSE | I32: =IF($J$6="OFF",data!DM74,IF($J$6="26dB(A)",data!DM75,IF($J$6="30dB(A)",data!DM76,IF($J$6="MAX",data!DM77)))) -> FALSE | J32: =IF($J$6="OFF",data!DN74,IF($J$6="26dB(A)",data!DN75,IF($J$6="30dB(A)",data!DN76,IF($J$6="MAX",data!DN77)))) -> FALSE | K32: =IF($J$6="OFF",data!DO74,IF($J$6="26dB(A)",data!DO75,IF($J$6="30dB(A)",data!DO76,IF($J$6="MAX",data!DO77)))) -> FALSE | L32: =IF($J$6="OFF",data!DP74,IF($J$6="26dB(A)",data!DP75,IF($J$6="30dB(A)",data!DP76,IF($J$6="MAX",data!DP77)))) -> FALSE | M32: =IF($J$6="OFF",data!DQ74,IF($J$6="26dB(A)",data!DQ75,IF($J$6="30dB(A)",data!DQ76,IF($J$6="MAX",data!DQ77)))) -> FALSE
B33: =IF($J$6="OFF",data!DF78,IF($J$6="26dB(A)",data!DF79,IF($J$6="30dB(A)",data!DF80,IF($J$6="MAX",data!DF81)))) -> FALSE | D33: =IF($J$6="OFF",data!DH78,IF($J$6="26dB(A)",data!DH79,IF($J$6="30dB(A)",data!DH80,IF($J$6="MAX",data!DH81)))) -> FALSE | E33: =IF($J$6="OFF",data!DI78,IF($J$6="26dB(A)",data!DI79,IF($J$6="30dB(A)",data!DI80,IF($J$6="MAX",data!DI81)))) -> FALSE | F33: =IF($J$6="OFF",data!DJ78,IF($J$6="26dB(A)",data!DJ79,IF($J$6="30dB(A)",data!DJ80,IF($J$6="MAX",data!DJ81)))) -> FALSE | G33: =IF($J$6="OFF",data!DK78,IF($J$6="26dB(A)",data!DK79,IF($J$6="30dB(A)",data!DK80,IF($J$6="MAX",data!DK81)))) -> FALSE | H33: =IF($J$6="OFF",data!DL78,IF($J$6="26dB(A)",data!DL79,IF($J$6="30dB(A)",data!DL80,IF($J$6="MAX",data!DL81)))) -> FALSE | I33: =IF($J$6="OFF",data!DM78,IF($J$6="26dB(A)",data!DM79,IF($J$6="30dB(A)",data!DM80,IF($J$6="MAX",data!DM81)))) -> FALSE | J33: =IF($J$6="OFF",data!DN78,IF($J$6="26dB(A)",data!DN79,IF($J$6="30dB(A)",data!DN80,IF($J$6="MAX",data!DN81)))) -> FALSE | K33: =IF($J$6="OFF",data!DO78,IF($J$6="26dB(A)",data!DO79,IF($J$6="30dB(A)",data!DO80,IF($J$6="MAX",data!DO81)))) -> FALSE | L33: =IF($J$6="OFF",data!DP78,IF($J$6="26dB(A)",data!DP79,IF($J$6="30dB(A)",data!DP80,IF($J$6="MAX",data!DP81)))) -> FALSE | M33: =IF($J$6="OFF",data!DQ78,IF($J$6="26dB(A)",data!DQ79,IF($J$6="30dB(A)",data!DQ80,IF($J$6="MAX",data!DQ81)))) -> FALSE
B34: =IF($J$6="OFF",data!DF82,IF($J$6="26dB(A)",data!DF83,IF($J$6="30dB(A)",data!DF84,IF($J$6="MAX",data!DF85)))) -> FALSE | D34: =IF($J$6="OFF",data!DH82,IF($J$6="26dB(A)",data!DH83,IF($J$6="30dB(A)",data!DH84,IF($J$6="MAX",data!DH85)))) -> FALSE | E34: =IF($J$6="OFF",data!DI82,IF($J$6="26dB(A)",data!DI83,IF($J$6="30dB(A)",data!DI84,IF($J$6="MAX",data!DI85)))) -> FALSE | F34: =IF($J$6="OFF",data!DJ82,IF($J$6="26dB(A)",data!DJ83,IF($J$6="30dB(A)",data!DJ84,IF($J$6="MAX",data!DJ85)))) -> FALSE | G34: =IF($J$6="OFF",data!DK82,IF($J$6="26dB(A)",data!DK83,IF($J$6="30dB(A)",data!DK84,IF($J$6="MAX",data!DK85)))) -> FALSE | H34: =IF($J$6="OFF",data!DL82,IF($J$6="26dB(A)",data!DL83,IF($J$6="30dB(A)",data!DL84,IF($J$6="MAX",data!DL85)))) -> FALSE | I34: =IF($J$6="OFF",data!DM82,IF($J$6="26dB(A)",data!DM83,IF($J$6="30dB(A)",data!DM84,IF($J$6="MAX",data!DM85)))) -> FALSE | J34: =IF($J$6="OFF",data!DN82,IF($J$6="26dB(A)",data!DN83,IF($J$6="30dB(A)",data!DN84,IF($J$6="MAX",data!DN85)))) -> FALSE | K34: =IF($J$6="OFF",data!DO82,IF($J$6="26dB(A)",data!DO83,IF($J$6="30dB(A)",data!DO84,IF($J$6="MAX",data!DO85)))) -> FALSE | L34: =IF($J$6="OFF",data!DP82,IF($J$6="26dB(A)",data!DP83,IF($J$6="30dB(A)",data!DP84,IF($J$6="MAX",data!DP85)))) -> FALSE | M34: =IF($J$6="OFF",data!DQ82,IF($J$6="26dB(A)",data!DQ83,IF($J$6="30dB(A)",data!DQ84,IF($J$6="MAX",data!DQ85)))) -> FALSE
M35: v2025-11-04
B36: * | C36: =IF(data!$CC$17=1,NL!E6,IF(data!$CC$17=2,EN!E6,IF(data!$CC$17=3,FR!E6,IF(data!$CC$17=4,DE!E6,IF(data!$CC$17=5,NR!E6,IF(data!$CC$17=6,SP!E6,IF(data!$CC$17=7,SW!E6,IF(data!$CC$17=8,TS!E6,IF(data!$CC$17=9,ExtraTaal1!E6,IF(data!$CC$17=10,ExtraTaal2!E6,IF(data!$CC$17=11,ExtraTaal3!E6,))))))))))) -> If the fans are switched off, the output is an indicative value.
B37: ** | C37: =IF(data!$CC$17=1,NL!B20,IF(data!$CC$17=2,EN!B20,IF(data!$CC$17=3,FR!B20,IF(data!$CC$17=4,DE!B20,IF(data!$CC$17=5,NR!B20,IF(data!$CC$17=6,SP!B20,IF(data!$CC$17=7,SW!B20,IF(data!$CC$17=8,TS!B20,IF(data!$CC$17=9,ExtraTaal1!B20,IF(data!$CC$17=10,ExtraTaal2!B20,IF(data!$CC$17=11,ExtraTaal3!B20,))))))))))) -> Cooling power is calcullated according EN16430 with fans blowing up for all heights.
B38: *** | C38: =IF($J$4=data!$CC$3,NL!B21,IF($J$4=data!$CC$4,EN!B21,IF($J$4=data!$CC$5,FR!B21,IF($J$4=data!$CC$6,DE!B21,IF($J$4=data!$CC$7,NR!B21,IF($J$4=data!$CC$8,SP!B21,IF($J$4=data!$CC$9,SW!B21,))))))) -> When the water volume is given in gallons, the units are specifically imperial gallons.
B39: **** | C39: =IF(data!$CC$17=1,NL!B22,IF(data!$CC$17=2,EN!B22,IF(data!$CC$17=3,FR!B22,IF(data!$CC$17=4,DE!B22,IF(data!$CC$17=5,NR!B22,IF(data!$CC$17=6,SP!B22,IF(data!$CC$17=7,SW!B22,IF(data!$CC$17=8,TS!B22,IF(data!$CC$17=9,ExtraTaal1!B22,IF(data!$CC$17=10,ExtraTaal2!B22,IF(data!$CC$17=11,ExtraTaal3!B22,))))))))))) -> Soundpower according to ISO 3741:2010, sound pressure level with assumed room damping of 8 dB(A).

Sheet data (hidden)
A1: =+CONCATENATE($A$2,"_L") -> Ecoreviva_L | M1: heating | N1: Ti | O1: =IF($BZ$2=1,$P1,IF($BZ$2=2,(P1-32)/1.8,)) -> 35 | P1: =EcoReviva!E10 -> 35 | AK1: cooling | AL1: Ti | AM1: =IF($BZ$2=1,$AN1,IF($BZ$2=2,($AN1-32)/1.8,)) -> 16 | AN1: =EcoReviva!J10 -> 16 | AP1: RH | AQ1: =EcoReviva!J13 -> 50% | AU1: RH | BT1: DBH rail | BU1: =IF($CC$17=1,"GEEN",IF($CC$17=2,"NONE",IF($CC$17=3,"NONE",IF($CC$17=4,"NONE",IF($CC$17=5,"NONE",))))) -> NONE | BV1: 10 | BW1: 15 | BZ1: Imperial/SI | CB1: toestel | CC1: taal | CD1: lengte | CE1: hoogte | CF1: type | CK1: Ecoreviva Hybrid | CN1: Ecoreviva
A2: =IF(EcoReviva!$J$5=data!$CH$1,data!$CA$6,IF(EcoReviva!$J$5=data!$CK$1,data!$CA$3,IF(EcoReviva!$J$5=data!$CN$1,data!$CA$4,IF(EcoReviva!$J$5=data!$CQ$1,data!$CA$5,IF(EcoReviva!$J$5=data!$CW$1,data!$CA$7,IF(EcoReviva!$J$5=data!$CZ$1,data!$CA$8)))))) -> Ecoreviva | N2: Tr | O2: =IF($BZ$2=1,$P2,IF($BZ$2=2,(P2-32)/1.8,)) -> 30 | P2: =EcoReviva!E11 -> 30 | AL2: Tr | AM2: =IF($BZ$2=1,$AN2,IF($BZ$2=2,($AN2-32)/1.8,)) -> 18 | AN2: =EcoReviva!J11 -> 18 | BN2: =IF(OR(EcoReviva!$L$6=10,EcoReviva!$L$6=15,EcoReviva!$L$6=20),1,IF(EcoReviva!$K$6<51,1,(1-(EcoReviva!$K$6-50)*0.005))) -> 1 | BT2: 1 | BZ2: 1 | CB2: Geselecteerd | CH2: factor voor hoogtes aanpassing bij hybrids | CK2: hoogte | CL2: lengte | CM2: type | CN2: hoogte | CO2: lengte | CP2: type | DF2: =IF(data!$CC$17=7,"Effektsimulering Hybridmodeller","Selectiontool LowH2O Hybrids") -> Selectiontool LowH2O Hybrids
A3: =+CONCATENATE($A$2,"_T") -> Ecoreviva_T | N3: Ta | O3: =IF($BZ$2=1,$P3,IF($BZ$2=2,(P3-32)/1.8,)) -> 20 | P3: =EcoReviva!E12 -> 20 | AL3: Ta | AM3: =IF($BZ$2=1,$AN3,IF($BZ$2=2,($AN3-32)/1.8,)) -> 27 | AN3: =EcoReviva!J12 -> 27 | BZ3: 1 | CA3: Ecoreviva | CB3: =CK1 -> Ecoreviva Hybrid | CC3: Nederlands | CD3: 55 | CE3: =IF($CB$9=1,CK3,IF($CB$9=2,CN3,IF($CB$9=3,CQ3,IF($CB$9=4,CH3,IF($CB$9=5,CW3))))) -> 40 | CF3: 10 | CK3: 40 | CL3: 55 | CM3: 11 | CN3: 40 | CO3: 55 | CP3: 10
A4: kolomindex | B4: 2 | C4: 3 | D4: 4 | E4: 5 | F4: 6 | G4: 7 | H4: 8 | I4: 9 | J4: 10 | K4: 11 | L4: 12 | M4: 13 | N4: 14 | O4: 15 | P4: 16 | Q4: 17 | R4: 18 | S4: 19 | T4: 20 | U4: 21 | V4: 22 | W4: 23 | X4: 24 | Y4: 25 | Z4: 26 | AA4: 27 | AB4: 28 | AC4: 29 | AD4: 30 | AE4: 31 | AF4: 32 | AG4: 33 | AH4: 34 | AI4: 35 | AJ4: 36 | AK4: 37 | AL4: 38 | AM4: 39 | AN4: 40 | AO4: 41 | AP4: 42 | AQ4: 43 | AR4: 44 | AS4: 45 | AT4: 46 | AU4: 47 | AV4: 48 | AW4: 49 | AX4: 50 | AY4: 51 | AZ4: 52 | BA4: 53 | BB4: 54 | BC4: 55 | BD4: 56 | BE4: 57 | BF4: 58 | BG4: 59 | BH4: 60 | BI4: 61 | BJ4: 62 | BK4: 63 | BL4: 64 | BM4: 65 | BN4: 66 | BO4: 67 | BP4: 68 | BQ4: 69 | BR4: 70 | BS4: 71 | BT4: 72 | BU4: 73 | BV4: 74 | BW4: 75 | BX4: 76 | BY4: 77 | CA4: Linea | CB4: =CN1 -> Ecoreviva | CC4: English | CD4: 65 | CE4: =IF($CB$9=1,CK4,IF($CB$9=2,CN4,IF($CB$9=3,CQ4,IF($CB$9=4,CH4,IF($CB$9=5,CW4))))) -> 45 | CF4: 11 | CK4: 45 | CL4: 65 | CM4: 16 | CN4: 45 | CO4: 65 | CP4: 15 | DJ4: Taal/Language/Sprache/Langue/Språk/Lengua | DN4: =EcoReviva!J4 -> English | DO4: =EcoReviva!K4 -> 0
A5: =CONCATENATE($CB$9,IF($CB$9=2,EcoReviva!$K$6,50),$CD3,EcoReviva!$L$6) -> 15055 | D5: =VLOOKUP($A5,$A$28:$BY$1500,D$4,0) ->  | E5: =VLOOKUP($A5,$A$28:$BY$1500,E$4,0) ->  | F5: =VLOOKUP($A5,$A$28:$BY$1500,F$4,0) ->  | G5: =VLOOKUP($A5,$A$28:$BY$1500,G$4,0) ->  | H5: =VLOOKUP($A5,$A$28:$BY$1500,H$4,0) ->  | M5: =VLOOKUP($A5,$A$28:$BY$1500,M$4,0) ->  | N5: =VLOOKUP($A5,$A$28:$BY$1500,N$4,0) ->  | U5: =VLOOKUP($A5,$A$28:$BY$1500,U$4,0)*IF(EcoReviva!$J$5=data!$CB$8,0.9,1) ->  | X5: =VLOOKUP($A5,$A$28:$BY$1500,X$4,0) ->  | AH5: =VLOOKUP($A5,$A$28:$BY$1500,AH$4,0) ->  | AR5: =VLOOKUP($A5,$A$28:$BY$1500,AR$4,0) ->  | BB5: =VLOOKUP($A5,$A$28:$BY$1500,BB$4,0) ->  | BL5: =VLOOKUP($A5,$A$28:$BY$1500,BL$4,0) ->  | CA5: Tempo | CB5: =CQ1 -> 0 | CC5: Français | CD5: 75 | CE5: 50 | CF5: 15 | CK5: 50 | CL5: 75 | CM5: 21 | CN5: 50 | CO5: 75 | CP5: 20 | DJ5: =IF($J$4=data!$CC$3,NL!DJ4,IF($J$4=data!$CC$4,EN!DJ4,IF($J$4=data!$CC$5,FR!DJ4,IF($J$4=data!$CC$6,DE!DJ4,IF($J$4=data!$CC$7,NR!DJ4,IF($J$4=data!$CC$8,SP!DJ4,IF($J$4=data!$CC$9,SW!DJ4,))))))) -> 0 | DN5: =EcoReviva!J5 -> Ecoreviva Hybrid | DO5: =EcoReviva!K5 -> 0
A6: =CONCATENATE($CB$9,IF($CB$9=2,EcoReviva!$K$6,50),$CD4,EcoReviva!$L$6) -> 15065 | U6: =VLOOKUP($A6,$A$28:$BY$1500,U$4,0)*IF(EcoReviva!$J$5=data!$CB$8,0.9,1) ->  | CA6: Built_in | CB6: =CH1 -> 0 | CC6: Deutsch | CD6: 85 | CE6: 55 | CF6: 16 | CK6: 55 | CL6: 85 | CN6: 55 | CO6: 85 | DJ6: =IF($J$4=data!$CC$3,NL!DI4,IF($J$4=data!$CC$4,EN!DI4,IF($J$4=data!$CC$5,FR!DI4,IF($J$4=data!$CC$6,DE!DI4,IF($J$4=data!$CC$7,NR!DI4,IF($J$4=data!$CC$8,SP!DI4,IF($J$4=data!$CC$9,SW!DI4,)))))))&" [centimeter]" -> [centimeter] | DN6: =EcoReviva!J6 -> 0 | DO6: =EcoReviva!K6 -> 0 | DP6: =EcoReviva!L6 -> 0 | DQ6: =data!DL6 -> 0
A7: =CONCATENATE($CB$9,IF($CB$9=2,EcoReviva!$K$6,50),$CD5,EcoReviva!$L$6) -> 15075 | U7: =VLOOKUP($A7,$A$28:$BY$1500,U$4,0)*IF(EcoReviva!$J$5=data!$CB$8,0.9,1) ->  | CA7: MiniHybrid | CB7: Mini Hybrid | CC7: Norsk | CD7: 95 | CE7: 60 | CF7: 20 | CK7: 60 | CL7: 95 | CN7: 60 | CO7: 95 | DK7: =IF($J$4=data!$CC$3,NL!DF3,IF($J$4=data!$CC$4,EN!DF3,IF($J$4=data!$CC$5,FR!DF3,IF($J$4=data!$CC$6,DE!DF3,IF($J$4=data!$CC$7,NR!DF3,IF($J$4=data!$CC$8,SP!DF3,IF($J$4=data!$CC$9,SW!DF3,))))))) -> 0 | DM7: =IF($J$4=data!$CC$3,NL!DF16,IF($J$4=data!$CC$4,EN!DF16,IF($J$4=data!$CC$5,FR!DF16,IF($J$4=data!$CC$6,DE!DF16,IF($J$4=data!$CC$7,NR!DF16,IF($J$4=data!$CC$8,SP!DF16,IF($J$4=data!$CC$9,SW!DF16,))))))) -> 0 | DO7: =IF($J$4=data!$CC$3,NL!DF4,IF($J$4=data!$CC$4,EN!DF4,IF($J$4=data!$CC$5,FR!DF4,IF($J$4=data!$CC$6,DE!DF4,IF($J$4=data!$CC$7,NR!DF4,IF($J$4=data!$CC$8,SP!DF4,IF($J$4=data!$CC$9,SW!DF4,))))))) -> 0 | DP7: =IF($J$4=data!$CC$3,NL!DF5,IF($J$4=data!$CC$4,EN!DF5,IF($J$4=data!$CC$5,FR!DF5,IF($J$4=data!$CC$6,DE!DF5,IF($J$4=data!$CC$7,NR!DF5,IF($J$4=data!$CC$8,SP!DF5,IF($J$4=data!$CC$9,SW!DF5,))))))) -> 0 | DQ7: =IF($J$4=data!$CC$3,NL!DF6,IF($J$4=data!$CC$4,EN!DF6,IF($J$4=data!$CC$5,FR!DF6,IF($J$4=data!$CC$6,DE!DF6,IF($J$4=data!$CC$7,NR!DF6,IF($J$4=data!$CC$8,SP!DF6,IF($J$4=data!$CC$9,SW!DF6,))))))) -> 0
A8: =CONCATENATE($CB$9,IF($CB$9=2,EcoReviva!$K$6,50),$CD6,EcoReviva!$L$6) -> 15085 | U8: =VLOOKUP($A8,$A$28:$BY$1500,U$4,0)*IF(EcoReviva!$J$5=data!$CB$8,0.9,1) ->  | CA8: StradaMM | CB8: Strada Hybrid MM | CC8: Español | CD8: 105 | CE8: 65 | CF8: 21 | CK8: 65 | CL8: 105 | CN8: 65 | CO8: 105 | DF8: =IF($J$4=data!$CC$3,NL!DI5,IF($J$4=data!$CC$4,EN!DI5,IF($J$4=data!$CC$5,FR!DI5,IF($J$4=data!$CC$6,DE!DI5,IF($J$4=data!$CC$7,NR!DI5,IF($J$4=data!$CC$8,SP!DI5,IF($J$4=data!$CC$9,SW!DI5,))))))) -> 0
A9: =CONCATENATE($CB$9,IF($CB$9=2,EcoReviva!$K$6,50),$CD7,EcoReviva!$L$6) -> 15095 | U9: =VLOOKUP($A9,$A$28:$BY$1500,U$4,0)*IF(EcoReviva!$J$5=data!$CB$8,0.9,1) ->  | CA9: =IF(#REF!=data!CA3,1,IF(#REF!=data!CA4,2,IF(#REF!=data!CA5,3,IF(#REF!=data!CA6,3)))) ->  | CB9: =IF(EcoReviva!$J$5=data!CB3,1,IF(EcoReviva!$J$5=data!CB4,2,IF(EcoReviva!$J$5=data!CB5,3,IF(EcoReviva!$J$5=data!CB6,3,IF(EcoReviva!$J$5=data!CB7,5,IF(EcoReviva!$J$5=data!CB8,1)))))) -> 1 | CC9: Svenska | CD9: 115 | CE9: 70 | CK9: 70 | CL9: 115 | CN9: 70 | CO9: 115 | DF9: =IF($J$4=data!$CC$3,NL!DF8,IF($J$4=data!$CC$4,EN!DF8,IF($J$4=data!$CC$5,FR!DF8,IF($J$4=data!$CC$6,DE!DF8,IF($J$4=data!$CC$7,NR!DF8,IF($J$4=data!$CC$8,SP!DF8,IF($J$4=data!$CC$9,SW!DF8,))))))) -> 0 | DK9: =IF($J$4=data!$CC$3,NL!DK8,IF($J$4=data!$CC$4,EN!DK8,IF($J$4=data!$CC$5,FR!DK8,IF($J$4=data!$CC$6,DE!DK8,IF($J$4=data!$CC$7,NR!DK8,IF($J$4=data!$CC$8,SP!DK8,IF($J$4=data!$CC$9,SW!DK8,))))))) -> 0
A10: =CONCATENATE($CB$9,IF($CB$9=2,EcoReviva!$K$6,50),$CD8,EcoReviva!$L$6) -> 150105 | U10: =VLOOKUP($A10,$A$28:$BY$1500,U$4,0)*IF(EcoReviva!$J$5=data!$CB$8,0.9,1) ->  | CA10: W/m,beript dyn heat | CB10: W/m,beript dyn cool | CC10: Čeština | CD10: 135 | CE10: 75 | CK10: 75 | CL10: 135 | CN10: 75 | CO10: 135 | DF10: =IF($J$4=data!$CC$3,NL!DF9,IF($J$4=data!$CC$4,EN!DF9,IF($J$4=data!$CC$5,FR!DF9,IF($J$4=data!$CC$6,DE!DF9,IF($J$4=data!$CC$7,NR!DF9,IF($J$4=data!$CC$8,SP!DF9,IF($J$4=data!$CC$9,SW!DF9,))))))) -> 0 | DG10: 0 | DH10: 0 | DI10: =EcoReviva!E10 -> 35 | DJ10: =IF(data!$BZ$2=1,"°C",IF(data!$BZ$2=2,"°F",)) -> °C | DK10: =DF10 -> 0 | DL10: 0 | DM10: 0 | DN10: =EcoReviva!J10 -> 16 | DO10: =DJ10 -> °C | DP10: =IF($J$4=data!$CC$3,NL!DK4,IF($J$4=data!$CC$4,EN!DK4,IF($J$4=data!$CC$5,FR!DK4,IF($J$4=data!$CC$6,DE!DK4,IF($J$4=data!$CC$7,NR!DK4,IF($J$4=data!$CC$8,SP!DK4,IF($J$4=data!$CC$9,SW!DK4,))))))) -> 0
A11: =CONCATENATE($CB$9,IF($CB$9=2,EcoReviva!$K$6,50),$CD9,EcoReviva!$L$6) -> 150115 | U11: =VLOOKUP($A11,$A$28:$BY$1500,U$4,0)*IF(EcoReviva!$J$5=data!$CB$8,0.9,1) ->  | CB11: =IF(EcoReviva!$J$5=data!CB3,1,IF(EcoReviva!$J$5=data!CB4,2,IF(EcoReviva!$J$5=data!CB5,3,IF(EcoReviva!$J$5=data!CB6,3,IF(EcoReviva!$J$5=data!CB7,5,IF(EcoReviva!$J$5=data!CB8,6)))))) -> 1 | CC11: ExtraTaal1 | CD11: 155 | CE11: 80 | CK11: 80 | CL11: 155 | CN11: 80 | CO11: 155 | DF11: =IF($J$4=data!$CC$3,NL!DF10,IF($J$4=data!$CC$4,EN!DF10,IF($J$4=data!$CC$5,FR!DF10,IF($J$4=data!$CC$6,DE!DF10,IF($J$4=data!$CC$7,NR!DF10,IF($J$4=data!$CC$8,SP!DF10,IF($J$4=data!$CC$9,SW!DF10,))))))) -> 0 | DG11: 0 | DH11: 0 | DI11: =EcoReviva!E11 -> 30 | DJ11: =DJ10 -> °C | DK11: =DF11 -> 0 | DL11: 0 | DM11: 0 | DN11: =EcoReviva!J11 -> 18 | DO11: =DJ10 -> °C
A12: =CONCATENATE($CB$9,IF($CB$9=2,EcoReviva!$K$6,50),$CD10,EcoReviva!$L$6) -> 150135 | U12: =VLOOKUP($A12,$A$28:$BY$1500,U$4,0)*IF(EcoReviva!$J$5=data!$CB$8,0.9,1) ->  | CA12: OFF | CC12: ExtraTaal2 | CD12: 175 | CE12: 85 | CK12: 85 | CL12: 175 | CN12: 85 | CO12: 175 | DF12: =IF($J$4=data!$CC$3,NL!DF11,IF($J$4=data!$CC$4,EN!DF11,IF($J$4=data!$CC$5,FR!DF11,IF($J$4=data!$CC$6,DE!DF11,IF($J$4=data!$CC$7,NR!DF11,IF($J$4=data!$CC$8,SP!DF11,IF($J$4=data!$CC$9,SW!DF11,))))))) -> 0 | DG12: 0 | DH12: 0 | DI12: =EcoReviva!E12 -> 20 | DJ12: =DJ10 -> °C | DK12: =DF12 -> 0 | DL12: 0 | DM12: 0 | DN12: =EcoReviva!J12 -> 27 | DO12: =DJ10 -> °C
A13: =CONCATENATE($CB$9,IF($CB$9=2,EcoReviva!$K$6,50),$CD11,EcoReviva!$L$6) -> 150155 | U13: =VLOOKUP($A13,$A$28:$BY$1500,U$4,0)*IF(EcoReviva!$J$5=data!$CB$8,0.9,1) ->  | BZ13: =IF($CB$9=1,CA13,"n.a.") -> 26dB(A) | CA13: 26dB(A) | CC13: ExtraTaal3 | CD13: 195 | CE13: 90 | CF13: =IF($CC$17=1,NL!$I3,IF($CC$17=2,EN!$I3,IF($CC$17=3,FR!$I3,IF($CC$17=4,DE!$I3,IF($CC$17=5,NR!$I3,IF($CC$17=6,SP!$I3,IF($CC$17=7,SW!$I3,IF($CC$17=8,TS!$I3,IF($CC$17=9,ExtraTaal1!$I3,IF($CC$17=10,ExtraTaal2!$I3,IF($CC$17=11,ExtraTaal3!$I3,))))))))))) -> Copy all data | CK13: 90 | CL13: 195 | CN13: 90 | CO13: 195 | DK13: =IF($J$4=data!$CC$3,NL!$G$3,IF($J$4=data!$CC$4,EN!$G$3,IF($J$4=data!$CC$5,FR!$G$3,IF($J$4=data!$CC$6,DE!$G$3,IF($J$4=data!$CC$7,NR!$G$3,IF($J$4=data!$CC$8,SP!$G$3,IF($J$4=data!$CC$9,SW!$G$3,))))))) -> 0 | DN13: =EcoReviva!J13 -> 50%
A14: =CONCATENATE($CB$9,IF($CB$9=2,EcoReviva!$K$6,50),$CD12,EcoReviva!$L$6) -> 150175 | U14: =VLOOKUP($A14,$A$28:$BY$1500,U$4,0)*IF(EcoReviva!$J$5=data!$CB$8,0.9,1) ->  | BZ14: =IF($CB$9=1,CA14,"n.a.") -> 30dB(A) | CA14: 30dB(A) | CD14: 215 | CE14: 95 | CF14: =IF($CC$17=1,NL!$I4,IF($CC$17=2,EN!$I4,IF($CC$17=3,FR!$I4,IF($CC$17=4,DE!$I4,IF($CC$17=5,NR!$I4,IF($CC$17=6,SP!$I4,IF($CC$17=7,SW!$I4,IF($CC$17=8,TS!$I4,IF($CC$17=9,ExtraTaal1!$I4,IF($CC$17=10,ExtraTaal2!$I4,IF($CC$17=11,ExtraTaal3!$I4,))))))))))) -> SI-units | CK14: 95 | CL14: 215 | CN14: 95 | CO14: 215
A15: =CONCATENATE($CB$9,IF($CB$9=2,EcoReviva!$K$6,50),$CD13,EcoReviva!$L$6) -> 150195 | D15: =VLOOKUP($A15,$A$28:$BY$1500,D$4,0) ->  | N15: =VLOOKUP($A15,$A$28:$BY$1500,N$4,0) ->  | U15: =VLOOKUP($A15,$A$28:$BY$1500,U$4,0)*IF(EcoReviva!$J$5=data!$CB$8,0.9,1) ->  | X15: =VLOOKUP($A15,$A$28:$BY$1500,X$4,0) ->  | AH15: =VLOOKUP($A15,$A$28:$BY$1500,AH$4,0) ->  | AR15: =VLOOKUP($A15,$A$28:$BY$1500,AR$4,0) ->  | BB15: =VLOOKUP($A15,$A$28:$BY$1500,BB$4,0) ->  | BL15: =VLOOKUP($A15,$A$28:$BY$1500,BL$4,0) ->  | BZ15: MAX | CA15: MAX | CD15: 235 | CE15: 100 | CF15: =IF($CC$17=1,NL!$I5,IF($CC$17=2,EN!$I5,IF($CC$17=3,FR!$I5,IF($CC$17=4,DE!$I5,IF($CC$17=5,NR!$I5,IF($CC$17=6,SP!$I5,IF($CC$17=7,SW!$I5,IF($CC$17=8,TS!$I5,IF($CC$17=9,ExtraTaal1!$I5,IF($CC$17=10,ExtraTaal2!$I5,IF($CC$17=11,ExtraTaal3!$I5,))))))))))) -> Imperial-units | CK15: 100 | CL15: 235 | CN15: 100 | CO15: 235
A16: =CONCATENATE($CB$9,IF($CB$9=2,EcoReviva!$K$6,50),$CD14,EcoReviva!$L$6) -> 150215 | U16: =VLOOKUP($A16,$A$28:$BY$1500,U$4,0)*IF(EcoReviva!$J$5=data!$CB$8,0.9,1) ->  | BZ16: =IF(CB9=2,"n.a.",dropdownstand) -> 26dB(A) | DF16: =IF($J$4=data!$CC$3,NL!DF3,IF($J$4=data!$CC$4,EN!DF3,IF($J$4=data!$CC$5,FR!DF3,IF($J$4=data!$CC$6,DE!DF3,IF($J$4=data!$CC$7,NR!DF3,IF($J$4=data!$CC$8,SP!DF3,IF($J$4=data!$CC$9,SW!DF3,)))))))&" [cm]" -> [cm] | DG16: =IF($J$4=data!$CC$3,NL!DF19,IF($J$4=data!$CC$4,EN!DF19,IF($J$4=data!$CC$5,FR!DF19,IF($J$4=data!$CC$6,DE!DF19,IF($J$4=data!$CC$7,NR!DF19,IF($J$4=data!$CC$8,SP!DF19,IF($J$4=data!$CC$9,SW!DF19,))))))) -> 0 | DH16: =IF($J$4=data!$CC$3,NL!DG14,IF($J$4=data!$CC$4,EN!DG14,IF($J$4=data!$CC$5,FR!DG14,IF($J$4=data!$CC$6,DE!DG14,IF($J$4=data!$CC$7,NR!DG14,IF($J$4=data!$CC$8,SP!DG14,IF($J$4=data!$CC$9,SW!DG14,)))))))&IF(data!GD2=1," [W]",IF(data!GD2=2," [Btu/h]",)) ->  | DI16: =IF($J$4=data!$CC$3,NL!DH14,IF($J$4=data!$CC$4,EN!DH14,IF($J$4=data!$CC$5,FR!DH14,IF($J$4=data!$CC$6,DE!DH14,IF($J$4=data!$CC$7,NR!DH14,IF($J$4=data!$CC$8,SP!DH14,IF($J$4=data!$CC$9,SW!DH14,)))))))&IF(data!GD2=1," [kg/h]",IF(data!GD2=2," [GPM]**",)) ->  | DJ16: =IF($J$4=data!$CC$3,NL!DJ6,IF($J$4=data!$CC$4,EN!DJ6,IF($J$4=data!$CC$5,FR!DJ6,IF($J$4=data!$CC$6,DE!DJ6,IF($J$4=data!$CC$7,NR!DJ6,IF($J$4=data!$CC$8,SP!DJ6,IF($J$4=data!$CC$9,SW!DJ6,)))))))&" ["&IF(data!GD2=1,"kPa",IF(data!GD2=2,"ftH2O"))&"]" -> [ONWAAR] | DK16: =IF($J$4=data!$CC$3,NL!DI14,IF($J$4=data!$CC$4,EN!DI14,IF($J$4=data!$CC$5,FR!DI14,IF($J$4=data!$CC$6,DE!DI14,IF($J$4=data!$CC$7,NR!DI14,IF($J$4=data!$CC$8,SP!DI14,IF($J$4=data!$CC$9,SW!DI14,)))))))&IF(data!GD2=1," [W]*",IF(data!GD2=2," [Btu/h]*",)) ->  | DL16: =DI16 ->  | DM16: =DJ16 -> [ONWAAR] | DN16: =IF($J$4=data!$CC$3,NL!DM13,IF($J$4=data!$CC$4,EN!DM13,IF($J$4=data!$CC$5,FR!DM13,IF($J$4=data!$CC$6,DE!DM13,IF($J$4=data!$CC$7,NR!DM13,IF($J$4=data!$CC$8,SP!DM13,IF($J$4=data!$CC$9,SW!DM13,))))))) -> 0 | DO16: =IF($J$4=data!$CC$3,NL!DN13,IF($J$4=data!$CC$4,EN!DN13,IF($J$4=data!$CC$5,FR!DN13,IF($J$4=data!$CC$6,DE!DN13,IF($J$4=data!$CC$7,NR!DN13,IF($J$4=data!$CC$9,SW!DN13,)))))) -> 0 | DP16: =IF($J$4=data!$CC$3,NL!DL13,IF($J$4=data!$CC$4,EN!DL13,IF($J$4=data!$CC$5,FR!DL13,IF($J$4=data!$CC$6,DE!DL13,IF($J$4=data!$CC$7,NR!DL13,IF($J$4=data!$CC$8,SP!DL13,IF($J$4=data!$CC$9,SW!DL13,))))))) -> 0 | DQ16: =IF($J$4=data!$CC$3,NL!DK13,IF($J$4=data!$CC$4,EN!DK13,IF($J$4=data!$CC$5,FR!DK13,IF($J$4=data!$CC$6,DE!DK13,IF($J$4=data!$CC$7,NR!DK13,IF($J$4=data!$CC$8,SP!DK13,IF($J$4=data!$CC$9,SW!DK13,)))))))&IF(data!GD2=1," [l]",IF(data!GD2=2," [Gal]**",)) -> 
A17: =CONCATENATE($CB$9,IF($CB$9=2,EcoReviva!$K$6,50),$CD15,EcoReviva!$L$6) -> 150235 | U17: =VLOOKUP($A17,$A$28:$BY$1500,U$4,0)*IF(EcoReviva!$J$5=data!$CB$8,0.9,1) ->  | BZ17: 30dB(A) | CC17: =IF(EcoReviva!$J$4=data!CC3,1,IF(EcoReviva!$J$4=data!CC4,2,IF(EcoReviva!$J$4=data!CC5,3,IF(EcoReviva!$J$4=data!CC6,4,IF(EcoReviva!$J$4=data!CC7,5,IF(EcoReviva!$J$4=data!CC8,6,IF(EcoReviva!$J$4=data!CC9,7,IF(EcoReviva!$J$4=data!CC10,8,IF(EcoReviva!$J$4=data!CC11,9,IF(EcoReviva!$J$4=data!CC12,10,IF(EcoReviva!$J$4=data!CC13,11))))))))))) -> 2 | DF17: =CONCATENATE($J$5,", ",$K$7, " ",$K$6,"cm, ",$L$7, " ",$L$6) ->  | DG17: 0 | DH17: 0 | DI17: 0 | DJ17: 0 | DK17: 0 | DL17: 0 | DM17: 0 | DN17: 0 | DO17: 0 | DP17: 0 | DQ17: 0
BZ18: MAX | DF18: 55 | DG18: =BJ5 ->  | DH18: =ROUND(IF($BZ$2=1,U5,IF($BZ$2=2,U5*3.412141633,)),0) ->  | DI18: =IF($BZ$2=1,ROUND(Y5,0),IF($BZ$2=2,ROUND(Y5/272.7654,1),)) ->  | DJ18: =IF($BZ$2=1,AC5,IF($BZ$2=2,AC5*0.3346,)) ->  | DN18: 0.0 | DO18: 0.0 | DP18: 0.0 | DQ18: =IF($BZ$2=1,AZ5,IF($BZ$2=2,AZ5/4.54609,)) -> 
DF19: 55 | DG19: =BK5 ->  | DH19: =ROUND(IF($BZ$2=1,V5,IF($BZ$2=2,V5*3.412141633,)),0) ->  | DI19: =IF($BZ$2=1,ROUND(Z5,0),IF($BZ$2=2,ROUND(Z5/272.7654,1),)) ->  | DJ19: =IF($BZ$2=1,AD5,IF($BZ$2=2,AD5*0.3346,)) ->  | DK19: =IF(BY5=1,ROUND(IF($BZ$2=1,AQ5,IF($BZ$2=2,AQ5*3.412141633,)),0),"") ->  | DL19: =IF(BY5=1,IF($BZ$2=1,ROUND(AT5,0),IF($BZ$2=2,ROUND(AT5/272.7654,1),)),"") ->  | DM19: =IF(BY5=1,IF($BZ$2=1,AW5,IF($BZ$2=2,AW5*0.3346,)),"") ->  | DN19: =J5 ->  | DO19: =IF(DN19="","",DN19+8) ->  | DP19: =BA5 ->  | DQ19: =DQ18 -> 
CN20: 1 | CO20: 2 | CP20: 3 | CQ20: 4 | CR20: 5 | CS20: 6 | CT20: 7 | CU20: 8 | CV20: 9 | DF20: 55 | DG20: =BL5 ->  | DH20: =ROUND(IF($BZ$2=1,W5,IF($BZ$2=2,W5*3.412141633,)),0) ->  | DI20: =IF($BZ$2=1,ROUND(AA5,0),IF($BZ$2=2,ROUND(AA5/272.7654,1),)) ->  | DJ20: =IF($BZ$2=1,AE5,IF($BZ$2=2,AE5*0.3346,)) ->  | DK20: =IF(BY5=1,ROUND(IF($BZ$2=1,AR5,IF($BZ$2=2,AR5*3.412141633,)),0),"") ->  | DL20: =IF(BY5=1,IF($BZ$2=1,ROUND(AU5,0),IF($BZ$2=2,ROUND(AU5/272.7654,1),)),"") ->  | DM20: =IF(BY5=1,IF($BZ$2=1,AX5,IF($BZ$2=2,AX5*0.3346,)),"") ->  | DN20: =K5 ->  | DO20: =IF(DN20="","",DN20+8) ->  | DP20: =BB5 ->  | DQ20: =DQ18 -> 
CQ21: =VLOOKUP($A$24,$CN$23:$CV$56,CQ$20,0) ->  | DF21: 55 | DG21: =BM5 ->  | DH21: =ROUND(IF($BZ$2=1,X5,IF($BZ$2=2,X5*3.412141633,)),0) ->  | DI21: =IF($BZ$2=1,ROUND(AB5,0),IF($BZ$2=2,ROUND(AB5/272.7654,1),)) ->  | DJ21: =IF($BZ$2=1,AF5,IF($BZ$2=2,AF5*0.3346,)) ->  | DK21: =IF(BY5=1,ROUND(IF($BZ$2=1,AS5,IF($BZ$2=2,AS5*3.412141633,)),0),"") ->  | DL21: =IF(BY5=1,IF($BZ$2=1,ROUND(AV5,0),IF($BZ$2=2,ROUND(AV5/272.7654,1),)),"") ->  | DM21: =IF(BY5=1,IF($BZ$2=1,AY5,IF($BZ$2=2,AY5*0.3346,)),"") ->  | DN21: =L5 ->  | DP21: =BC5 ->  | DQ21: =DQ18 -> 
CO22: Raillengte | CP22: Railtype | CQ22: BMS-stuurspanningen | CT22: Opgenomen elektrisch vermogen | DF22: 65 | DG22: =BJ6 ->  | DH22: =ROUND(IF($BZ$2=1,U6,IF($BZ$2=2,U6*3.412141633,)),0) ->  | DI22: =IF($BZ$2=1,ROUND(Y6,0),IF($BZ$2=2,ROUND(Y6/272.7654,1),)) ->  | DJ22: =IF($BZ$2=1,AC6,IF($BZ$2=2,AC6*0.3346,)) ->  | DN22: 0.0 | DO22: 0.0 | DP22: 0.0 | DQ22: =IF($BZ$2=1,AZ6,IF($BZ$2=2,AZ6/4.54606,)) -> 
CN23: =CONCATENATE(CO23,CP23) -> 5010 | CO23: 50 | CP23: 10 | CQ23: 14.2 | CR23: 16.2 | CS23: 21.85 | CT23: 3.6 | CU23: 4.1 | CV23: 5.1 | CX23: Lengte 55 | DF23: =DF22 -> 65 | DG23: =BK6 ->  | DH23: =ROUND(IF($BZ$2=1,V6,IF($BZ$2=2,V6*3.412141633,)),0) ->  | DI23: =IF($BZ$2=1,ROUND(Z6,0),IF($BZ$2=2,ROUND(Z6/272.7654,1),)) ->  | DJ23: =IF($BZ$2=1,AD6,IF($BZ$2=2,AD6*0.3346,)) ->  | DK23: =IF(BY6=1,ROUND(IF($BZ$2=1,AQ6,IF($BZ$2=2,AQ6*3.412141633,)),0),"") ->  | DL23: =IF(BY6=1,IF($BZ$2=1,ROUND(AT6,0),IF($BZ$2=2,ROUND(AT6/272.7654,1),)),"") ->  | DM23: =IF(BY6=1,IF($BZ$2=1,AW6,IF($BZ$2=2,AW6*0.3346,)),"") ->  | DN23: =J6 ->  | DO23: =IF(DN23="","",DN23+8) ->  | DP23: =BA6 ->  | DQ23: =DQ22 -> 
CN24: =CONCATENATE(CO24,CP24) -> 5015 | CO24: 50 | CP24: 15 | CQ24: 0 | CR24: 0 | CS24: 0 | CT24: 0 | CU24: 0 | CV24: 0 | CX24: Lengte 65 | DF24: =DF22 -> 65 | DG24: =BL6 ->  | DH24: =ROUND(IF($BZ$2=1,W6,IF($BZ$2=2,W6*3.412141633,)),0) ->  | DI24: =IF($BZ$2=1,ROUND(AA6,0),IF($BZ$2=2,ROUND(AA6/272.7654,1),)) ->  | DJ24: =IF($BZ$2=1,AE6,IF($BZ$2=2,AE6*0.3346,)) ->  | DK24: =IF(BY6=1,ROUND(IF($BZ$2=1,AR6,IF($BZ$2=2,AR6*3.412141633,)),0),"") ->  | DL24: =IF(BY6=1,IF($BZ$2=1,ROUND(AU6,0),IF($BZ$2=2,ROUND(AU6/272.7654,1),)),"") ->  | DM24: =IF(BY6=1,IF($BZ$2=1,AX6,IF($BZ$2=2,AX6*0.3346,)),"") ->  | DN24: =K6 ->  | DO24: =IF(DN24="","",DN24+8) ->  | DP24: =BB6 ->  | DQ24: =DQ22 -> 
CN25: 6010 | CO25: 60 | CP25: 10 | CQ25: 13.6 | CR25: 15.6 | CS25: 21.85 | CT25: 4.8 | CU25: 5.4 | CV25: 6.8 | CX25: Lengte 75 | DF25: =DF22 -> 65 | DG25: =BM6 ->  | DH25: =ROUND(IF($BZ$2=1,X6,IF($BZ$2=2,X6*3.412141633,)),0) ->  | DI25: =IF($BZ$2=1,ROUND(AB6,0),IF($BZ$2=2,ROUND(AB6/272.7654,1),)) ->  | DJ25: =IF($BZ$2=1,AF6,IF($BZ$2=2,AF6*0.3346,)) ->  | DK25: =IF(BY6=1,ROUND(IF($BZ$2=1,AS6,IF($BZ$2=2,AS6*3.412141633,)),0),"") ->  | DL25: =IF(BY6=1,IF($BZ$2=1,ROUND(AV6,0),IF($BZ$2=2,ROUND(AV6/272.7654,1),)),"") ->  | DM25: =IF(BY6=1,IF($BZ$2=1,AY6,IF($BZ$2=2,AY6*0.3346,)),"") ->  | DN25: =L6 ->  | DP25: =BC6 ->  | DQ25: =DQ22 -> 
I26: soundpressure level | M26: power | N26: 75/65/20 | Q26: n | U26: result | V26: power | Y26: result | Z26: flow | AC26: static pressure loss | AK26: power | AL26: 16/18/27 | AN26: n | AQ26: result | AR26: power | AT26: result | AU26: flow | AW26: static pressure loss | BA26: electrical power nominal | BE26: oude cataloog | BG26: Statisch met rail / statisch cataloog | BL26: BMS-stuurspanning | BO26: Sensible heat factor | BR26: Total cooling capacity | BV26: Diff. Total and sensible | BY26: Show or not | CN26: 6015 | CO26: 60 | CP26: 15 | CQ26: 12.3 | CR26: 14.4 | CS26: 21.85 | CT26: 4.8 | CU26: 5.5 | CV26: 7.2 | CX26: Lengte 85 | DF26: 75 | DG26: =BJ7 ->  | DH26: =ROUND(IF($BZ$2=1,U7,IF($BZ$2=2,U7*3.412141633,)),0) ->  | DI26: =IF($BZ$2=1,ROUND(Y7,0),IF($BZ$2=2,ROUND(Y7/272.7654,1),)) ->  | DJ26: =IF($BZ$2=1,AC7,IF($BZ$2=2,AC7*0.3346,)) ->  | DN26: 0.0 | DO26: 0.0 | DP26: 0.0 | DQ26: =IF($BZ$2=1,AZ7,IF($BZ$2=2,AZ7/4.54609,)) -> 
A27: lookup code | B27: L,rail | C27: T,rail | D27: toestel | E27: height | F27: length | G27: type | H27: depth | I27: 0 | J27: 1 | K27: 2 | L27: 3 | M27: 0 | N27: 1 | O27: 2 | P27: 3 | Q27: 0 | R27: 1 | S27: 2 | T27: 3 | U27: 0 | V27: 1 | W27: 2 | X27: 3 | Y27: 0 | Z27: 1 | AA27: 2 | AB27: 3 | AC27: 0 | AD27: 1 | AE27: 2 | AF27: 3 | AG27: k1 | AH27: n | AI27: t | AJ27: k2 | AK27: 1 | AL27: 2 | AM27: 3 | AN27: 1 | AO27: 2 | AP27: 3 | AQ27: 1 | AR27: 2 | AS27: 3 | AT27: 1 | AU27: 2 | AV27: 3 | AW27: 1 | AX27: 2 | AY27: 3 | AZ27: watervolume | BA27: 1 | BB27: 2 | BC27: 3 | BE27: Static,H | BF27: Static,C | BJ27: 0 | BK27: 1 | BL27: 2 | BM27: 3 | BO27: SHF 1 | BP27: SHF 2 | BQ27: SHF 3 | BR27: Q,t 1 | BS27: Q,t 2 | BT27: Q,t 3 | BV27: ΔQ,t,s 1 | BW27: ΔQ,t,s 2 | BX27: ΔQ,t,s 3 | BY27: OK/NOTOK | BZ27: Verminderings factor cooling bijhoogtes > 50 | CN27: 7010 | CO27: 70 | CP27: 10 | CQ27: 13.2 | CR27: 15.1 | CS27: 21.85 | CT27: 5.5 | CU27: 5.9 | CV27: 7.9 | CX27: Lengte 95 | DF27: =DF26 -> 75 | DG27: =BK7 ->  | DH27: =ROUND(IF($BZ$2=1,V7,IF($BZ$2=2,V7*3.412141633,)),0) ->  | DI27: =IF($BZ$2=1,ROUND(Z7,0),IF($BZ$2=2,ROUND(Z7/272.7654,1),)) ->  | DJ27: =IF($BZ$2=1,AD7,IF($BZ$2=2,AD7*0.3346,)) ->  | DK27: =IF(BY7=1,ROUND(IF($BZ$2=1,AQ7,IF($BZ$2=2,AQ7*3.412141633,)),0),"") ->  | DL27: =IF(BY7=1,IF($BZ$2=1,ROUND(AT7,0),IF($BZ$2=2,ROUND(AT7/272.7654,1),)),"") ->  | DM27: =IF(BY7=1,IF($BZ$2=1,AW7,IF($BZ$2=2,AW7*0.3346,)),"") ->  | DN27: =J7 ->  | DO27: =IF(DN27="","",DN27+8) ->  | DP27: =BA7 ->  | DQ27: =DQ26 -> 
A28: =CONCATENATE(D28,E28,F28,G28) -> 1504510 | D28: 1 | E28: 50 | F28: 45 | G28: 10 | H28: 10.9 | I28: 0 | J28: 26 | K28: 30 | L28: 38.8 | M28: =IF($N28-($BE28*$BG28)>100,$BE28*$BG28,$N28-95) -> 484 | N28: 649 | O28: 695 | P28: 812 | Q28: 1.5 | R28: =IF($G28=10,1.08,IF($G28=11,1.1,IF($G28=15,1.08,IF($G28=16,1.1,IF($G28=20,1.08,IF($G28=21,1.05)))))) -> 1.08 | S28: 1.08 | T28: 1.08 | U28: =ROUND(M28*POWER(CF_heat,Q28),0) -> 60 | V28: =ROUND(N28*POWER(CF_heat,R28),0) -> 144 | W28: =ROUND(O28*POWER(CF_heat,S28),0) -> 154 | X28: =ROUND(P28*POWER(CF_heat,T28),0) -> 180 | Y28: =ROUND(U28*3600/(4186*ABS($O$1-$O$2)),0) -> 10 | Z28: =ROUND(V28*3600/(4186*ABS($O$1-$O$2)),0) -> 25 | AA28: =ROUND(W28*3600/(4186*ABS($O$1-$O$2)),0) -> 26 | AB28: =ROUND(X28*3600/(4186*ABS($O$1-$O$2)),0) -> 31 | AC28: =(($AG28*(Y28^$AH28)*((($F28-14.4)*$AI28)/100))+($AJ28*(Y28^2)))*0.0098 -> 0.00 | AD28: =(($AG28*(Z28^$AH28)*((($F28-14.4)*$AI28)/100))+($AJ28*(Z28^2)))*0.0098 -> 0.00 | AE28: =(($AG28*(AA28^$AH28)*((($F28-14.4)*$AI28)/100))+($AJ28*(AA28^2)))*0.0098 -> 0.00 | AF28: =(($AG28*(AB28^$AH28)*((($F28-14.4)*$AI28)/100))+($AJ28*(AB28^2)))*0.0098 -> 0.00 | AG28: =IF($G28=$CO$103,CP$103,IF($G28=$CO$104,CP$104,IF($G28=$CO$105,CP$105,IF($G28=$CO$107,CP$107,IF($G28=$CO$108,CP$108,IF($G28=$CO$109,CP$109,IF($G28=$CO$111,CP$111,IF($G28=$CO$112,CP$112,IF($G28=$CO$113,CP$113,IF($G28=$CO$115,CP$115,IF($G28=$CO$116,CP$116,IF($G28=$CO$117,CP$117,IF($G28=$CO$119,CP$119,IF($G28=$CO$120,CP$120,)))))))))))))) -> 0.0003969 | AH28: =IF($G28=$CO$103,CQ$103,IF($G28=$CO$104,CQ$104,IF($G28=$CO$105,CQ$105,IF($G28=$CO$107,CQ$107,IF($G28=$CO$108,CQ$108,IF($G28=$CO$109,CQ$109,IF($G28=$CO$111,CQ$111,IF($G28=$CO$112,CQ$112,IF($G28=$CO$113,CQ$113,IF($G28=$CO$115,CQ$115,IF($G28=$CO$116,CQ$116,IF($G28=$CO$117,CQ$117,IF($G28=$CO$119,CQ$119,IF($G28=$CO$120,CQ$120,)))))))))))))) -> 1.7346 | AI28: =IF($G28=$CO$103,CR$103,IF($G28=$CO$104,CR$104,IF($G28=$CO$105,CR$105,IF($G28=$CO$107,CR$107,IF($G28=$CO$108,CR$108,IF($G28=$CO$109,CR$109,IF($G28=$CO$111,CR$111,IF($G28=$CO$112,CR$112,IF($G28=$CO$113,CR$113,IF($G28=$CO$115,CR$115,IF($G28=$CO$116,CR$116,IF($G28=$CO$117,CR$117,IF($G28=$CO$119,CR$119,IF($G28=$CO$120,CR$120,)))))))))))))) -> 2 | AJ28: =IF($G28=$CO$103,CS$103,IF($G28=$CO$104,CS$104,IF($G28=$CO$105,CS$105,IF($G28=$CO$107,CS$107,IF($G28=$CO$108,CS$108,IF($G28=$CO$109,CS$109,IF($G28=$CO$111,CS$111,IF($G28=$CO$112,CS$112,IF($G28=$CO$113,CS$113,IF($G28=$CO$115,CS$115,IF($G28=$CO$116,CS$116,IF($G28=$CO$117,CS$117,IF($G28=$CO$119,CS$119,IF($G28=$CO$120,CS$120,)))))))))))))) -> 0.000367347 | AK28: 90 | AL28: 96 | AM28: 113 | AN28: =IF($G28=10,0.98,IF($G28=11,0.95,IF($G28=15,1.01,IF($G28=16,0.95,IF($G28=20,0.95,IF($G28=21,0.85)))))) -> 0.98 | AO28: 0.98 | AP28: 0.98 | AQ28: =ROUND(AK28*BZ28*POWER(CF_cool,AN28),0) -> 90 | AR28: =ROUND(AL28*BZ28*POWER(CF_cool,AO28),0) -> 96 | AS28: =ROUND(AM28*BZ28*POWER(CF_cool,AP28),0) -> 113 | AT28: =ROUND(AQ28*3600/(4186*ABS($AM$1-$AM$2)),0) -> 39 | AU28: =ROUND(AR28*3600/(4186*ABS($AM$1-$AM$2)),0) -> 41 | AV28: =ROUND(AS28*3600/(4186*ABS($AM$1-$AM$2)),0) -> 49 | AW28: =(($AG28*(AT28^$AH28)*((($F28-14.4)*$AI28)/100))+($AJ28*(AT28^2)))*0.0098 -> 0.01 | AX28: =(($AG28*(AU28^$AH28)*((($F28-14.4)*$AI28)/100))+($AJ28*(AU28^2)))*0.0098 -> 0.01 | AY28: =(($AG28*(AV28^$AH28)*((($F28-14.4)*$AI28)/100))+($AJ28*(AV28^2)))*0.0098 -> 0.01 | AZ28: =ROUND(IF(G28=10,$CO$92*F28,IF(G28=11,$CO$93*F28,IF(G28=15,$CO$94*F28,IF(G28=16,$CO$95*F28,IF(G28=20,$CO$96*F28,IF(G28=21,$CO$97*F28,)))))),1) -> 0.3 | BA28: 3.6 | BB28: 4.1 | BC28: 5.1 | BE28: 538 | BG28: =IF(G28=10,0.9,IF(G28=11,0.68,IF(G28=15,0.8,IF(G28=16,0.68,IF(G28=20,0.8,IF(G28=21,0.8)))))) -> 90% | BJ28: 0 | BK28: 14.2 | BL28: 16.2 | BM28: 21.85 | BO28: =IF((237.3*LN(($AQ$1*EXP(17.27*($AM$3/($AM$3+237.3))))))/(17.27-LN(($AQ$1*EXP(17.27*($AM$3/($AM$3+237.3))))))<(($AM$1+$AM$2)/2),1,IF(1/(1+((2258*((0.622/((101325/(1*611*EXP(17.27*((($AM$1+$AM$2)/2)/((($AM$1+$AM$2)/2)+237.3))))))-1)*1000-(0.622/((101325/($AQ$1*611*EXP(17.27*($AM$3/($AM$3+237.3))))))-1)*1000))/(1005*((($AM$1+$AM$2)/2)-$AM$3))))>1,1,1/(1+((2258*((0.622/((101325/(1*611*EXP(17.27*((($AM$1+$AM$2)/2)/((($AM$1+$AM$2)/2)+237.3))))))-1)*1000-(0.622/((101325/($AQ$1*611*EXP(17.27*($AM$3/($AM$3+237.3))))))-1)*1000))/(1005*((($AM$1+$AM$2)/2)-$AM$3)))))) -> 1 | BP28: 1 | BQ28: 1 | BR28: =AQ28/BO28 -> 90 | BS28: =AR28/BP28 -> 96 | BT28: =AS28/BQ28 -> 113 | BV28: =BR28-AQ28 -> 0 | BW28: =BS28-AR28 -> 0 | BX28: =BT28-AS28 -> 0 | BY28: =IF(SUM(BV28:BX28)=0,1,0) -> 1 | BZ28: =IF(OR(EcoReviva!$L$6=10,EcoReviva!$L$6=15,EcoReviva!$L$6=20),1,IF(EcoReviva!$K$6<51,1,(1-(EcoReviva!$K$6-50)*0.005))) -> 1 | CN28: 7015 | CO28: 70 | CP28: 15 | CQ28: 12.3 | CR28: 14.4 | CS28: 21.85 | CT28: 5.1 | CU28: 5.6 | CV28: 7.2 | CX28: Lengte 105 | DF28: =DF26 -> 75 | DG28: =BL7 ->  | DH28: =ROUND(IF($BZ$2=1,W7,IF($BZ$2=2,W7*3.412141633,)),0) ->  | DI28: =IF($BZ$2=1,ROUND(AA7,0),IF($BZ$2=2,ROUND(AA7/272.7654,1),)) ->  | DJ28: =IF($BZ$2=1,AE7,IF($BZ$2=2,AE7*0.3346,)) ->  | DK28: =IF(BY7=1,ROUND(IF($BZ$2=1,AR7,IF($BZ$2=2,AR7*3.412141633,)),0),"") ->  | DL28: =IF(BY7=1,IF($BZ$2=1,ROUND(AU7,0),IF($BZ$2=2,ROUND(AU7/272.7654,1),)),"") ->  | DM28: =IF(BY7=1,IF($BZ$2=1,AX7,IF($BZ$2=2,AX7*0.3346,)),"") ->  | DN28: =K7 ->  | DO28: =IF(DN28="","",DN28+8) ->  | DP28: =BB7 ->  | DQ28: =DQ26 -> 
A29: 1504511 | D29: 1 | E29: 50 | F29: 45 | G29: 11 | H29: 10.9 | I29: 0 | J29: 26 | K29: 30 | L29: 38.8 | M29: 471 | N29: 881 | O29: 943 | P29: 1102 | Q29: 1.5 | R29: 1.1 | S29: 1.1 | T29: 1.1 | U29: 58 | V29: 190 | W29: 203 | X29: 237 | Y29: 10 | Z29: 33 | AA29: 35 | AB29: 41 | AC29: 0.00 | AD29: 0.01 | AE29: 0.01 | AF29: 0.01 | AG29: 0.0003969 | AH29: 1.7346 | AI29: 4 | AJ29: 0.000574288 | AK29: 148 | AL29: 158 | AM29: 185 | AN29: 0.95 | AO29: 0.95 | AP29: 0.95 | AQ29: 148 | AR29: 158 | AS29: 185 | AT29: 64 | AU29: 68 | AV29: 80 | AW29: 0.03 | AX29: 0.03 | AY29: 0.05 | AZ29: 0.6 | BA29: 3.6 | BB29: 4.1 | BC29: 5.1 | BE29: 693 | BG29: 68% | BJ29: 0 | BK29: 14.2 | BL29: 16.2 | BM29: 21.85 | BO29: 1 | BP29: 1 | BQ29: 1 | BR29: 148 | BS29: 158 | BT29: 185 | BV29: 0 | BW29: 0 | BX29: 0 | BY29: 1 | BZ29: =IF(OR(EcoReviva!$L$6=10,EcoReviva!$L$6=15,EcoReviva!$L$6=20),1,IF(EcoReviva!$K$6<51,1,(1-(EcoReviva!$K$6-50)*0.005))) -> 1 | CN29: 8010 | CO29: 80 | CP29: 10 | CQ29: 12.8 | CR29: 14.7 | CS29: 21.85 | CT29: 6.3 | CU29: 6.8 | CV29: 9.1 | CX29: Lengte 115 | DF29: =DF26 -> 75 | DG29: =BM7 ->  | DH29: =ROUND(IF($BZ$2=1,X7,IF($BZ$2=2,X7*3.412141633,)),0) ->  | DI29: =IF($BZ$2=1,ROUND(AB7,0),IF($BZ$2=2,ROUND(AB7/272.7654,1),)) ->  | DJ29: =IF($BZ$2=1,AF7,IF($BZ$2=2,AF7*0.3346,)) ->  | DK29: =IF(BY7=1,ROUND(IF($BZ$2=1,AS7,IF($BZ$2=2,AS7*3.412141633,)),0),"") ->  | DL29: =IF(BY7=1,IF($BZ$2=1,ROUND(AV7,0),IF($BZ$2=2,ROUND(AV7/272.7654,1),)),"") ->  | DM29: =IF(BY7=1,IF($BZ$2=1,AY7,IF($BZ$2=2,AY7*0.3346,)),"") ->  | DN29: =L7 ->  | DP29: =BC7 ->  | DQ29: =DQ26 -> 
A30: 1505510 | D30: 1 | E30: 50 | F30: 55 | G30: 10 | H30: 10.9 | I30: 0 | J30: 26 | K30: 30 | L30: 40.0 | M30: 581 | N30: 842 | O30: 901 | P30: 1066 | Q30: 1.5 | R30: 1.08 | S30: 1.08 | T30: 1.08 | U30: 72 | V30: 186 | W30: 199 | X30: 236 | Y30: 12 | Z30: 32 | AA30: 34 | AB30: 41 | AC30: 0.00 | AD30: 0.00 | AE30: 0.01 | AF30: 0.01 | AG30: 0.0003969 | AH30: 1.7346 | AI30: 2 | AJ30: 0.000367347 | AK30: 117 | AL30: 125 | AM30: 148 | AN30: 0.98 | AO30: 0.98 | AP30: 0.98 | AQ30: 117 | AR30: 125 | AS30: 148 | AT30: 50 | AU30: 54 | AV30: 64 | AW30: 0.01 | AX30: 0.01 | AY30: 0.02 | AZ30: 0.4 | BA30: 4.8 | BB30: 5.4 | BC30: 6.8 | BE30: 646 | BG30: 90% | BJ30: 0 | BK30: 13.6 | BL30: 15.6 | BM30: 21.85 | BO30: 1 | BP30: 1 | BQ30: 1 | BR30: 117 | BS30: 125 | BT30: 148 | BV30: 0 | BW30: 0 | BX30: 0 | BY30: 1 | BZ30: =IF(OR(EcoReviva!$L$6=10,EcoReviva!$L$6=15,EcoReviva!$L$6=20),1,IF(EcoReviva!$K$6<51,1,(1-(EcoReviva!$K$6-50)*0.005))) -> 1 | CN30: 8015 | CO30: 80 | CP30: 15 | CQ30: 11.8 | CR30: 13.7 | CS30: 21.85 | CT30: 6 | CU30: 6.7 | CV30: 9 | CX30: Lengte 135 | DF30: 85 | DG30: =BJ8 ->  | DH30: =ROUND(IF($BZ$2=1,U8,IF($BZ$2=2,U8*3.412141633,)),0) ->  | DI30: =IF($BZ$2=1,ROUND(Y8,0),IF($BZ$2=2,ROUND(Y8/272.7654,1),)) ->  | DJ30: =IF($BZ$2=1,AC8,IF($BZ$2=2,AC8*0.3346,)) ->  | DN30: 0.0 | DO30: 0.0 | DP30: 0.0 | DQ30: =IF($BZ$2=1,AZ8,IF($BZ$2=2,AZ8/4.54609,)) -> 
A31: 1505511 | D31: 1 | E31: 50 | F31: 55 | G31: 11 | H31: 10.9 | I31: 0 | J31: 26 | K31: 30 | L31: 40.0 | M31: 566 | N31: 1142 | O31: 1223 | P31: 1447 | Q31: 1.5 | R31: 1.1 | S31: 1.1 | T31: 1.1 | U31: 70 | V31: 246 | W31: 263 | X31: 311 | Y31: 12 | Z31: 42 | AA31: 45 | AB31: 53 | AC31: 0.00 | AD31: 0.01 | AE31: 0.02 | AF31: 0.02 | AG31: 0.0003969 | AH31: 1.7346 | AI31: 4 | AJ31: 0.000574288 | AK31: 191 | AL31: 205 | AM31: 242 | AN31: 0.95 | AO31: 0.95 | AP31: 0.95 | AQ31: 191 | AR31: 205 | AS31: 242 | AT31: 82 | AU31: 88 | AV31: 104 | AW31: 0.05 | AX31: 0.06 | AY31: 0.08 | AZ31: 0.7 | BA31: 4.8 | BB31: 5.4 | BC31: 6.8 | BE31: 832 | BG31: 68% | BJ31: 0 | BK31: 13.6 | BL31: 15.6 | BM31: 21.85 | BO31: 1 | BP31: 1 | BQ31: 1 | BR31: 191 | BS31: 205 | BT31: 242 | BV31: 0 | BW31: 0 | BX31: 0 | BY31: 1 | BZ31: =IF(OR(EcoReviva!$L$6=10,EcoReviva!$L$6=15,EcoReviva!$L$6=20),1,IF(EcoReviva!$K$6<51,1,(1-(EcoReviva!$K$6-50)*0.005))) -> 1 | CN31: 9010 | CO31: 90 | CP31: 10 | CQ31: 12.5 | CR31: 14.7 | CS31: 21.85 | CT31: 6.7 | CU31: 7.4 | CV31: 10.3 | CX31: Lengte 155 | DF31: =DF30 -> 85 | DG31: =BK8 ->  | DH31: =ROUND(IF($BZ$2=1,V8,IF($BZ$2=2,V8*3.412141633,)),0) ->  | DI31: =IF($BZ$2=1,ROUND(Z8,0),IF($BZ$2=2,ROUND(Z8/272.7654,1),)) ->  | DJ31: =IF($BZ$2=1,AD8,IF($BZ$2=2,AD8*0.3346,)) ->  | DK31: =IF(BY8=1,ROUND(IF($BZ$2=1,AQ8,IF($BZ$2=2,AQ8*3.412141633,)),0),"") ->  | DL31: =IF(BY8=1,IF($BZ$2=1,ROUND(AT8,0),IF($BZ$2=2,ROUND(AT8/272.7654,1),)),"") ->  | DM31: =IF(BY8=1,IF($BZ$2=1,AW8,IF($BZ$2=2,AW8*0.3346,)),"") ->  | DN31: =J8 ->  | DO31: =IF(DN31="","",DN31+8) ->  | DP31: =BA8 ->  | DQ31: =DQ30 -> 
A32: 1505515 | D32: 1 | E32: 50 | F32: 55 | G32: 15 | H32: 15.9 | I32: 0 | J32: 26 | K32: 30 | L32: 41.1 | M32: 832 | N32: 957 | O32: 1028 | P32: 1360 | Q32: 1.5 | R32: 1.08 | S32: 1.08 | T32: 1.08 | U32: 102 | V32: 212 | W32: 227 | X32: 301 | Y32: 18 | Z32: 36 | AA32: 39 | AB32: 52 | AC32: 0.00 | AD32: 0.01 | AE32: 0.01 | AF32: 0.01 | AG32: 0.0002083 | AH32: 1.724 | AI32: 2 | AJ32: 0.000461829 | AK32: 131 | AL32: 140 | AM32: 186 | AN32: 1.01 | AO32: 1.01 | AP32: 1.01 | AQ32: 131 | AR32: 140 | AS32: 186 | AT32: 56 | AU32: 60 | AV32: 80 | AW32: 0.02 | AX32: 0.02 | AY32: 0.03 | AZ32: 0.6 | BA32: 4.8 | BB32: 5.5 | BC32: 7.2 | BE32: 1040 | BG32: 80% | BJ32: 0 | BK32: 12.3 | BL32: 14.4 | BM32: 21.85 | BO32: 1 | BP32: 1 | BQ32: 1 | BR32: 131 | BS32: 140 | BT32: 186 | BV32: 0 | BW32: 0 | BX32: 0 | BY32: 1 | BZ32: =IF(OR(EcoReviva!$L$6=10,EcoReviva!$L$6=15,EcoReviva!$L$6=20),1,IF(EcoReviva!$K$6<51,1,(1-(EcoReviva!$K$6-50)*0.005))) -> 1 | CN32: 9015 | CO32: 90 | CP32: 15 | CQ32: 11.3 | CR32: 13.2 | CS32: 21.85 | CT32: 7 | CU32: 7.7 | CV32: 10.7 | CX32: Lengte 175 | DF32: =DF30 -> 85 | DG32: =BL8 ->  | DH32: =ROUND(IF($BZ$2=1,W8,IF($BZ$2=2,W8*3.412141633,)),0) ->  | DI32: =IF($BZ$2=1,ROUND(AA8,0),IF($BZ$2=2,ROUND(AA8/272.7654,1),)) ->  | DJ32: =IF($BZ$2=1,AE8,IF($BZ$2=2,AE8*0.3346,)) ->  | DK32: =IF(BY8=1,ROUND(IF($BZ$2=1,AR8,IF($BZ$2=2,AR8*3.412141633,)),0),"") ->  | DL32: =IF(BY8=1,IF($BZ$2=1,ROUND(AU8,0),IF($BZ$2=2,ROUND(AU8/272.7654,1),)),"") ->  | DM32: =IF(BY8=1,IF($BZ$2=1,AX8,IF($BZ$2=2,AX8*0.3346,)),"") ->  | DN32: =K8 ->  | DO32: =IF(DN32="","",DN32+8) ->  | DP32: =BB8 ->  | DQ32: =DQ30 -> 
A33: 1505516 | D33: 1 | E33: 50 | F33: 55 | G33: 16 | H33: 15.9 | I33: 0 | J33: 26 | K33: 30 | L33: 41.1 | M33: 775 | N33: 1400 | O33: 1503 | P33: 1989 | Q33: 1.5 | R33: 1.1 | S33: 1.1 | T33: 1.1 | U33: 95 | V33: 301 | W33: 323 | X33: 428 | Y33: 16 | Z33: 52 | AA33: 56 | AB33: 74 | AC33: 0.00 | AD33: 0.04 | AE33: 0.05 | AF33: 0.08 | AG33: 0.0002083 | AH33: 1.724 | AI33: 4 | AJ33: 0.001392796 | AK33: 214 | AL33: 230 | AM33: 305 | AN33: 0.95 | AO33: 0.95 | AP33: 0.95 | AQ33: 214 | AR33: 230 | AS33: 305 | AT33: 92 | AU33: 99 | AV33: 131 | AW33: 0.12 | AX33: 0.14 | AY33: 0.25 | AZ33: 1.1 | BA33: 4.8 | BB33: 5.5 | BC33: 7.2 | BE33: 1139 | BG33: 68% | BJ33: 0 | BK33: 12.3 | BL33: 14.4 | BM33: 21.85 | BO33: 1 | BP33: 1 | BQ33: 1 | BR33: 214 | BS33: 230 | BT33: 305 | BV33: 0 | BW33: 0 | BX33: 0 | BY33: 1 | BZ33: =IF(OR(EcoReviva!$L$6=10,EcoReviva!$L$6=15,EcoReviva!$L$6=20),1,IF(EcoReviva!$K$6<51,1,(1-(EcoReviva!$K$6-50)*0.005))) -> 1 | CN33: 10010 | CO33: 100 | CP33: 10 | CQ33: 12.3 | CR33: 14.1 | CS33: 21.85 | CT33: 7.8 | CU33: 8.7 | CV33: 12.2 | CX33: Lengte 195 | DF33: =DF30 -> 85 | DG33: =BM8 ->  | DH33: =ROUND(IF($BZ$2=1,X8,IF($BZ$2=2,X8*3.412141633,)),0) ->  | DI33: =IF($BZ$2=1,ROUND(AB8,0),IF($BZ$2=2,ROUND(AB8/272.7654,1),)) ->  | DJ33: =IF($BZ$2=1,AF8,IF($BZ$2=2,AF8*0.3346,)) ->  | DK33: =IF(BY8=1,ROUND(IF($BZ$2=1,AS8,IF($BZ$2=2,AS8*3.412141633,)),0),"") ->  | DL33: =IF(BY8=1,IF($BZ$2=1,ROUND(AV8,0),IF($BZ$2=2,ROUND(AV8/272.7654,1),)),"") ->  | DM33: =IF(BY8=1,IF($BZ$2=1,AY8,IF($BZ$2=2,AY8*0.3346,)),"") ->  | DN33: =L8 ->  | DP33: =BC8 ->  | DQ33: =DQ30 -> 
A34: 1505520 | D34: 1 | E34: 50 | F34: 55 | G34: 20 | H34: 20.9 | I34: 0 | J34: 26 | K34: 30 | L34: 41.1 | M34: 1164 | N34: 1347 | O34: 1442 | P34: 1706 | Q34: 1.5 | R34: 1.08 | S34: 1.08 | T34: 1.08 | U34: 143 | V34: 298 | W34: 319 | X34: 378 | Y34: 25 | Z34: 51 | AA34: 55 | AB34: 65 | AC34: 0.00 | AD34: 0.01 | AE34: 0.01 | AF34: 0.02 | AG34: 0.0001276 | AH34: 1.7219 | AI34: 2 | AJ34: 0.000376611 | AK34: 166 | AL34: 178 | AM34: 211 | AN34: 0.95 | AO34: 0.95 | AP34: 0.95 | AQ34: 166 | AR34: 178 | AS34: 211 | AT34: 71 | AU34: 77 | AV34: 91 | AW34: 0.02 | AX34: 0.02 | AY34: 0.03 | AZ34: 0.7 | BA34: 4.8 | BB34: 5.5 | BC34: 7.2 | BE34: 1455 | BG34: 80% | BJ34: 0 | BK34: 12.3 | BL34: 14.4 | BM34: 21.85 | BO34: 1 | BP34: 1 | BQ34: 1 | BR34: 166 | BS34: 178 | BT34: 211 | BV34: 0 | BW34: 0 | BX34: 0 | BY34: 1 | BZ34: =IF(OR(EcoReviva!$L$6=10,EcoReviva!$L$6=15,EcoReviva!$L$6=20),1,IF(EcoReviva!$K$6<51,1,(1-(EcoReviva!$K$6-50)*0.005))) -> 1 | CN34: 10015 | CO34: 100 | CP34: 15 | CQ34: 10.9 | CR34: 12.8 | CS34: 21.85 | CT34: 7 | CU34: 7.7 | CV34: 10.7 | CX34: Lengte 215 | DF34: 95 | DG34: =BJ9 ->  | DH34: =ROUND(IF($BZ$2=1,U9,IF($BZ$2=2,U9*3.412141633,)),0) ->  | DI34: =IF($BZ$2=1,ROUND(Y9,0),IF($BZ$2=2,ROUND(Y9/272.7654,1),)) ->  | DJ34: =IF($BZ$2=1,AC9,IF($BZ$2=2,AC9*0.3346,)) ->  | DN34: 0.0 | DO34: 0.0 | DP34: 0.0 | DQ34: =IF($BZ$2=1,AZ9,IF($BZ$2=2,AZ9/4.54609,)) -> 
A35: 1505521 | D35: 1 | E35: 50 | F35: 55 | G35: 21 | H35: 20.9 | I35: 0 | J35: 26 | K35: 30 | L35: 41.1 | M35: 1239 | N35: 1803 | O35: 1935 | P35: 2561 | Q35: 1.5 | R35: 1.05 | S35: 1.05 | T35: 1.05 | U35: 153 | V35: 416 | W35: 447 | X35: 591 | Y35: 26 | Z35: 72 | AA35: 77 | AB35: 102 | AC35: 0.00 | AD35: 0.03 | AE35: 0.03 | AF35: 0.06 | AG35: 0.0001276 | AH35: 1.7219 | AI35: 4 | AJ35: 0.000514201 | AK35: 234 | AL35: 251 | AM35: 332 | AN35: 0.85 | AO35: 0.85 | AP35: 0.85 | AQ35: 234 | AR35: 251 | AS35: 332 | AT35: 101 | AU35: 108 | AV35: 143 | AW35: 0.06 | AX35: 0.07 | AY35: 0.11 | AZ35: 1.5 | BA35: 4.8 | BB35: 5.5 | BC35: 7.2 | BE35: 1549 | BG35: 80% | BJ35: 0 | BK35: 12.3 | BL35: 14.4 | BM35: 21.85 | BO35: 1 | BP35: 1 | BQ35: 1 | BR35: 234 | BS35: 251 | BT35: 332 | BV35: 0 | BW35: 0 | BX35: 0 | BY35: 1 | BZ35: =IF(OR(EcoReviva!$L$6=10,EcoReviva!$L$6=15,EcoReviva!$L$6=20),1,IF(EcoReviva!$K$6<51,1,(1-(EcoReviva!$K$6-50)*0.005))) -> 1 | CN35: 11010 | CO35: 110 | CP35: 10 | CQ35: 12 | CR35: 13.9 | CS35: 21.85 | CT35: 8.4 | CU35: 9.3 | CV35: 14 | CX35: Lengte 235 | DF35: =DF34 -> 95 | DG35: =BK9 ->  | DH35: =ROUND(IF($BZ$2=1,V9,IF($BZ$2=2,V9*3.412141633,)),0) ->  | DI35: =IF($BZ$2=1,ROUND(Z9,0),IF($BZ$2=2,ROUND(Z9/272.7654,1),)) ->  | DJ35: =IF($BZ$2=1,AD9,IF($BZ$2=2,AD9*0.3346,)) ->  | DK35: =IF(BY9=1,ROUND(IF($BZ$2=1,AQ9,IF($BZ$2=2,AQ9*3.412141633,)),0),"") ->  | DL35: =IF(BY9=1,IF($BZ$2=1,ROUND(AT9,0),IF($BZ$2=2,ROUND(AT9/272.7654,1),)),"") ->  | DM35: =IF(BY9=1,IF($BZ$2=1,AW9,IF($BZ$2=2,AW9*0.3346,)),"") ->  | DN35: =J9 ->  | DO35: =IF(DN35="","",DN35+8) ->  | DP35: =BA9 ->  | DQ35: =DQ34 -> 
A36: 1506510 | D36: 1 | E36: 50 | F36: 65 | G36: 10 | H36: 10.9 | I36: 0 | J36: 26 | K36: 30 | L36: 41.0 | M36: 678 | N36: 1030 | O36: 1104 | P36: 1320 | Q36: 1.5 | R36: 1.08 | S36: 1.08 | T36: 1.08 | U36: 83 | V36: 228 | W36: 244 | X36: 292 | Y36: 14 | Z36: 39 | AA36: 42 | AB36: 50 | AC36: 0.00 | AD36: 0.01 | AE36: 0.01 | AF36: 0.01 | AG36: 0.0003969 | AH36: 1.7346 | AI36: 2 | AJ36: 0.000367347 | AK36: 143 | AL36: 153 | AM36: 183 | AN36: 0.98 | AO36: 0.98 | AP36: 0.98 | AQ36: 143 | AR36: 153 | AS36: 183 | AT36: 61 | AU36: 66 | AV36: 79 | AW36: 0.02 | AX36: 0.02 | AY36: 0.03 | AZ36: 0.4 | BA36: 5.5 | BB36: 5.9 | BC36: 7.9 | BE36: 753 | BG36: 90% | BJ36: 0 | BK36: 13.2 | BL36: 15.1 | BM36: 21.85 | BO36: 1 | BP36: 1 | BQ36: 1 | BR36: 143 | BS36: 153 | BT36: 183 | BV36: 0 | BW36: 0 | BX36: 0 | BY36: 1 | BZ36: =IF(OR(EcoReviva!$L$6=10,EcoReviva!$L$6=15,EcoReviva!$L$6=20),1,IF(EcoReviva!$K$6<51,1,(1-(EcoReviva!$K$6-50)*0.005))) -> 1 | CN36: 11015 | CO36: 110 | CP36: 15 | CQ36: 10.9 | CR36: 12.8 | CS36: 21.85 | CT36: 7.9 | CU36: 8.8 | CV36: 12.5 | DF36: =DF34 -> 95 | DG36: =BL9 ->  | DH36: =ROUND(IF($BZ$2=1,W9,IF($BZ$2=2,W9*3.412141633,)),0) ->  | DI36: =IF($BZ$2=1,ROUND(AA9,0),IF($BZ$2=2,ROUND(AA9/272.7654,1),)) ->  | DJ36: =IF($BZ$2=1,AE9,IF($BZ$2=2,AE9*0.3346,)) ->  | DK36: =IF(BY9=1,ROUND(IF($BZ$2=1,AR9,IF($BZ$2=2,AR9*3.412141633,)),0),"") ->  | DL36: =IF(BY9=1,IF($BZ$2=1,ROUND(AU9,0),IF($BZ$2=2,ROUND(AU9/272.7654,1),)),"") ->  | DM36: =IF(BY9=1,IF($BZ$2=1,AX9,IF($BZ$2=2,AX9*0.3346,)),"") ->  | DN36: =K9 ->  | DP36: =BB9 ->  | DQ36: =DQ34 -> 
A37: 1506511 | D37: 1 | E37: 50 | F37: 65 | G37: 11 | H37: 10.9 | I37: 0 | J37: 26 | K37: 30 | L37: 41.0 | M37: 660 | N37: 1397 | O37: 1498 | P37: 1791 | Q37: 1.5 | R37: 1.1 | S37: 1.1 | T37: 1.1 | U37: 81 | V37: 301 | W37: 322 | X37: 386 | Y37: 14 | Z37: 52 | AA37: 55 | AB37: 66 | AC37: 0.00 | AD37: 0.02 | AE37: 0.03 | AF37: 0.04 | AG37: 0.0003969 | AH37: 1.7346 | AI37: 4 | AJ37: 0.000574288 | AK37: 234 | AL37: 251 | AM37: 300 | AN37: 0.95 | AO37: 0.95 | AP37: 0.95 | AQ37: 234 | AR37: 251 | AS37: 300 | AT37: 101 | AU37: 108 | AV37: 129 | AW37: 0.08 | AX37: 0.09 | AY37: 0.13 | AZ37: 0.9 | BA37: 5.5 | BB37: 5.9 | BC37: 7.9 | BE37: 970 | BG37: 68% | BJ37: 0 | BK37: 13.2 | BL37: 15.1 | BM37: 21.85 | BO37: 1 | BP37: 1 | BQ37: 1 | BR37: 234 | BS37: 251 | BT37: 300 | BV37: 0 | BW37: 0 | BX37: 0 | BY37: 1 | BZ37: =IF(OR(EcoReviva!$L$6=10,EcoReviva!$L$6=15,EcoReviva!$L$6=20),1,IF(EcoReviva!$K$6<51,1,(1-(EcoReviva!$K$6-50)*0.005))) -> 1 | CN37: 12010 | CO37: 120 | CP37: 10 | CQ37: 11.8 | CR37: 13.7 | CS37: 21.85 | CT37: 8.9 | CU37: 9.9 | CV37: 14.8 | DF37: =DF34 -> 95 | DG37: =BM9 ->  | DH37: =ROUND(IF($BZ$2=1,X9,IF($BZ$2=2,X9*3.412141633,)),0) ->  | DI37: =IF($BZ$2=1,ROUND(AB9,0),IF($BZ$2=2,ROUND(AB9/272.7654,1),)) ->  | DJ37: =IF($BZ$2=1,AF9,IF($BZ$2=2,AF9*0.3346,)) ->  | DK37: =IF(BY9=1,ROUND(IF($BZ$2=1,AS9,IF($BZ$2=2,AS9*3.412141633,)),0),"") ->  | DL37: =IF(BY9=1,IF($BZ$2=1,ROUND(AV9,0),IF($BZ$2=2,ROUND(AV9/272.7654,1),)),"") ->  | DM37: =IF(BY9=1,IF($BZ$2=1,AY9,IF($BZ$2=2,AY9*0.3346,)),"") ->  | DN37: =L9 ->  | DP37: =BC9 ->  | DQ37: =DQ34 -> 
A38: 1506515 | D38: 1 | E38: 50 | F38: 65 | G38: 15 | H38: 15.9 | I38: 0 | J38: 26 | K38: 30 | L38: 41.1 | M38: 976 | N38: 1071 | O38: 1150 | P38: 1521 | Q38: 1.5 | R38: 1.08 | S38: 1.08 | T38: 1.08 | U38: 120 | V38: 237 | W38: 254 | X38: 337 | Y38: 21 | Z38: 41 | AA38: 44 | AB38: 58 | AC38: 0.00 | AD38: 0.01 | AE38: 0.01 | AF38: 0.02 | AG38: 0.0002083 | AH38: 1.724 | AI38: 2 | AJ38: 0.000461829 | AK38: 135 | AL38: 145 | AM38: 192 | AN38: 1.01 | AO38: 1.01 | AP38: 1.01 | AQ38: 135 | AR38: 145 | AS38: 192 | AT38: 58 | AU38: 62 | AV38: 83 | AW38: 0.02 | AX38: 0.02 | AY38: 0.04 | AZ38: 0.7 | BA38: 5.1 | BB38: 5.6 | BC38: 7.2 | BE38: 1214 | BG38: 80% | BJ38: 0 | BK38: 12.3 | BL38: 14.4 | BM38: 21.85 | BO38: 1 | BP38: 1 | BQ38: 1 | BR38: 135 | BS38: 145 | BT38: 192 | BV38: 0 | BW38: 0 | BX38: 0 | BY38: 1 | BZ38: =IF(OR(EcoReviva!$L$6=10,EcoReviva!$L$6=15,EcoReviva!$L$6=20),1,IF(EcoReviva!$K$6<51,1,(1-(EcoReviva!$K$6-50)*0.005))) -> 1 | CN38: 12015 | CO38: 120 | CP38: 15 | CQ38: 10.6 | CR38: 12.5 | CS38: 21.85 | CT38: 8.7 | CU38: 9.8 | CV38: 14.3 | DF38: 105 | DG38: =BJ10 ->  | DH38: =ROUND(IF($BZ$2=1,U10,IF($BZ$2=2,U10*3.412141633,)),0) ->  | DI38: =IF($BZ$2=1,ROUND(Y10,0),IF($BZ$2=2,ROUND(Y10/272.7654,1),)) ->  | DJ38: =IF($BZ$2=1,AC10,IF($BZ$2=2,AC10*0.3346,)) ->  | DN38: 0.0 | DO38: 0.0 | DP38: 0.0 | DQ38: =IF($BZ$2=1,AZ10,IF($BZ$2=2,AZ10/4.54609,)) -> 
A39: 1506516 | D39: 1 | E39: 50 | F39: 65 | G39: 16 | H39: 15.9 | I39: 0 | J39: 26 | K39: 30 | L39: 41.1 | M39: 904 | N39: 1628 | O39: 1747 | P39: 2313 | Q39: 1.5 | R39: 1.1 | S39: 1.1 | T39: 1.1 | U39: 111 | V39: 350 | W39: 376 | X39: 498 | Y39: 19 | Z39: 60 | AA39: 65 | AB39: 86 | AC39: 0.01 | AD39: 0.05 | AE39: 0.06 | AF39: 0.11 | AG39: 0.0002083 | AH39: 1.724 | AI39: 4 | AJ39: 0.001392796 | AK39: 220 | AL39: 236 | AM39: 312 | AN39: 0.95 | AO39: 0.95 | AP39: 0.95 | AQ39: 220 | AR39: 236 | AS39: 312 | AT39: 95 | AU39: 101 | AV39: 134 | AW39: 0.13 | AX39: 0.15 | AY39: 0.26 | AZ39: 1.3 | BA39: 5.1 | BB39: 5.6 | BC39: 7.2 | BE39: 1329 | BG39: 68% | BJ39: 0 | BK39: 12.3 | BL39: 14.4 | BM39: 21.85 | BO39: 1 | BP39: 1 | BQ39: 1 | BR39: 220 | BS39: 236 | BT39: 312 | BV39: 0 | BW39: 0 | BX39: 0 | BY39: 1 | BZ39: =IF(OR(EcoReviva!$L$6=10,EcoReviva!$L$6=15,EcoReviva!$L$6=20),1,IF(EcoReviva!$K$6<51,1,(1-(EcoReviva!$K$6-50)*0.005))) -> 1 | CN39: 14010 | CO39: 140 | CP39: 10 | CQ39: 11.5 | CR39: 13.3 | CS39: 21.85 | CT39: 10.1 | CU39: 11.2 | CV39: 17.5 | DF39: =DF38 -> 105 | DG39: =BK10 ->  | DH39: =ROUND(IF($BZ$2=1,V10,IF($BZ$2=2,V10*3.412141633,)),0) ->  | DI39: =IF($BZ$2=1,ROUND(Z10,0),IF($BZ$2=2,ROUND(Z10/272.7654,1),)) ->  | DJ39: =IF($BZ$2=1,AD10,IF($BZ$2=2,AD10*0.3346,)) ->  | DK39: =IF(BY10=1,ROUND(IF($BZ$2=1,AQ10,IF($BZ$2=2,AQ10*3.412141633,)),0),"") ->  | DL39: =IF(BY10=1,IF($BZ$2=1,ROUND(AT10,0),IF($BZ$2=2,ROUND(AT10/272.7654,1),)),"") ->  | DM39: =IF(BY10=1,IF($BZ$2=1,AW10,IF($BZ$2=2,AW10*0.3346,)),"") ->  | DN39: =J10 ->  | DO39: =IF(DN39="","",DN39+8) ->  | DP39: =BA10 ->  | DQ39: =DQ38 -> 
A40: 1506520 | D40: 1 | E40: 50 | F40: 65 | G40: 20 | H40: 20.9 | I40: 0 | J40: 26 | K40: 30 | L40: 41.1 | M40: 1358 | N40: 1510 | O40: 1619 | P40: 1936 | Q40: 1.5 | R40: 1.08 | S40: 1.08 | T40: 1.08 | U40: 167 | V40: 334 | W40: 358 | X40: 428 | Y40: 29 | Z40: 57 | AA40: 62 | AB40: 74 | AC40: 0.00 | AD40: 0.01 | AE40: 0.02 | AF40: 0.02 | AG40: 0.0001276 | AH40: 1.7219 | AI40: 2 | AJ40: 0.000376611 | AK40: 171 | AL40: 183 | AM40: 219 | AN40: 0.95 | AO40: 0.95 | AP40: 0.95 | AQ40: 171 | AR40: 183 | AS40: 219 | AT40: 74 | AU40: 79 | AV40: 94 | AW40: 0.02 | AX40: 0.03 | AY40: 0.04 | AZ40: 0.9 | BA40: 5.1 | BB40: 5.6 | BC40: 7.2 | BE40: 1698 | BG40: 80% | BJ40: 0 | BK40: 12.3 | BL40: 14.4 | BM40: 21.85 | BO40: 1 | BP40: 1 | BQ40: 1 | BR40: 171 | BS40: 183 | BT40: 219 | BV40: 0 | BW40: 0 | BX40: 0 | BY40: 1 | BZ40: =IF(OR(EcoReviva!$L$6=10,EcoReviva!$L$6=15,EcoReviva!$L$6=20),1,IF(EcoReviva!$K$6<51,1,(1-(EcoReviva!$K$6-50)*0.005))) -> 1 | CN40: 14015 | CO40: 140 | CP40: 15 | CQ40: 10.4 | CR40: 12.2 | CS40: 21.85 | CT40: 9.6 | CU40: 10.5 | CV40: 16.1 | DF40: =DF38 -> 105 | DG40: =BL10 ->  | DH40: =ROUND(IF($BZ$2=1,W10,IF($BZ$2=2,W10*3.412141633,)),0) ->  | DI40: =IF($BZ$2=1,ROUND(AA10,0),IF($BZ$2=2,ROUND(AA10/272.7654,1),)) ->  | DJ40: =IF($BZ$2=1,AE10,IF($BZ$2=2,AE10*0.3346,)) ->  | DK40: =IF(BY10=1,ROUND(IF($BZ$2=1,AR10,IF($BZ$2=2,AR10*3.412141633,)),0),"") ->  | DL40: =IF(BY10=1,IF($BZ$2=1,ROUND(AU10,0),IF($BZ$2=2,ROUND(AU10/272.7654,1),)),"") ->  | DM40: =IF(BY10=1,IF($BZ$2=1,AX10,IF($BZ$2=2,AX10*0.3346,)),"") ->  | DN40: =K10 ->  | DP40: =BB10 ->  | DQ40: =DQ38 -> 
A41: 1506521 | D41: 1 | E41: 50 | F41: 65 | G41: 21 | H41: 20.9 | I41: 0 | J41: 26 | K41: 30 | L41: 41.1 | M41: 1446 | N41: 1978 | O41: 2123 | P41: 2810 | Q41: 1.5 | R41: 1.05 | S41: 1.05 | T41: 1.05 | U41: 178 | V41: 456 | W41: 490 | X41: 648 | Y41: 31 | Z41: 78 | AA41: 84 | AB41: 111 | AC41: 0.01 | AD41: 0.04 | AE41: 0.04 | AF41: 0.07 | AG41: 0.0001276 | AH41: 1.7219 | AI41: 4 | AJ41: 0.000514201 | AK41: 240 | AL41: 258 | AM41: 341 | AN41: 0.85 | AO41: 0.85 | AP41: 0.85 | AQ41: 240 | AR41: 258 | AS41: 341 | AT41: 103 | AU41: 111 | AV41: 147 | AW41: 0.06 | AX41: 0.07 | AY41: 0.12 | AZ41: 1.7 | BA41: 5.1 | BB41: 5.6 | BC41: 7.2 | BE41: 1807 | BG41: 80% | BJ41: 0 | BK41: 12.3 | BL41: 14.4 | BM41: 21.85 | BO41: 1 | BP41: 1 | BQ41: 1 | BR41: 240 | BS41: 258 | BT41: 341 | BV41: 0 | BW41: 0 | BX41: 0 | BY41: 1 | BZ41: =IF(OR(EcoReviva!$L$6=10,EcoReviva!$L$6=15,EcoReviva!$L$6=20),1,IF(EcoReviva!$K$6<51,1,(1-(EcoReviva!$K$6-50)*0.005))) -> 1 | CN41: 16010 | CO41: 160 | CP41: 10 | CQ41: 11.2 | CR41: 13 | CS41: 21.85 | CT41: 11 | CU41: 12.4 | CV41: 19.2 | DF41: =DF38 -> 105 | DG41: =BM10 ->  | DH41: =ROUND(IF($BZ$2=1,X10,IF($BZ$2=2,X10*3.412141633,)),0) ->  | DI41: =IF($BZ$2=1,ROUND(AB10,0),IF($BZ$2=2,ROUND(AB10/272.7654,1),)) ->  | DJ41: =IF($BZ$2=1,AF10,IF($BZ$2=2,AF10*0.3346,)) ->  | DK41: =IF(BY10=1,ROUND(IF($BZ$2=1,AS10,IF($BZ$2=2,AS10*3.412141633,)),0),"") ->  | DL41: =IF(BY10=1,IF($BZ$2=1,ROUND(AV10,0),IF($BZ$2=2,ROUND(AV10/272.7654,1),)),"") ->  | DM41: =IF(BY10=1,IF($BZ$2=1,AY10,IF($BZ$2=2,AY10*0.3346,)),"") ->  | DN41: =L10 ->  | DP41: =BC10 ->  | DQ41: =DQ38 -> 
A42: 1507510 | D42: 1 | E42: 50 | F42: 75 | G42: 10 | H42: 10.9 | I42: 0 | J42: 26 | K42: 30 | L42: 41.8 | M42: 775 | N42: 1214 | O42: 1304 | P42: 1574 | Q42: 1.5 | R42: 1.08 | S42: 1.08 | T42: 1.08 | U42: 95 | V42: 269 | W42: 289 | X42: 348 | Y42: 16 | Z42: 46 | AA42: 50 | AB42: 60 | AC42: 0.00 | AD42: 0.01 | AE42: 0.01 | AF42: 0.02 | AG42: 0.0003969 | AH42: 1.7346 | AI42: 2 | AJ42: 0.000367347 | AK42: 168 | AL42: 181 | AM42: 218 | AN42: 0.98 | AO42: 0.98 | AP42: 0.98 | AQ42: 168 | AR42: 181 | AS42: 218 | AT42: 72 | AU42: 78 | AV42: 94 | AW42: 0.03 | AX42: 0.03 | AY42: 0.04 | AZ42: 0.5 | BA42: 6.3 | BB42: 6.8 | BC42: 9.1 | BE42: 861 | BG42: 90% | BJ42: 0 | BK42: 12.8 | BL42: 14.7 | BM42: 21.85 | BO42: 1 | BP42: 1 | BQ42: 1 | BR42: 168 | BS42: 181 | BT42: 218 | BV42: 0 | BW42: 0 | BX42: 0 | BY42: 1 | BZ42: =IF(OR(EcoReviva!$L$6=10,EcoReviva!$L$6=15,EcoReviva!$L$6=20),1,IF(EcoReviva!$K$6<51,1,(1-(EcoReviva!$K$6-50)*0.005))) -> 1 | CN42: 16015 | CO42: 160 | CP42: 15 | CQ42: 10 | CR42: 11.8 | CS42: 21.85 | CT42: 11.5 | CU42: 12.8 | CV42: 19.6 | DF42: 115 | DG42: =BJ11 ->  | DH42: =ROUND(IF($BZ$2=1,U11,IF($BZ$2=2,U11*3.412141633,)),0) ->  | DI42: =IF($BZ$2=1,ROUND(Y11,0),IF($BZ$2=2,ROUND(Y11/272.7654,1),)) ->  | DJ42: =IF($BZ$2=1,AC11,IF($BZ$2=2,AC11*0.3346,)) ->  | DN42: 0.0 | DO42: 0.0 | DP42: 0.0 | DQ42: =IF($BZ$2=1,AZ11,IF($BZ$2=2,AZ11/4.54609,)) -> 
A43: 1507511 | D43: 1 | E43: 50 | F43: 75 | G43: 11 | H43: 10.9 | I43: 0 | J43: 26 | K43: 30 | L43: 41.8 | M43: 754 | N43: 1648 | O43: 1770 | P43: 2136 | Q43: 1.5 | R43: 1.1 | S43: 1.1 | T43: 1.1 | U43: 93 | V43: 355 | W43: 381 | X43: 460 | Y43: 16 | Z43: 61 | AA43: 66 | AB43: 79 | AC43: 0.00 | AD43: 0.03 | AE43: 0.04 | AF43: 0.05 | AG43: 0.0003969 | AH43: 1.7346 | AI43: 4 | AJ43: 0.000574288 | AK43: 276 | AL43: 296 | AM43: 358 | AN43: 0.95 | AO43: 0.95 | AP43: 0.95 | AQ43: 276 | AR43: 296 | AS43: 358 | AT43: 119 | AU43: 127 | AV43: 154 | AW43: 0.12 | AX43: 0.13 | AY43: 0.19 | AZ43: 1.0 | BA43: 6.3 | BB43: 6.8 | BC43: 9.1 | BE43: 1109 | BG43: 68% | BJ43: 0 | BK43: 12.8 | BL43: 14.7 | BM43: 21.85 | BO43: 1 | BP43: 1 | BQ43: 1 | BR43: 276 | BS43: 296 | BT43: 358 | BV43: 0 | BW43: 0 | BX43: 0 | BY43: 1 | BZ43: =IF(OR(EcoReviva!$L$6=10,EcoReviva!$L$6=15,EcoReviva!$L$6=20),1,IF(EcoReviva!$K$6<51,1,(1-(EcoReviva!$K$6-50)*0.005))) -> 1 | CN43: 18010 | CO43: 180 | CP43: 10 | CQ43: 10.9 | CR43: 12.7 | CS43: 21.85 | CT43: 12.2 | CU43: 13.7 | CV43: 22 | DF43: =DF42 -> 115 | DG43: =BK11 ->  | DH43: =ROUND(IF($BZ$2=1,V11,IF($BZ$2=2,V11*3.412141633,)),0) ->  | DI43: =IF($BZ$2=1,ROUND(Z11,0),IF($BZ$2=2,ROUND(Z11/272.7654,1),)) ->  | DJ43: =IF($BZ$2=1,AD11,IF($BZ$2=2,AD11*0.3346,)) ->  | DK43: =IF(BY11=1,ROUND(IF($BZ$2=1,AQ11,IF($BZ$2=2,AQ11*3.412141633,)),0),"") ->  | DL43: =IF(BY11=1,IF($BZ$2=1,ROUND(AT11,0),IF($BZ$2=2,ROUND(AT11/272.7654,1),)),"") ->  | DM43: =IF(BY11=1,IF($BZ$2=1,AW11,IF($BZ$2=2,AW11*0.3346,)),"") ->  | DN43: =J11 ->  | DO43: =IF(DN43="","",DN43+8) ->  | DP43: =BA11 ->  | DQ43: =DQ42 -> 
A44: 1507515 | D44: 1 | E44: 50 | F44: 75 | G44: 15 | H44: 15.9 | I44: 0 | J44: 26 | K44: 30 | L44: 42.4 | M44: 1110 | N44: 1395 | O44: 1496 | P44: 2008 | Q44: 1.5 | R44: 1.08 | S44: 1.08 | T44: 1.08 | U44: 137 | V44: 309 | W44: 331 | X44: 444 | Y44: 24 | Z44: 53 | AA44: 57 | AB44: 76 | AC44: 0.00 | AD44: 0.02 | AE44: 0.02 | AF44: 0.03 | AG44: 0.0002083 | AH44: 1.724 | AI44: 2 | AJ44: 0.000461829 | AK44: 190 | AL44: 204 | AM44: 274 | AN44: 1.01 | AO44: 1.01 | AP44: 1.01 | AQ44: 190 | AR44: 204 | AS44: 274 | AT44: 82 | AU44: 88 | AV44: 118 | AW44: 0.04 | AX44: 0.04 | AY44: 0.07 | AZ44: 0.8 | BA44: 6 | BB44: 6.7 | BC44: 9 | BE44: 1387 | BG44: 80% | BJ44: 0 | BK44: 11.8 | BL44: 13.7 | BM44: 21.85 | BO44: 1 | BP44: 1 | BQ44: 1 | BR44: 190 | BS44: 204 | BT44: 274 | BV44: 0 | BW44: 0 | BX44: 0 | BY44: 1 | BZ44: =IF(OR(EcoReviva!$L$6=10,EcoReviva!$L$6=15,EcoReviva!$L$6=20),1,IF(EcoReviva!$K$6<51,1,(1-(EcoReviva!$K$6-50)*0.005))) -> 1 | CN44: 18015 | CO44: 180 | CP44: 15 | CQ44: 10 | CR44: 11.8 | CS44: 21.85 | CT44: 11.5 | CU44: 12.8 | CV44: 19.6 | DF44: =DF42 -> 115 | DG44: =BL11 ->  | DH44: =ROUND(IF($BZ$2=1,W11,IF($BZ$2=2,W11*3.412141633,)),0) ->  | DI44: =IF($BZ$2=1,ROUND(AA11,0),IF($BZ$2=2,ROUND(AA11/272.7654,1),)) ->  | DJ44: =IF($BZ$2=1,AE11,IF($BZ$2=2,AE11*0.3346,)) ->  | DK44: =IF(BY11=1,ROUND(IF($BZ$2=1,AR11,IF($BZ$2=2,AR11*3.412141633,)),0),"") ->  | DL44: =IF(BY11=1,IF($BZ$2=1,ROUND(AU11,0),IF($BZ$2=2,ROUND(AU11/272.7654,1),)),"") ->  | DM44: =IF(BY11=1,IF($BZ$2=1,AX11,IF($BZ$2=2,AX11*0.3346,)),"") ->  | DN44: =K11 ->  | DP44: =BB11 ->  | DQ44: =DQ42 -> 
A45: 1507516 | D45: 1 | E45: 50 | F45: 75 | G45: 16 | H45: 15.9 | I45: 0 | J45: 26 | K45: 30 | L45: 42.4 | M45: 1032 | N45: 2040 | O45: 2188 | P45: 2936 | Q45: 1.5 | R45: 1.1 | S45: 1.1 | T45: 1.1 | U45: 127 | V45: 439 | W45: 471 | X45: 632 | Y45: 22 | Z45: 76 | AA45: 81 | AB45: 109 | AC45: 0.01 | AD45: 0.09 | AE45: 0.10 | AF45: 0.18 | AG45: 0.0002083 | AH45: 1.724 | AI45: 4 | AJ45: 0.001392796 | AK45: 312 | AL45: 335 | AM45: 450 | AN45: 0.95 | AO45: 0.95 | AP45: 0.95 | AQ45: 312 | AR45: 335 | AS45: 450 | AT45: 134 | AU45: 144 | AV45: 194 | AW45: 0.27 | AX45: 0.31 | AY45: 0.56 | AZ45: 1.5 | BA45: 6 | BB45: 6.7 | BC45: 9 | BE45: 1518 | BG45: 68% | BJ45: 0 | BK45: 11.8 | BL45: 13.7 | BM45: 21.85 | BO45: 1 | BP45: 1 | BQ45: 1 | BR45: 312 | BS45: 335 | BT45: 450 | BV45: 0 | BW45: 0 | BX45: 0 | BY45: 1 | BZ45: =IF(OR(EcoReviva!$L$6=10,EcoReviva!$L$6=15,EcoReviva!$L$6=20),1,IF(EcoReviva!$K$6<51,1,(1-(EcoReviva!$K$6-50)*0.005))) -> 1 | CN45: 20010 | CO45: 200 | CP45: 10 | CQ45: 10.7 | CR45: 12.5 | CS45: 21.85 | CT45: 13.4 | CU45: 14.8 | CV45: 24 | DF45: =DF42 -> 115 | DG45: =BM11 ->  | DH45: =ROUND(IF($BZ$2=1,X11,IF($BZ$2=2,X11*3.412141633,)),0) ->  | DI45: =IF($BZ$2=1,ROUND(AB11,0),IF($BZ$2=2,ROUND(AB11/272.7654,1),)) ->  | DJ45: =IF($BZ$2=1,AF11,IF($BZ$2=2,AF11*0.3346,)) ->  | DK45: =IF(BY11=1,ROUND(IF($BZ$2=1,AS11,IF($BZ$2=2,AS11*3.412141633,)),0),"") ->  | DL45: =IF(BY11=1,IF($BZ$2=1,ROUND(AV11,0),IF($BZ$2=2,ROUND(AV11/272.7654,1),)),"") ->  | DM45: =IF(BY11=1,IF($BZ$2=1,AY11,IF($BZ$2=2,AY11*0.3346,)),"") ->  | DN45: =L11 ->  | DP45: =BC11 ->  | DQ45: =DQ42 -> 
A46: 1507520 | D46: 1 | E46: 50 | F46: 75 | G46: 20 | H46: 20.9 | I46: 0 | J46: 26 | K46: 30 | L46: 42.4 | M46: 1552 | N46: 1943 | O46: 2086 | P46: 2518 | Q46: 1.5 | R46: 1.08 | S46: 1.08 | T46: 1.08 | U46: 191 | V46: 430 | W46: 462 | X46: 557 | Y46: 33 | Z46: 74 | AA46: 79 | AB46: 96 | AC46: 0.00 | AD46: 0.02 | AE46: 0.03 | AF46: 0.04 | AG46: 0.0001276 | AH46: 1.7219 | AI46: 2 | AJ46: 0.000376611 | AK46: 240 | AL46: 258 | AM46: 311 | AN46: 0.95 | AO46: 0.95 | AP46: 0.95 | AQ46: 240 | AR46: 258 | AS46: 311 | AT46: 103 | AU46: 111 | AV46: 134 | AW46: 0.04 | AX46: 0.05 | AY46: 0.07 | AZ46: 1.0 | BA46: 6 | BB46: 6.7 | BC46: 9 | BE46: 1940 | BG46: 80% | BJ46: 0 | BK46: 11.8 | BL46: 13.7 | BM46: 21.85 | BO46: 1 | BP46: 1 | BQ46: 1 | BR46: 240 | BS46: 258 | BT46: 311 | BV46: 0 | BW46: 0 | BX46: 0 | BY46: 1 | BZ46: =IF(OR(EcoReviva!$L$6=10,EcoReviva!$L$6=15,EcoReviva!$L$6=20),1,IF(EcoReviva!$K$6<51,1,(1-(EcoReviva!$K$6-50)*0.005))) -> 1 | CN46: 20015 | CO46: 200 | CP46: 15 | CQ46: 10 | CR46: 11.4 | CS46: 21.85 | CT46: 13.2 | CU46: 14.7 | CV46: 23.5 | DF46: 135 | DG46: =BJ12 ->  | DH46: =ROUND(IF($BZ$2=1,U12,IF($BZ$2=2,U12*3.412141633,)),0) ->  | DI46: =IF($BZ$2=1,ROUND(Y12,0),IF($BZ$2=2,ROUND(Y12/272.7654,1),)) ->  | DJ46: =IF($BZ$2=1,AC12,IF($BZ$2=2,AC12*0.3346,)) ->  | DN46: 0.0 | DO46: 0.0 | DP46: 0.0 | DQ46: =IF($BZ$2=1,AZ12,IF($BZ$2=2,AZ12/4.54609,)) -> 
A47: 1507521 | D47: 1 | E47: 50 | F47: 75 | G47: 21 | H47: 20.9 | I47: 0 | J47: 26 | K47: 30 | L47: 42.4 | M47: 1653 | N47: 2628 | O47: 2818 | P47: 3781 | Q47: 1.5 | R47: 1.05 | S47: 1.05 | T47: 1.05 | U47: 203 | V47: 606 | W47: 650 | X47: 872 | Y47: 35 | Z47: 104 | AA47: 112 | AB47: 150 | AC47: 0.01 | AD47: 0.06 | AE47: 0.07 | AF47: 0.13 | AG47: 0.0001276 | AH47: 1.7219 | AI47: 4 | AJ47: 0.000514201 | AK47: 341 | AL47: 366 | AM47: 490 | AN47: 0.85 | AO47: 0.85 | AP47: 0.85 | AQ47: 341 | AR47: 366 | AS47: 490 | AT47: 147 | AU47: 157 | AV47: 211 | AW47: 0.13 | AX47: 0.14 | AY47: 0.25 | AZ47: 2.0 | BA47: 6 | BB47: 6.7 | BC47: 9 | BE47: 2066 | BG47: 80% | BJ47: 0 | BK47: 11.8 | BL47: 13.7 | BM47: 21.85 | BO47: 1 | BP47: 1 | BQ47: 1 | BR47: 341 | BS47: 366 | BT47: 490 | BV47: 0 | BW47: 0 | BX47: 0 | BY47: 1 | BZ47: =IF(OR(EcoReviva!$L$6=10,EcoReviva!$L$6=15,EcoReviva!$L$6=20),1,IF(EcoReviva!$K$6<51,1,(1-(EcoReviva!$K$6-50)*0.005))) -> 1 | CN47: 22010 | CO47: 220 | CP47: 10 | CQ47: 10.5 | CR47: 12.3 | CS47: 21.85 | CT47: 13.4 | CU47: 14.8 | CV47: 24 | DF47: =DF46 -> 135 | DG47: =BK12 ->  | DH47: =ROUND(IF($BZ$2=1,V12,IF($BZ$2=2,V12*3.412141633,)),0) ->  | DI47: =IF($BZ$2=1,ROUND(Z12,0),IF($BZ$2=2,ROUND(Z12/272.7654,1),)) ->  | DJ47: =IF($BZ$2=1,AD12,IF($BZ$2=2,AD12*0.3346,)) ->  | DK47: =IF(BY12=1,ROUND(IF($BZ$2=1,AQ12,IF($BZ$2=2,AQ12*3.412141633,)),0),"") ->  | DL47: =IF(BY12=1,IF($BZ$2=1,ROUND(AT12,0),IF($BZ$2=2,ROUND(AT12/272.7654,1),)),"") ->  | DM47: =IF(BY12=1,IF($BZ$2=1,AW12,IF($BZ$2=2,AW12*0.3346,)),"") ->  | DN47: =J12 ->  | DO47: =IF(DN47="","",DN47+8) ->  | DP47: =BA12 ->  | DQ47: =DQ46 -> 
A48: 1508510 | D48: 1 | E48: 50 | F48: 85 | G48: 10 | H48: 10.9 | I48: 0 | J48: 26 | K48: 30 | L48: 42.4 | M48: 871 | N48: 1396 | O48: 1501 | P48: 1828 | Q48: 1.5 | R48: =IF($G48=10,1.08,IF($G48=11,1.1,IF($G48=15,1.08,IF($G48=16,1.1,IF($G48=20,1.08,IF($G48=21,1.05)))))) -> 1.08 | S48: 1.08 | T48: 1.08 | U48: 107 | V48: 309 | W48: 332 | X48: 405 | Y48: 18 | Z48: 53 | AA48: 57 | AB48: 70 | AC48: 0.00 | AD48: 0.02 | AE48: 0.02 | AF48: 0.03 | AG48: 0.0003969 | AH48: 1.7346 | AI48: 2 | AJ48: 0.000367347 | AK48: 193 | AL48: 208 | AM48: 253 | AN48: =IF($G48=10,0.98,IF($G48=11,0.95,IF($G48=15,1.01,IF($G48=16,0.95,IF($G48=20,0.95,IF($G48=21,0.85)))))) -> 0.98 | AO48: 0.98 | AP48: 0.98 | AQ48: 193 | AR48: 208 | AS48: 253 | AT48: 83 | AU48: 89 | AV48: 109 | AW48: 0.04 | AX48: 0.04 | AY48: 0.06 | AZ48: 0.6 | BA48: 6.7 | BB48: 7.4 | BC48: 10.3 | BE48: 968 | BG48: 90% | BJ48: 0 | BK48: 12.5 | BL48: 14.7 | BM48: 21.85 | BO48: =IF((237.3*LN(($AQ$1*EXP(17.27*($AM$3/($AM$3+237.3))))))/(17.27-LN(($AQ$1*EXP(17.27*($AM$3/($AM$3+237.3))))))<(($AM$1+$AM$2)/2),1,IF(1/(1+((2258*((0.622/((101325/(1*611*EXP(17.27*((($AM$1+$AM$2)/2)/((($AM$1+$AM$2)/2)+237.3))))))-1)*1000-(0.622/((101325/($AQ$1*611*EXP(17.27*($AM$3/($AM$3+237.3))))))-1)*1000))/(1005*((($AM$1+$AM$2)/2)-$AM$3))))>1,1,1/(1+((2258*((0.622/((101325/(1*611*EXP(17.27*((($AM$1+$AM$2)/2)/((($AM$1+$AM$2)/2)+237.3))))))-1)*1000-(0.622/((101325/($AQ$1*611*EXP(17.27*($AM$3/($AM$3+237.3))))))-1)*1000))/(1005*((($AM$1+$AM$2)/2)-$AM$3)))))) -> 1 | BP48: 1 | BQ48: 1 | BR48: 193 | BS48: 208 | BT48: 253 | BV48: 0 | BW48: 0 | BX48: 0 | BY48: 1 | BZ48: =IF(OR(EcoReviva!$L$6=10,EcoReviva!$L$6=15,EcoReviva!$L$6=20),1,IF(EcoReviva!$K$6<51,1,(1-(EcoReviva!$K$6-50)*0.005))) -> 1 | CN48: 22015 | CO48: 220 | CP48: 15 | CQ48: 10 | CR48: 11.1 | CS48: 21.85 | CT48: 15.5 | CU48: 16.8 | CV48: 27.5 | DF48: =DF46 -> 135 | DG48: =BL12 ->  | DH48: =ROUND(IF($BZ$2=1,W12,IF($BZ$2=2,W12*3.412141633,)),0) ->  | DI48: =IF($BZ$2=1,ROUND(AA12,0),IF($BZ$2=2,ROUND(AA12/272.7654,1),)) ->  | DJ48: =IF($BZ$2=1,AE12,IF($BZ$2=2,AE12*0.3346,)) ->  | DK48: =IF(BY12=1,ROUND(IF($BZ$2=1,AR12,IF($BZ$2=2,AR12*3.412141633,)),0),"") ->  | DL48: =IF(BY12=1,IF($BZ$2=1,ROUND(AU12,0),IF($BZ$2=2,ROUND(AU12/272.7654,1),)),"") ->  | DM48: =IF(BY12=1,IF($BZ$2=1,AX12,IF($BZ$2=2,AX12*0.3346,)),"") ->  | DN48: =K12 ->  | DP48: =BB12 ->  | DQ48: =DQ46 -> 
A49: 1508511 | D49: 1 | E49: 50 | F49: 85 | G49: 11 | H49: 10.9 | I49: 0 | J49: 26 | K49: 30 | L49: 42.4 | M49: 848 | N49: 1894 | O49: 2037 | P49: 2480 | Q49: 1.5 | R49: 1.1 | S49: 1.1 | T49: 1.1 | U49: 104 | V49: 408 | W49: 438 | X49: 534 | Y49: 18 | Z49: 70 | AA49: 75 | AB49: 92 | AC49: 0.00 | AD49: 0.05 | AE49: 0.05 | AF49: 0.08 | AG49: 0.0003969 | AH49: 1.7346 | AI49: 4 | AJ49: 0.000574288 | AK49: 317 | AL49: 341 | AM49: 415 | AN49: 0.95 | AO49: 0.95 | AP49: 0.95 | AQ49: 317 | AR49: 341 | AS49: 415 | AT49: 136 | AU49: 147 | AV49: 178 | AW49: 0.16 | AX49: 0.18 | AY49: 0.27 | AZ49: 1.1 | BA49: 6.7 | BB49: 7.4 | BC49: 10.3 | BE49: 1247 | BG49: 68% | BJ49: 0 | BK49: 12.5 | BL49: 14.7 | BM49: 21.85 | BO49: 1 | BP49: 1 | BQ49: 1 | BR49: 317 | BS49: 341 | BT49: 415 | BV49: 0 | BW49: 0 | BX49: 0 | BY49: 1 | BZ49: =IF(OR(EcoReviva!$L$6=10,EcoReviva!$L$6=15,EcoReviva!$L$6=20),1,IF(EcoReviva!$K$6<51,1,(1-(EcoReviva!$K$6-50)*0.005))) -> 1 | CN49: 24010 | CO49: 240 | CP49: 10 | CQ49: 10.4 | CR49: 12.2 | CS49: 21.85 | CT49: 14.8 | CU49: 16.6 | CV49: 28 | DF49: =DF46 -> 135 | DG49: =BM12 ->  | DH49: =ROUND(IF($BZ$2=1,X12,IF($BZ$2=2,X12*3.412141633,)),0) ->  | DI49: =IF($BZ$2=1,ROUND(AB12,0),IF($BZ$2=2,ROUND(AB12/272.7654,1),)) ->  | DJ49: =IF($BZ$2=1,AF12,IF($BZ$2=2,AF12*0.3346,)) ->  | DK49: =IF(BY12=1,ROUND(IF($BZ$2=1,AS12,IF($BZ$2=2,AS12*3.412141633,)),0),"") ->  | DL49: =IF(BY12=1,IF($BZ$2=1,ROUND(AV12,0),IF($BZ$2=2,ROUND(AV12/272.7654,1),)),"") ->  | DM49: =IF(BY12=1,IF($BZ$2=1,AY12,IF($BZ$2=2,AY12*0.3346,)),"") ->  | DN49: =L12 ->  | DP49: =BC12 ->  | DQ49: =DQ46 -> 
A50: 1508515 | D50: 1 | E50: 50 | F50: 85 | G50: 15 | H50: 15.9 | I50: 0 | J50: 26 | K50: 30 | L50: 43.3 | M50: 1249 | N50: 1598 | O50: 1712 | P50: 2331 | Q50: 1.5 | R50: 1.08 | S50: 1.08 | T50: 1.08 | U50: 154 | V50: 354 | W50: 379 | X50: 516 | Y50: 26 | Z50: 61 | AA50: 65 | AB50: 89 | AC50: 0.00 | AD50: 0.02 | AE50: 0.02 | AF50: 0.04 | AG50: 0.0002083 | AH50: 1.724 | AI50: 2 | AJ50: 0.000461829 | AK50: 218 | AL50: 234 | AM50: 318 | AN50: 1.01 | AO50: 1.01 | AP50: 1.01 | AQ50: 218 | AR50: 234 | AS50: 318 | AT50: 94 | AU50: 101 | AV50: 137 | AW50: 0.05 | AX50: 0.05 | AY50: 0.10 | AZ50: 0.9 | BA50: 7.0 | BB50: 7.7 | BC50: 10.7 | BE50: 1561 | BG50: 80% | BJ50: 0 | BK50: 11.3 | BL50: 13.2 | BM50: 21.85 | BO50: 1 | BP50: 1 | BQ50: 1 | BR50: 218 | BS50: 234 | BT50: 318 | BV50: 0 | BW50: 0 | BX50: 0 | BY50: 1 | BZ50: =IF(OR(EcoReviva!$L$6=10,EcoReviva!$L$6=15,EcoReviva!$L$6=20),1,IF(EcoReviva!$K$6<51,1,(1-(EcoReviva!$K$6-50)*0.005))) -> 1 | CN50: 24015 | CO50: 240 | CP50: 15 | CQ50: 10 | CR50: 10.9 | CS50: 21.85 | CT50: 16.4 | CU50: 17.7 | CV50: 29.7 | DF50: 155 | DG50: =BJ13 ->  | DH50: =ROUND(IF($BZ$2=1,U13,IF($BZ$2=2,U13*3.412141633,)),0) ->  | DI50: =IF($BZ$2=1,ROUND(Y13,0),IF($BZ$2=2,ROUND(Y13/272.7654,1),)) ->  | DJ50: =IF($BZ$2=1,AC13,IF($BZ$2=2,AC13*0.3346,)) ->  | DN50: 0.0 | DO50: 0.0 | DP50: 0.0 | DQ50: =IF($BZ$2=1,AZ13,IF($BZ$2=2,AZ13/4.54609,)) -> 
A51: 1508516 | D51: 1 | E51: 50 | F51: 85 | G51: 16 | H51: 15.9 | I51: 0 | J51: 26 | K51: 30 | L51: 43.3 | M51: 1161 | N51: 2337 | O51: 2503 | P51: 3409 | Q51: 1.5 | R51: 1.1 | S51: 1.1 | T51: 1.1 | U51: 143 | V51: 503 | W51: 539 | X51: 734 | Y51: 25 | Z51: 87 | AA51: 93 | AB51: 126 | AC51: 0.01 | AD51: 0.12 | AE51: 0.13 | AF51: 0.24 | AG51: 0.0002083 | AH51: 1.724 | AI51: 4 | AJ51: 0.001392796 | AK51: 358 | AL51: 383 | AM51: 522 | AN51: 0.95 | AO51: 0.95 | AP51: 0.95 | AQ51: 358 | AR51: 383 | AS51: 522 | AT51: 154 | AU51: 165 | AV51: 224 | AW51: 0.36 | AX51: 0.41 | AY51: 0.75 | AZ51: 1.7 | BA51: 7.0 | BB51: 7.7 | BC51: 10.7 | BE51: 1708 | BG51: 68% | BJ51: 0 | BK51: 11.3 | BL51: 13.2 | BM51: 21.85 | BO51: 1 | BP51: 1 | BQ51: 1 | BR51: 358 | BS51: 383 | BT51: 522 | BV51: 0 | BW51: 0 | BX51: 0 | BY51: 1 | BZ51: =IF(OR(EcoReviva!$L$6=10,EcoReviva!$L$6=15,EcoReviva!$L$6=20),1,IF(EcoReviva!$K$6<51,1,(1-(EcoReviva!$K$6-50)*0.005))) -> 1 | CN51: 26010 | CO51: 260 | CP51: 10 | CQ51: 10.2 | CR51: 11.9 | CS51: 21.85 | CT51: 16.2 | CU51: 18.6 | CV51: 31.4 | DF51: =DF50 -> 155 | DG51: =BK13 ->  | DH51: =ROUND(IF($BZ$2=1,V13,IF($BZ$2=2,V13*3.412141633,)),0) ->  | DI51: =IF($BZ$2=1,ROUND(Z13,0),IF($BZ$2=2,ROUND(Z13/272.7654,1),)) ->  | DJ51: =IF($BZ$2=1,AD13,IF($BZ$2=2,AD13*0.3346,)) ->  | DK51: =IF(BY13=1,ROUND(IF($BZ$2=1,AQ13,IF($BZ$2=2,AQ13*3.412141633,)),0),"") ->  | DL51: =IF(BY13=1,IF($BZ$2=1,ROUND(AT13,0),IF($BZ$2=2,ROUND(AT13/272.7654,1),)),"") ->  | DM51: =IF(BY13=1,IF($BZ$2=1,AW13,IF($BZ$2=2,AW13*0.3346,)),"") ->  | DN51: =J13 ->  | DO51: =IF(DN51="","",DN51+8) ->  | DP51: =BA13 ->  | DQ51: =DQ50 -> 
A52: 1508520 | D52: 1 | E52: 50 | F52: 85 | G52: 20 | H52: 20.9 | I52: 0 | J52: 26 | K52: 30 | L52: 43.3 | M52: 1746 | N52: 2233 | O52: 2402 | P52: 2925 | Q52: 1.5 | R52: 1.08 | S52: 1.08 | T52: 1.08 | U52: 215 | V52: 494 | W52: 532 | X52: 647 | Y52: 37 | Z52: 85 | AA52: 92 | AB52: 111 | AC52: 0.01 | AD52: 0.03 | AE52: 0.04 | AF52: 0.05 | AG52: 0.0001276 | AH52: 1.7219 | AI52: 2 | AJ52: 0.000376611 | AK52: 276 | AL52: 297 | AM52: 361 | AN52: 0.95 | AO52: 0.95 | AP52: 0.95 | AQ52: 276 | AR52: 297 | AS52: 361 | AT52: 119 | AU52: 128 | AV52: 155 | AW52: 0.06 | AX52: 0.07 | AY52: 0.10 | AZ52: 1.1 | BA52: 7.0 | BB52: 7.7 | BC52: 10.7 | BE52: 2183 | BG52: 80% | BJ52: 0 | BK52: 11.3 | BL52: 13.2 | BM52: 21.85 | BO52: 1 | BP52: 1 | BQ52: 1 | BR52: 276 | BS52: 297 | BT52: 361 | BV52: 0 | BW52: 0 | BX52: 0 | BY52: 1 | BZ52: =IF(OR(EcoReviva!$L$6=10,EcoReviva!$L$6=15,EcoReviva!$L$6=20),1,IF(EcoReviva!$K$6<51,1,(1-(EcoReviva!$K$6-50)*0.005))) -> 1 | CN52: 26015 | CO52: 260 | CP52: 15 | CQ52: 10 | CR52: 10.9 | CS52: 21.85 | CT52: 16.2 | CU52: 18.6 | CV52: 31.4 | DF52: =DF50 -> 155 | DG52: =BL13 ->  | DH52: =ROUND(IF($BZ$2=1,W13,IF($BZ$2=2,W13*3.412141633,)),0) ->  | DI52: =IF($BZ$2=1,ROUND(AA13,0),IF($BZ$2=2,ROUND(AA13/272.7654,1),)) ->  | DJ52: =IF($BZ$2=1,AE13,IF($BZ$2=2,AE13*0.3346,)) ->  | DK52: =IF(BY13=1,ROUND(IF($BZ$2=1,AR13,IF($BZ$2=2,AR13*3.412141633,)),0),"") ->  | DL52: =IF(BY13=1,IF($BZ$2=1,ROUND(AU13,0),IF($BZ$2=2,ROUND(AU13/272.7654,1),)),"") ->  | DM52: =IF(BY13=1,IF($BZ$2=1,AX13,IF($BZ$2=2,AX13*0.3346,)),"") ->  | DN52: =K13 ->  | DP52: =BB13 ->  | DQ52: =DQ50 -> 
A53: 1508521 | D53: 1 | E53: 50 | F53: 85 | G53: 21 | H53: 20.9 | I53: 0 | J53: 26 | K53: 30 | L53: 43.3 | M53: 1859 | N53: 3009 | O53: 3224 | P53: 4391 | Q53: 1.5 | R53: 1.05 | S53: 1.05 | T53: 1.05 | U53: 229 | V53: 694 | W53: 744 | X53: 1013 | Y53: 39 | Z53: 119 | AA53: 128 | AB53: 174 | AC53: 0.01 | AD53: 0.08 | AE53: 0.10 | AF53: 0.18 | AG53: 0.0001276 | AH53: 1.7219 | AI53: 4 | AJ53: 0.000514201 | AK53: 390 | AL53: 418 | AM53: 570 | AN53: 0.85 | AO53: 0.85 | AP53: 0.85 | AQ53: 390 | AR53: 418 | AS53: 570 | AT53: 168 | AU53: 180 | AV53: 245 | AW53: 0.17 | AX53: 0.19 | AY53: 0.35 | AZ53: 2.3 | BA53: 7.0 | BB53: 7.7 | BC53: 10.7 | BE53: 2324 | BG53: 80% | BJ53: 0 | BK53: 11.3 | BL53: 13.2 | BM53: 21.85 | BO53: 1 | BP53: 1 | BQ53: 1 | BR53: 390 | BS53: 418 | BT53: 570 | BV53: 0 | BW53: 0 | BX53: 0 | BY53: 1 | BZ53: =IF(OR(EcoReviva!$L$6=10,EcoReviva!$L$6=15,EcoReviva!$L$6=20),1,IF(EcoReviva!$K$6<51,1,(1-(EcoReviva!$K$6-50)*0.005))) -> 1 | CN53: 28010 | CO53: 280 | CP53: 10 | CQ53: 10.2 | CR53: 11.9 | CS53: 21.85 | CT53: 16.2 | CU53: 18.6 | CV53: 31.4 | DF53: =DF50 -> 155 | DG53: =BM13 ->  | DH53: =ROUND(IF($BZ$2=1,X13,IF($BZ$2=2,X13*3.412141633,)),0) ->  | DI53: =IF($BZ$2=1,ROUND(AB13,0),IF($BZ$2=2,ROUND(AB13/272.7654,1),)) ->  | DJ53: =IF($BZ$2=1,AF13,IF($BZ$2=2,AF13*0.3346,)) ->  | DK53: =IF(BY13=1,ROUND(IF($BZ$2=1,AS13,IF($BZ$2=2,AS13*3.412141633,)),0),"") ->  | DL53: =IF(BY13=1,IF($BZ$2=1,ROUND(AV13,0),IF($BZ$2=2,ROUND(AV13/272.7654,1),)),"") ->  | DM53: =IF(BY13=1,IF($BZ$2=1,AY13,IF($BZ$2=2,AY13*0.3346,)),"") ->  | DN53: =L13 ->  | DP53: =BC13 ->  | DQ53: =DQ50 -> 
A54: 1509510 | D54: 1 | E54: 50 | F54: 95 | G54: 10 | H54: 10.9 | I54: 0 | J54: 26 | K54: 30 | L54: 43.0 | M54: 968 | N54: 1574 | O54: 1696 | P54: 2082 | Q54: 1.5 | R54: 1.08 | S54: 1.08 | T54: 1.08 | U54: 119 | V54: 348 | W54: 375 | X54: 461 | Y54: 20 | Z54: 60 | AA54: 65 | AB54: 79 | AC54: 0.00 | AD54: 0.02 | AE54: 0.02 | AF54: 0.03 | AG54: 0.0003969 | AH54: 1.7346 | AI54: 2 | AJ54: 0.000367347 | AK54: 218 | AL54: 235 | AM54: 289 | AN54: 0.98 | AO54: 0.98 | AP54: 0.98 | AQ54: 218 | AR54: 235 | AS54: 289 | AT54: 94 | AU54: 101 | AV54: 124 | AW54: 0.05 | AX54: 0.06 | AY54: 0.08 | AZ54: 0.6 | BA54: 7.8 | BB54: 8.7 | BC54: 12.2 | BE54: 1076 | BG54: 90% | BJ54: 0 | BK54: 12.3 | BL54: 14.1 | BM54: 21.85 | BO54: 1 | BP54: 1 | BQ54: 1 | BR54: 218 | BS54: 235 | BT54: 289 | BV54: 0 | BW54: 0 | BX54: 0 | BY54: 1 | BZ54: =IF(OR(EcoReviva!$L$6=10,EcoReviva!$L$6=15,EcoReviva!$L$6=20),1,IF(EcoReviva!$K$6<51,1,(1-(EcoReviva!$K$6-50)*0.005))) -> 1 | CN54: 28015 | CO54: 280 | CP54: 15 | CQ54: 10 | CR54: 10.6 | CS54: 21.85 | CT54: 19.3 | CU54: 20.4 | CV54: 34.5 | DF54: 175 | DG54: =BJ14 ->  | DH54: =ROUND(IF($BZ$2=1,U14,IF($BZ$2=2,U14*3.412141633,)),0) ->  | DI54: =IF($BZ$2=1,ROUND(Y14,0),IF($BZ$2=2,ROUND(Y14/272.7654,1),)) ->  | DJ54: =IF($BZ$2=1,AC14,IF($BZ$2=2,AC14*0.3346,)) ->  | DN54: 0.0 | DO54: 0.0 | DP54: 0.0 | DQ54: =IF($BZ$2=1,AZ14,IF($BZ$2=2,AZ14/4.54609,)) -> 
A55: 1509511 | D55: 1 | E55: 50 | F55: 95 | G55: 11 | H55: 10.9 | I55: 0 | J55: 26 | K55: 30 | L55: 43.0 | M55: 942 | N55: 2136 | O55: 2301 | P55: 2825 | Q55: 1.5 | R55: 1.1 | S55: 1.1 | T55: 1.1 | U55: 116 | V55: 460 | W55: 495 | X55: 608 | Y55: 20 | Z55: 79 | AA55: 85 | AB55: 105 | AC55: 0.00 | AD55: 0.06 | AE55: 0.07 | AF55: 0.10 | AG55: 0.0003969 | AH55: 1.7346 | AI55: 4 | AJ55: 0.000574288 | AK55: 358 | AL55: 385 | AM55: 473 | AN55: 0.95 | AO55: 0.95 | AP55: 0.95 | AQ55: 358 | AR55: 385 | AS55: 473 | AT55: 154 | AU55: 166 | AV55: 203 | AW55: 0.21 | AX55: 0.24 | AY55: 0.36 | AZ55: 1.3 | BA55: 7.8 | BB55: 8.7 | BC55: 12.2 | BE55: 1386 | BG55: 68% | BJ55: 0 | BK55: 12.3 | BL55: 14.1 | BM55: 21.85 | BO55: 1 | BP55: 1 | BQ55: 1 | BR55: 358 | BS55: 385 | BT55: 473 | BV55: 0 | BW55: 0 | BX55: 0 | BY55: 1 | BZ55: =IF(OR(EcoReviva!$L$6=10,EcoReviva!$L$6=15,EcoReviva!$L$6=20),1,IF(EcoReviva!$K$6<51,1,(1-(EcoReviva!$K$6-50)*0.005))) -> 1 | CN55: 30010 | CO55: 300 | CP55: 10 | CQ55: =CQ53 -> 10.2 | CR55: =CR53 -> 11.9 | CS55: =CS53 -> 21.85 | CT55: 16.2 | CU55: 18.6 | CV55: 31.4 | DF55: =DF54 -> 175 | DG55: =BK14 ->  | DH55: =ROUND(IF($BZ$2=1,V14,IF($BZ$2=2,V14*3.412141633,)),0) ->  | DI55: =IF($BZ$2=1,ROUND(Z14,0),IF($BZ$2=2,ROUND(Z14/272.7654,1),)) ->  | DJ55: =IF($BZ$2=1,AD14,IF($BZ$2=2,AD14*0.3346,)) ->  | DK55: =IF(BY14=1,ROUND(IF($BZ$2=1,AQ14,IF($BZ$2=2,AQ14*3.412141633,)),0),"") ->  | DL55: =IF(BY14=1,IF($BZ$2=1,ROUND(AT14,0),IF($BZ$2=2,ROUND(AT14/272.7654,1),)),"") ->  | DM55: =IF(BY14=1,IF($BZ$2=1,AW14,IF($BZ$2=2,AW14*0.3346,)),"") ->  | DN55: =J14 ->  | DO55: =IF(DN55="","",DN55+8) ->  | DP55: =BA14 ->  | DQ55: =DQ54 -> 
A56: 1509515 | D56: 1 | E56: 50 | F56: 95 | G56: 15 | H56: 15.9 | I56: 0 | J56: 26 | K56: 30 | L56: 44.1 | M56: 1387 | N56: 1799 | O56: 1926 | P56: 2655 | Q56: 1.5 | R56: 1.08 | S56: 1.08 | T56: 1.08 | U56: 171 | V56: 398 | W56: 426 | X56: 588 | Y56: 29 | Z56: 68 | AA56: 73 | AB56: 101 | AC56: 0.00 | AD56: 0.03 | AE56: 0.03 | AF56: 0.06 | AG56: 0.0002083 | AH56: 1.724 | AI56: 2 | AJ56: 0.000461829 | AK56: 246 | AL56: 263 | AM56: 362 | AN56: 1.01 | AO56: 1.01 | AP56: 1.01 | AQ56: 246 | AR56: 263 | AS56: 362 | AT56: 106 | AU56: 113 | AV56: 156 | AW56: 0.06 | AX56: 0.07 | AY56: 0.13 | AZ56: 1.0 | BA56: 7 | BB56: 7.7 | BC56: 10.7 | BE56: 1734 | BG56: 80% | BJ56: 0 | BK56: 10.9 | BL56: 12.8 | BM56: 21.85 | BO56: 1 | BP56: 1 | BQ56: 1 | BR56: 246 | BS56: 263 | BT56: 362 | BV56: 0 | BW56: 0 | BX56: 0 | BY56: 1 | BZ56: =IF(OR(EcoReviva!$L$6=10,EcoReviva!$L$6=15,EcoReviva!$L$6=20),1,IF(EcoReviva!$K$6<51,1,(1-(EcoReviva!$K$6-50)*0.005))) -> 1 | CN56: 30015 | CO56: 300 | CP56: 15 | CQ56: =CQ54 -> 10 | CR56: =CR54 -> 10.6 | CS56: 21.85 | CT56: 19.3 | CU56: 20.4 | CV56: 34.5 | DF56: =DF54 -> 175 | DG56: =BL14 ->  | DH56: =ROUND(IF($BZ$2=1,W14,IF($BZ$2=2,W14*3.412141633,)),0) ->  | DI56: =IF($BZ$2=1,ROUND(AA14,0),IF($BZ$2=2,ROUND(AA14/272.7654,1),)) ->  | DJ56: =IF($BZ$2=1,AE14,IF($BZ$2=2,AE14*0.3346,)) ->  | DK56: =IF(BY14=1,ROUND(IF($BZ$2=1,AR14,IF($BZ$2=2,AR14*3.412141633,)),0),"") ->  | DL56: =IF(BY14=1,IF($BZ$2=1,ROUND(AU14,0),IF($BZ$2=2,ROUND(AU14/272.7654,1),)),"") ->  | DM56: =IF(BY14=1,IF($BZ$2=1,AX14,IF($BZ$2=2,AX14*0.3346,)),"") ->  | DN56: =K14 ->  | DP56: =BB14 ->  | DQ56: =DQ54 -> 
A57: 1509516 | D57: 1 | E57: 50 | F57: 95 | G57: 16 | H57: 15.9 | I57: 0 | J57: 26 | K57: 30 | L57: 44.1 | M57: 1291 | N57: 2630 | O57: 2816 | P57: 3883 | Q57: 1.5 | R57: 1.1 | S57: 1.1 | T57: 1.1 | U57: 159 | V57: 566 | W57: 606 | X57: 836 | Y57: 27 | Z57: 97 | AA57: 104 | AB57: 144 | AC57: 0.01 | AD57: 0.15 | AE57: 0.17 | AF57: 0.32 | AG57: 0.0002083 | AH57: 1.724 | AI57: 4 | AJ57: 0.001392796 | AK57: 403 | AL57: 431 | AM57: 595 | AN57: 0.95 | AO57: 0.95 | AP57: 0.95 | AQ57: 403 | AR57: 431 | AS57: 595 | AT57: 173 | AU57: 185 | AV57: 256 | AW57: 0.46 | AX57: 0.52 | AY57: 0.99 | AZ57: 1.9 | BA57: 7 | BB57: 7.7 | BC57: 10.7 | BE57: 1898 | BG57: 68% | BJ57: 0 | BK57: 10.9 | BL57: 12.8 | BM57: 21.85 | BO57: 1 | BP57: 1 | BQ57: 1 | BR57: 403 | BS57: 431 | BT57: 595 | BV57: 0 | BW57: 0 | BX57: 0 | BY57: 1 | BZ57: =IF(OR(EcoReviva!$L$6=10,EcoReviva!$L$6=15,EcoReviva!$L$6=20),1,IF(EcoReviva!$K$6<51,1,(1-(EcoReviva!$K$6-50)*0.005))) -> 1 | DF57: =DF54 -> 175 | DG57: =BM14 ->  | DH57: =ROUND(IF($BZ$2=1,X14,IF($BZ$2=2,X14*3.412141633,)),0) ->  | DI57: =IF($BZ$2=1,ROUND(AB14,0),IF($BZ$2=2,ROUND(AB14/272.7654,1),)) ->  | DJ57: =IF($BZ$2=1,AF14,IF($BZ$2=2,AF14*0.3346,)) ->  | DK57: =IF(BY14=1,ROUND(IF($BZ$2=1,AS14,IF($BZ$2=2,AS14*3.412141633,)),0),"") ->  | DL57: =IF(BY14=1,IF($BZ$2=1,ROUND(AV14,0),IF($BZ$2=2,ROUND(AV14/272.7654,1),)),"") ->  | DM57: =IF(BY14=1,IF($BZ$2=1,AY14,IF($BZ$2=2,AY14*0.3346,)),"") ->  | DN57: =L14 ->  | DP57: =BC14 ->  | DQ57: =DQ54 -> 
A58: 1509520 | D58: 1 | E58: 50 | F58: 95 | G58: 20 | H58: 20.9 | I58: 0 | J58: 26 | K58: 30 | L58: 44.1 | M58: 1940 | N58: 2519 | O58: 2714 | P58: 3331 | Q58: 1.5 | R58: 1.08 | S58: 1.08 | T58: 1.08 | U58: 239 | V58: 557 | W58: 601 | X58: 737 | Y58: 41 | Z58: 96 | AA58: 103 | AB58: 127 | AC58: 0.01 | AD58: 0.04 | AE58: 0.05 | AF58: 0.07 | AG58: 0.0001276 | AH58: 1.7219 | AI58: 2 | AJ58: 0.000376611 | AK58: 311 | AL58: 335 | AM58: 412 | AN58: 0.95 | AO58: 0.95 | AP58: 0.95 | AQ58: 311 | AR58: 335 | AS58: 412 | AT58: 134 | AU58: 144 | AV58: 177 | AW58: 0.08 | AX58: 0.09 | AY58: 0.13 | AZ58: 1.3 | BA58: 7 | BB58: 7.7 | BC58: 10.7 | BE58: 2425 | BG58: 80% | BJ58: 0 | BK58: 10.9 | BL58: 12.8 | BM58: 21.85 | BO58: 1 | BP58: 1 | BQ58: 1 | BR58: 311 | BS58: 335 | BT58: 412 | BV58: 0 | BW58: 0 | BX58: 0 | BY58: 1 | BZ58: =IF(OR(EcoReviva!$L$6=10,EcoReviva!$L$6=15,EcoReviva!$L$6=20),1,IF(EcoReviva!$K$6<51,1,(1-(EcoReviva!$K$6-50)*0.005))) -> 1 | DF58: 195 | DG58: =BJ15 ->  | DH58: =ROUND(IF($BZ$2=1,U15,IF($BZ$2=2,U15*3.412141633,)),0) ->  | DI58: =IF($BZ$2=1,ROUND(Y15,0),IF($BZ$2=2,ROUND(Y15/272.7654,1),)) ->  | DJ58: =IF($BZ$2=1,AC15,IF($BZ$2=2,AC15*0.3346,)) ->  | DN58: 0.0 | DO58: 0.0 | DP58: 0.0 | DQ58: =IF($BZ$2=1,AZ15,IF($BZ$2=2,AZ15/4.54609,)) -> 
A59: 1509521 | D59: 1 | E59: 50 | F59: 95 | G59: 21 | H59: 20.9 | I59: 0 | J59: 26 | K59: 30 | L59: 44.1 | M59: 2066 | N59: 3388 | O59: 3627 | P59: 5000 | Q59: 1.5 | R59: 1.05 | S59: 1.05 | T59: 1.05 | U59: 254 | V59: 782 | W59: 837 | X59: 1154 | Y59: 44 | Z59: 135 | AA59: 144 | AB59: 198 | AC59: 0.01 | AD59: 0.11 | AE59: 0.13 | AF59: 0.23 | AG59: 0.0001276 | AH59: 1.7219 | AI59: 4 | AJ59: 0.000514201 | AK59: 439 | AL59: 471 | AM59: 649 | AN59: 0.85 | AO59: 0.85 | AP59: 0.85 | AQ59: 439 | AR59: 471 | AS59: 649 | AT59: 189 | AU59: 203 | AV59: 279 | AW59: 0.21 | AX59: 0.25 | AY59: 0.46 | AZ59: 2.5 | BA59: 7 | BB59: 7.7 | BC59: 10.7 | BE59: 2582 | BG59: 80% | BJ59: 0 | BK59: 10.9 | BL59: 12.8 | BM59: 21.85 | BO59: 1 | BP59: 1 | BQ59: 1 | BR59: 439 | BS59: 471 | BT59: 649 | BV59: 0 | BW59: 0 | BX59: 0 | BY59: 1 | BZ59: =IF(OR(EcoReviva!$L$6=10,EcoReviva!$L$6=15,EcoReviva!$L$6=20),1,IF(EcoReviva!$K$6<51,1,(1-(EcoReviva!$K$6-50)*0.005))) -> 1 | DF59: =DF58 -> 195 | DG59: =BK15 ->  | DH59: =ROUND(IF($BZ$2=1,V15,IF($BZ$2=2,V15*3.412141633,)),0) ->  | DI59: =IF($BZ$2=1,ROUND(Z15,0),IF($BZ$2=2,ROUND(Z15/272.7654,1),)) ->  | DJ59: =IF($BZ$2=1,AD15,IF($BZ$2=2,AD15*0.3346,)) ->  | DK59: =IF(BY15=1,ROUND(IF($BZ$2=1,AQ15,IF($BZ$2=2,AQ15*3.412141633,)),0),"") ->  | DL59: =IF(BY15=1,IF($BZ$2=1,ROUND(AT15,0),IF($BZ$2=2,ROUND(AT15/272.7654,1),)),"") ->  | DM59: =IF(BY15=1,IF($BZ$2=1,AW15,IF($BZ$2=2,AW15*0.3346,)),"") ->  | DN59: =J15 ->  | DO59: =IF(DN59="","",DN59+8) ->  | DP59: =BA15 ->  | DQ59: =DQ58 -> 
A60: =CONCATENATE(D60,E60,F60,G60) -> 15010510 | D60: 1 | E60: 50 | F60: 105 | G60: 10 | H60: 10.9 | I60: 0 | J60: 26 | K60: 30 | L60: 43.5 | M60: =IF($N60-($BE60*$BG60)>100,$BE60*$BG60,$N60-95) -> 1066 | N60: 1766 | O60: 1903 | P60: 2336 | Q60: 1.5 | R60: 1.08 | S60: 1.08 | T60: 1.08 | U60: =ROUND(M60*POWER(CF_heat,Q60),0) -> 131 | V60: =ROUND(N60*POWER(CF_heat,R60),0) -> 391 | W60: =ROUND(O60*POWER(CF_heat,S60),0) -> 421 | X60: =ROUND(P60*POWER(CF_heat,T60),0) -> 517 | Y60: =ROUND(U60*3600/(4186*ABS($O$1-$O$2)),0) -> 23 | Z60: =ROUND(V60*3600/(4186*ABS($O$1-$O$2)),0) -> 67 | AA60: =ROUND(W60*3600/(4186*ABS($O$1-$O$2)),0) -> 72 | AB60: =ROUND(X60*3600/(4186*ABS($O$1-$O$2)),0) -> 89 | AC60: =(($AG60*(Y60^$AH60)*((($F60-14.4)*$AI60)/100))+($AJ60*(Y60^2)))*0.0098 -> 0.00 | AD60: =(($AG60*(Z60^$AH60)*((($F60-14.4)*$AI60)/100))+($AJ60*(Z60^2)))*0.0098 -> 0.03 | AE60: =(($AG60*(AA60^$AH60)*((($F60-14.4)*$AI60)/100))+($AJ60*(AA60^2)))*0.0098 -> 0.03 | AF60: =(($AG60*(AB60^$AH60)*((($F60-14.4)*$AI60)/100))+($AJ60*(AB60^2)))*0.0098 -> 0.05 | AG60: =IF($G60=$CO$103,CP$103,IF($G60=$CO$104,CP$104,IF($G60=$CO$105,CP$105,IF($G60=$CO$107,CP$107,IF($G60=$CO$108,CP$108,IF($G60=$CO$109,CP$109,IF($G60=$CO$111,CP$111,IF($G60=$CO$112,CP$112,IF($G60=$CO$113,CP$113,IF($G60=$CO$115,CP$115,IF($G60=$CO$116,CP$116,IF($G60=$CO$117,CP$117,IF($G60=$CO$119,CP$119,IF($G60=$CO$120,CP$120,)))))))))))))) -> 0.0003969 | AH60: =IF($G60=$CO$103,CQ$103,IF($G60=$CO$104,CQ$104,IF($G60=$CO$105,CQ$105,IF($G60=$CO$107,CQ$107,IF($G60=$CO$108,CQ$108,IF($G60=$CO$109,CQ$109,IF($G60=$CO$111,CQ$111,IF($G60=$CO$112,CQ$112,IF($G60=$CO$113,CQ$113,IF($G60=$CO$115,CQ$115,IF($G60=$CO$116,CQ$116,IF($G60=$CO$117,CQ$117,IF($G60=$CO$119,CQ$119,IF($G60=$CO$120,CQ$120,)))))))))))))) -> 1.7346 | AI60: =IF($G60=$CO$103,CR$103,IF($G60=$CO$104,CR$104,IF($G60=$CO$105,CR$105,IF($G60=$CO$107,CR$107,IF($G60=$CO$108,CR$108,IF($G60=$CO$109,CR$109,IF($G60=$CO$111,CR$111,IF($G60=$CO$112,CR$112,IF($G60=$CO$113,CR$113,IF($G60=$CO$115,CR$115,IF($G60=$CO$116,CR$116,IF($G60=$CO$117,CR$117,IF($G60=$CO$119,CR$119,IF($G60=$CO$120,CR$120,)))))))))))))) -> 2 | AJ60: =IF($G60=$CO$103,CS$103,IF($G60=$CO$104,CS$104,IF($G60=$CO$105,CS$105,IF($G60=$CO$107,CS$107,IF($G60=$CO$108,CS$108,IF($G60=$CO$109,CS$109,IF($G60=$CO$111,CS$111,IF($G60=$CO$112,CS$112,IF($G60=$CO$113,CS$113,IF($G60=$CO$115,CS$115,IF($G60=$CO$116,CS$116,IF($G60=$CO$117,CS$117,IF($G60=$CO$119,CS$119,IF($G60=$CO$120,CS$120,)))))))))))))) -> 0.000367347 | AK60: 245 | AL60: 264 | AM60: 324 | AN60: 0.98 | AO60: 0.98 | AP60: 0.98 | AQ60: =ROUND(AK60*BZ60*POWER(CF_cool,AN60),0) -> 245 | AR60: =ROUND(AL60*BZ60*POWER(CF_cool,AO60),0) -> 264 | AS60: =ROUND(AM60*BZ60*POWER(CF_cool,AP60),0) -> 324 | AT60: =ROUND(AQ60*3600/(4186*ABS($AM$1-$AM$2)),0) -> 105 | AU60: =ROUND(AR60*3600/(4186*ABS($AM$1-$AM$2)),0) -> 114 | AV60: =ROUND(AS60*3600/(4186*ABS($AM$1-$AM$2)),0) -> 139 | AW60: =(($AG60*(AT60^$AH60)*((($F60-14.4)*$AI60)/100))+($AJ60*(AT60^2)))*0.0098 -> 0.06 | AX60: =(($AG60*(AU60^$AH60)*((($F60-14.4)*$AI60)/100))+($AJ60*(AU60^2)))*0.0098 -> 0.07 | AY60: =(($AG60*(AV60^$AH60)*((($F60-14.4)*$AI60)/100))+($AJ60*(AV60^2)))*0.0098 -> 0.11 | AZ60: =ROUND(IF(G60=10,$CO$92*F60,IF(G60=11,$CO$93*F60,IF(G60=15,$CO$94*F60,IF(G60=16,$CO$95*F60,IF(G60=20,$CO$96*F60,IF(G60=21,$CO$97*F60,)))))),1) -> 0.7 | BA60: 8.4 | BB60: 9.3 | BC60: 14.0 | BE60: 1184 | BG60: =IF(G60=10,0.9,IF(G60=11,0.68,IF(G60=15,0.8,IF(G60=16,0.68,IF(G60=20,0.8,IF(G60=21,0.8)))))) -> 90% | BJ60: 0 | BK60: 12 | BL60: 13.9 | BM60: 21.85 | BO60: 1 | BP60: 1 | BQ60: 1 | BR60: =AQ60/BO60 -> 245 | BS60: =AR60/BP60 -> 264 | BT60: =AS60/BQ60 -> 324 | BV60: =BR60-AQ60 -> 0 | BW60: =BS60-AR60 -> 0 | BX60: =BT60-AS60 -> 0 | BY60: =IF(SUM(BV60:BX60)=0,1,0) -> 1 | BZ60: =IF(OR(EcoReviva!$L$6=10,EcoReviva!$L$6=15,EcoReviva!$L$6=20),1,IF(EcoReviva!$K$6<51,1,(1-(EcoReviva!$K$6-50)*0.005))) -> 1 | CN60: L,rail/L,tot | CO60: T10 | CP60: T11 | CQ60: T15 | CR60: T16 | CS60: T20 | CT60: T21 | CU60: ALS | DF60: =DF58 -> 195 | DG60: =BL15 ->  | DH60: =ROUND(IF($BZ$2=1,W15,IF($BZ$2=2,W15*3.412141633,)),0) ->  | DI60: =IF($BZ$2=1,ROUND(AA15,0),IF($BZ$2=2,ROUND(AA15/272.7654,1),)) ->  | DJ60: =IF($BZ$2=1,AE15,IF($BZ$2=2,AE15*0.3346,)) ->  | DK60: =IF(BY15=1,ROUND(IF($BZ$2=1,AR15,IF($BZ$2=2,AR15*3.412141633,)),0),"") ->  | DL60: =IF(BY15=1,IF($BZ$2=1,ROUND(AU15,0),IF($BZ$2=2,ROUND(AU15/272.7654,1),)),"") ->  | DM60: =IF(BY15=1,IF($BZ$2=1,AX15,IF($BZ$2=2,AX15*0.3346,)),"") ->  | DN60: =K15 ->  | DP60: =BB15 ->  | DQ60: =DQ58 -> 
A61: 15010511 | D61: 1 | E61: 50 | F61: 105 | G61: 11 | H61: 10.9 | I61: 0 | J61: 26 | K61: 30 | L61: 43.5 | M61: 1037 | N61: 2397 | O61: 2582 | P61: 3169 | Q61: 1.5 | R61: 1.1 | S61: 1.1 | T61: 1.1 | U61: 128 | V61: 516 | W61: 556 | X61: 682 | Y61: 22 | Z61: 89 | AA61: 96 | AB61: 117 | AC61: 0.01 | AD61: 0.08 | AE61: 0.09 | AF61: 0.13 | AG61: 0.0003969 | AH61: 1.7346 | AI61: 4 | AJ61: 0.000574288 | AK61: 401 | AL61: 432 | AM61: 531 | AN61: 0.95 | AO61: 0.95 | AP61: 0.95 | AQ61: 401 | AR61: 432 | AS61: 531 | AT61: 172 | AU61: 186 | AV61: 228 | AW61: 0.27 | AX61: 0.32 | AY61: 0.47 | AZ61: 1.4 | BA61: 8.4 | BB61: 9.3 | BC61: 14.0 | BE61: 1525 | BG61: 68% | BJ61: 0 | BK61: 12 | BL61: 13.9 | BM61: 21.85 | BO61: 1 | BP61: 1 | BQ61: 1 | BR61: 401 | BS61: 432 | BT61: 531 | BV61: 0 | BW61: 0 | BX61: 0 | BY61: 1 | BZ61: =IF(OR(EcoReviva!$L$6=10,EcoReviva!$L$6=15,EcoReviva!$L$6=20),1,IF(EcoReviva!$K$6<51,1,(1-(EcoReviva!$K$6-50)*0.005))) -> 1 | CN61: 1 | CO61: 90% | CP61: 68% | CQ61: 80% | CR61: 68% | CS61: 80% | CT61: 80% | CU61: =IF(#REF!/#REF!>data!CN$61,0,IF(#REF!/#REF!=data!CN$61,data!CO$61,IF(#REF!/#REF!>data!CN$62,data!CO$62,IF(#REF!/#REF!>data!CN$63,data!CO$63,IF(#REF!/#REF!>data!CN$64,data!CO$64,IF(#REF!/#REF!>data!CN$65,data!CO$65,IF(#REF!/#REF!>data!CN$66,data!CO$66,IF(#REF!/#REF!=data!CN$66,1,)))))))) ->  | CV61: T10 | DF61: =DF58 -> 195 | DG61: =BM15 ->  | DH61: =ROUND(IF($BZ$2=1,X15,IF($BZ$2=2,X15*3.412141633,)),0) ->  | DI61: =IF($BZ$2=1,ROUND(AB15,0),IF($BZ$2=2,ROUND(AB15/272.7654,1),)) ->  | DJ61: =IF($BZ$2=1,AF15,IF($BZ$2=2,AF15*0.3346,)) ->  | DK61: =IF(BY15=1,ROUND(IF($BZ$2=1,AS15,IF($BZ$2=2,AS15*3.412141633,)),0),"") ->  | DL61: =IF(BY15=1,IF($BZ$2=1,ROUND(AV15,0),IF($BZ$2=2,ROUND(AV15/272.7654,1),)),"") ->  | DM61: =IF(BY15=1,IF($BZ$2=1,AY15,IF($BZ$2=2,AY15*0.3346,)),"") ->  | DN61: =L15 ->  | DP61: =BC15 ->  | DQ61: =DQ58 -> 
A62: 15010515 | D62: 1 | E62: 50 | F62: 105 | G62: 15 | H62: 15.9 | I62: 0 | J62: 26 | K62: 30 | L62: 44.1 | M62: 1526 | N62: 1908 | O62: 2043 | P62: 2817 | Q62: 1.5 | R62: 1.08 | S62: 1.08 | T62: 1.08 | U62: 188 | V62: 422 | W62: 452 | X62: 623 | Y62: 32 | Z62: 73 | AA62: 78 | AB62: 107 | AC62: 0.01 | AD62: 0.03 | AE62: 0.03 | AF62: 0.06 | AG62: 0.0002083 | AH62: 1.724 | AI62: 2 | AJ62: 0.000461829 | AK62: 250 | AL62: 267 | AM62: 369 | AN62: 1.01 | AO62: 1.01 | AP62: 1.01 | AQ62: 250 | AR62: 267 | AS62: 369 | AT62: 108 | AU62: 115 | AV62: 159 | AW62: 0.06 | AX62: 0.07 | AY62: 0.14 | AZ62: 1.1 | BA62: 7.9 | BB62: 8.8 | BC62: 12.5 | BE62: 1907 | BG62: 80% | BJ62: 0 | BK62: 10.9 | BL62: 12.8 | BM62: 21.85 | BO62: 1 | BP62: 1 | BQ62: 1 | BR62: 250 | BS62: 267 | BT62: 369 | BV62: 0 | BW62: 0 | BX62: 0 | BY62: 1 | BZ62: =IF(OR(EcoReviva!$L$6=10,EcoReviva!$L$6=15,EcoReviva!$L$6=20),1,IF(EcoReviva!$K$6<51,1,(1-(EcoReviva!$K$6-50)*0.005))) -> 1 | CN62: 0.8 | CO62: =CO$66-((CO$66-CO$61)*$CN62) -> 92% | CP62: =CP$66-((CP$66-CP$61)*$CN62) -> 74% | CQ62: 84% | CR62: 74% | CS62: 84% | CT62: 84% | CU62: =IF(#REF!/#REF!>data!CN$61,0,IF(#REF!/#REF!=data!CN$61,data!CP$61,IF(#REF!/#REF!>data!CN$62,data!CP$62,IF(#REF!/#REF!>data!CN$63,data!CP$63,IF(#REF!/#REF!>data!CN$64,data!CP$64,IF(#REF!/#REF!>data!CN$65,data!CP$65,IF(#REF!/#REF!>data!CN$66,data!CP$66,IF(#REF!/#REF!=data!CN$66,1,)))))))) ->  | CV62: T11 | DF62: 215 | DG62: =BJ16 ->  | DH62: =ROUND(IF($BZ$2=1,U16,IF($BZ$2=2,U16*3.412141633,)),0) ->  | DI62: =IF($BZ$2=1,ROUND(Y16,0),IF($BZ$2=2,ROUND(Y16/272.7654,1),)) ->  | DJ62: =IF($BZ$2=1,AC16,IF($BZ$2=2,AC16*0.3346,)) ->  | DN62: 0.0 | DO62: 0.0 | DP62: 0.0 | DQ62: =IF($BZ$2=1,AZ16,IF($BZ$2=2,AZ16/4.54609,)) -> 
A63: 15010516 | D63: 1 | E63: 50 | F63: 105 | G63: 16 | H63: 15.9 | I63: 0 | J63: 26 | K63: 30 | L63: 44.1 | M63: 1420 | N63: 2850 | O63: 3051 | P63: 4207 | Q63: 1.5 | R63: 1.1 | S63: 1.1 | T63: 1.1 | U63: 175 | V63: 613 | W63: 657 | X63: 905 | Y63: 30 | Z63: 105 | AA63: 113 | AB63: 156 | AC63: 0.01 | AD63: 0.17 | AE63: 0.20 | AF63: 0.38 | AG63: 0.0002083 | AH63: 1.724 | AI63: 4 | AJ63: 0.001392796 | AK63: 408 | AL63: 437 | AM63: 602 | AN63: 0.95 | AO63: 0.95 | AP63: 0.95 | AQ63: 408 | AR63: 437 | AS63: 602 | AT63: 175 | AU63: 188 | AV63: 259 | AW63: 0.47 | AX63: 0.54 | AY63: 1.02 | AZ63: 2.1 | BA63: 7.9 | BB63: 8.8 | BC63: 12.5 | BE63: 2088 | BG63: 68% | BJ63: 0 | BK63: 10.9 | BL63: 12.8 | BM63: 21.85 | BO63: 1 | BP63: 1 | BQ63: 1 | BR63: 408 | BS63: 437 | BT63: 602 | BV63: 0 | BW63: 0 | BX63: 0 | BY63: 1 | BZ63: =IF(OR(EcoReviva!$L$6=10,EcoReviva!$L$6=15,EcoReviva!$L$6=20),1,IF(EcoReviva!$K$6<51,1,(1-(EcoReviva!$K$6-50)*0.005))) -> 1 | CN63: 0.6 | CO63: =CO$66-((CO$66-CO$61)*$CN63) -> 94% | CP63: 81% | CQ63: 88% | CR63: 81% | CS63: 88% | CT63: 88% | CU63: =IF(#REF!/#REF!>data!CN$61,0,IF(#REF!/#REF!=data!CN$61,data!CQ$61,IF(#REF!/#REF!>data!CN$62,data!CQ$62,IF(#REF!/#REF!>data!CN$63,data!CQ$63,IF(#REF!/#REF!>data!CN$64,data!CQ$64,IF(#REF!/#REF!>data!CN$65,data!CQ$65,IF(#REF!/#REF!>data!CN$66,data!CQ$66,IF(#REF!/#REF!=data!CN$66,1,)))))))) ->  | CV63: T15 | DF63: =DF62 -> 215 | DG63: =BK16 ->  | DH63: =ROUND(IF($BZ$2=1,V16,IF($BZ$2=2,V16*3.412141633,)),0) ->  | DI63: =IF($BZ$2=1,ROUND(Z16,0),IF($BZ$2=2,ROUND(Z16/272.7654,1),)) ->  | DJ63: =IF($BZ$2=1,AD16,IF($BZ$2=2,AD16*0.3346,)) ->  | DK63: =IF(BY16=1,ROUND(IF($BZ$2=1,AQ16,IF($BZ$2=2,AQ16*3.412141633,)),0),"") ->  | DL63: =IF(BY16=1,IF($BZ$2=1,ROUND(AT16,0),IF($BZ$2=2,ROUND(AT16/272.7654,1),)),"") ->  | DM63: =IF(BY16=1,IF($BZ$2=1,AW16,IF($BZ$2=2,AW16*0.3346,)),"") ->  | DN63: =J16 ->  | DP63: =BA16 ->  | DQ63: =DQ62 -> 
A64: 15010520 | D64: 1 | E64: 50 | F64: 105 | G64: 20 | H64: 20.9 | I64: 0 | J64: 26 | K64: 30 | L64: 44.1 | M64: 2134 | N64: 2693 | O64: 2901 | P64: 3561 | Q64: 1.5 | R64: 1.08 | S64: 1.08 | T64: 1.08 | U64: 263 | V64: 596 | W64: 642 | X64: 788 | Y64: 45 | Z64: 103 | AA64: 110 | AB64: 136 | AC64: 0.01 | AD64: 0.05 | AE64: 0.05 | AF64: 0.08 | AG64: 0.0001276 | AH64: 1.7219 | AI64: 2 | AJ64: 0.000376611 | AK64: 317 | AL64: 342 | AM64: 419 | AN64: 0.95 | AO64: 0.95 | AP64: 0.95 | AQ64: 317 | AR64: 342 | AS64: 419 | AT64: 136 | AU64: 147 | AV64: 180 | AW64: 0.08 | AX64: 0.09 | AY64: 0.14 | AZ64: 1.4 | BA64: 7.9 | BB64: 8.8 | BC64: 12.5 | BE64: 2668 | BG64: 80% | BJ64: 0 | BK64: 10.9 | BL64: 12.8 | BM64: 21.85 | BO64: 1 | BP64: 1 | BQ64: 1 | BR64: 317 | BS64: 342 | BT64: 419 | BV64: 0 | BW64: 0 | BX64: 0 | BY64: 1 | BZ64: =IF(OR(EcoReviva!$L$6=10,EcoReviva!$L$6=15,EcoReviva!$L$6=20),1,IF(EcoReviva!$K$6<51,1,(1-(EcoReviva!$K$6-50)*0.005))) -> 1 | CN64: 0.4 | CO64: 96% | CP64: 87% | CQ64: 92% | CR64: 87% | CS64: 92% | CT64: 92% | CU64: =IF(#REF!/#REF!>data!CN$61,0,IF(#REF!/#REF!=data!CN$61,data!CR$61,IF(#REF!/#REF!>data!CN$62,data!CR$62,IF(#REF!/#REF!>data!CN$63,data!CR$63,IF(#REF!/#REF!>data!CN$64,data!CR$64,IF(#REF!/#REF!>data!CN$65,data!CR$65,IF(#REF!/#REF!>data!CN$66,data!CR$66,IF(#REF!/#REF!=data!CN$66,1,)))))))) ->  | CV64: T16 | DF64: =DF62 -> 215 | DG64: =BL16 ->  | DH64: =ROUND(IF($BZ$2=1,W16,IF($BZ$2=2,W16*3.412141633,)),0) ->  | DI64: =IF($BZ$2=1,ROUND(AA16,0),IF($BZ$2=2,ROUND(AA16/272.7654,1),)) ->  | DJ64: =IF($BZ$2=1,AE16,IF($BZ$2=2,AE16*0.3346,)) ->  | DK64: =IF(BY16=1,ROUND(IF($BZ$2=1,AR16,IF($BZ$2=2,AR16*3.412141633,)),0),"") ->  | DL64: =IF(BY16=1,IF($BZ$2=1,ROUND(AU16,0),IF($BZ$2=2,ROUND(AU16/272.7654,1),)),"") ->  | DM64: =IF(BY16=1,IF($BZ$2=1,AX16,IF($BZ$2=2,AX16*0.3346,)),"") ->  | DN64: =K16 ->  | DP64: =BB16 ->  | DQ64: =DQ62 -> 
A65: 15010521 | D65: 1 | E65: 50 | F65: 105 | G65: 21 | H65: 20.9 | I65: 0 | J65: 26 | K65: 30 | L65: 44.1 | M65: 2272 | N65: 3556 | O65: 3808 | P65: 5249 | Q65: 1.5 | R65: 1.05 | S65: 1.05 | T65: 1.05 | U65: 280 | V65: 821 | W65: 879 | X65: 1211 | Y65: 48 | Z65: 141 | AA65: 151 | AB65: 208 | AC65: 0.02 | AD65: 0.12 | AE65: 0.14 | AF65: 0.26 | AG65: 0.0001276 | AH65: 1.7219 | AI65: 4 | AJ65: 0.000514201 | AK65: 446 | AL65: 477 | AM65: 658 | AN65: 0.85 | AO65: 0.85 | AP65: 0.85 | AQ65: 446 | AR65: 477 | AS65: 658 | AT65: 192 | AU65: 205 | AV65: 283 | AW65: 0.22 | AX65: 0.26 | AY65: 0.48 | AZ65: 2.8 | BA65: 7.9 | BB65: 8.8 | BC65: 12.5 | BE65: 2840 | BG65: 80% | BJ65: 0 | BK65: 10.9 | BL65: 12.8 | BM65: 21.85 | BO65: 1 | BP65: 1 | BQ65: 1 | BR65: 446 | BS65: 477 | BT65: 658 | BV65: 0 | BW65: 0 | BX65: 0 | BY65: 1 | BZ65: =IF(OR(EcoReviva!$L$6=10,EcoReviva!$L$6=15,EcoReviva!$L$6=20),1,IF(EcoReviva!$K$6<51,1,(1-(EcoReviva!$K$6-50)*0.005))) -> 1 | CN65: 0.2 | CO65: 98% | CP65: 94% | CQ65: 96% | CR65: 94% | CS65: 96% | CT65: 96% | CU65: =IF(#REF!/#REF!>data!CN$61,0,IF(#REF!/#REF!=data!CN$61,data!CS$61,IF(#REF!/#REF!>data!CN$62,data!CS$62,IF(#REF!/#REF!>data!CN$63,data!CS$63,IF(#REF!/#REF!>data!CN$64,data!CS$64,IF(#REF!/#REF!>data!CN$65,data!CS$65,IF(#REF!/#REF!>data!CN$66,data!CS$66,IF(#REF!/#REF!=data!CN$66,1,)))))))) ->  | CV65: T20 | DF65: =DF62 -> 215 | DG65: =BM16 ->  | DH65: =ROUND(IF($BZ$2=1,X16,IF($BZ$2=2,X16*3.412141633,)),0) ->  | DI65: =IF($BZ$2=1,ROUND(AB16,0),IF($BZ$2=2,ROUND(AB16/272.7654,1),)) ->  | DJ65: =IF($BZ$2=1,AF16,IF($BZ$2=2,AF16*0.3346,)) ->  | DK65: =IF(BY16=1,ROUND(IF($BZ$2=1,AS16,IF($BZ$2=2,AS16*3.412141633,)),0),"") ->  | DL65: =IF(BY16=1,IF($BZ$2=1,ROUND(AV16,0),IF($BZ$2=2,ROUND(AV16/272.7654,1),)),"") ->  | DM65: =IF(BY16=1,IF($BZ$2=1,AY16,IF($BZ$2=2,AY16*0.3346,)),"") ->  | DN65: =L16 ->  | DP65: =BC16 ->  | DQ65: =DQ62 -> 
A66: 15011510 | D66: 1 | E66: 50 | F66: 115 | G66: 10 | H66: 10.9 | I66: 0 | J66: 26 | K66: 30 | L66: 44.0 | M66: 1162 | N66: 1925 | O66: 2080 | P66: 2590 | Q66: 1.5 | R66: 1.08 | S66: 1.08 | T66: 1.08 | U66: 143 | V66: 426 | W66: 460 | X66: 573 | Y66: 25 | Z66: 73 | AA66: 79 | AB66: 99 | AC66: 0.00 | AD66: 0.03 | AE66: 0.04 | AF66: 0.06 | AG66: 0.0003969 | AH66: 1.7346 | AI66: 2 | AJ66: 0.000367347 | AK66: 267 | AL66: 288 | AM66: 359 | AN66: 0.98 | AO66: 0.98 | AP66: 0.98 | AQ66: 267 | AR66: 288 | AS66: 359 | AT66: 115 | AU66: 124 | AV66: 154 | AW66: 0.08 | AX66: 0.09 | AY66: 0.13 | AZ66: 0.8 | BA66: 8.9 | BB66: 9.9 | BC66: 14.8 | BE66: 1291 | BG66: 90% | BJ66: 0 | BK66: 11.8 | BL66: 13.7 | BM66: 21.85 | BO66: 1 | BP66: 1 | BQ66: 1 | BR66: 267 | BS66: 288 | BT66: 359 | BV66: 0 | BW66: 0 | BX66: 0 | BY66: 1 | BZ66: =IF(OR(EcoReviva!$L$6=10,EcoReviva!$L$6=15,EcoReviva!$L$6=20),1,IF(EcoReviva!$K$6<51,1,(1-(EcoReviva!$K$6-50)*0.005))) -> 1 | CN66: 0 | CO66: 100% | CP66: 100% | CQ66: 100% | CR66: 100% | CS66: 100% | CT66: 100% | CU66: =IF(#REF!/#REF!>data!CN$61,0,IF(#REF!/#REF!=data!CN$61,data!CT$61,IF(#REF!/#REF!>data!CN$62,data!CT$62,IF(#REF!/#REF!>data!CN$63,data!CT$63,IF(#REF!/#REF!>data!CN$64,data!CT$64,IF(#REF!/#REF!>data!CN$65,data!CT$65,IF(#REF!/#REF!>data!CN$66,data!CT$66,IF(#REF!/#REF!=data!CN$66,1,)))))))) ->  | CV66: T21 | DF66: 235 | DG66: =BJ17 ->  | DH66: =ROUND(IF($BZ$2=1,U17,IF($BZ$2=2,U17*3.412141633,)),0) ->  | DI66: =IF($BZ$2=1,ROUND(Y17,0),IF($BZ$2=2,ROUND(Y17/272.7654,1),)) ->  | DJ66: =IF($BZ$2=1,AC17,IF($BZ$2=2,AC17*0.3346,)) ->  | DN66: 0.0 | DO66: 0.0 | DP66: 0.0 | DQ66: =IF($BZ$2=1,AZ17,IF($BZ$2=2,AZ17/4.54609,)) -> 
A67: 15011511 | D67: 1 | E67: 50 | F67: 115 | G67: 11 | H67: 10.9 | I67: 0 | J67: 26 | K67: 30 | L67: 44.0 | M67: 1131 | N67: 2612 | O67: 2822 | P67: 3514 | Q67: 1.5 | R67: 1.1 | S67: 1.1 | T67: 1.1 | U67: 139 | V67: 562 | W67: 607 | X67: 756 | Y67: 24 | Z67: 97 | AA67: 104 | AB67: 130 | AC67: 0.01 | AD67: 0.10 | AE67: 0.11 | AF67: 0.17 | AG67: 0.0003969 | AH67: 1.7346 | AI67: 4 | AJ67: 0.000574288 | AK67: 437 | AL67: 473 | AM67: 589 | AN67: 0.95 | AO67: 0.95 | AP67: 0.95 | AQ67: 437 | AR67: 473 | AS67: 589 | AT67: 188 | AU67: 203 | AV67: 253 | AW67: 0.34 | AX67: 0.39 | AY67: 0.59 | AZ67: 1.5 | BA67: 8.9 | BB67: 9.9 | BC67: 14.8 | BE67: 1663 | BG67: 68% | BJ67: 0 | BK67: 11.8 | BL67: 13.7 | BM67: 21.85 | BO67: 1 | BP67: 1 | BQ67: 1 | BR67: 437 | BS67: 473 | BT67: 589 | BV67: 0 | BW67: 0 | BX67: 0 | BY67: 1 | BZ67: =IF(OR(EcoReviva!$L$6=10,EcoReviva!$L$6=15,EcoReviva!$L$6=20),1,IF(EcoReviva!$K$6<51,1,(1-(EcoReviva!$K$6-50)*0.005))) -> 1 | DF67: =DF66 -> 235 | DG67: =BK17 ->  | DH67: =ROUND(IF($BZ$2=1,V17,IF($BZ$2=2,V17*3.412141633,)),0) ->  | DI67: =IF($BZ$2=1,ROUND(Z17,0),IF($BZ$2=2,ROUND(Z17/272.7654,1),)) ->  | DJ67: =IF($BZ$2=1,AD17,IF($BZ$2=2,AD17*0.3346,)) ->  | DK67: =IF(BY17=1,ROUND(IF($BZ$2=1,AQ17,IF($BZ$2=2,AQ17*3.412141633,)),0),"") ->  | DL67: =IF(BY17=1,IF($BZ$2=1,ROUND(AT17,0),IF($BZ$2=2,ROUND(AT17/272.7654,1),)),"") ->  | DM67: =IF(BY17=1,IF($BZ$2=1,AW17,IF($BZ$2=2,AW17*0.3346,)),"") ->  | DN67: =J17 ->  | DP67: =BA17 ->  | DQ67: =DQ66 -> 
A68: 15011515 | D68: 1 | E68: 50 | F68: 115 | G68: 15 | H68: 15.9 | I68: 0 | J68: 26 | K68: 30 | L68: 44.8 | M68: 1665 | N68: 2217 | O68: 2374 | P68: 3303 | Q68: 1.5 | R68: =IF($G68=10,1.08,IF($G68=11,1.1,IF($G68=15,1.08,IF($G68=16,1.1,IF($G68=20,1.08,IF($G68=21,1.05)))))) -> 1.08 | S68: 1.08 | T68: 1.08 | U68: 205 | V68: 491 | W68: 525 | X68: 731 | Y68: 35 | Z68: 84 | AA68: 90 | AB68: 126 | AC68: 0.01 | AD68: 0.04 | AE68: 0.05 | AF68: 0.09 | AG68: 0.0002083 | AH68: 1.724 | AI68: 2 | AJ68: 0.000461829 | AK68: 303 | AL68: 324 | AM68: 451 | AN68: =IF($G68=10,0.98,IF($G68=11,0.95,IF($G68=15,1.01,IF($G68=16,0.95,IF($G68=20,0.95,IF($G68=21,0.85)))))) -> 1.01 | AO68: 1.01 | AP68: 1.01 | AQ68: 303 | AR68: 324 | AS68: 451 | AT68: 130 | AU68: 139 | AV68: 194 | AW68: 0.09 | AX68: 0.11 | AY68: 0.21 | AZ68: 1.2 | BA68: 8.7 | BB68: 9.8 | BC68: 14.3 | BE68: 2081 | BG68: 80% | BJ68: 0 | BK68: 10.6 | BL68: 12.5 | BM68: 21.85 | BO68: =IF((237.3*LN(($AQ$1*EXP(17.27*($AM$3/($AM$3+237.3))))))/(17.27-LN(($AQ$1*EXP(17.27*($AM$3/($AM$3+237.3))))))<(($AM$1+$AM$2)/2),1,IF(1/(1+((2258*((0.622/((101325/(1*611*EXP(17.27*((($AM$1+$AM$2)/2)/((($AM$1+$AM$2)/2)+237.3))))))-1)*1000-(0.622/((101325/($AQ$1*611*EXP(17.27*($AM$3/($AM$3+237.3))))))-1)*1000))/(1005*((($AM$1+$AM$2)/2)-$AM$3))))>1,1,1/(1+((2258*((0.622/((101325/(1*611*EXP(17.27*((($AM$1+$AM$2)/2)/((($AM$1+$AM$2)/2)+237.3))))))-1)*1000-(0.622/((101325/($AQ$1*611*EXP(17.27*($AM$3/($AM$3+237.3))))))-1)*1000))/(1005*((($AM$1+$AM$2)/2)-$AM$3)))))) -> 1 | BP68: 1 | BQ68: 1 | BR68: 303 | BS68: 324 | BT68: 451 | BV68: 0 | BW68: 0 | BX68: 0 | BY68: 1 | BZ68: =IF(OR(EcoReviva!$L$6=10,EcoReviva!$L$6=15,EcoReviva!$L$6=20),1,IF(EcoReviva!$K$6<51,1,(1-(EcoReviva!$K$6-50)*0.005))) -> 1 | DF68: =DF66 -> 235 | DG68: =BL17 ->  | DH68: =ROUND(IF($BZ$2=1,W17,IF($BZ$2=2,W17*3.412141633,)),0) ->  | DI68: =IF($BZ$2=1,ROUND(AA17,0),IF($BZ$2=2,ROUND(AA17/272.7654,1),)) ->  | DJ68: =IF($BZ$2=1,AE17,IF($BZ$2=2,AE17*0.3346,)) ->  | DK68: =IF(BY17=1,ROUND(IF($BZ$2=1,AR17,IF($BZ$2=2,AR17*3.412141633,)),0),"") ->  | DL68: =IF(BY17=1,IF($BZ$2=1,ROUND(AU17,0),IF($BZ$2=2,ROUND(AU17/272.7654,1),)),"") ->  | DM68: =IF(BY17=1,IF($BZ$2=1,AX17,IF($BZ$2=2,AX17*0.3346,)),"") ->  | DN68: =K17 ->  | DP68: =BB17 ->  | DQ68: =DQ66 -> 
A69: 15011516 | D69: 1 | E69: 50 | F69: 115 | G69: 16 | H69: 15.9 | I69: 0 | J69: 26 | K69: 30 | L69: 44.8 | M69: 1549 | N69: 3242 | O69: 3472 | P69: 4830 | Q69: 1.5 | R69: 1.1 | S69: 1.1 | T69: 1.1 | U69: 191 | V69: 698 | W69: 747 | X69: 1039 | Y69: 33 | Z69: 120 | AA69: 128 | AB69: 179 | AC69: 0.02 | AD69: 0.23 | AE69: 0.26 | AF69: 0.50 | AG69: 0.0002083 | AH69: 1.724 | AI69: 4 | AJ69: 0.001392796 | AK69: 496 | AL69: 532 | AM69: 740 | AN69: 0.95 | AO69: 0.95 | AP69: 0.95 | AQ69: 496 | AR69: 532 | AS69: 740 | AT69: 213 | AU69: 229 | AV69: 318 | AW69: 0.70 | AX69: 0.81 | AY69: 1.55 | AZ69: 2.3 | BA69: 8.7 | BB69: 9.8 | BC69: 14.3 | BE69: 2278 | BG69: 68% | BJ69: 0 | BK69: 10.6 | BL69: 12.5 | BM69: 21.85 | BO69: 1 | BP69: 1 | BQ69: 1 | BR69: 496 | BS69: 532 | BT69: 740 | BV69: 0 | BW69: 0 | BX69: 0 | BY69: 1 | BZ69: =IF(OR(EcoReviva!$L$6=10,EcoReviva!$L$6=15,EcoReviva!$L$6=20),1,IF(EcoReviva!$K$6<51,1,(1-(EcoReviva!$K$6-50)*0.005))) -> 1 | DF69: =DF66 -> 235 | DG69: =BM17 ->  | DH69: =ROUND(IF($BZ$2=1,X17,IF($BZ$2=2,X17*3.412141633,)),0) ->  | DI69: =IF($BZ$2=1,ROUND(AB17,0),IF($BZ$2=2,ROUND(AB17/272.7654,1),)) ->  | DJ69: =IF($BZ$2=1,AF17,IF($BZ$2=2,AF17*0.3346,)) ->  | DK69: =IF(BY17=1,ROUND(IF($BZ$2=1,AS17,IF($BZ$2=2,AS17*3.412141633,)),0),"") ->  | DL69: =IF(BY17=1,IF($BZ$2=1,ROUND(AV17,0),IF($BZ$2=2,ROUND(AV17/272.7654,1),)),"") ->  | DM69: =IF(BY17=1,IF($BZ$2=1,AY17,IF($BZ$2=2,AY17*0.3346,)),"") ->  | DN69: =L17 ->  | DP69: =BC17 ->  | DQ69: =DQ66 -> 
A70: 15011520 | D70: 1 | E70: 50 | F70: 115 | G70: 20 | H70: 20.9 | I70: 0 | J70: 26 | K70: 30 | L70: 44.8 | M70: 2328 | N70: 3080 | O70: 3327 | P70: 4143 | Q70: 1.5 | R70: 1.08 | S70: 1.08 | T70: 1.08 | U70: 287 | V70: 682 | W70: 736 | X70: 917 | Y70: 49 | Z70: 117 | AA70: 127 | AB70: 158 | AC70: 0.01 | AD70: 0.06 | AE70: 0.07 | AF70: 0.11 | AG70: 0.0001276 | AH70: 1.7219 | AI70: 2 | AJ70: 0.000376611 | AK70: 381 | AL70: 411 | AM70: 512 | AN70: 0.95 | AO70: 0.95 | AP70: 0.95 | AQ70: 381 | AR70: 411 | AS70: 512 | AT70: 164 | AU70: 177 | AV70: 220 | AW70: 0.12 | AX70: 0.13 | AY70: 0.21 | AZ70: 1.5 | BA70: 8.7 | BB70: 9.8 | BC70: 14.3 | BE70: 2910 | BG70: 80% | BJ70: 0 | BK70: 10.6 | BL70: 12.5 | BM70: 21.85 | BO70: 1 | BP70: 1 | BQ70: 1 | BR70: 381 | BS70: 411 | BT70: 512 | BV70: 0 | BW70: 0 | BX70: 0 | BY70: 1 | BZ70: =IF(OR(EcoReviva!$L$6=10,EcoReviva!$L$6=15,EcoReviva!$L$6=20),1,IF(EcoReviva!$K$6<51,1,(1-(EcoReviva!$K$6-50)*0.005))) -> 1 | CN70: Lengths | CO70: Calculation factors for lower fan settings | DF70: 240 | DG70: =BJ18 -> 0.0 | DH70: =ROUND(IF($BZ$2=1,U18,IF($BZ$2=2,U18*3.412141633,)),0) -> 0 | DI70: =IF($BZ$2=1,ROUND(Y18,0),IF($BZ$2=2,ROUND(Y18/272.7654,1),)) -> 0 | DJ70: =IF($BZ$2=1,AC18,IF($BZ$2=2,AC18*0.3346,)) -> 0.00 | DN70: 0.0 | DO70: 0.0 | DP70: 0.0 | DQ70: =IF($BZ$2=1,AZ18,IF($BZ$2=2,AZ18/4.54609,)) -> 0.0
A71: 15011521 | D71: 1 | E71: 50 | F71: 115 | G71: 21 | H71: 20.9 | I71: 0 | J71: 26 | K71: 30 | L71: 44.8 | M71: 2478 | N71: 4175 | O71: 4471 | P71: 6220 | Q71: 1.5 | R71: 1.05 | S71: 1.05 | T71: 1.05 | U71: 305 | V71: 963 | W71: 1032 | X71: 1435 | Y71: 52 | Z71: 166 | AA71: 178 | AB71: 247 | AC71: 0.02 | AD71: 0.17 | AE71: 0.20 | AF71: 0.37 | AG71: 0.0001276 | AH71: 1.7219 | AI71: 4 | AJ71: 0.000514201 | AK71: 542 | AL71: 580 | AM71: 807 | AN71: 0.85 | AO71: 0.85 | AP71: 0.85 | AQ71: 542 | AR71: 580 | AS71: 807 | AT71: 233 | AU71: 249 | AV71: 347 | AW71: 0.33 | AX71: 0.38 | AY71: 0.73 | AZ71: 3.1 | BA71: 8.7 | BB71: 9.8 | BC71: 14.3 | BE71: 3098 | BG71: 80% | BJ71: 0 | BK71: 10.6 | BL71: 12.5 | BM71: 21.85 | BO71: 1 | BP71: 1 | BQ71: 1 | BR71: 542 | BS71: 580 | BT71: 807 | BV71: 0 | BW71: 0 | BX71: 0 | BY71: 1 | BZ71: =IF(OR(EcoReviva!$L$6=10,EcoReviva!$L$6=15,EcoReviva!$L$6=20),1,IF(EcoReviva!$K$6<51,1,(1-(EcoReviva!$K$6-50)*0.005))) -> 1 | CO71: T10 | CQ71: T11 | CS71: T15 | CU71: T16 | CW71: T20 | CY71: T21 | DF71: =DF70 -> 240 | DG71: =BK18 -> 0.0 | DH71: =ROUND(IF($BZ$2=1,V18,IF($BZ$2=2,V18*3.412141633,)),0) -> 0 | DI71: =IF($BZ$2=1,ROUND(Z18,0),IF($BZ$2=2,ROUND(Z18/272.7654,1),)) -> 0 | DJ71: =IF($BZ$2=1,AD18,IF($BZ$2=2,AD18*0.3346,)) -> 0.00 | DK71: =IF(BY18=1,ROUND(IF($BZ$2=1,AQ18,IF($BZ$2=2,AQ18*3.412141633,)),0),"") ->  | DL71: =IF(BY18=1,IF($BZ$2=1,ROUND(AT18,0),IF($BZ$2=2,ROUND(AT18/272.7654,1),)),"") ->  | DM71: =IF(BY18=1,IF($BZ$2=1,AW18,IF($BZ$2=2,AW18*0.3346,)),"") ->  | DN71: =J18 -> 0.0 | DO71: =DN71+8 -> 8.0 | DP71: =IF($CB$9=2,"",BA57) -> 7.0 | DQ71: =DQ70 -> 0.0
A72: 15013510 | D72: 1 | E72: 50 | F72: 135 | G72: 10 | H72: 10.9 | I72: 0 | J72: 26 | K72: 30 | L72: 44.8 | M72: 1355 | N72: 2268 | O72: 2456 | P72: 3098 | Q72: 1.5 | R72: 1.08 | S72: 1.08 | T72: 1.08 | U72: 167 | V72: 502 | W72: 544 | X72: 685 | Y72: 29 | Z72: 86 | AA72: 94 | AB72: 118 | AC72: 0.01 | AD72: 0.05 | AE72: 0.06 | AF72: 0.09 | AG72: 0.0003969 | AH72: 1.7346 | AI72: 2 | AJ72: 0.000367347 | AK72: 314 | AL72: 341 | AM72: 429 | AN72: 0.98 | AO72: 0.98 | AP72: 0.98 | AQ72: 314 | AR72: 341 | AS72: 429 | AT72: 135 | AU72: 147 | AV72: 184 | AW72: 0.11 | AX72: 0.13 | AY72: 0.20 | AZ72: 0.9 | BA72: 10.1 | BB72: 11.2 | BC72: 17.5 | BE72: 1506 | BG72: 90% | BJ72: 0 | BK72: 11.5 | BL72: 13.3 | BM72: 21.85 | BO72: 1 | BP72: 1 | BQ72: 1 | BR72: 314 | BS72: 341 | BT72: 429 | BV72: 0 | BW72: 0 | BX72: 0 | BY72: 1 | BZ72: =IF(OR(EcoReviva!$L$6=10,EcoReviva!$L$6=15,EcoReviva!$L$6=20),1,IF(EcoReviva!$K$6<51,1,(1-(EcoReviva!$K$6-50)*0.005))) -> 1 | CO72: S2 | CP72: S1 | CQ72: S2 | CR72: S1 | CS72: S2 | CT72: S1 | CU72: S2 | CV72: S1 | CW72: S2 | CX72: S1 | CY72: S2 | CZ72: S1 | DF72: =DF70 -> 240 | DG72: =BL18 -> 0.0 | DH72: =ROUND(IF($BZ$2=1,W18,IF($BZ$2=2,W18*3.412141633,)),0) -> 0 | DI72: =IF($BZ$2=1,ROUND(AA18,0),IF($BZ$2=2,ROUND(AA18/272.7654,1),)) -> 0 | DJ72: =IF($BZ$2=1,AE18,IF($BZ$2=2,AE18*0.3346,)) -> 0.00 | DK72: =IF(BY18=1,ROUND(IF($BZ$2=1,AR18,IF($BZ$2=2,AR18*3.412141633,)),0),"") ->  | DL72: =IF(BY18=1,IF($BZ$2=1,ROUND(AU18,0),IF($BZ$2=2,ROUND(AU18/272.7654,1),)),"") ->  | DM72: =IF(BY18=1,IF($BZ$2=1,AX18,IF($BZ$2=2,AX18*0.3346,)),"") ->  | DN72: =K18 -> 0.0 | DO72: =DN72+8 -> 8.0 | DP72: =IF($CB$9=2,"",BA58) -> 7.0 | DQ72: =DQ70 -> 0.0
A73: 15013511 | D73: 1 | E73: 50 | F73: 135 | G73: 11 | H73: 10.9 | I73: 0 | J73: 26 | K73: 30 | L73: 44.8 | M73: 1319 | N73: 3077 | O73: 3333 | P73: 4203 | Q73: 1.5 | R73: 1.1 | S73: 1.1 | T73: 1.1 | U73: 162 | V73: 662 | W73: 717 | X73: 904 | Y73: 28 | Z73: 114 | AA73: 123 | AB73: 155 | AC73: 0.01 | AD73: 0.14 | AE73: 0.16 | AF73: 0.25 | AG73: 0.0003969 | AH73: 1.7346 | AI73: 4 | AJ73: 0.000574288 | AK73: 515 | AL73: 558 | AM73: 704 | AN73: 0.95 | AO73: 0.95 | AP73: 0.95 | AQ73: 515 | AR73: 558 | AS73: 704 | AT73: 221 | AU73: 240 | AV73: 303 | AW73: 0.49 | AX73: 0.58 | AY73: 0.89 | AZ73: 1.8 | BA73: 10.1 | BB73: 11.2 | BC73: 17.5 | BE73: 1940 | BG73: 68% | BJ73: 0 | BK73: 11.5 | BL73: 13.3 | BM73: 21.85 | BO73: 1 | BP73: 1 | BQ73: 1 | BR73: 515 | BS73: 558 | BT73: 704 | BV73: 0 | BW73: 0 | BX73: 0 | BY73: 1 | BZ73: =IF(OR(EcoReviva!$L$6=10,EcoReviva!$L$6=15,EcoReviva!$L$6=20),1,IF(EcoReviva!$K$6<51,1,(1-(EcoReviva!$K$6-50)*0.005))) -> 1 | CN73: 50 | CO73: 0.8551869613 | CP73: 0.7991842972 | CQ73: 0.8551869613 | CR73: 0.7991842972 | DF73: =DF70 -> 240 | DG73: =BM18 -> 0.0 | DH73: =ROUND(IF($BZ$2=1,X18,IF($BZ$2=2,X18*3.412141633,)),0) -> 0 | DI73: =IF($BZ$2=1,ROUND(AB18,0),IF($BZ$2=2,ROUND(AB18/272.7654,1),)) -> 0 | DJ73: =IF($BZ$2=1,AF18,IF($BZ$2=2,AF18*0.3346,)) -> 0.00 | DK73: =IF(BY18=1,ROUND(IF($BZ$2=1,AS18,IF($BZ$2=2,AS18*3.412141633,)),0),"") ->  | DL73: =IF(BY18=1,IF($BZ$2=1,ROUND(AV18,0),IF($BZ$2=2,ROUND(AV18/272.7654,1),)),"") ->  | DM73: =IF(BY18=1,IF($BZ$2=1,AY18,IF($BZ$2=2,AY18*0.3346,)),"") ->  | DN73: =L18 -> 0.0 | DO73: =DN73+8 -> 8.0 | DP73: 7.0 | DQ73: =DQ70 -> 0.0
A74: 15013515 | D74: 1 | E74: 50 | F74: 135 | G74: 15 | H74: 15.9 | I74: 0 | J74: 26 | K74: 30 | L74: 45.4 | M74: 1942 | N74: 2629 | O74: 2815 | P74: 3950 | Q74: 1.5 | R74: 1.08 | S74: 1.08 | T74: 1.08 | U74: 239 | V74: 582 | W74: 623 | X74: 874 | Y74: 41 | Z74: 100 | AA74: 107 | AB74: 150 | AC74: 0.01 | AD74: 0.06 | AE74: 0.07 | AF74: 0.13 | AG74: 0.0002083 | AH74: 1.724 | AI74: 2 | AJ74: 0.000461829 | AK74: 359 | AL74: 384 | AM74: 539 | AN74: 1.01 | AO74: 1.01 | AP74: 1.01 | AQ74: 359 | AR74: 384 | AS74: 539 | AT74: 154 | AU74: 165 | AV74: 232 | AW74: 0.14 | AX74: 0.16 | AY74: 0.30 | AZ74: 1.4 | BA74: 9.6 | BB74: 10.5 | BC74: 16.1 | BE74: 2428 | BG74: 80% | BJ74: 0 | BK74: 10.4 | BL74: 12.2 | BM74: 21.85 | BO74: 1 | BP74: 1 | BQ74: 1 | BR74: 359 | BS74: 384 | BT74: 539 | BV74: 0 | BW74: 0 | BX74: 0 | BY74: 1 | BZ74: =IF(OR(EcoReviva!$L$6=10,EcoReviva!$L$6=15,EcoReviva!$L$6=20),1,IF(EcoReviva!$K$6<51,1,(1-(EcoReviva!$K$6-50)*0.005))) -> 1 | CN74: 60 | CO74: 0.8452517015 | CP74: 0.7892986148 | CQ74: 0.8452517015 | CR74: 0.7892986148 | CS74: 0.7555553481 | CT74: 0.7038387773 | CU74: 0.7555553481 | CV74: 0.7038387773 | CW74: 0.8452517015 | CX74: 0.7892986148 | CY74: 0.7555553481 | CZ74: 0.7038387773 | DF74: 260 | DG74: =BJ19 -> 0.0 | DH74: =ROUND(IF($BZ$2=1,U19,IF($BZ$2=2,U19*3.412141633,)),0) -> 0 | DI74: =IF($BZ$2=1,ROUND(Y19,0),IF($BZ$2=2,ROUND(Y19/272.7654,1),)) -> 0 | DJ74: =IF($BZ$2=1,AC19,IF($BZ$2=2,AC19*0.3346,)) -> 0.00 | DN74: 0.0 | DO74: 0.0 | DP74: 0.0 | DQ74: =IF($BZ$2=1,AZ19,IF($BZ$2=2,AZ19/4.54609,)) -> 0.0
A75: 15013516 | D75: 1 | E75: 50 | F75: 135 | G75: 16 | H75: 15.9 | I75: 0 | J75: 26 | K75: 30 | L75: 45.4 | M75: 1807 | N75: 3844 | O75: 4117 | P75: 5777 | Q75: 1.5 | R75: 1.1 | S75: 1.1 | T75: 1.1 | U75: 222 | V75: 827 | W75: 886 | X75: 1243 | Y75: 38 | Z75: 142 | AA75: 152 | AB75: 214 | AC75: 0.02 | AD75: 0.33 | AE75: 0.37 | AF75: 0.73 | AG75: 0.0002083 | AH75: 1.724 | AI75: 4 | AJ75: 0.001392796 | AK75: 589 | AL75: 630 | AM75: 885 | AN75: 0.95 | AO75: 0.95 | AP75: 0.95 | AQ75: 589 | AR75: 630 | AS75: 885 | AT75: 253 | AU75: 271 | AV75: 381 | AW75: 1.01 | AX75: 1.16 | AY75: 2.26 | AZ75: 2.7 | BA75: 9.6 | BB75: 10.5 | BC75: 16.1 | BE75: 2657 | BG75: 68% | BJ75: 0 | BK75: 10.4 | BL75: 12.2 | BM75: 21.85 | BO75: 1 | BP75: 1 | BQ75: 1 | BR75: 589 | BS75: 630 | BT75: 885 | BV75: 0 | BW75: 0 | BX75: 0 | BY75: 1 | BZ75: =IF(OR(EcoReviva!$L$6=10,EcoReviva!$L$6=15,EcoReviva!$L$6=20),1,IF(EcoReviva!$K$6<51,1,(1-(EcoReviva!$K$6-50)*0.005))) -> 1 | CN75: 70 | CO75: 0.8364028567 | CP75: 0.7799409144 | CQ75: 0.8364028567 | CR75: 0.7799409144 | CS75: 0.7555553481 | CT75: 0.7038387773 | CU75: 0.7555553481 | CV75: 0.7038387773 | CW75: 0.8364028567 | CX75: 0.7799409144 | CY75: 0.7555553481 | CZ75: 0.7038387773 | DF75: =DF74 -> 260 | DG75: =BK19 -> 0.0 | DH75: =ROUND(IF($BZ$2=1,V19,IF($BZ$2=2,V19*3.412141633,)),0) -> 0 | DI75: =IF($BZ$2=1,ROUND(Z19,0),IF($BZ$2=2,ROUND(Z19/272.7654,1),)) -> 0 | DJ75: =IF($BZ$2=1,AD19,IF($BZ$2=2,AD19*0.3346,)) -> 0.00 | DK75: =IF(BY19=1,ROUND(IF($BZ$2=1,AQ19,IF($BZ$2=2,AQ19*3.412141633,)),0),"") ->  | DL75: =IF(BY19=1,IF($BZ$2=1,ROUND(AT19,0),IF($BZ$2=2,ROUND(AT19/272.7654,1),)),"") ->  | DM75: =IF(BY19=1,IF($BZ$2=1,AW19,IF($BZ$2=2,AW19*0.3346,)),"") ->  | DN75: =J19 -> 0.0 | DO75: =DN75+8 -> 8.0 | DP75: =IF($CB$9=2,"",BA61) -> 8.4 | DQ75: =DQ74 -> 0.0
A76: 15013520 | D76: 1 | E76: 50 | F76: 135 | G76: 20 | H76: 20.9 | I76: 0 | J76: 26 | K76: 30 | L76: 45.4 | M76: 2716 | N76: 3628 | O76: 3929 | P76: 4956 | Q76: 1.5 | R76: 1.08 | S76: 1.08 | T76: 1.08 | U76: 334 | V76: 803 | W76: 870 | X76: 1097 | Y76: 57 | Z76: 138 | AA76: 150 | AB76: 189 | AC76: 0.02 | AD76: 0.08 | AE76: 0.10 | AF76: 0.16 | AG76: 0.0001276 | AH76: 1.7219 | AI76: 2 | AJ76: 0.000376611 | AK76: 448 | AL76: 486 | AM76: 612 | AN76: 0.95 | AO76: 0.95 | AP76: 0.95 | AQ76: 448 | AR76: 486 | AS76: 612 | AT76: 193 | AU76: 209 | AV76: 263 | AW76: 0.16 | AX76: 0.19 | AY76: 0.30 | AZ76: 1.8 | BA76: 9.6 | BB76: 10.5 | BC76: 16.1 | BE76: 3395 | BG76: 80% | BJ76: 0 | BK76: 10.4 | BL76: 12.2 | BM76: 21.85 | BO76: 1 | BP76: 1 | BQ76: 1 | BR76: 448 | BS76: 486 | BT76: 612 | BV76: 0 | BW76: 0 | BX76: 0 | BY76: 1 | BZ76: =IF(OR(EcoReviva!$L$6=10,EcoReviva!$L$6=15,EcoReviva!$L$6=20),1,IF(EcoReviva!$K$6<51,1,(1-(EcoReviva!$K$6-50)*0.005))) -> 1 | CN76: 80 | CO76: 0.8284588614 | CP76: 0.7713393602 | CQ76: 0.8284588614 | CR76: 0.7713393602 | CS76: 0.7453108993 | CT76: 0.6950414455 | CU76: 0.7453108993 | CV76: 0.6950414455 | CW76: 0.8284588614 | CX76: 0.7713393602 | CY76: 0.7453108993 | CZ76: 0.6950414455 | DF76: =DF74 -> 260 | DG76: =BL19 -> 0.0 | DH76: =ROUND(IF($BZ$2=1,W19,IF($BZ$2=2,W19*3.412141633,)),0) -> 0 | DI76: =IF($BZ$2=1,ROUND(AA19,0),IF($BZ$2=2,ROUND(AA19/272.7654,1),)) -> 0 | DJ76: =IF($BZ$2=1,AE19,IF($BZ$2=2,AE19*0.3346,)) -> 0.00 | DK76: =IF(BY19=1,ROUND(IF($BZ$2=1,AR19,IF($BZ$2=2,AR19*3.412141633,)),0),"") ->  | DL76: =IF(BY19=1,IF($BZ$2=1,ROUND(AU19,0),IF($BZ$2=2,ROUND(AU19/272.7654,1),)),"") ->  | DM76: =IF(BY19=1,IF($BZ$2=1,AX19,IF($BZ$2=2,AX19*0.3346,)),"") ->  | DN76: =K19 -> 0.0 | DO76: =DN76+8 -> 8.0 | DP76: 7.9 | DQ76: =DQ74 -> 0.0
A77: 15013521 | D77: 1 | E77: 50 | F77: 135 | G77: 21 | H77: 20.9 | I77: 0 | J77: 26 | K77: 30 | L77: 45.4 | M77: 2892 | N77: 4951 | O77: 5302 | P77: 7440 | Q77: 1.5 | R77: 1.05 | S77: 1.05 | T77: 1.05 | U77: 356 | V77: 1143 | W77: 1224 | X77: 1717 | Y77: 61 | Z77: 197 | AA77: 211 | AB77: 295 | AC77: 0.03 | AD77: 0.25 | AE77: 0.28 | AF77: 0.55 | AG77: 0.0001276 | AH77: 1.7219 | AI77: 4 | AJ77: 0.000514201 | AK77: 642 | AL77: 688 | AM77: 965 | AN77: 0.85 | AO77: 0.85 | AP77: 0.85 | AQ77: 642 | AR77: 688 | AS77: 965 | AT77: 276 | AU77: 296 | AV77: 415 | AW77: 0.48 | AX77: 0.55 | AY77: 1.06 | AZ77: 3.6 | BA77: 9.6 | BB77: 10.5 | BC77: 16.1 | BE77: 3615 | BG77: 80% | BJ77: 0 | BK77: 10.4 | BL77: 12.2 | BM77: 21.85 | BO77: 1 | BP77: 1 | BQ77: 1 | BR77: 642 | BS77: 688 | BT77: 965 | BV77: 0 | BW77: 0 | BX77: 0 | BY77: 1 | BZ77: =IF(OR(EcoReviva!$L$6=10,EcoReviva!$L$6=15,EcoReviva!$L$6=20),1,IF(EcoReviva!$K$6<51,1,(1-(EcoReviva!$K$6-50)*0.005))) -> 1 | CN77: 90 | CO77: 0.8212441545 | CP77: 0.7634388097 | CQ77: 0.8212441545 | CR77: 0.7634388097 | CS77: 0.7342980294 | CT77: 0.6854011254 | CU77: 0.7342980294 | CV77: 0.6854011254 | CW77: 0.8212441545 | CX77: 0.7634388097 | CY77: 0.7342980294 | CZ77: 0.6854011254 | DF77: =DF74 -> 260 | DG77: =BM19 -> 0.0 | DH77: =ROUND(IF($BZ$2=1,X19,IF($BZ$2=2,X19*3.412141633,)),0) -> 0 | DI77: =IF($BZ$2=1,ROUND(AB19,0),IF($BZ$2=2,ROUND(AB19/272.7654,1),)) -> 0 | DJ77: =IF($BZ$2=1,AF19,IF($BZ$2=2,AF19*0.3346,)) -> 0.00 | DK77: =IF(BY19=1,ROUND(IF($BZ$2=1,AS19,IF($BZ$2=2,AS19*3.412141633,)),0),"") ->  | DL77: =IF(BY19=1,IF($BZ$2=1,ROUND(AV19,0),IF($BZ$2=2,ROUND(AV19/272.7654,1),)),"") ->  | DM77: =IF(BY19=1,IF($BZ$2=1,AY19,IF($BZ$2=2,AY19*0.3346,)),"") ->  | DN77: =L19 -> 0.0 | DO77: =DN77+8 -> 8.0 | DP77: 7.9 | DQ77: =DQ74 -> 0.0
A78: 15015510 | D78: 1 | E78: 50 | F78: 155 | G78: 10 | H78: 10.9 | I78: 0 | J78: 26 | K78: 30 | L78: 45.5 | M78: 1550 | N78: 2604 | O78: 2827 | P78: 3605 | Q78: 1.5 | R78: 1.08 | S78: 1.08 | T78: 1.08 | U78: 191 | V78: 576 | W78: 626 | X78: 798 | Y78: 33 | Z78: 99 | AA78: 108 | AB78: 137 | AC78: 0.01 | AD78: 0.07 | AE78: 0.08 | AF78: 0.12 | AG78: 0.0003969 | AH78: 1.7346 | AI78: 2 | AJ78: 0.000367347 | AK78: 361 | AL78: 392 | AM78: 500 | AN78: 0.98 | AO78: 0.98 | AP78: 0.98 | AQ78: 361 | AR78: 392 | AS78: 500 | AT78: 155 | AU78: 169 | AV78: 215 | AW78: 0.16 | AX78: 0.18 | AY78: 0.29 | AZ78: 1.0 | BA78: 11 | BB78: 12.4 | BC78: 19.2 | BE78: 1722 | BG78: 90% | BJ78: 0 | BK78: 11.2 | BL78: 13 | BM78: 21.85 | BO78: 1 | BP78: 1 | BQ78: 1 | BR78: 361 | BS78: 392 | BT78: 500 | BV78: 0 | BW78: 0 | BX78: 0 | BY78: 1 | BZ78: =IF(OR(EcoReviva!$L$6=10,EcoReviva!$L$6=15,EcoReviva!$L$6=20),1,IF(EcoReviva!$K$6<51,1,(1-(EcoReviva!$K$6-50)*0.005))) -> 1 | CN78: 100 | CO78: 0.8146699661 | CP78: 0.7561986895 | CQ78: 0.8146699661 | CR78: 0.7561986895 | CS78: 0.7254135991 | CT78: 0.6774634004 | CU78: 0.7254135991 | CV78: 0.6774634004 | CW78: 0.8146699661 | CX78: 0.7561986895 | CY78: 0.7254135991 | CZ78: 0.6774634004 | DF78: 280 | DG78: =BJ20 -> 0.0 | DH78: =ROUND(IF($BZ$2=1,U20,IF($BZ$2=2,U20*3.412141633,)),0) -> 0 | DI78: =IF($BZ$2=1,ROUND(Y20,0),IF($BZ$2=2,ROUND(Y20/272.7654,1),)) -> 0 | DJ78: =IF($BZ$2=1,AC20,IF($BZ$2=2,AC20*0.3346,)) -> 0.00 | DN78: 0.0 | DO78: 0.0 | DP78: 0.0 | DQ78: =IF($BZ$2=1,AZ20,IF($BZ$2=2,AZ20/4.54609,)) -> 0.0
A79: 15015511 | D79: 1 | E79: 50 | F79: 155 | G79: 11 | H79: 10.9 | I79: 0 | J79: 26 | K79: 30 | L79: 45.5 | M79: 1508 | N79: 3533 | O79: 3835 | P79: 4892 | Q79: 1.5 | R79: 1.1 | S79: 1.1 | T79: 1.1 | U79: 186 | V79: 760 | W79: 825 | X79: 1053 | Y79: 32 | Z79: 131 | AA79: 142 | AB79: 181 | AC79: 0.01 | AD79: 0.20 | AE79: 0.23 | AF79: 0.36 | AG79: 0.0003969 | AH79: 1.7346 | AI79: 4 | AJ79: 0.000574288 | AK79: 592 | AL79: 642 | AM79: 819 | AN79: 0.95 | AO79: 0.95 | AP79: 0.95 | AQ79: 592 | AR79: 642 | AS79: 819 | AT79: 255 | AU79: 276 | AV79: 352 | AW79: 0.69 | AX79: 0.80 | AY79: 1.27 | AZ79: 2.1 | BA79: 11 | BB79: 12.4 | BC79: 19.2 | BE79: 2218 | BG79: 68% | BJ79: 0 | BK79: 11.2 | BL79: 13 | BM79: 21.85 | BO79: 1 | BP79: 1 | BQ79: 1 | BR79: 592 | BS79: 642 | BT79: 819 | BV79: 0 | BW79: 0 | BX79: 0 | BY79: 1 | BZ79: =IF(OR(EcoReviva!$L$6=10,EcoReviva!$L$6=15,EcoReviva!$L$6=20),1,IF(EcoReviva!$K$6<51,1,(1-(EcoReviva!$K$6-50)*0.005))) -> 1 | CN79: 110 | CO79: 0.8146699661 | CP79: 0.7561986895 | CQ79: 0.8146699661 | CR79: 0.7561986895 | CS79: 0.7254135991 | CT79: 0.6774634004 | CU79: 0.7254135991 | CV79: 0.6774634004 | CW79: 0.8146699661 | CX79: 0.7561986895 | CY79: 0.7254135991 | CZ79: 0.6774634004 | DF79: =DF78 -> 280 | DG79: =BK20 -> 0.0 | DH79: =ROUND(IF($BZ$2=1,V20,IF($BZ$2=2,V20*3.412141633,)),0) -> 0 | DI79: =IF($BZ$2=1,ROUND(Z20,0),IF($BZ$2=2,ROUND(Z20/272.7654,1),)) -> 0 | DJ79: =IF($BZ$2=1,AD20,IF($BZ$2=2,AD20*0.3346,)) -> 0.00 | DK79: =IF(BY20=1,ROUND(IF($BZ$2=1,AQ20,IF($BZ$2=2,AQ20*3.412141633,)),0),"") ->  | DL79: =IF(BY20=1,IF($BZ$2=1,ROUND(AT20,0),IF($BZ$2=2,ROUND(AT20/272.7654,1),)),"") ->  | DM79: =IF(BY20=1,IF($BZ$2=1,AW20,IF($BZ$2=2,AW20*0.3346,)),"") ->  | DN79: =J20 -> 0.0 | DO79: =DN79+8 -> 8.0 | DP79: =IF($CB$9=2,"",BA65) -> 7.9 | DQ79: =DQ78 -> 0.0
A80: 15015515 | D80: 1 | E80: 50 | F80: 155 | G80: 15 | H80: 15.9 | I80: 0 | J80: 26 | K80: 30 | L80: 46.4 | M80: 2219 | N80: 3021 | O80: 3226 | P80: 4598 | Q80: 1.5 | R80: 1.08 | S80: 1.08 | T80: 1.08 | U80: 273 | V80: 669 | W80: 714 | X80: 1018 | Y80: 47 | Z80: 115 | AA80: 123 | AB80: 175 | AC80: 0.01 | AD80: 0.08 | AE80: 0.09 | AF80: 0.18 | AG80: 0.0002083 | AH80: 1.724 | AI80: 2 | AJ80: 0.000461829 | AK80: 412 | AL80: 440 | AM80: 628 | AN80: 1.01 | AO80: 1.01 | AP80: 1.01 | AQ80: 412 | AR80: 440 | AS80: 628 | AT80: 177 | AU80: 189 | AV80: 270 | AW80: 0.18 | AX80: 0.21 | AY80: 0.42 | AZ80: 1.6 | BA80: 11.5 | BB80: 12.8 | BC80: 19.6 | BE80: 2774 | BG80: 80% | BJ80: 0 | BK80: 10 | BL80: 11.8 | BM80: 21.85 | BO80: 1 | BP80: 1 | BQ80: 1 | BR80: 412 | BS80: 440 | BT80: 628 | BV80: 0 | BW80: 0 | BX80: 0 | BY80: 1 | BZ80: =IF(OR(EcoReviva!$L$6=10,EcoReviva!$L$6=15,EcoReviva!$L$6=20),1,IF(EcoReviva!$K$6<51,1,(1-(EcoReviva!$K$6-50)*0.005))) -> 1 | CN80: 120 | CO80: 0.8030103879 | CP80: 0.7433030654 | CQ80: 0.8030103879 | CR80: 0.7433030654 | CS80: 0.7187912226 | CT80: 0.6712287258 | CU80: 0.7187912226 | CV80: 0.6712287258 | CW80: 0.8030103879 | CX80: 0.7433030654 | CY80: 0.7187912226 | CZ80: 0.6712287258 | DF80: =DF78 -> 280 | DG80: =BL20 -> 0.0 | DH80: =ROUND(IF($BZ$2=1,W20,IF($BZ$2=2,W20*3.412141633,)),0) -> 0 | DI80: =IF($BZ$2=1,ROUND(AA20,0),IF($BZ$2=2,ROUND(AA20/272.7654,1),)) -> 0 | DJ80: =IF($BZ$2=1,AE20,IF($BZ$2=2,AE20*0.3346,)) -> 0.00 | DK80: =IF(BY20=1,ROUND(IF($BZ$2=1,AR20,IF($BZ$2=2,AR20*3.412141633,)),0),"") ->  | DL80: =IF(BY20=1,IF($BZ$2=1,ROUND(AU20,0),IF($BZ$2=2,ROUND(AU20/272.7654,1),)),"") ->  | DM80: =IF(BY20=1,IF($BZ$2=1,AX20,IF($BZ$2=2,AX20*0.3346,)),"") ->  | DN80: =K20 -> 0.0 | DO80: =DN80+8 -> 8.0 | DP80: 8.9 | DQ80: =DQ78 -> 0.0
A81: 15015516 | D81: 1 | E81: 50 | F81: 155 | G81: 16 | H81: 15.9 | I81: 0 | J81: 26 | K81: 30 | L81: 46.4 | M81: 2065 | N81: 4418 | O81: 4717 | P81: 6724 | Q81: 1.5 | R81: 1.1 | S81: 1.1 | T81: 1.1 | U81: 254 | V81: 951 | W81: 1015 | X81: 1447 | Y81: 44 | Z81: 164 | AA81: 175 | AB81: 249 | AC81: 0.03 | AD81: 0.44 | AE81: 0.50 | AF81: 1.00 | AG81: 0.0002083 | AH81: 1.724 | AI81: 4 | AJ81: 0.001392796 | AK81: 676 | AL81: 722 | AM81: 1030 | AN81: 0.95 | AO81: 0.95 | AP81: 0.95 | AQ81: 676 | AR81: 722 | AS81: 1030 | AT81: 291 | AU81: 310 | AV81: 443 | AW81: 1.36 | AX81: 1.54 | AY81: 3.10 | AZ81: 3.1 | BA81: 11.5 | BB81: 12.8 | BC81: 19.6 | BE81: 3037 | BG81: 68% | BJ81: 0 | BK81: 10 | BL81: 11.8 | BM81: 21.85 | BO81: 1 | BP81: 1 | BQ81: 1 | BR81: 676 | BS81: 722 | BT81: 1030 | BV81: 0 | BW81: 0 | BX81: 0 | BY81: 1 | BZ81: =IF(OR(EcoReviva!$L$6=10,EcoReviva!$L$6=15,EcoReviva!$L$6=20),1,IF(EcoReviva!$K$6<51,1,(1-(EcoReviva!$K$6-50)*0.005))) -> 1 | CN81: 140 | CO81: 0.7929231279 | CP81: 0.7321171828 | CQ81: 0.7929231279 | CR81: 0.7321171828 | CS81: 0.7127093372 | CT81: 0.6655050705 | CU81: 0.7127093372 | CV81: 0.6655050705 | CW81: 0.7929231279 | CX81: 0.7321171828 | CY81: 0.7127093372 | CZ81: 0.6655050705 | DF81: =DF78 -> 280 | DG81: =BM20 -> 0.0 | DH81: =ROUND(IF($BZ$2=1,X20,IF($BZ$2=2,X20*3.412141633,)),0) -> 0 | DI81: =IF($BZ$2=1,ROUND(AB20,0),IF($BZ$2=2,ROUND(AB20/272.7654,1),)) -> 0 | DJ81: =IF($BZ$2=1,AF20,IF($BZ$2=2,AF20*0.3346,)) -> 0.00 | DK81: =IF(BY20=1,ROUND(IF($BZ$2=1,AS20,IF($BZ$2=2,AS20*3.412141633,)),0),"") ->  | DL81: =IF(BY20=1,IF($BZ$2=1,ROUND(AV20,0),IF($BZ$2=2,ROUND(AV20/272.7654,1),)),"") ->  | DM81: =IF(BY20=1,IF($BZ$2=1,AY20,IF($BZ$2=2,AY20*0.3346,)),"") ->  | DN81: =L20 -> 0.0 | DO81: =DN81+8 -> 8.0 | DP81: 8.9 | DQ81: =DQ78 -> 0.0
A82: 15015520 | D82: 1 | E82: 50 | F82: 155 | G82: 20 | H82: 20.9 | I82: 0 | J82: 26 | K82: 30 | L82: 46.4 | M82: 3104 | N82: 4166 | O82: 4522 | P82: 5768 | Q82: 1.5 | R82: 1.08 | S82: 1.08 | T82: 1.08 | U82: 382 | V82: 922 | W82: 1001 | X82: 1276 | Y82: 66 | Z82: 159 | AA82: 172 | AB82: 219 | AC82: 0.02 | AD82: 0.12 | AE82: 0.13 | AF82: 0.21 | AG82: 0.0001276 | AH82: 1.7219 | AI82: 2 | AJ82: 0.000376611 | AK82: 515 | AL82: 559 | AM82: 713 | AN82: 0.95 | AO82: 0.95 | AP82: 0.95 | AQ82: 515 | AR82: 559 | AS82: 713 | AT82: 221 | AU82: 240 | AV82: 307 | AW82: 0.22 | AX82: 0.26 | AY82: 0.42 | AZ82: 2.1 | BA82: 11.5 | BB82: 12.8 | BC82: 19.6 | BE82: 3880 | BG82: 80% | BJ82: 0 | BK82: 10 | BL82: 11.8 | BM82: 21.85 | BO82: 1 | BP82: 1 | BQ82: 1 | BR82: 515 | BS82: 559 | BT82: 713 | BV82: 0 | BW82: 0 | BX82: 0 | BY82: 1 | BZ82: =IF(OR(EcoReviva!$L$6=10,EcoReviva!$L$6=15,EcoReviva!$L$6=20),1,IF(EcoReviva!$K$6<51,1,(1-(EcoReviva!$K$6-50)*0.005))) -> 1 | CN82: 160 | CO82: 0.7840224333 | CP82: 0.7222362756 | CQ82: 0.7840224333 | CR82: 0.7222362756 | CS82: 0.7015311234 | CT82: 0.6570693053 | CU82: 0.7015311234 | CV82: 0.6570693053 | CW82: 0.7840224333 | CX82: 0.7222362756 | CY82: 0.7015311234 | CZ82: 0.6570693053 | DF82: 300 | DG82: =BJ21 -> 0.0 | DH82: =ROUND(IF($BZ$2=1,U21,IF($BZ$2=2,U21*3.412141633,)),0) -> 0 | DI82: =IF($BZ$2=1,ROUND(Y21,0),IF($BZ$2=2,ROUND(Y21/272.7654,1),)) -> 0 | DJ82: =IF($BZ$2=1,AC21,IF($BZ$2=2,AC21*0.3346,)) -> 0.00 | DN82: 0.0 | DO82: 0.0 | DP82: 16.0 | DQ82: =IF($BZ$2=1,AZ21,IF($BZ$2=2,AZ21/4.54609,)) -> 0.0
A83: 15015521 | D83: 1 | E83: 50 | F83: 155 | G83: 21 | H83: 20.9 | I83: 0 | J83: 26 | K83: 30 | L83: 46.4 | M83: 3305 | N83: 5690 | O83: 6075 | P83: 8659 | Q83: 1.5 | R83: 1.05 | S83: 1.05 | T83: 1.05 | U83: 407 | V83: 1313 | W83: 1402 | X83: 1998 | Y83: 70 | Z83: 226 | AA83: 241 | AB83: 344 | AC83: 0.04 | AD83: 0.34 | AE83: 0.38 | AF83: 0.76 | AG83: 0.0001276 | AH83: 1.7219 | AI83: 4 | AJ83: 0.000514201 | AK83: 738 | AL83: 788 | AM83: 1123 | AN83: 0.85 | AO83: 0.85 | AP83: 0.85 | AQ83: 738 | AR83: 788 | AS83: 1123 | AT83: 317 | AU83: 339 | AV83: 483 | AW83: 0.65 | AX83: 0.74 | AY83: 1.47 | AZ83: 4.1 | BA83: 11.5 | BB83: 12.8 | BC83: 19.6 | BE83: 4131 | BG83: 80% | BJ83: 0 | BK83: 10 | BL83: 11.8 | BM83: 21.85 | BO83: 1 | BP83: 1 | BQ83: 1 | BR83: 738 | BS83: 788 | BT83: 1123 | BV83: 0 | BW83: 0 | BX83: 0 | BY83: 1 | BZ83: =IF(OR(EcoReviva!$L$6=10,EcoReviva!$L$6=15,EcoReviva!$L$6=20),1,IF(EcoReviva!$K$6<51,1,(1-(EcoReviva!$K$6-50)*0.005))) -> 1 | CN83: 180 | CO83: 0.7840224333 | CP83: 0.7222362756 | CQ83: 0.7840224333 | CR83: 0.7222362756 | CS83: 0.7015311234 | CT83: 0.6570693053 | CU83: 0.7015311234 | CV83: 0.6570693053 | CW83: 0.7840224333 | CX83: 0.7222362756 | CY83: 0.7015311234 | CZ83: 0.6570693053 | DF83: =DF82 -> 300 | DG83: =BK21 -> 0.0 | DH83: =ROUND(IF($BZ$2=1,V21,IF($BZ$2=2,V21*3.412141633,)),0) -> 0 | DI83: =IF($BZ$2=1,ROUND(Z21,0),IF($BZ$2=2,ROUND(Z21/272.7654,1),)) -> 0 | DJ83: =IF($BZ$2=1,AD21,IF($BZ$2=2,AD21*0.3346,)) -> 0.00 | DK83: =IF(BY21=1,ROUND(IF($BZ$2=1,AQ21,IF($BZ$2=2,AQ21*3.412141633,)),0),"") ->  | DL83: =IF(BY21=1,IF($BZ$2=1,ROUND(AT21,0),IF($BZ$2=2,ROUND(AT21/272.7654,1),)),"") ->  | DM83: =IF(BY21=1,IF($BZ$2=1,AW21,IF($BZ$2=2,AW21*0.3346,)),"") ->  | DN83: =J21 -> 0.0 | DO83: =DN83+8 -> 8.0 | DP83: =IF($CB$9=2,"",BA69) -> 8.7 | DQ83: =DQ82 -> 0.0
A84: 15017510 | D84: 1 | E84: 50 | F84: 175 | G84: 10 | H84: 10.9 | I84: 0 | J84: 26 | K84: 30 | L84: 46.0 | M84: 1743 | N84: 2971 | O84: 3225 | P84: 4113 | Q84: 1.5 | R84: 1.08 | S84: 1.08 | T84: 1.08 | U84: 215 | V84: 657 | W84: 714 | X84: 910 | Y84: 37 | Z84: 113 | AA84: 123 | AB84: 157 | AC84: 0.01 | AD84: 0.09 | AE84: 0.11 | AF84: 0.17 | AG84: 0.0003969 | AH84: 1.7346 | AI84: 2 | AJ84: 0.000367347 | AK84: 412 | AL84: 447 | AM84: 570 | AN84: 0.98 | AO84: 0.98 | AP84: 0.98 | AQ84: 412 | AR84: 447 | AS84: 570 | AT84: 177 | AU84: 192 | AV84: 245 | AW84: 0.21 | AX84: 0.25 | AY84: 0.39 | AZ84: 1.2 | BA84: 12.2 | BB84: 13.7 | BC84: 22.0 | BE84: 1937 | BG84: 90% | BJ84: 0 | BK84: 10.9 | BL84: 12.7 | BM84: 21.85 | BO84: 1 | BP84: 1 | BQ84: 1 | BR84: 412 | BS84: 447 | BT84: 570 | BV84: 0 | BW84: 0 | BX84: 0 | BY84: 1 | BZ84: =IF(OR(EcoReviva!$L$6=10,EcoReviva!$L$6=15,EcoReviva!$L$6=20),1,IF(EcoReviva!$K$6<51,1,(1-(EcoReviva!$K$6-50)*0.005))) -> 1 | CN84: 200 | CO84: 0.768855912 | CP84: 0.7053868584 | CQ84: 0.768855912 | CR84: 0.7053868584 | CS84: 0.6929174768 | CT84: 0.6576204296 | CU84: 0.6929174768 | CV84: 0.6576204296 | CW84: 0.768855912 | CX84: 0.7053868584 | CY84: 0.6929174768 | CZ84: 0.6576204296 | DF84: =DF82 -> 300 | DG84: =BL21 -> 0.0 | DH84: =ROUND(IF($BZ$2=1,W21,IF($BZ$2=2,W21*3.412141633,)),0) -> 0 | DI84: =IF($BZ$2=1,ROUND(AA21,0),IF($BZ$2=2,ROUND(AA21/272.7654,1),)) -> 0 | DJ84: =IF($BZ$2=1,AE21,IF($BZ$2=2,AE21*0.3346,)) -> 0.00 | DK84: =IF(BY21=1,ROUND(IF($BZ$2=1,AR21,IF($BZ$2=2,AR21*3.412141633,)),0),"") ->  | DL84: =IF(BY21=1,IF($BZ$2=1,ROUND(AU21,0),IF($BZ$2=2,ROUND(AU21/272.7654,1),)),"") ->  | DM84: =IF(BY21=1,IF($BZ$2=1,AX21,IF($BZ$2=2,AX21*0.3346,)),"") ->  | DN84: =K21 -> 0.0 | DO84: =DN84+8 -> 8.0 | DP84: 8.7 | DQ84: =DQ82 -> 0.0
A85: 15017511 | D85: 1 | E85: 50 | F85: 175 | G85: 11 | H85: 10.9 | I85: 0 | J85: 26 | K85: 30 | L85: 46.0 | M85: 1697 | N85: 4031 | O85: 4376 | P85: 5581 | Q85: 1.5 | R85: 1.1 | S85: 1.1 | T85: 1.1 | U85: 209 | V85: 867 | W85: 942 | X85: 1201 | Y85: 36 | Z85: 149 | AA85: 162 | AB85: 207 | AC85: 0.02 | AD85: 0.27 | AE85: 0.32 | AF85: 0.50 | AG85: 0.0003969 | AH85: 1.7346 | AI85: 4 | AJ85: 0.000574288 | AK85: 675 | AL85: 733 | AM85: 935 | AN85: 0.95 | AO85: 0.95 | AP85: 0.95 | AQ85: 675 | AR85: 733 | AS85: 935 | AT85: 290 | AU85: 315 | AV85: 402 | AW85: 0.94 | AX85: 1.10 | AY85: 1.73 | AZ85: 2.3 | BA85: 12.2 | BB85: 13.7 | BC85: 22.0 | BE85: 2495 | BG85: 68% | BJ85: 0 | BK85: 10.9 | BL85: 12.7 | BM85: 21.85 | BO85: 1 | BP85: 1 | BQ85: 1 | BR85: 675 | BS85: 733 | BT85: 935 | BV85: 0 | BW85: 0 | BX85: 0 | BY85: 1 | BZ85: =IF(OR(EcoReviva!$L$6=10,EcoReviva!$L$6=15,EcoReviva!$L$6=20),1,IF(EcoReviva!$K$6<51,1,(1-(EcoReviva!$K$6-50)*0.005))) -> 1 | CN85: 220 | CO85: 0.7585639347 | CP85: 0.6942595524 | CQ85: 0.7585639347 | CR85: 0.6942595524 | CS85: 0.6852107187 | CT85: 0.6578068518 | CU85: 0.6852107187 | CV85: 0.6578068518 | CW85: 0.7585639347 | CX85: 0.6942595524 | CY85: 0.6852107187 | CZ85: 0.6578068518 | DF85: =DF82 -> 300 | DG85: =BM21 -> 0.0 | DH85: =ROUND(IF($BZ$2=1,X21,IF($BZ$2=2,X21*3.412141633,)),0) -> 0 | DI85: =IF($BZ$2=1,ROUND(AB21,0),IF($BZ$2=2,ROUND(AB21/272.7654,1),)) -> 0 | DJ85: =IF($BZ$2=1,AF21,IF($BZ$2=2,AF21*0.3346,)) -> 0.00 | DK85: =IF(BY21=1,ROUND(IF($BZ$2=1,AS21,IF($BZ$2=2,AS21*3.412141633,)),0),"") ->  | DL85: =IF(BY21=1,IF($BZ$2=1,ROUND(AV21,0),IF($BZ$2=2,ROUND(AV21/272.7654,1),)),"") ->  | DM85: =IF(BY21=1,IF($BZ$2=1,AY21,IF($BZ$2=2,AY21*0.3346,)),"") ->  | DN85: =L21 -> 0.0 | DO85: =DN85+8 -> 8.0 | DP85: 8.7 | DQ85: =DQ82 -> 0.0
A86: 15017515 | D86: 1 | E86: 50 | F86: 175 | G86: 15 | H86: 15.9 | I86: 0 | J86: 26 | K86: 30 | L86: 46.4 | M86: 2497 | N86: 3233 | O86: 3452 | P86: 4921 | Q86: 1.5 | R86: 1.08 | S86: 1.08 | T86: 1.08 | U86: 307 | V86: 716 | W86: 764 | X86: 1089 | Y86: 53 | Z86: 123 | AA86: 131 | AB86: 187 | AC86: 0.02 | AD86: 0.09 | AE86: 0.11 | AF86: 0.21 | AG86: 0.0002083 | AH86: 1.724 | AI86: 2 | AJ86: 0.000461829 | AK86: 421 | AL86: 449 | AM86: 640 | AN86: 1.01 | AO86: 1.01 | AP86: 1.01 | AQ86: 421 | AR86: 449 | AS86: 640 | AT86: 181 | AU86: 193 | AV86: 275 | AW86: 0.20 | AX86: 0.23 | AY86: 0.45 | AZ86: 1.8 | BA86: 11.5 | BB86: 12.8 | BC86: 19.6 | BE86: 3121 | BG86: 80% | BJ86: 0 | BK86: 10 | BL86: 11.8 | BM86: 21.85 | BO86: 1 | BP86: 1 | BQ86: 1 | BR86: 421 | BS86: 449 | BT86: 640 | BV86: 0 | BW86: 0 | BX86: 0 | BY86: 1 | BZ86: =IF(OR(EcoReviva!$L$6=10,EcoReviva!$L$6=15,EcoReviva!$L$6=20),1,IF(EcoReviva!$K$6<51,1,(1-(EcoReviva!$K$6-50)*0.005))) -> 1 | CN86: 240 | CO86: 0.7502750901 | CP86: 0.6848867351 | CQ86: 0.7502750901 | CR86: 0.6848867351 | CS86: 0.6819044016 | CT86: 0.6579686139 | CU86: 0.6819044016 | CV86: 0.6579686139 | CW86: 0.7502750901 | CX86: 0.6848867351 | CY86: 0.6819044016 | CZ86: 0.6579686139 | DQ86: v2020-09-17
A87: 15017516 | D87: 1 | E87: 50 | F87: 175 | G87: 16 | H87: 15.9 | I87: 0 | J87: 26 | K87: 30 | L87: 46.4 | M87: 2323 | N87: 4843 | O87: 5171 | P87: 7371 | Q87: 1.5 | R87: 1.1 | S87: 1.1 | T87: 1.1 | U87: 286 | V87: 1042 | W87: 1113 | X87: 1586 | Y87: 49 | Z87: 179 | AA87: 191 | AB87: 273 | AC87: 0.04 | AD87: 0.54 | AE87: 0.61 | AF87: 1.23 | AG87: 0.0002083 | AH87: 1.724 | AI87: 4 | AJ87: 0.001392796 | AK87: 686 | AL87: 733 | AM87: 1045 | AN87: 0.95 | AO87: 0.95 | AP87: 0.95 | AQ87: 686 | AR87: 733 | AS87: 1045 | AT87: 295 | AU87: 315 | AV87: 449 | AW87: 1.43 | AX87: 1.62 | AY87: 3.24 | AZ87: 3.5 | BA87: 11.5 | BB87: 12.8 | BC87: 19.6 | BE87: 3416 | BG87: 68% | BJ87: 0 | BK87: 10 | BL87: 11.8 | BM87: 21.85 | BO87: 1 | BP87: 1 | BQ87: 1 | BR87: 686 | BS87: 733 | BT87: 1045 | BV87: 0 | BW87: 0 | BX87: 0 | BY87: 1 | BZ87: =IF(OR(EcoReviva!$L$6=10,EcoReviva!$L$6=15,EcoReviva!$L$6=20),1,IF(EcoReviva!$K$6<51,1,(1-(EcoReviva!$K$6-50)*0.005))) -> 1 | CN87: 260 | CO87: 0.75 | CP87: 0.68 | CQ87: 0.75 | CR87: 0.68 | CS87: 0.6819044938 | CT87: 0.6579686139 | CU87: 0.6819044938 | CV87: 0.6579686139 | CW87: 0.75 | CX87: 0.68 | CY87: 0.6819044938 | CZ87: 0.6579686139 | DF87: * | DG87: =IF($J$4=data!$CC$3,NL!DI6,IF($J$4=data!$CC$4,EN!DI6,IF($J$4=data!$CC$5,FR!DI6,IF($J$4=data!$CC$6,DE!DI6,IF($J$4=data!$CC$7,NR!DI6,IF($J$4=data!$CC$8,SP!DI6,IF($J$4=data!$CC$9,SW!DI6,))))))) -> 0
A88: 15017520 | D88: 1 | E88: 50 | F88: 175 | G88: 20 | H88: 20.9 | I88: 0 | J88: 26 | K88: 30 | L88: 46.4 | M88: 3492 | N88: 4498 | O88: 4883 | P88: 6228 | Q88: 1.5 | R88: =IF($G88=10,1.08,IF($G88=11,1.1,IF($G88=15,1.08,IF($G88=16,1.1,IF($G88=20,1.08,IF($G88=21,1.05)))))) -> 1.08 | S88: 1.08 | T88: 1.08 | U88: 430 | V88: 995 | W88: 1081 | X88: 1378 | Y88: 74 | Z88: 171 | AA88: 186 | AB88: 237 | AC88: 0.03 | AD88: 0.14 | AE88: 0.16 | AF88: 0.26 | AG88: 0.0001276 | AH88: 1.7219 | AI88: 2 | AJ88: 0.000376611 | AK88: 526 | AL88: 571 | AM88: 728 | AN88: =IF($G88=10,0.98,IF($G88=11,0.95,IF($G88=15,1.01,IF($G88=16,0.95,IF($G88=20,0.95,IF($G88=21,0.85)))))) -> 0.95 | AO88: 0.95 | AP88: 0.95 | AQ88: 526 | AR88: 571 | AS88: 728 | AT88: 226 | AU88: 246 | AV88: 313 | AW88: 0.23 | AX88: 0.28 | AY88: 0.44 | AZ88: 2.3 | BA88: 11.5 | BB88: 12.8 | BC88: 19.6 | BE88: 4365 | BG88: 80% | BJ88: 0 | BK88: 10 | BL88: 11.8 | BM88: 21.85 | BO88: =IF((237.3*LN(($AQ$1*EXP(17.27*($AM$3/($AM$3+237.3))))))/(17.27-LN(($AQ$1*EXP(17.27*($AM$3/($AM$3+237.3))))))<(($AM$1+$AM$2)/2),1,IF(1/(1+((2258*((0.622/((101325/(1*611*EXP(17.27*((($AM$1+$AM$2)/2)/((($AM$1+$AM$2)/2)+237.3))))))-1)*1000-(0.622/((101325/($AQ$1*611*EXP(17.27*($AM$3/($AM$3+237.3))))))-1)*1000))/(1005*((($AM$1+$AM$2)/2)-$AM$3))))>1,1,1/(1+((2258*((0.622/((101325/(1*611*EXP(17.27*((($AM$1+$AM$2)/2)/((($AM$1+$AM$2)/2)+237.3))))))-1)*1000-(0.622/((101325/($AQ$1*611*EXP(17.27*($AM$3/($AM$3+237.3))))))-1)*1000))/(1005*((($AM$1+$AM$2)/2)-$AM$3)))))) -> 1 | BP88: 1 | BQ88: 1 | BR88: 526 | BS88: 571 | BT88: 728 | BV88: 0 | BW88: 0 | BX88: 0 | BY88: 1 | BZ88: =IF(OR(EcoReviva!$L$6=10,EcoReviva!$L$6=15,EcoReviva!$L$6=20),1,IF(EcoReviva!$K$6<51,1,(1-(EcoReviva!$K$6-50)*0.005))) -> 1 | CN88: 280 | CO88: 0.750779461 | CP88: 0.68 | CQ88: 0.750779461 | CR88: 0.68 | CS88: 0.6729424377 | CT88: 0.6582099453 | CU88: 0.6729424377 | CV88: 0.6582099453 | CW88: 0.750779461 | CX88: 0.68 | CY88: 0.6729424377 | CZ88: 0.6582099453 | DF88: ** | DG88: =IF($J$4=data!$CC$3,NL!DF20,IF($J$4=data!$CC$4,EN!DF20,IF($J$4=data!$CC$5,FR!DF20,IF($J$4=data!$CC$6,DE!DF20,IF($J$4=data!$CC$7,NR!DF20,IF($J$4=data!$CC$8,SP!DF20,IF($J$4=data!$CC$9,SW!DF20,))))))) -> 0
A89: 15017521 | D89: 1 | E89: 50 | F89: 175 | G89: 21 | H89: 20.9 | I89: 0 | J89: 26 | K89: 30 | L89: 46.4 | M89: 3718 | N89: 6017 | O89: 6424 | P89: 9157 | Q89: 1.5 | R89: 1.05 | S89: 1.05 | T89: 1.05 | U89: 458 | V89: 1388 | W89: 1482 | X89: 2113 | Y89: 79 | Z89: 239 | AA89: 255 | AB89: 363 | AC89: 0.05 | AD89: 0.39 | AE89: 0.44 | AF89: 0.87 | AG89: 0.0001276 | AH89: 1.7219 | AI89: 4 | AJ89: 0.000514201 | AK89: 750 | AL89: 801 | AM89: 1142 | AN89: 0.85 | AO89: 0.85 | AP89: 0.85 | AQ89: 750 | AR89: 801 | AS89: 1142 | AT89: 323 | AU89: 344 | AV89: 491 | AW89: 0.69 | AX89: 0.78 | AY89: 1.56 | AZ89: 4.7 | BA89: 11.5 | BB89: 12.8 | BC89: 19.6 | BE89: 4648 | BG89: 80% | BJ89: 0 | BK89: 10 | BL89: 11.8 | BM89: 21.85 | BO89: 1 | BP89: 1 | BQ89: 1 | BR89: 750 | BS89: 801 | BT89: 1142 | BV89: 0 | BW89: 0 | BX89: 0 | BY89: 1 | BZ89: =IF(OR(EcoReviva!$L$6=10,EcoReviva!$L$6=15,EcoReviva!$L$6=20),1,IF(EcoReviva!$K$6<51,1,(1-(EcoReviva!$K$6-50)*0.005))) -> 1 | CN89: 300 | CO89: 0.750779461 | CP89: 0.68 | CQ89: 0.750779461 | CR89: 0.68 | CS89: 0.6729424377 | CT89: 0.6582099453 | CU89: 0.6729424377 | CV89: 0.6582099453 | CW89: 0.750779461 | CX89: 0.68 | CY89: 0.6729424377 | CZ89: 0.6582099453 | DF89: *** | DG89: =IF($J$4=data!$CC$3,NL!DF21,IF($J$4=data!$CC$4,EN!DF21,IF($J$4=data!$CC$5,FR!DF21,IF($J$4=data!$CC$6,DE!DF21,IF($J$4=data!$CC$7,NR!DF21,IF($J$4=data!$CC$8,SP!DF21,IF($J$4=data!$CC$9,SW!DF21,))))))) -> 0
A90: 15019510 | D90: 1 | E90: 50 | F90: 195 | G90: 10 | H90: 10.9 | I90: 0 | J90: 26 | K90: 30 | L90: 46.5 | M90: 1937 | N90: 3260 | O90: 3553 | P90: 4621 | Q90: 1.5 | R90: 1.08 | S90: 1.08 | T90: 1.08 | U90: 238 | V90: 721 | W90: 786 | X90: 1023 | Y90: 41 | Z90: 124 | AA90: 135 | AB90: 176 | AC90: 0.01 | AD90: 0.12 | AE90: 0.14 | AF90: 0.22 | AG90: 0.0003969 | AH90: 1.7346 | AI90: 2 | AJ90: 0.000367347 | AK90: 452 | AL90: 493 | AM90: 641 | AN90: 0.98 | AO90: 0.98 | AP90: 0.98 | AQ90: 452 | AR90: 493 | AS90: 641 | AT90: 194 | AU90: 212 | AV90: 276 | AW90: 0.27 | AX90: 0.31 | AY90: 0.52 | AZ90: 1.3 | BA90: 13.4 | BB90: 14.8 | BC90: 24 | BE90: 2152 | BG90: 90% | BJ90: 0 | BK90: 10.7 | BL90: 12.5 | BM90: 21.85 | BO90: 1 | BP90: 1 | BQ90: 1 | BR90: 452 | BS90: 493 | BT90: 641 | BV90: 0 | BW90: 0 | BX90: 0 | BY90: 1 | BZ90: =IF(OR(EcoReviva!$L$6=10,EcoReviva!$L$6=15,EcoReviva!$L$6=20),1,IF(EcoReviva!$K$6<51,1,(1-(EcoReviva!$K$6-50)*0.005))) -> 1 | DF90: **** | DG90: =IF($J$4=data!$CC$3,NL!DF22,IF($J$4=data!$CC$4,EN!DF22,IF($J$4=data!$CC$5,FR!DF22,IF($J$4=data!$CC$6,DE!DF22,IF($J$4=data!$CC$7,NR!DF22,IF($J$4=data!$CC$8,SP!DF22,IF($J$4=data!$CC$9,SW!DF22,))))))) -> 0
A91: 15019511 | D91: 1 | E91: 50 | F91: 195 | G91: 11 | H91: 10.9 | I91: 0 | J91: 26 | K91: 30 | L91: 46.5 | M91: 1885 | N91: 4423 | O91: 4821 | P91: 6270 | Q91: 1.5 | R91: 1.1 | S91: 1.1 | T91: 1.1 | U91: 232 | V91: 952 | W91: 1037 | X91: 1349 | Y91: 40 | Z91: 164 | AA91: 178 | AB91: 232 | AC91: 0.03 | AD91: 0.35 | AE91: 0.40 | AF91: 0.66 | AG91: 0.0003969 | AH91: 1.7346 | AI91: 4 | AJ91: 0.000574288 | AK91: 741 | AL91: 807 | AM91: 1050 | AN91: 0.95 | AO91: 0.95 | AP91: 0.95 | AQ91: 741 | AR91: 807 | AS91: 1050 | AT91: 319 | AU91: 347 | AV91: 452 | AW91: 1.19 | AX91: 1.39 | AY91: 2.28 | AZ91: 2.6 | BA91: 13.4 | BB91: 14.8 | BC91: 24 | BE91: 2772 | BG91: 68% | BJ91: 0 | BK91: 10.7 | BL91: 12.5 | BM91: 21.85 | BO91: 1 | BP91: 1 | BQ91: 1 | BR91: 741 | BS91: 807 | BT91: 1050 | BV91: 0 | BW91: 0 | BX91: 0 | BY91: 1 | BZ91: =IF(OR(EcoReviva!$L$6=10,EcoReviva!$L$6=15,EcoReviva!$L$6=20),1,IF(EcoReviva!$K$6<51,1,(1-(EcoReviva!$K$6-50)*0.005))) -> 1 | CN91: Type,ww | CO91: L/cm
A92: =CONCATENATE(D92,E92,F92,G92) -> 15019515 | D92: 1 | E92: 50 | F92: 195 | G92: 15 | H92: 15.9 | I92: 0 | J92: 26 | K92: 30 | L92: 47.1 | M92: =IF($N92-($BE92*$BG92)>100,$BE92*$BG92,$N92-95) -> 2774 | N92: 3875 | O92: 4083 | P92: 5893 | Q92: 1.5 | R92: 1.08 | S92: 1.08 | T92: 1.08 | U92: =ROUND(M92*POWER(CF_heat,Q92),0) -> 342 | V92: =ROUND(N92*POWER(CF_heat,R92),0) -> 858 | W92: =ROUND(O92*POWER(CF_heat,S92),0) -> 904 | X92: =ROUND(P92*POWER(CF_heat,T92),0) -> 1304 | Y92: =ROUND(U92*3600/(4186*ABS($O$1-$O$2)),0) -> 59 | Z92: =ROUND(V92*3600/(4186*ABS($O$1-$O$2)),0) -> 148 | AA92: =ROUND(W92*3600/(4186*ABS($O$1-$O$2)),0) -> 155 | AB92: =ROUND(X92*3600/(4186*ABS($O$1-$O$2)),0) -> 224 | AC92: =(($AG92*(Y92^$AH92)*((($F92-14.4)*$AI92)/100))+($AJ92*(Y92^2)))*0.0098 -> 0.02 | AD92: =(($AG92*(Z92^$AH92)*((($F92-14.4)*$AI92)/100))+($AJ92*(Z92^2)))*0.0098 -> 0.14 | AE92: =(($AG92*(AA92^$AH92)*((($F92-14.4)*$AI92)/100))+($AJ92*(AA92^2)))*0.0098 -> 0.15 | AF92: =(($AG92*(AB92^$AH92)*((($F92-14.4)*$AI92)/100))+($AJ92*(AB92^2)))*0.0098 -> 0.31 | AG92: =IF($G92=$CO$103,CP$103,IF($G92=$CO$104,CP$104,IF($G92=$CO$105,CP$105,IF($G92=$CO$107,CP$107,IF($G92=$CO$108,CP$108,IF($G92=$CO$109,CP$109,IF($G92=$CO$111,CP$111,IF($G92=$CO$112,CP$112,IF($G92=$CO$113,CP$113,IF($G92=$CO$115,CP$115,IF($G92=$CO$116,CP$116,IF($G92=$CO$117,CP$117,IF($G92=$CO$119,CP$119,IF($G92=$CO$120,CP$120,)))))))))))))) -> 0.0002083 | AH92: =IF($G92=$CO$103,CQ$103,IF($G92=$CO$104,CQ$104,IF($G92=$CO$105,CQ$105,IF($G92=$CO$107,CQ$107,IF($G92=$CO$108,CQ$108,IF($G92=$CO$109,CQ$109,IF($G92=$CO$111,CQ$111,IF($G92=$CO$112,CQ$112,IF($G92=$CO$113,CQ$113,IF($G92=$CO$115,CQ$115,IF($G92=$CO$116,CQ$116,IF($G92=$CO$117,CQ$117,IF($G92=$CO$119,CQ$119,IF($G92=$CO$120,CQ$120,)))))))))))))) -> 1.724 | AI92: =IF($G92=$CO$103,CR$103,IF($G92=$CO$104,CR$104,IF($G92=$CO$105,CR$105,IF($G92=$CO$107,CR$107,IF($G92=$CO$108,CR$108,IF($G92=$CO$109,CR$109,IF($G92=$CO$111,CR$111,IF($G92=$CO$112,CR$112,IF($G92=$CO$113,CR$113,IF($G92=$CO$115,CR$115,IF($G92=$CO$116,CR$116,IF($G92=$CO$117,CR$117,IF($G92=$CO$119,CR$119,IF($G92=$CO$120,CR$120,)))))))))))))) -> 2 | AJ92: =IF($G92=$CO$103,CS$103,IF($G92=$CO$104,CS$104,IF($G92=$CO$105,CS$105,IF($G92=$CO$107,CS$107,IF($G92=$CO$108,CS$108,IF($G92=$CO$109,CS$109,IF($G92=$CO$111,CS$111,IF($G92=$CO$112,CS$112,IF($G92=$CO$113,CS$113,IF($G92=$CO$115,CS$115,IF($G92=$CO$116,CS$116,IF($G92=$CO$117,CS$117,IF($G92=$CO$119,CS$119,IF($G92=$CO$120,CS$120,)))))))))))))) -> 0.000461829 | AK92: 529 | AL92: 557 | AM92: 804 | AN92: 1.01 | AO92: 1.01 | AP92: 1.01 | AQ92: =ROUND(AK92*BZ92*POWER(CF_cool,AN92),0) -> 529 | AR92: =ROUND(AL92*BZ92*POWER(CF_cool,AO92),0) -> 557 | AS92: =ROUND(AM92*BZ92*POWER(CF_cool,AP92),0) -> 804 | AT92: =ROUND(AQ92*3600/(4186*ABS($AM$1-$AM$2)),0) -> 227 | AU92: =ROUND(AR92*3600/(4186*ABS($AM$1-$AM$2)),0) -> 240 | AV92: =ROUND(AS92*3600/(4186*ABS($AM$1-$AM$2)),0) -> 346 | AW92: =(($AG92*(AT92^$AH92)*((($F92-14.4)*$AI92)/100))+($AJ92*(AT92^2)))*0.0098 -> 0.32 | AX92: =(($AG92*(AU92^$AH92)*((($F92-14.4)*$AI92)/100))+($AJ92*(AU92^2)))*0.0098 -> 0.35 | AY92: =(($AG92*(AV92^$AH92)*((($F92-14.4)*$AI92)/100))+($AJ92*(AV92^2)))*0.0098 -> 0.72 | AZ92: =ROUND(IF(G92=10,$CO$92*F92,IF(G92=11,$CO$93*F92,IF(G92=15,$CO$94*F92,IF(G92=16,$CO$95*F92,IF(G92=20,$CO$96*F92,IF(G92=21,$CO$97*F92,)))))),1) -> 2.0 | BA92: 13.2 | BB92: 14.7 | BC92: 23.5 | BE92: 3468 | BG92: =IF(G92=10,0.9,IF(G92=11,0.68,IF(G92=15,0.8,IF(G92=16,0.68,IF(G92=20,0.8,IF(G92=21,0.8)))))) -> 80% | BJ92: 0 | BK92: 10 | BL92: 11.4 | BM92: 21.85 | BO92: 1 | BP92: 1 | BQ92: 1 | BR92: =AQ92/BO92 -> 529 | BS92: =AR92/BP92 -> 557 | BT92: =AS92/BQ92 -> 804 | BV92: =BR92-AQ92 -> 0 | BW92: =BS92-AR92 -> 0 | BX92: =BT92-AS92 -> 0 | BY92: =IF(SUM(BV92:BX92)=0,1,0) -> 1 | BZ92: =IF(OR(EcoReviva!$L$6=10,EcoReviva!$L$6=15,EcoReviva!$L$6=20),1,IF(EcoReviva!$K$6<51,1,(1-(EcoReviva!$K$6-50)*0.005))) -> 1 | CN92: 10 | CO92: =0.4/60 -> 0.0067
A93: 15019516 | D93: 1 | E93: 50 | F93: 195 | G93: 16 | H93: 15.9 | I93: 0 | J93: 26 | K93: 30 | L93: 47.1 | M93: 2581 | N93: 5667 | O93: 5971 | P93: 8618 | Q93: 1.5 | R93: 1.1 | S93: 1.1 | T93: 1.1 | U93: 318 | V93: 1220 | W93: 1285 | X93: 1855 | Y93: 55 | Z93: 210 | AA93: 221 | AB93: 319 | AC93: 0.06 | AD93: 0.75 | AE93: 0.83 | AF93: 1.69 | AG93: 0.0002083 | AH93: 1.724 | AI93: 4 | AJ93: 0.001392796 | AK93: 868 | AL93: 914 | AM93: 1320 | AN93: 0.95 | AO93: 0.95 | AP93: 0.95 | AQ93: 868 | AR93: 914 | AS93: 1320 | AT93: 373 | AU93: 393 | AV93: 568 | AW93: 2.30 | AX93: 2.55 | AY93: 5.23 | AZ93: 3.9 | BA93: 13.2 | BB93: 14.7 | BC93: 23.5 | BE93: 3796 | BG93: 68% | BJ93: 0 | BK93: 10 | BL93: 11.4 | BM93: 21.85 | BO93: 1 | BP93: 1 | BQ93: 1 | BR93: 868 | BS93: 914 | BT93: 1320 | BV93: 0 | BW93: 0 | BX93: 0 | BY93: 1 | BZ93: =IF(OR(EcoReviva!$L$6=10,EcoReviva!$L$6=15,EcoReviva!$L$6=20),1,IF(EcoReviva!$K$6<51,1,(1-(EcoReviva!$K$6-50)*0.005))) -> 1 | CN93: 11 | CO93: =CO92*2 -> 0.0133
A94: 15019520 | D94: 1 | E94: 50 | F94: 195 | G94: 20 | H94: 20.9 | I94: 0 | J94: 26 | K94: 30 | L94: 47.1 | M94: 3880 | N94: 5215 | O94: 5684 | P94: 7393 | Q94: 1.5 | R94: 1.08 | S94: 1.08 | T94: 1.08 | U94: 478 | V94: 1154 | W94: 1258 | X94: 1636 | Y94: 82 | Z94: 198 | AA94: 216 | AB94: 281 | AC94: 0.03 | AD94: 0.19 | AE94: 0.22 | AF94: 0.37 | AG94: 0.0001276 | AH94: 1.7219 | AI94: 2 | AJ94: 0.000376611 | AK94: 644 | AL94: 702 | AM94: 914 | AN94: 0.95 | AO94: 0.95 | AP94: 0.95 | AQ94: 644 | AR94: 702 | AS94: 914 | AT94: 277 | AU94: 302 | AV94: 393 | AW94: 0.36 | AX94: 0.42 | AY94: 0.70 | AZ94: 2.6 | BA94: 13.2 | BB94: 14.7 | BC94: 23.5 | BE94: 4850 | BG94: 80% | BJ94: 0 | BK94: 10 | BL94: 11.4 | BM94: 21.85 | BO94: 1 | BP94: 1 | BQ94: 1 | BR94: 644 | BS94: 702 | BT94: 914 | BV94: 0 | BW94: 0 | BX94: 0 | BY94: 1 | BZ94: =IF(OR(EcoReviva!$L$6=10,EcoReviva!$L$6=15,EcoReviva!$L$6=20),1,IF(EcoReviva!$K$6<51,1,(1-(EcoReviva!$K$6-50)*0.005))) -> 1 | CN94: 15 | CO94: =CO92*1.5 -> 0.0100
A95: 15019521 | D95: 1 | E95: 50 | F95: 195 | G95: 21 | H95: 20.9 | I95: 0 | J95: 26 | K95: 30 | L95: 47.1 | M95: 4131 | N95: 7299 | O95: 7690 | P95: 11098 | Q95: 1.5 | R95: 1.05 | S95: 1.05 | T95: 1.05 | U95: 509 | V95: 1684 | W95: 1775 | X95: 2561 | Y95: 88 | Z95: 290 | AA95: 305 | AB95: 440 | AC95: 0.06 | AD95: 0.58 | AE95: 0.64 | AF95: 1.30 | AG95: 0.0001276 | AH95: 1.7219 | AI95: 4 | AJ95: 0.000514201 | AK95: 947 | AL95: 998 | AM95: 1440 | AN95: 0.85 | AO95: 0.85 | AP95: 0.85 | AQ95: 947 | AR95: 998 | AS95: 1440 | AT95: 407 | AU95: 429 | AV95: 619 | AW95: 1.12 | AX95: 1.24 | AY95: 2.51 | AZ95: 5.2 | BA95: 13.2 | BB95: 14.7 | BC95: 23.5 | BE95: 5164 | BG95: 80% | BJ95: 0 | BK95: 10 | BL95: 11.4 | BM95: 21.85 | BO95: 1 | BP95: 1 | BQ95: 1 | BR95: 947 | BS95: 998 | BT95: 1440 | BV95: 0 | BW95: 0 | BX95: 0 | BY95: 1 | BZ95: =IF(OR(EcoReviva!$L$6=10,EcoReviva!$L$6=15,EcoReviva!$L$6=20),1,IF(EcoReviva!$K$6<51,1,(1-(EcoReviva!$K$6-50)*0.005))) -> 1 | CN95: 16 | CO95: =CO94*2 -> 0.02
A96: 15021510 | D96: 1 | E96: 50 | F96: 215 | G96: 10 | H96: 10.9 | I96: 0 | J96: 26 | K96: 30 | L96: 46.9 | M96: =IF($N96-($BE96*$BG96)>100,$BE96*$BG96,$N96-95) -> 1987 | N96: 3561 | O96: 3891 | P96: 5129 | Q96: 1.5 | R96: 1.08 | S96: 1.08 | T96: 1.08 | U96: 245 | V96: 788 | W96: 861 | X96: 1135 | Y96: 42 | Z96: 136 | AA96: 148 | AB96: 195 | AC96: 0.02 | AD96: 0.14 | AE96: 0.17 | AF96: 0.28 | AG96: 0.0003969 | AH96: 1.7346 | AI96: 2 | AJ96: 0.000367347 | AK96: 494 | AL96: 539 | AM96: 711 | AN96: 0.98 | AO96: 0.98 | AP96: 0.98 | AQ96: 494 | AR96: 539 | AS96: 711 | AT96: 212 | AU96: 232 | AV96: 306 | AW96: 0.33 | AX96: 0.39 | AY96: 0.66 | AZ96: 1.4 | BA96: 13.4 | BB96: 14.8 | BC96: 24.0 | BE96: 2208 | BG96: 90% | BJ96: 0 | BK96: 10.5 | BL96: 12.3 | BM96: 21.85 | BO96: 1 | BP96: 1 | BQ96: 1 | BR96: 494 | BS96: 539 | BT96: 711 | BV96: 0 | BW96: 0 | BX96: 0 | BY96: 1 | BZ96: =IF(OR(EcoReviva!$L$6=10,EcoReviva!$L$6=15,EcoReviva!$L$6=20),1,IF(EcoReviva!$K$6<51,1,(1-(EcoReviva!$K$6-50)*0.005))) -> 1 | CN96: 20 | CO96: =CO92*2 -> 0.0133
A97: 15021511 | D97: 1 | E97: 50 | F97: 215 | G97: 11 | H97: 10.9 | I97: 0 | J97: 26 | K97: 30 | L97: 46.9 | M97: 1934 | N97: 4831 | O97: 5279 | P97: 6959 | Q97: 1.5 | R97: 1.1 | S97: 1.1 | T97: 1.1 | U97: 238 | V97: 1040 | W97: 1136 | X97: 1498 | Y97: 41 | Z97: 179 | AA97: 195 | AB97: 258 | AC97: 0.03 | AD97: 0.43 | AE97: 0.51 | AF97: 0.85 | AG97: 0.0003969 | AH97: 1.7346 | AI97: 4 | AJ97: 0.000574288 | AK97: 809 | AL97: 884 | AM97: 1166 | AN97: 0.95 | AO97: 0.95 | AP97: 0.95 | AQ97: 809 | AR97: 884 | AS97: 1166 | AT97: 348 | AU97: 380 | AV97: 501 | AW97: 1.48 | AX97: 1.74 | AY97: 2.92 | AZ97: 2.9 | BA97: 13.4 | BB97: 14.8 | BC97: 24.0 | BE97: 2844 | BG97: 68% | BJ97: 0 | BK97: 10.5 | BL97: 12.3 | BM97: 21.85 | BO97: 1 | BP97: 1 | BQ97: 1 | BR97: 809 | BS97: 884 | BT97: 1166 | BV97: 0 | BW97: 0 | BX97: 0 | BY97: 1 | BZ97: =IF(OR(EcoReviva!$L$6=10,EcoReviva!$L$6=15,EcoReviva!$L$6=20),1,IF(EcoReviva!$K$6<51,1,(1-(EcoReviva!$K$6-50)*0.005))) -> 1 | CN97: 21 | CO97: =CO96*2 -> 0.02666666667
A98: 15021515 | D98: 1 | E98: 50 | F98: 215 | G98: 15 | H98: 15.9 | I98: 0 | J98: 26 | K98: 30 | L98: 47.8 | M98: 2847 | N98: 4303 | O98: 4482 | P98: 6541 | Q98: 1.5 | R98: 1.08 | S98: 1.08 | T98: 1.08 | U98: 350 | V98: 952 | W98: 992 | X98: 1447 | Y98: 60 | Z98: 164 | AA98: 171 | AB98: 249 | AC98: 0.03 | AD98: 0.18 | AE98: 0.19 | AF98: 0.39 | AG98: 0.0002083 | AH98: 1.724 | AI98: 2 | AJ98: 0.000461829 | AK98: 587 | AL98: 612 | AM98: 893 | AN98: 1.01 | AO98: 1.01 | AP98: 1.01 | AQ98: 587 | AR98: 612 | AS98: 893 | AT98: 252 | AU98: 263 | AV98: 384 | AW98: 0.40 | AX98: 0.43 | AY98: 0.90 | AZ98: 2.2 | BA98: 15.5 | BB98: 16.8 | BC98: 27.5 | BE98: 3559 | BG98: 80% | BJ98: 0 | BK98: 10 | BL98: 11.1 | BM98: 21.85 | BO98: 1 | BP98: 1 | BQ98: 1 | BR98: 587 | BS98: 612 | BT98: 893 | BV98: 0 | BW98: 0 | BX98: 0 | BY98: 1 | BZ98: =IF(OR(EcoReviva!$L$6=10,EcoReviva!$L$6=15,EcoReviva!$L$6=20),1,IF(EcoReviva!$K$6<51,1,(1-(EcoReviva!$K$6-50)*0.005))) -> 1
A99: 15021516 | D99: 1 | E99: 50 | F99: 215 | G99: 16 | H99: 15.9 | I99: 0 | J99: 26 | K99: 30 | L99: 47.8 | M99: 2649 | N99: 6292 | O99: 6554 | P99: 9565 | Q99: 1.5 | R99: 1.1 | S99: 1.1 | T99: 1.1 | U99: 326 | V99: 1354 | W99: 1410 | X99: 2058 | Y99: 56 | Z99: 233 | AA99: 243 | AB99: 354 | AC99: 0.06 | AD99: 0.94 | AE99: 1.02 | AF99: 2.12 | AG99: 0.0002083 | AH99: 1.724 | AI99: 4 | AJ99: 0.001392796 | AK99: 963 | AL99: 1003 | AM99: 1465 | AN99: 0.95 | AO99: 0.95 | AP99: 0.95 | AQ99: 963 | AR99: 1003 | AS99: 1465 | AT99: 414 | AU99: 431 | AV99: 630 | AW99: 2.87 | AX99: 3.11 | AY99: 6.51 | AZ99: 4.3 | BA99: 15.5 | BB99: 16.8 | BC99: 27.5 | BE99: 3895 | BG99: 68% | BJ99: 0 | BK99: 10 | BL99: 11.1 | BM99: 21.85 | BO99: 1 | BP99: 1 | BQ99: 1 | BR99: 963 | BS99: 1003 | BT99: 1465 | BV99: 0 | BW99: 0 | BX99: 0 | BY99: 1 | BZ99: =IF(OR(EcoReviva!$L$6=10,EcoReviva!$L$6=15,EcoReviva!$L$6=20),1,IF(EcoReviva!$K$6<51,1,(1-(EcoReviva!$K$6-50)*0.005))) -> 1
A100: 15021520 | D100: 1 | E100: 50 | F100: 215 | G100: 20 | H100: 20.9 | I100: 0 | J100: 26 | K100: 30 | L100: 47.8 | M100: 3981 | N100: 5697 | O100: 6224 | P100: 8205 | Q100: 1.5 | R100: 1.08 | S100: 1.08 | T100: 1.08 | U100: 490 | V100: 1261 | W100: 1377 | X100: 1816 | Y100: 84 | Z100: 217 | AA100: 237 | AB100: 312 | AC100: 0.04 | AD100: 0.23 | AE100: 0.27 | AF100: 0.46 | AG100: 0.0001276 | AH100: 1.7219 | AI100: 2 | AJ100: 0.000376611 | AK100: 704 | AL100: 769 | AM100: 1014 | AN100: 0.95 | AO100: 0.95 | AP100: 0.95 | AQ100: 704 | AR100: 769 | AS100: 1014 | AT100: 303 | AU100: 331 | AV100: 436 | AW100: 0.43 | AX100: 0.51 | AY100: 0.88 | AZ100: 2.9 | BA100: 15.5 | BB100: 16.8 | BC100: 27.5 | BE100: 4977 | BG100: 80% | BJ100: 0 | BK100: 10 | BL100: 11.1 | BM100: 21.85 | BO100: 1 | BP100: 1 | BQ100: 1 | BR100: 704 | BS100: 769 | BT100: 1014 | BV100: 0 | BW100: 0 | BX100: 0 | BY100: 1 | BZ100: =IF(OR(EcoReviva!$L$6=10,EcoReviva!$L$6=15,EcoReviva!$L$6=20),1,IF(EcoReviva!$K$6<51,1,(1-(EcoReviva!$K$6-50)*0.005))) -> 1 | CN100: Niveaus | CO100: Type | CP100: k1 | CQ100: n | CR100: t | CS100: k2
A101: 15021521 | D101: 1 | E101: 50 | F101: 215 | G101: 21 | H101: 20.9 | I101: 0 | J101: 26 | K101: 30 | L101: 47.8 | M101: 4239 | N101: 8103 | O101: 8440 | P101: 12318 | Q101: 1.5 | R101: 1.05 | S101: 1.05 | T101: 1.05 | U101: 522 | V101: 1870 | W101: 1948 | X101: 2843 | Y101: 90 | Z101: 322 | AA101: 335 | AB101: 489 | AC101: 0.06 | AD101: 0.73 | AE101: 0.79 | AF101: 1.63 | AG101: 0.0001276 | AH101: 1.7219 | AI101: 4 | AJ101: 0.000514201 | AK101: 1051 | AL101: 1095 | AM101: 1598 | AN101: 0.85 | AO101: 0.85 | AP101: 0.85 | AQ101: 1051 | AR101: 1095 | AS101: 1598 | AT101: 452 | AU101: 471 | AV101: 687 | AW101: 1.40 | AX101: 1.52 | AY101: 3.15 | AZ101: 5.7 | BA101: 15.5 | BB101: 16.8 | BC101: 27.5 | BE101: 5299 | BG101: 80% | BJ101: 0 | BK101: 10 | BL101: 11.1 | BM101: 21.85 | BO101: 1 | BP101: 1 | BQ101: 1 | BR101: 1051 | BS101: 1095 | BT101: 1598 | BV101: 0 | BW101: 0 | BX101: 0 | BY101: 1 | BZ101: =IF(OR(EcoReviva!$L$6=10,EcoReviva!$L$6=15,EcoReviva!$L$6=20),1,IF(EcoReviva!$K$6<51,1,(1-(EcoReviva!$K$6-50)*0.005))) -> 1
A102: 15023510 | D102: 1 | E102: 50 | F102: 235 | G102: 10 | H102: 10.9 | I102: 0 | J102: 26 | K102: 30 | L102: 47.2 | M102: 2324 | N102: 3860 | O102: 4229 | P102: 5637 | Q102: 1.5 | R102: 1.08 | S102: 1.08 | T102: 1.08 | U102: 286 | V102: 854 | W102: 936 | X102: 1247 | Y102: 49 | Z102: 147 | AA102: 161 | AB102: 214 | AC102: 0.02 | AD102: 0.18 | AE102: 0.21 | AF102: 0.35 | AG102: 0.0003969 | AH102: 1.7346 | AI102: 2 | AJ102: 0.000367347 | AK102: 535 | AL102: 586 | AM102: 781 | AN102: 0.98 | AO102: 0.98 | AP102: 0.98 | AQ102: 535 | AR102: 586 | AS102: 781 | AT102: 230 | AU102: 252 | AV102: 336 | AW102: 0.40 | AX102: 0.48 | AY102: 0.82 | AZ102: 1.6 | BA102: 14.8 | BB102: 16.6 | BC102: 28 | BE102: 2582 | BG102: 90% | BJ102: 0 | BK102: 10.4 | BL102: 12.2 | BM102: 21.85 | BO102: 1 | BP102: 1 | BQ102: 1 | BR102: 535 | BS102: 586 | BT102: 781 | BV102: 0 | BW102: 0 | BX102: 0 | BY102: 1 | BZ102: =IF(OR(EcoReviva!$L$6=10,EcoReviva!$L$6=15,EcoReviva!$L$6=20),1,IF(EcoReviva!$K$6<51,1,(1-(EcoReviva!$K$6-50)*0.005))) -> 1 | CN102: 1 row
A103: 15023511 | D103: 1 | E103: 50 | F103: 235 | G103: 11 | H103: 10.9 | I103: 0 | J103: 26 | K103: 30 | L103: 47.2 | M103: 2262 | N103: 5238 | O103: 5738 | P103: 7648 | Q103: 1.5 | R103: 1.1 | S103: 1.1 | T103: 1.1 | U103: 278 | V103: 1127 | W103: 1235 | X103: 1646 | Y103: 48 | Z103: 194 | AA103: 212 | AB103: 283 | AC103: 0.04 | AD103: 0.53 | AE103: 0.63 | AF103: 1.07 | AG103: 0.0003969 | AH103: 1.7346 | AI103: 4 | AJ103: 0.000574288 | AK103: 877 | AL103: 961 | AM103: 1281 | AN103: 0.95 | AO103: 0.95 | AP103: 0.95 | AQ103: 877 | AR103: 961 | AS103: 1281 | AT103: 377 | AU103: 413 | AV103: 551 | AW103: 1.81 | AX103: 2.14 | AY103: 3.66 | AZ103: 3.1 | BA103: 14.8 | BB103: 16.6 | BC103: 28 | BE103: 3326 | BG103: 68% | BJ103: 0 | BK103: 10.4 | BL103: 12.2 | BM103: 21.85 | BO103: 1 | BP103: 1 | BQ103: 1 | BR103: 877 | BS103: 961 | BT103: 1281 | BV103: 0 | BW103: 0 | BX103: 0 | BY103: 1 | BZ103: =IF(OR(EcoReviva!$L$6=10,EcoReviva!$L$6=15,EcoReviva!$L$6=20),1,IF(EcoReviva!$K$6<51,1,(1-(EcoReviva!$K$6-50)*0.005))) -> 1 | CN103: 1 | CO103: 4 | CP103: 0.001382333883 | CQ103: 1.723172228 | CR103: 1 | CS103: 0.0003329081633
A104: 15023515 | D104: 1 | E104: 50 | F104: 235 | G104: 15 | H104: 15.9 | I104: 0 | J104: 26 | K104: 30 | L104: 48.1 | M104: 3330 | N104: 4730 | O104: 4902 | P104: 7188 | Q104: 1.5 | R104: 1.08 | S104: 1.08 | T104: 1.08 | U104: 410 | V104: 1047 | W104: 1085 | X104: 1591 | Y104: 71 | Z104: 180 | AA104: 187 | AB104: 274 | AC104: 0.04 | AD104: 0.22 | AE104: 0.23 | AF104: 0.48 | AG104: 0.0002083 | AH104: 1.724 | AI104: 2 | AJ104: 0.000461829 | AK104: 646 | AL104: 669 | AM104: 981 | AN104: 1.01 | AO104: 1.01 | AP104: 1.01 | AQ104: 646 | AR104: 669 | AS104: 981 | AT104: 278 | AU104: 288 | AV104: 422 | AW104: 0.50 | AX104: 0.53 | AY104: 1.11 | AZ104: 2.4 | BA104: 16.4 | BB104: 17.7 | BC104: 29.7 | BE104: 4162 | BG104: 80% | BJ104: 0 | BK104: 10 | BL104: 10.9 | BM104: 21.85 | BO104: 1 | BP104: 1 | BQ104: 1 | BR104: 646 | BS104: 669 | BT104: 981 | BV104: 0 | BW104: 0 | BX104: 0 | BY104: 1 | BZ104: =IF(OR(EcoReviva!$L$6=10,EcoReviva!$L$6=15,EcoReviva!$L$6=20),1,IF(EcoReviva!$K$6<51,1,(1-(EcoReviva!$K$6-50)*0.005))) -> 1 | CN104: 2 | CO104: 5 | CP104: 0.000937 | CQ104: 1.789 | CR104: 2 | CS104: 0.000446
A105: 15023516 | D105: 1 | E105: 50 | F105: 235 | G105: 16 | H105: 15.9 | I105: 0 | J105: 26 | K105: 30 | L105: 48.1 | M105: 3097 | N105: 6916 | O105: 7168 | P105: 10512 | Q105: 1.5 | R105: 1.1 | S105: 1.1 | T105: 1.1 | U105: 381 | V105: 1488 | W105: 1543 | X105: 2262 | Y105: 66 | Z105: 256 | AA105: 265 | AB105: 389 | AC105: 0.08 | AD105: 1.15 | AE105: 1.23 | AF105: 2.59 | AG105: 0.0002083 | AH105: 1.724 | AI105: 4 | AJ105: 0.001392796 | AK105: 1059 | AL105: 1098 | AM105: 1610 | AN105: 0.95 | AO105: 0.95 | AP105: 0.95 | AQ105: 1059 | AR105: 1098 | AS105: 1610 | AT105: 455 | AU105: 472 | AV105: 692 | AW105: 3.51 | AX105: 3.77 | AY105: 7.96 | AZ105: 4.7 | BA105: 16.4 | BB105: 17.7 | BC105: 29.7 | BE105: 4555 | BG105: 68% | BJ105: 0 | BK105: 10 | BL105: 10.9 | BM105: 21.85 | BO105: 1 | BP105: 1 | BQ105: 1 | BR105: 1059 | BS105: 1098 | BT105: 1610 | BV105: 0 | BW105: 0 | BX105: 0 | BY105: 1 | BZ105: =IF(OR(EcoReviva!$L$6=10,EcoReviva!$L$6=15,EcoReviva!$L$6=20),1,IF(EcoReviva!$K$6<51,1,(1-(EcoReviva!$K$6-50)*0.005))) -> 1 | CN105: 4 | CO105: 6 | CP105: 0.000937 | CQ105: 1.789 | CR105: 4 | CS105: 0.00139
A106: 15023520 | D106: 1 | E106: 50 | F106: 235 | G106: 20 | H106: 20.9 | I106: 0 | J106: 26 | K106: 30 | L106: 48.1 | M106: 4656 | N106: 6176 | O106: 6766 | P106: 9018 | Q106: 1.5 | R106: 1.08 | S106: 1.08 | T106: 1.08 | U106: 573 | V106: 1367 | W106: 1497 | X106: 1996 | Y106: 99 | Z106: 235 | AA106: 257 | AB106: 343 | AC106: 0.05 | AD106: 0.27 | AE106: 0.32 | AF106: 0.56 | AG106: 0.0001276 | AH106: 1.7219 | AI106: 2 | AJ106: 0.000376611 | AK106: 763 | AL106: 836 | AM106: 1114 | AN106: 0.95 | AO106: 0.95 | AP106: 0.95 | AQ106: 763 | AR106: 836 | AS106: 1114 | AT106: 328 | AU106: 359 | AV106: 479 | AW106: 0.52 | AX106: 0.61 | AY106: 1.07 | AZ106: 3.1 | BA106: 16.4 | BB106: 17.7 | BC106: 29.7 | BE106: 5820 | BG106: 80% | BJ106: 0 | BK106: 10 | BL106: 10.9 | BM106: 21.85 | BO106: 1 | BP106: 1 | BQ106: 1 | BR106: 763 | BS106: 836 | BT106: 1114 | BV106: 0 | BW106: 0 | BX106: 0 | BY106: 1 | BZ106: =IF(OR(EcoReviva!$L$6=10,EcoReviva!$L$6=15,EcoReviva!$L$6=20),1,IF(EcoReviva!$K$6<51,1,(1-(EcoReviva!$K$6-50)*0.005))) -> 1 | CN106: 2 rows
A107: 15023521 | D107: 1 | E107: 50 | F107: 235 | G107: 21 | H107: 20.9 | I107: 0 | J107: 26 | K107: 30 | L107: 48.1 | M107: 4958 | N107: 8907 | O107: 9231 | P107: 13538 | Q107: 1.5 | R107: 1.05 | S107: 1.05 | T107: 1.05 | U107: 610 | V107: 2056 | W107: 2130 | X107: 3124 | Y107: 105 | Z107: 354 | AA107: 366 | AB107: 537 | AC107: 0.09 | AD107: 0.90 | AE107: 0.96 | AF107: 2.01 | AG107: 0.0001276 | AH107: 1.7219 | AI107: 4 | AJ107: 0.000514201 | AK107: 1155 | AL107: 1197 | AM107: 1756 | AN107: 0.85 | AO107: 0.85 | AP107: 0.85 | AQ107: 1155 | AR107: 1197 | AS107: 1756 | AT107: 497 | AU107: 515 | AV107: 755 | AW107: 1.73 | AX107: 1.85 | AY107: 3.87 | AZ107: 6.3 | BA107: 16.4 | BB107: 17.7 | BC107: 29.7 | BE107: 6197 | BG107: 80% | BJ107: 0 | BK107: 10 | BL107: 10.9 | BM107: 21.85 | BO107: 1 | BP107: 1 | BQ107: 1 | BR107: 1155 | BS107: 1197 | BT107: 1756 | BV107: 0 | BW107: 0 | BX107: 0 | BY107: 1 | BZ107: =IF(OR(EcoReviva!$L$6=10,EcoReviva!$L$6=15,EcoReviva!$L$6=20),1,IF(EcoReviva!$K$6<51,1,(1-(EcoReviva!$K$6-50)*0.005))) -> 1 | CN107: 1 | CO107: 9 | CP107: 0.000805344706 | CQ107: 1.813864716 | CR107: 2 | CS107: 0.0003979505047
A108: 2405510 | D108: 2 | E108: 40 | F108: 55 | G108: 10 | H108: 10.9 | I108: ="" ->  | J108: ="" ->  | K108: ="" ->  | L108: ="" ->  | M108: 412 | N108: 412 | O108: 412 | P108: 412 | Q108: 1.4027 | R108: 1.4027 | S108: 1.4027 | T108: 1.4027 | U108: 58 | V108: 58 | W108: 58 | X108: 58 | Y108: 10 | Z108: 10 | AA108: 10 | AB108: 10 | AC108: 0.00 | AD108: 0.00 | AE108: 0.00 | AF108: 0.00 | AG108: 0.0003969 | AH108: 1.7346 | AI108: 2 | AJ108: 0.000367347 | AK108: ="" ->  | AL108: ="" ->  | AM108: ="" ->  | AZ108: 0.4 | BA108: ="" ->  | BB108: ="" ->  | BC108: ="" ->  | BG108: 90% | CN108: 2 | CO108: 10 | CP108: 0.0003969 | CQ108: 1.7346 | CR108: 2 | CS108: 0.000367347
A109: 2406510 | D109: 2 | E109: 40 | F109: 65 | G109: 10 | H109: 10.9 | I109: ="" ->  | J109: ="" ->  | K109: ="" ->  | L109: ="" ->  | M109: 510 | N109: 510 | O109: 510 | P109: 510 | Q109: 1.4027 | R109: 1.4027 | S109: 1.4027 | T109: 1.4027 | U109: 72 | V109: 72 | W109: 72 | X109: 72 | Y109: 12 | Z109: 12 | AA109: 12 | AB109: 12 | AC109: 0.00 | AD109: 0.00 | AE109: 0.00 | AF109: 0.00 | AG109: 0.0003969 | AH109: 1.7346 | AI109: 2 | AJ109: 0.000367347 | AK109: ="" ->  | AL109: ="" ->  | AM109: ="" ->  | AZ109: 0.4 | BA109: ="" ->  | BB109: ="" ->  | BC109: ="" ->  | BG109: 90% | CN109: 4 | CO109: 11 | CP109: 0.0003969 | CQ109: 1.7346 | CR109: 4 | CS109: 0.000574288
A110: 2407510 | D110: 2 | E110: 40 | F110: 75 | G110: 10 | H110: 10.9 | I110: ="" ->  | J110: ="" ->  | K110: ="" ->  | L110: ="" ->  | M110: 608 | N110: 608 | O110: 608 | P110: 608 | Q110: 1.4027 | R110: 1.4027 | S110: 1.4027 | T110: 1.4027 | U110: 86 | V110: 86 | W110: 86 | X110: 86 | Y110: 15 | Z110: 15 | AA110: 15 | AB110: 15 | AC110: 0.00 | AD110: 0.00 | AE110: 0.00 | AF110: 0.00 | AG110: 0.0003969 | AH110: 1.7346 | AI110: 2 | AJ110: 0.000367347 | AK110: ="" ->  | AL110: ="" ->  | AM110: ="" ->  | AZ110: 0.5 | BA110: ="" ->  | BB110: ="" ->  | BC110: ="" ->  | BG110: 90% | CN110: 3 rows
A111: 2408510 | D111: 2 | E111: 40 | F111: 85 | G111: 10 | H111: 10.9 | I111: ="" ->  | J111: ="" ->  | K111: ="" ->  | L111: ="" ->  | M111: 706 | N111: 706 | O111: 706 | P111: 706 | Q111: 1.4027 | R111: 1.4027 | S111: 1.4027 | T111: 1.4027 | U111: 99 | V111: 99 | W111: 99 | X111: 99 | Y111: 17 | Z111: 17 | AA111: 17 | AB111: 17 | AC111: 0.00 | AD111: 0.00 | AE111: 0.00 | AF111: 0.00 | AG111: 0.0003969 | AH111: 1.7346 | AI111: 2 | AJ111: 0.000367347 | AK111: ="" ->  | AL111: ="" ->  | AM111: ="" ->  | AZ111: 0.6 | BA111: ="" ->  | BB111: ="" ->  | BC111: ="" ->  | BG111: 90% | CN111: 1 | CO111: 14 | CP111: 0.002558239829 | CQ111: 1.494274772 | CR111: 3 | CS111: 0.0005616169468
A112: 2409510 | D112: 2 | E112: 40 | F112: 95 | G112: 10 | H112: 10.9 | I112: ="" ->  | J112: ="" ->  | K112: ="" ->  | L112: ="" ->  | M112: 804 | N112: 804 | O112: 804 | P112: 804 | Q112: 1.4027 | R112: 1.4027 | S112: 1.4027 | T112: 1.4027 | U112: 113 | V112: 113 | W112: 113 | X112: 113 | Y112: 19 | Z112: 19 | AA112: 19 | AB112: 19 | AC112: 0.00 | AD112: 0.00 | AE112: 0.00 | AF112: 0.00 | AG112: 0.0003969 | AH112: 1.7346 | AI112: 2 | AJ112: 0.000367347 | AK112: ="" ->  | AL112: ="" ->  | AM112: ="" ->  | AZ112: 0.6 | BA112: ="" ->  | BB112: ="" ->  | BC112: ="" ->  | BG112: 90% | CN112: 2 | CO112: 15 | CP112: 0.0002083 | CQ112: 1.724 | CR112: 2 | CS112: 0.000461829
A113: 24010510 | D113: 2 | E113: 40 | F113: 105 | G113: 10 | H113: 10.9 | I113: ="" ->  | J113: ="" ->  | K113: ="" ->  | L113: ="" ->  | M113: 902 | N113: 902 | O113: 902 | P113: 902 | Q113: 1.4027 | R113: 1.4027 | S113: 1.4027 | T113: 1.4027 | U113: 127 | V113: 127 | W113: 127 | X113: 127 | Y113: 22 | Z113: 22 | AA113: 22 | AB113: 22 | AC113: 0.00 | AD113: 0.00 | AE113: 0.00 | AF113: 0.00 | AG113: 0.0003969 | AH113: 1.7346 | AI113: 2 | AJ113: 0.000367347 | AK113: ="" ->  | AL113: ="" ->  | AM113: ="" ->  | AZ113: 0.7 | BA113: ="" ->  | BB113: ="" ->  | BC113: ="" ->  | BG113: 90% | CN113: 4 | CO113: 16 | CP113: 0.0002083 | CQ113: 1.724 | CR113: 4 | CS113: 0.001392796
A114: 24011510 | D114: 2 | E114: 40 | F114: 115 | G114: 10 | H114: 10.9 | I114: ="" ->  | J114: ="" ->  | K114: ="" ->  | L114: ="" ->  | M114: 1000 | N114: 1000 | O114: 1000 | P114: 1000 | Q114: 1.4027 | R114: 1.4027 | S114: 1.4027 | T114: 1.4027 | U114: 141 | V114: 141 | W114: 141 | X114: 141 | Y114: 24 | Z114: 24 | AA114: 24 | AB114: 24 | AC114: 0.00 | AD114: 0.00 | AE114: 0.00 | AF114: 0.00 | AG114: 0.0003969 | AH114: 1.7346 | AI114: 2 | AJ114: 0.000367347 | AK114: ="" ->  | AL114: ="" ->  | AM114: ="" ->  | AZ114: 0.8 | BA114: ="" ->  | BB114: ="" ->  | BC114: ="" ->  | BG114: 90% | CN114: 4 rows
A115: 24013510 | D115: 2 | E115: 40 | F115: 135 | G115: 10 | H115: 10.9 | I115: ="" ->  | J115: ="" ->  | K115: ="" ->  | L115: ="" ->  | M115: 1196 | N115: 1196 | O115: 1196 | P115: 1196 | Q115: 1.4027 | R115: 1.4027 | S115: 1.4027 | T115: 1.4027 | U115: 169 | V115: 169 | W115: 169 | X115: 169 | Y115: 29 | Z115: 29 | AA115: 29 | AB115: 29 | AC115: 0.01 | AD115: 0.01 | AE115: 0.01 | AF115: 0.01 | AG115: 0.0003969 | AH115: 1.7346 | AI115: 2 | AJ115: 0.000367347 | AK115: ="" ->  | AL115: ="" ->  | AM115: ="" ->  | AN115: ="" ->  | AO115: ="" ->  | AP115: ="" ->  | AQ115: ="" ->  | AR115: ="" ->  | AS115: ="" ->  | AT115: ="" ->  | AU115: ="" ->  | AV115: ="" ->  | AW115: ="" ->  | AX115: ="" ->  | AY115: ="" ->  | AZ115: 0.9 | BA115: ="" ->  | BB115: ="" ->  | BC115: ="" ->  | BG115: 90% | CN115: 1 | CO115: 19 | CP115: 0.01161629289 | CQ115: 1.586934682 | CR115: 1 | CS115: 0.001655322747
A116: 24015510 | D116: 2 | E116: 40 | F116: 155 | G116: 10 | H116: 10.9 | I116: ="" ->  | J116: ="" ->  | K116: ="" ->  | L116: ="" ->  | M116: 1392 | N116: 1392 | O116: 1392 | P116: 1392 | Q116: 1.4027 | R116: 1.4027 | S116: 1.4027 | T116: 1.4027 | U116: 196 | V116: 196 | W116: 196 | X116: 196 | Y116: 34 | Z116: 34 | AA116: 34 | AB116: 34 | AC116: 0.01 | AD116: 0.01 | AE116: 0.01 | AF116: 0.01 | AG116: 0.0003969 | AH116: 1.7346 | AI116: 2 | AJ116: 0.000367347 | AK116: ="" ->  | AL116: ="" ->  | AM116: ="" ->  | AN116: ="" ->  | AO116: ="" ->  | AP116: ="" ->  | AQ116: ="" ->  | AR116: ="" ->  | AS116: ="" ->  | AT116: ="" ->  | AU116: ="" ->  | AV116: ="" ->  | AW116: ="" ->  | AX116: ="" ->  | AY116: ="" ->  | AZ116: 1.0 | BA116: ="" ->  | BB116: ="" ->  | BC116: ="" ->  | BG116: 90% | CN116: 2 | CO116: 20 | CP116: 0.0001276 | CQ116: 1.7219 | CR116: 2 | CS116: 0.000376611
A117: 24017510 | D117: 2 | E117: 40 | F117: 175 | G117: 10 | H117: 10.9 | I117: ="" ->  | J117: ="" ->  | K117: ="" ->  | L117: ="" ->  | M117: 1588 | N117: 1588 | O117: 1588 | P117: 1588 | Q117: 1.4027 | R117: 1.4027 | S117: 1.4027 | T117: 1.4027 | U117: 224 | V117: 224 | W117: 224 | X117: 224 | Y117: 39 | Z117: 39 | AA117: 39 | AB117: 39 | AC117: 0.01 | AD117: 0.01 | AE117: 0.01 | AF117: 0.01 | AG117: 0.0003969 | AH117: 1.7346 | AI117: 2 | AJ117: 0.000367347 | AK117: ="" ->  | AL117: ="" ->  | AM117: ="" ->  | AN117: ="" ->  | AO117: ="" ->  | AP117: ="" ->  | AQ117: ="" ->  | AR117: ="" ->  | AS117: ="" ->  | AT117: ="" ->  | AU117: ="" ->  | AV117: ="" ->  | AW117: ="" ->  | AX117: ="" ->  | AY117: ="" ->  | AZ117: 1.2 | BA117: ="" ->  | BB117: ="" ->  | BC117: ="" ->  | BG117: 90% | CN117: 4 | CO117: 21 | CP117: 0.0001276 | CQ117: 1.7219 | CR117: 4 | CS117: 0.000514201
A118: 24019510 | D118: 2 | E118: 40 | F118: 195 | G118: 10 | H118: 10.9 | I118: ="" ->  | J118: ="" ->  | K118: ="" ->  | L118: ="" ->  | M118: 1784 | N118: 1784 | O118: 1784 | P118: 1784 | Q118: 1.4027 | R118: 1.4027 | S118: 1.4027 | T118: 1.4027 | U118: 252 | V118: 252 | W118: 252 | X118: 252 | Y118: 43 | Z118: 43 | AA118: 43 | AB118: 43 | AC118: 0.02 | AD118: 0.02 | AE118: 0.02 | AF118: 0.02 | AG118: 0.0003969 | AH118: 1.7346 | AI118: 2 | AJ118: 0.000367347 | AK118: ="" ->  | AL118: ="" ->  | AM118: ="" ->  | AN118: ="" ->  | AO118: ="" ->  | AP118: ="" ->  | AQ118: ="" ->  | AR118: ="" ->  | AS118: ="" ->  | AT118: ="" ->  | AU118: ="" ->  | AV118: ="" ->  | AW118: ="" ->  | AX118: ="" ->  | AY118: ="" ->  | AZ118: 1.3 | BA118: ="" ->  | BB118: ="" ->  | BC118: ="" ->  | BG118: 90%
A119: 24021510 | D119: 2 | E119: 40 | F119: 215 | G119: 10 | H119: 10.9 | I119: ="" ->  | J119: ="" ->  | K119: ="" ->  | L119: ="" ->  | M119: 1980 | N119: 1980 | O119: 1980 | P119: 1980 | Q119: 1.4027 | R119: 1.4027 | S119: 1.4027 | T119: 1.4027 | U119: 279 | V119: 279 | W119: 279 | X119: 279 | Y119: 48 | Z119: 48 | AA119: 48 | AB119: 48 | AC119: 0.02 | AD119: 0.02 | AE119: 0.02 | AF119: 0.02 | AG119: 0.0003969 | AH119: 1.7346 | AI119: 2 | AJ119: 0.000367347 | AK119: ="" ->  | AL119: ="" ->  | AM119: ="" ->  | AN119: ="" ->  | AO119: ="" ->  | AP119: ="" ->  | AQ119: ="" ->  | AR119: ="" ->  | AS119: ="" ->  | AT119: ="" ->  | AU119: ="" ->  | AV119: ="" ->  | AW119: ="" ->  | AX119: ="" ->  | AY119: ="" ->  | AZ119: 1.4 | BA119: ="" ->  | BB119: ="" ->  | BC119: ="" ->  | BG119: 90% | CN119: =CN111 -> 1 | CO119: 7 | CP119: =CP111 -> 0.002558239829 | CQ119: =CQ111 -> 1.494274772 | CR119: =CR111 -> 3 | CS119: =CS111 -> 0.0005616169468
A120: 24023510 | D120: 2 | E120: 40 | F120: 235 | G120: 10 | H120: 10.9 | I120: ="" ->  | J120: ="" ->  | K120: ="" ->  | L120: ="" ->  | M120: 2176 | N120: 2176 | O120: 2176 | P120: 2176 | Q120: 1.4027 | R120: 1.4027 | S120: 1.4027 | T120: 1.4027 | U120: 307 | V120: 307 | W120: 307 | X120: 307 | Y120: 53 | Z120: 53 | AA120: 53 | AB120: 53 | AC120: 0.03 | AD120: 0.03 | AE120: 0.03 | AF120: 0.03 | AG120: 0.0003969 | AH120: 1.7346 | AI120: 2 | AJ120: 0.000367347 | AK120: ="" ->  | AL120: ="" ->  | AM120: ="" ->  | AN120: ="" ->  | AO120: ="" ->  | AP120: ="" ->  | AQ120: ="" ->  | AR120: ="" ->  | AS120: ="" ->  | AT120: ="" ->  | AU120: ="" ->  | AV120: ="" ->  | AW120: ="" ->  | AX120: ="" ->  | AY120: ="" ->  | AZ120: 1.6 | BA120: ="" ->  | BB120: ="" ->  | BC120: ="" ->  | BG120: 90% | CN120: =CN105 -> 4 | CO120: 8 | CP120: =CP105 -> 0.000937 | CQ120: =CQ105 -> 1.789 | CR120: =CR105 -> 4 | CS120: =CS105 -> 0.00139
A121: 2455510 | D121: 2 | E121: 45 | F121: 55 | G121: 10 | H121: 10.9 | I121: ="" ->  | J121: ="" ->  | K121: ="" ->  | L121: ="" ->  | M121: 432 | N121: 432 | O121: 432 | P121: 432 | Q121: 1.3915 | R121: 1.3915 | S121: 1.3915 | T121: 1.3915 | U121: 62 | V121: 62 | W121: 62 | X121: 62 | Y121: 11 | Z121: 11 | AA121: 11 | AB121: 11 | AC121: 0.00 | AD121: 0.00 | AE121: 0.00 | AF121: 0.00 | AG121: 0.0003969 | AH121: 1.7346 | AI121: 2 | AJ121: 0.000367347 | AK121: ="" ->  | AL121: ="" ->  | AM121: ="" ->  | AN121: ="" ->  | AO121: ="" ->  | AP121: ="" ->  | AQ121: ="" ->  | AR121: ="" ->  | AS121: ="" ->  | AT121: ="" ->  | AU121: ="" ->  | AV121: ="" ->  | AW121: ="" ->  | AX121: ="" ->  | AY121: ="" ->  | AZ121: 0.4 | BA121: ="" ->  | BB121: ="" ->  | BC121: ="" ->  | BG121: 90%
A122: 2456510 | D122: 2 | E122: 45 | F122: 65 | G122: 10 | H122: 10.9 | I122: ="" ->  | J122: ="" ->  | K122: ="" ->  | L122: ="" ->  | M122: 535 | N122: 535 | O122: 535 | P122: 535 | Q122: 1.3915 | R122: 1.3915 | S122: 1.3915 | T122: 1.3915 | U122: 77 | V122: 77 | W122: 77 | X122: 77 | Y122: 13 | Z122: 13 | AA122: 13 | AB122: 13 | AC122: 0.00 | AD122: 0.00 | AE122: 0.00 | AF122: 0.00 | AG122: 0.0003969 | AH122: 1.7346 | AI122: 2 | AJ122: 0.000367347 | AK122: ="" ->  | AL122: ="" ->  | AM122: ="" ->  | AN122: ="" ->  | AO122: ="" ->  | AP122: ="" ->  | AQ122: ="" ->  | AR122: ="" ->  | AS122: ="" ->  | AT122: ="" ->  | AU122: ="" ->  | AV122: ="" ->  | AW122: ="" ->  | AX122: ="" ->  | AY122: ="" ->  | AZ122: 0.4 | BA122: ="" ->  | BB122: ="" ->  | BC122: ="" -> 
A123: 2457510 | D123: 2 | E123: 45 | F123: 75 | G123: 10 | H123: 10.9 | I123: ="" ->  | J123: ="" ->  | K123: ="" ->  | L123: ="" ->  | M123: 638 | N123: 638 | O123: 638 | P123: 638 | Q123: 1.3915 | R123: 1.3915 | S123: 1.3915 | T123: 1.3915 | U123: 91 | V123: 91 | W123: 91 | X123: 91 | Y123: 16 | Z123: 16 | AA123: 16 | AB123: 16 | AC123: 0.00 | AD123: 0.00 | AE123: 0.00 | AF123: 0.00 | AG123: 0.0003969 | AH123: 1.7346 | AI123: 2 | AJ123: 0.000367347 | AK123: ="" ->  | AL123: ="" ->  | AM123: ="" ->  | AN123: ="" ->  | AO123: ="" ->  | AP123: ="" ->  | AQ123: ="" ->  | AR123: ="" ->  | AS123: ="" ->  | AT123: ="" ->  | AU123: ="" ->  | AV123: ="" ->  | AW123: ="" ->  | AX123: ="" ->  | AY123: ="" ->  | AZ123: 0.5 | BA123: ="" ->  | BB123: ="" ->  | BC123: ="" -> 
A124: 2458510 | D124: 2 | E124: 45 | F124: 85 | G124: 10 | H124: 10.9 | I124: ="" ->  | J124: ="" ->  | K124: ="" ->  | L124: ="" ->  | M124: 741 | N124: 741 | O124: 741 | P124: 741 | Q124: 1.3915 | R124: 1.3915 | S124: 1.3915 | T124: 1.3915 | U124: 106 | V124: 106 | W124: 106 | X124: 106 | Y124: 18 | Z124: 18 | AA124: 18 | AB124: 18 | AC124: 0.00 | AD124: 0.00 | AE124: 0.00 | AF124: 0.00 | AG124: 0.0003969 | AH124: 1.7346 | AI124: 2 | AJ124: 0.000367347 | AK124: ="" ->  | AL124: ="" ->  | AM124: ="" ->  | AN124: ="" ->  | AO124: ="" ->  | AP124: ="" ->  | AQ124: ="" ->  | AR124: ="" ->  | AS124: ="" ->  | AT124: ="" ->  | AU124: ="" ->  | AV124: ="" ->  | AW124: ="" ->  | AX124: ="" ->  | AY124: ="" ->  | AZ124: 0.6 | BA124: ="" ->  | BB124: ="" ->  | BC124: ="" -> 
A125: 2459510 | D125: 2 | E125: 45 | F125: 95 | G125: 10 | H125: 10.9 | I125: ="" ->  | J125: ="" ->  | K125: ="" ->  | L125: ="" ->  | M125: 844 | N125: 844 | O125: 844 | P125: 844 | Q125: 1.3915 | R125: 1.3915 | S125: 1.3915 | T125: 1.3915 | U125: 121 | V125: 121 | W125: 121 | X125: 121 | Y125: 21 | Z125: 21 | AA125: 21 | AB125: 21 | AC125: 0.00 | AD125: 0.00 | AE125: 0.00 | AF125: 0.00 | AG125: 0.0003969 | AH125: 1.7346 | AI125: 2 | AJ125: 0.000367347 | AK125: ="" ->  | AL125: ="" ->  | AM125: ="" ->  | AN125: ="" ->  | AO125: ="" ->  | AP125: ="" ->  | AQ125: ="" ->  | AR125: ="" ->  | AS125: ="" ->  | AT125: ="" ->  | AU125: ="" ->  | AV125: ="" ->  | AW125: ="" ->  | AX125: ="" ->  | AY125: ="" ->  | AZ125: 0.6 | BA125: ="" ->  | BB125: ="" ->  | BC125: ="" -> 
A126: 24510510 | D126: 2 | E126: 45 | F126: 105 | G126: 10 | H126: 10.9 | I126: ="" ->  | J126: ="" ->  | K126: ="" ->  | L126: ="" ->  | M126: 947 | N126: 947 | O126: 947 | P126: 947 | Q126: 1.3915 | R126: 1.3915 | S126: 1.3915 | T126: 1.3915 | U126: 136 | V126: 136 | W126: 136 | X126: 136 | Y126: 23 | Z126: 23 | AA126: 23 | AB126: 23 | AC126: 0.00 | AD126: 0.00 | AE126: 0.00 | AF126: 0.00 | AG126: 0.0003969 | AH126: 1.7346 | AI126: 2 | AJ126: 0.000367347 | AK126: ="" ->  | AL126: ="" ->  | AM126: ="" ->  | AN126: ="" ->  | AO126: ="" ->  | AP126: ="" ->  | AQ126: ="" ->  | AR126: ="" ->  | AS126: ="" ->  | AT126: ="" ->  | AU126: ="" ->  | AV126: ="" ->  | AW126: ="" ->  | AX126: ="" ->  | AY126: ="" ->  | AZ126: 0.7 | BA126: ="" ->  | BB126: ="" ->  | BC126: ="" -> 
A127: 24511510 | D127: 2 | E127: 45 | F127: 115 | G127: 10 | H127: 10.9 | I127: ="" ->  | J127: ="" ->  | K127: ="" ->  | L127: ="" ->  | M127: 1050 | N127: 1050 | O127: 1050 | P127: 1050 | Q127: 1.3915 | R127: 1.3915 | S127: 1.3915 | T127: 1.3915 | U127: 150 | V127: 150 | W127: 150 | X127: 150 | Y127: 26 | Z127: 26 | AA127: 26 | AB127: 26 | AC127: 0.00 | AD127: 0.00 | AE127: 0.00 | AF127: 0.00 | AG127: 0.0003969 | AH127: 1.7346 | AI127: 2 | AJ127: 0.000367347 | AK127: ="" ->  | AL127: ="" ->  | AM127: ="" ->  | AN127: ="" ->  | AO127: ="" ->  | AP127: ="" ->  | AQ127: ="" ->  | AR127: ="" ->  | AS127: ="" ->  | AT127: ="" ->  | AU127: ="" ->  | AV127: ="" ->  | AW127: ="" ->  | AX127: ="" ->  | AY127: ="" ->  | AZ127: 0.8 | BA127: ="" ->  | BB127: ="" ->  | BC127: ="" -> 
A128: 24513510 | D128: 2 | E128: 45 | F128: 135 | G128: 10 | H128: 10.9 | I128: ="" ->  | J128: ="" ->  | K128: ="" ->  | L128: ="" ->  | M128: 1255 | N128: 1255 | O128: 1255 | P128: 1255 | Q128: 1.3915 | R128: 1.3915 | S128: 1.3915 | T128: 1.3915 | U128: 180 | V128: 180 | W128: 180 | X128: 180 | Y128: 31 | Z128: 31 | AA128: 31 | AB128: 31 | AC128: 0.01 | AD128: 0.01 | AE128: 0.01 | AF128: 0.01 | AG128: 0.0003969 | AH128: 1.7346 | AI128: 2 | AJ128: 0.000367347 | AK128: ="" ->  | AL128: ="" ->  | AM128: ="" ->  | AN128: ="" ->  | AO128: ="" ->  | AP128: ="" ->  | AQ128: ="" ->  | AR128: ="" ->  | AS128: ="" ->  | AT128: ="" ->  | AU128: ="" ->  | AV128: ="" ->  | AW128: ="" ->  | AX128: ="" ->  | AY128: ="" ->  | AZ128: 0.9 | BA128: ="" ->  | BB128: ="" ->  | BC128: ="" -> 
A129: 24515510 | D129: 2 | E129: 45 | F129: 155 | G129: 10 | H129: 10.9 | I129: ="" ->  | J129: ="" ->  | K129: ="" ->  | L129: ="" ->  | M129: 1461 | N129: 1461 | O129: 1461 | P129: 1461 | Q129: 1.3915 | R129: 1.3915 | S129: 1.3915 | T129: 1.3915 | U129: 209 | V129: 209 | W129: 209 | X129: 209 | Y129: 36 | Z129: 36 | AA129: 36 | AB129: 36 | AC129: 0.01 | AD129: 0.01 | AE129: 0.01 | AF129: 0.01 | AG129: 0.0003969 | AH129: 1.7346 | AI129: 2 | AJ129: 0.000367347 | AK129: ="" ->  | AL129: ="" ->  | AM129: ="" ->  | AN129: ="" ->  | AO129: ="" ->  | AP129: ="" ->  | AQ129: ="" ->  | AR129: ="" ->  | AS129: ="" ->  | AT129: ="" ->  | AU129: ="" ->  | AV129: ="" ->  | AW129: ="" ->  | AX129: ="" ->  | AY129: ="" ->  | AZ129: 1.0 | BA129: ="" ->  | BB129: ="" ->  | BC129: ="" -> 
A130: 24517510 | D130: 2 | E130: 45 | F130: 175 | G130: 10 | H130: 10.9 | I130: ="" ->  | J130: ="" ->  | K130: ="" ->  | L130: ="" ->  | M130: 1667 | N130: 1667 | O130: 1667 | P130: 1667 | Q130: 1.3915 | R130: 1.3915 | S130: 1.3915 | T130: 1.3915 | U130: 239 | V130: 239 | W130: 239 | X130: 239 | Y130: 41 | Z130: 41 | AA130: 41 | AB130: 41 | AC130: 0.01 | AD130: 0.01 | AE130: 0.01 | AF130: 0.01 | AG130: 0.0003969 | AH130: 1.7346 | AI130: 2 | AJ130: 0.000367347 | AK130: ="" ->  | AL130: ="" ->  | AM130: ="" ->  | AN130: ="" ->  | AO130: ="" ->  | AP130: ="" ->  | AQ130: ="" ->  | AR130: ="" ->  | AS130: ="" ->  | AT130: ="" ->  | AU130: ="" ->  | AV130: ="" ->  | AW130: ="" ->  | AX130: ="" ->  | AY130: ="" ->  | AZ130: 1.2 | BA130: ="" ->  | BB130: ="" ->  | BC130: ="" -> 
A131: 24519510 | D131: 2 | E131: 45 | F131: 195 | G131: 10 | H131: 10.9 | I131: ="" ->  | J131: ="" ->  | K131: ="" ->  | L131: ="" ->  | M131: 1873 | N131: 1873 | O131: 1873 | P131: 1873 | Q131: 1.3915 | R131: 1.3915 | S131: 1.3915 | T131: 1.3915 | U131: 268 | V131: 268 | W131: 268 | X131: 268 | Y131: 46 | Z131: 46 | AA131: 46 | AB131: 46 | AC131: 0.02 | AD131: 0.02 | AE131: 0.02 | AF131: 0.02 | AG131: 0.0003969 | AH131: 1.7346 | AI131: 2 | AJ131: 0.000367347 | AK131: ="" ->  | AL131: ="" ->  | AM131: ="" ->  | AN131: ="" ->  | AO131: ="" ->  | AP131: ="" ->  | AQ131: ="" ->  | AR131: ="" ->  | AS131: ="" ->  | AT131: ="" ->  | AU131: ="" ->  | AV131: ="" ->  | AW131: ="" ->  | AX131: ="" ->  | AY131: ="" ->  | AZ131: 1.3 | BA131: ="" ->  | BB131: ="" ->  | BC131: ="" -> 
A132: 24521510 | D132: 2 | E132: 45 | F132: 215 | G132: 10 | H132: 10.9 | I132: ="" ->  | J132: ="" ->  | K132: ="" ->  | L132: ="" ->  | M132: 2079 | N132: 2079 | O132: 2079 | P132: 2079 | Q132: 1.3915 | R132: 1.3915 | S132: 1.3915 | T132: 1.3915 | U132: 298 | V132: 298 | W132: 298 | X132: 298 | Y132: 51 | Z132: 51 | AA132: 51 | AB132: 51 | AC132: 0.02 | AD132: 0.02 | AE132: 0.02 | AF132: 0.02 | AG132: 0.0003969 | AH132: 1.7346 | AI132: 2 | AJ132: 0.000367347 | AK132: ="" ->  | AL132: ="" ->  | AM132: ="" ->  | AN132: ="" ->  | AO132: ="" ->  | AP132: ="" ->  | AQ132: ="" ->  | AR132: ="" ->  | AS132: ="" ->  | AT132: ="" ->  | AU132: ="" ->  | AV132: ="" ->  | AW132: ="" ->  | AX132: ="" ->  | AY132: ="" ->  | AZ132: 1.4 | BA132: ="" ->  | BB132: ="" ->  | BC132: ="" -> 
A133: 24523510 | D133: 2 | E133: 45 | F133: 235 | G133: 10 | H133: 10.9 | I133: ="" ->  | J133: ="" ->  | K133: ="" ->  | L133: ="" ->  | M133: 2284 | N133: 2284 | O133: 2284 | P133: 2284 | Q133: 1.3915 | R133: 1.3915 | S133: 1.3915 | T133: 1.3915 | U133: 327 | V133: 327 | W133: 327 | X133: 327 | Y133: 56 | Z133: 56 | AA133: 56 | AB133: 56 | AC133: 0.03 | AD133: 0.03 | AE133: 0.03 | AF133: 0.03 | AG133: 0.0003969 | AH133: 1.7346 | AI133: 2 | AJ133: 0.000367347 | AK133: ="" ->  | AL133: ="" ->  | AM133: ="" ->  | AN133: ="" ->  | AO133: ="" ->  | AP133: ="" ->  | AQ133: ="" ->  | AR133: ="" ->  | AS133: ="" ->  | AT133: ="" ->  | AU133: ="" ->  | AV133: ="" ->  | AW133: ="" ->  | AX133: ="" ->  | AY133: ="" ->  | AZ133: 1.6 | BA133: ="" ->  | BB133: ="" ->  | BC133: ="" -> 
A134: 2505510 | D134: 2 | E134: 50 | F134: 55 | G134: 10 | H134: 10.9 | I134: ="" ->  | J134: ="" ->  | K134: ="" ->  | L134: ="" ->  | M134: 451 | N134: 451 | O134: 451 | P134: 451 | Q134: 1.3803 | R134: 1.3803 | S134: 1.3803 | T134: 1.3803 | U134: 66 | V134: 66 | W134: 66 | X134: 66 | Y134: 11 | Z134: 11 | AA134: 11 | AB134: 11 | AC134: 0.00 | AD134: 0.00 | AE134: 0.00 | AF134: 0.00 | AG134: 0.0003969 | AH134: 1.7346 | AI134: 2 | AJ134: 0.000367347 | AK134: ="" ->  | AL134: ="" ->  | AM134: ="" ->  | AN134: ="" ->  | AO134: ="" ->  | AP134: ="" ->  | AQ134: ="" ->  | AR134: ="" ->  | AS134: ="" ->  | AT134: ="" ->  | AU134: ="" ->  | AV134: ="" ->  | AW134: ="" ->  | AX134: ="" ->  | AY134: ="" ->  | AZ134: 0.4 | BA134: ="" ->  | BB134: ="" ->  | BC134: ="" -> 
A135: 2506510 | D135: 2 | E135: 50 | F135: 65 | G135: 10 | H135: 10.9 | I135: ="" ->  | J135: ="" ->  | K135: ="" ->  | L135: ="" ->  | M135: 558 | N135: 558 | O135: 558 | P135: 558 | Q135: 1.3803 | R135: 1.3803 | S135: 1.3803 | T135: 1.3803 | U135: 81 | V135: 81 | W135: 81 | X135: 81 | Y135: 14 | Z135: 14 | AA135: 14 | AB135: 14 | AC135: 0.00 | AD135: 0.00 | AE135: 0.00 | AF135: 0.00 | AG135: 0.0003969 | AH135: 1.7346 | AI135: 2 | AJ135: 0.000367347 | AK135: ="" ->  | AL135: ="" ->  | AM135: ="" ->  | AN135: ="" ->  | AO135: ="" ->  | AP135: ="" ->  | AQ135: ="" ->  | AR135: ="" ->  | AS135: ="" ->  | AT135: ="" ->  | AU135: ="" ->  | AV135: ="" ->  | AW135: ="" ->  | AX135: ="" ->  | AY135: ="" ->  | AZ135: 0.4 | BA135: ="" ->  | BB135: ="" ->  | BC135: ="" -> 
A136: 2507510 | D136: 2 | E136: 50 | F136: 75 | G136: 10 | H136: 10.9 | I136: ="" ->  | J136: ="" ->  | K136: ="" ->  | L136: ="" ->  | M136: 665 | N136: 665 | O136: 665 | P136: 665 | Q136: 1.3803 | R136: 1.3803 | S136: 1.3803 | T136: 1.3803 | U136: 97 | V136: 97 | W136: 97 | X136: 97 | Y136: 17 | Z136: 17 | AA136: 17 | AB136: 17 | AC136: 0.00 | AD136: 0.00 | AE136: 0.00 | AF136: 0.00 | AG136: 0.0003969 | AH136: 1.7346 | AI136: 2 | AJ136: 0.000367347 | AK136: ="" ->  | AL136: ="" ->  | AM136: ="" ->  | AN136: ="" ->  | AO136: ="" ->  | AP136: ="" ->  | AQ136: ="" ->  | AR136: ="" ->  | AS136: ="" ->  | AT136: ="" ->  | AU136: ="" ->  | AV136: ="" ->  | AW136: ="" ->  | AX136: ="" ->  | AY136: ="" ->  | AZ136: 0.5 | BA136: ="" ->  | BB136: ="" ->  | BC136: ="" -> 
A137: 2508510 | D137: 2 | E137: 50 | F137: 85 | G137: 10 | H137: 10.9 | I137: ="" ->  | J137: ="" ->  | K137: ="" ->  | L137: ="" ->  | M137: 773 | N137: 773 | O137: 773 | P137: 773 | Q137: 1.3803 | R137: 1.3803 | S137: 1.3803 | T137: 1.3803 | U137: 112 | V137: 112 | W137: 112 | X137: 112 | Y137: 19 | Z137: 19 | AA137: 19 | AB137: 19 | AC137: 0.00 | AD137: 0.00 | AE137: 0.00 | AF137: 0.00 | AG137: 0.0003969 | AH137: 1.7346 | AI137: 2 | AJ137: 0.000367347 | AK137: ="" ->  | AL137: ="" ->  | AM137: ="" ->  | AN137: ="" ->  | AO137: ="" ->  | AP137: ="" ->  | AQ137: ="" ->  | AR137: ="" ->  | AS137: ="" ->  | AT137: ="" ->  | AU137: ="" ->  | AV137: ="" ->  | AW137: ="" ->  | AX137: ="" ->  | AY137: ="" ->  | AZ137: 0.6 | BA137: ="" ->  | BB137: ="" ->  | BC137: ="" -> 
A138: 2509510 | D138: 2 | E138: 50 | F138: 95 | G138: 10 | H138: 10.9 | I138: ="" ->  | J138: ="" ->  | K138: ="" ->  | L138: ="" ->  | M138: 880 | N138: 880 | O138: 880 | P138: 880 | Q138: 1.3803 | R138: 1.3803 | S138: 1.3803 | T138: 1.3803 | U138: 128 | V138: 128 | W138: 128 | X138: 128 | Y138: 22 | Z138: 22 | AA138: 22 | AB138: 22 | AC138: 0.00 | AD138: 0.00 | AE138: 0.00 | AF138: 0.00 | AG138: 0.0003969 | AH138: 1.7346 | AI138: 2 | AJ138: 0.000367347 | AK138: ="" ->  | AL138: ="" ->  | AM138: ="" ->  | AN138: ="" ->  | AO138: ="" ->  | AP138: ="" ->  | AQ138: ="" ->  | AR138: ="" ->  | AS138: ="" ->  | AT138: ="" ->  | AU138: ="" ->  | AV138: ="" ->  | AW138: ="" ->  | AX138: ="" ->  | AY138: ="" ->  | AZ138: 0.6 | BA138: ="" ->  | BB138: ="" ->  | BC138: ="" -> 
A139: 25010510 | D139: 2 | E139: 50 | F139: 105 | G139: 10 | H139: 10.9 | I139: ="" ->  | J139: ="" ->  | K139: ="" ->  | L139: ="" ->  | M139: 987 | N139: 987 | O139: 987 | P139: 987 | Q139: 1.3803 | R139: 1.3803 | S139: 1.3803 | T139: 1.3803 | U139: 144 | V139: 144 | W139: 144 | X139: 144 | Y139: 25 | Z139: 25 | AA139: 25 | AB139: 25 | AC139: 0.00 | AD139: 0.00 | AE139: 0.00 | AF139: 0.00 | AG139: 0.0003969 | AH139: 1.7346 | AI139: 2 | AJ139: 0.000367347 | AK139: ="" ->  | AL139: ="" ->  | AM139: ="" ->  | AN139: ="" ->  | AO139: ="" ->  | AP139: ="" ->  | AQ139: ="" ->  | AR139: ="" ->  | AS139: ="" ->  | AT139: ="" ->  | AU139: ="" ->  | AV139: ="" ->  | AW139: ="" ->  | AX139: ="" ->  | AY139: ="" ->  | AZ139: 0.7 | BA139: ="" ->  | BB139: ="" ->  | BC139: ="" -> 
A140: 25011510 | D140: 2 | E140: 50 | F140: 115 | G140: 10 | H140: 10.9 | I140: ="" ->  | J140: ="" ->  | K140: ="" ->  | L140: ="" ->  | M140: 1094 | N140: 1094 | O140: 1094 | P140: 1094 | Q140: 1.3803 | R140: 1.3803 | S140: 1.3803 | T140: 1.3803 | U140: 159 | V140: 159 | W140: 159 | X140: 159 | Y140: 27 | Z140: 27 | AA140: 27 | AB140: 27 | AC140: 0.01 | AD140: 0.01 | AE140: 0.01 | AF140: 0.01 | AG140: 0.0003969 | AH140: 1.7346 | AI140: 2 | AJ140: 0.000367347 | AK140: ="" ->  | AL140: ="" ->  | AM140: ="" ->  | AN140: ="" ->  | AO140: ="" ->  | AP140: ="" ->  | AQ140: ="" ->  | AR140: ="" ->  | AS140: ="" ->  | AT140: ="" ->  | AU140: ="" ->  | AV140: ="" ->  | AW140: ="" ->  | AX140: ="" ->  | AY140: ="" ->  | AZ140: 0.8 | BA140: ="" ->  | BB140: ="" ->  | BC140: ="" -> 
A141: 25013510 | D141: 2 | E141: 50 | F141: 135 | G141: 10 | H141: 10.9 | I141: ="" ->  | J141: ="" ->  | K141: ="" ->  | L141: ="" ->  | M141: 1309 | N141: 1309 | O141: 1309 | P141: 1309 | Q141: 1.3803 | R141: 1.3803 | S141: 1.3803 | T141: 1.3803 | U141: 190 | V141: 190 | W141: 190 | X141: 190 | Y141: 33 | Z141: 33 | AA141: 33 | AB141: 33 | AC141: 0.01 | AD141: 0.01 | AE141: 0.01 | AF141: 0.01 | AG141: 0.0003969 | AH141: 1.7346 | AI141: 2 | AJ141: 0.000367347 | AK141: ="" ->  | AL141: ="" ->  | AM141: ="" ->  | AN141: ="" ->  | AO141: ="" ->  | AP141: ="" ->  | AQ141: ="" ->  | AR141: ="" ->  | AS141: ="" ->  | AT141: ="" ->  | AU141: ="" ->  | AV141: ="" ->  | AW141: ="" ->  | AX141: ="" ->  | AY141: ="" ->  | AZ141: 0.9 | BA141: ="" ->  | BB141: ="" ->  | BC141: ="" -> 
A142: 25015510 | D142: 2 | E142: 50 | F142: 155 | G142: 10 | H142: 10.9 | I142: ="" ->  | J142: ="" ->  | K142: ="" ->  | L142: ="" ->  | M142: 1524 | N142: 1524 | O142: 1524 | P142: 1524 | Q142: 1.3803 | R142: 1.3803 | S142: 1.3803 | T142: 1.3803 | U142: 222 | V142: 222 | W142: 222 | X142: 222 | Y142: 38 | Z142: 38 | AA142: 38 | AB142: 38 | AC142: 0.01 | AD142: 0.01 | AE142: 0.01 | AF142: 0.01 | AG142: 0.0003969 | AH142: 1.7346 | AI142: 2 | AJ142: 0.000367347 | AK142: ="" ->  | AL142: ="" ->  | AM142: ="" ->  | AN142: ="" ->  | AO142: ="" ->  | AP142: ="" ->  | AQ142: ="" ->  | AR142: ="" ->  | AS142: ="" ->  | AT142: ="" ->  | AU142: ="" ->  | AV142: ="" ->  | AW142: ="" ->  | AX142: ="" ->  | AY142: ="" ->  | AZ142: 1.0 | BA142: ="" ->  | BB142: ="" ->  | BC142: ="" -> 
A143: 25017510 | D143: 2 | E143: 50 | F143: 175 | G143: 10 | H143: 10.9 | I143: ="" ->  | J143: ="" ->  | K143: ="" ->  | L143: ="" ->  | M143: 1738 | N143: 1738 | O143: 1738 | P143: 1738 | Q143: 1.3803 | R143: 1.3803 | S143: 1.3803 | T143: 1.3803 | U143: 253 | V143: 253 | W143: 253 | X143: 253 | Y143: 44 | Z143: 44 | AA143: 44 | AB143: 44 | AC143: 0.02 | AD143: 0.02 | AE143: 0.02 | AF143: 0.02 | AG143: 0.0003969 | AH143: 1.7346 | AI143: 2 | AJ143: 0.000367347 | AK143: ="" ->  | AL143: ="" ->  | AM143: ="" ->  | AN143: ="" ->  | AO143: ="" ->  | AP143: ="" ->  | AQ143: ="" ->  | AR143: ="" ->  | AS143: ="" ->  | AT143: ="" ->  | AU143: ="" ->  | AV143: ="" ->  | AW143: ="" ->  | AX143: ="" ->  | AY143: ="" ->  | AZ143: 1.2 | BA143: ="" ->  | BB143: ="" ->  | BC143: ="" -> 
A144: 25019510 | D144: 2 | E144: 50 | F144: 195 | G144: 10 | H144: 10.9 | I144: ="" ->  | J144: ="" ->  | K144: ="" ->  | L144: ="" ->  | M144: 1953 | N144: 1953 | O144: 1953 | P144: 1953 | Q144: 1.3803 | R144: 1.3803 | S144: 1.3803 | T144: 1.3803 | U144: 284 | V144: 284 | W144: 284 | X144: 284 | Y144: 49 | Z144: 49 | AA144: 49 | AB144: 49 | AC144: 0.02 | AD144: 0.02 | AE144: 0.02 | AF144: 0.02 | AG144: 0.0003969 | AH144: 1.7346 | AI144: 2 | AJ144: 0.000367347 | AK144: ="" ->  | AL144: ="" ->  | AM144: ="" ->  | AN144: ="" ->  | AO144: ="" ->  | AP144: ="" ->  | AQ144: ="" ->  | AR144: ="" ->  | AS144: ="" ->  | AT144: ="" ->  | AU144: ="" ->  | AV144: ="" ->  | AW144: ="" ->  | AX144: ="" ->  | AY144: ="" ->  | AZ144: 1.3 | BA144: ="" ->  | BB144: ="" ->  | BC144: ="" -> 
A145: 25021510 | D145: 2 | E145: 50 | F145: 215 | G145: 10 | H145: 10.9 | I145: ="" ->  | J145: ="" ->  | K145: ="" ->  | L145: ="" ->  | M145: 2167 | N145: 2167 | O145: 2167 | P145: 2167 | Q145: 1.3803 | R145: 1.3803 | S145: 1.3803 | T145: 1.3803 | U145: 315 | V145: 315 | W145: 315 | X145: 315 | Y145: 54 | Z145: 54 | AA145: 54 | AB145: 54 | AC145: 0.03 | AD145: 0.03 | AE145: 0.03 | AF145: 0.03 | AG145: 0.0003969 | AH145: 1.7346 | AI145: 2 | AJ145: 0.000367347 | AK145: ="" ->  | AL145: ="" ->  | AM145: ="" ->  | AN145: ="" ->  | AO145: ="" ->  | AP145: ="" ->  | AQ145: ="" ->  | AR145: ="" ->  | AS145: ="" ->  | AT145: ="" ->  | AU145: ="" ->  | AV145: ="" ->  | AW145: ="" ->  | AX145: ="" ->  | AY145: ="" ->  | AZ145: 1.4 | BA145: ="" ->  | BB145: ="" ->  | BC145: ="" -> 
A146: 25023510 | D146: 2 | E146: 50 | F146: 235 | G146: 10 | H146: 10.9 | I146: ="" ->  | J146: ="" ->  | K146: ="" ->  | L146: ="" ->  | M146: 2382 | N146: 2382 | O146: 2382 | P146: 2382 | Q146: 1.3803 | R146: 1.3803 | S146: 1.3803 | T146: 1.3803 | U146: 347 | V146: 347 | W146: 347 | X146: 347 | Y146: 60 | Z146: 60 | AA146: 60 | AB146: 60 | AC146: 0.03 | AD146: 0.03 | AE146: 0.03 | AF146: 0.03 | AG146: 0.0003969 | AH146: 1.7346 | AI146: 2 | AJ146: 0.000367347 | AK146: ="" ->  | AL146: ="" ->  | AM146: ="" ->  | AN146: ="" ->  | AO146: ="" ->  | AP146: ="" ->  | AQ146: ="" ->  | AR146: ="" ->  | AS146: ="" ->  | AT146: ="" ->  | AU146: ="" ->  | AV146: ="" ->  | AW146: ="" ->  | AX146: ="" ->  | AY146: ="" ->  | AZ146: 1.6 | BA146: ="" ->  | BB146: ="" ->  | BC146: ="" -> 
A147: 2555510 | D147: 2 | E147: 55 | F147: 55 | G147: 10 | H147: 10.9 | I147: ="" ->  | J147: ="" ->  | K147: ="" ->  | L147: ="" ->  | M147: 467 | N147: 467 | O147: 467 | P147: 467 | Q147: 1.369 | R147: 1.369 | S147: 1.369 | T147: 1.369 | U147: 69 | V147: 69 | W147: 69 | X147: 69 | Y147: 12 | Z147: 12 | AA147: 12 | AB147: 12 | AC147: 0.00 | AD147: 0.00 | AE147: 0.00 | AF147: 0.00 | AG147: 0.0003969 | AH147: 1.7346 | AI147: 2 | AJ147: 0.000367347 | AK147: ="" ->  | AL147: ="" ->  | AM147: ="" ->  | AN147: ="" ->  | AO147: ="" ->  | AP147: ="" ->  | AQ147: ="" ->  | AR147: ="" ->  | AS147: ="" ->  | AT147: ="" ->  | AU147: ="" ->  | AV147: ="" ->  | AW147: ="" ->  | AX147: ="" ->  | AY147: ="" ->  | AZ147: 0.4 | BA147: ="" ->  | BB147: ="" ->  | BC147: ="" -> 
A148: 2556510 | D148: 2 | E148: 55 | F148: 65 | G148: 10 | H148: 10.9 | I148: ="" ->  | J148: ="" ->  | K148: ="" ->  | L148: ="" ->  | M148: 579 | N148: 579 | O148: 579 | P148: 579 | Q148: 1.369 | R148: 1.369 | S148: 1.369 | T148: 1.369 | U148: 86 | V148: 86 | W148: 86 | X148: 86 | Y148: 15 | Z148: 15 | AA148: 15 | AB148: 15 | AC148: 0.00 | AD148: 0.00 | AE148: 0.00 | AF148: 0.00 | AG148: 0.0003969 | AH148: 1.7346 | AI148: 2 | AJ148: 0.000367347 | AK148: ="" ->  | AL148: ="" ->  | AM148: ="" ->  | AN148: ="" ->  | AO148: ="" ->  | AP148: ="" ->  | AQ148: ="" ->  | AR148: ="" ->  | AS148: ="" ->  | AT148: ="" ->  | AU148: ="" ->  | AV148: ="" ->  | AW148: ="" ->  | AX148: ="" ->  | AY148: ="" ->  | AZ148: 0.4 | BA148: ="" ->  | BB148: ="" ->  | BC148: ="" -> 
A149: 2557510 | D149: 2 | E149: 55 | F149: 75 | G149: 10 | H149: 10.9 | I149: ="" ->  | J149: ="" ->  | K149: ="" ->  | L149: ="" ->  | M149: 690 | N149: 690 | O149: 690 | P149: 690 | Q149: 1.369 | R149: 1.369 | S149: 1.369 | T149: 1.369 | U149: 102 | V149: 102 | W149: 102 | X149: 102 | Y149: 18 | Z149: 18 | AA149: 18 | AB149: 18 | AC149: 0.00 | AD149: 0.00 | AE149: 0.00 | AF149: 0.00 | AG149: 0.0003969 | AH149: 1.7346 | AI149: 2 | AJ149: 0.000367347 | AK149: ="" ->  | AL149: ="" ->  | AM149: ="" ->  | AN149: ="" ->  | AO149: ="" ->  | AP149: ="" ->  | AQ149: ="" ->  | AR149: ="" ->  | AS149: ="" ->  | AT149: ="" ->  | AU149: ="" ->  | AV149: ="" ->  | AW149: ="" ->  | AX149: ="" ->  | AY149: ="" ->  | AZ149: 0.5 | BA149: ="" ->  | BB149: ="" ->  | BC149: ="" -> 
A150: 2558510 | D150: 2 | E150: 55 | F150: 85 | G150: 10 | H150: 10.9 | I150: ="" ->  | J150: ="" ->  | K150: ="" ->  | L150: ="" ->  | M150: 801 | N150: 801 | O150: 801 | P150: 801 | Q150: 1.369 | R150: 1.369 | S150: 1.369 | T150: 1.369 | U150: 118 | V150: 118 | W150: 118 | X150: 118 | Y150: 20 | Z150: 20 | AA150: 20 | AB150: 20 | AC150: 0.00 | AD150: 0.00 | AE150: 0.00 | AF150: 0.00 | AG150: 0.0003969 | AH150: 1.7346 | AI150: 2 | AJ150: 0.000367347 | AK150: ="" ->  | AL150: ="" ->  | AM150: ="" ->  | AN150: ="" ->  | AO150: ="" ->  | AP150: ="" ->  | AQ150: ="" ->  | AR150: ="" ->  | AS150: ="" ->  | AT150: ="" ->  | AU150: ="" ->  | AV150: ="" ->  | AW150: ="" ->  | AX150: ="" ->  | AY150: ="" ->  | AZ150: 0.6 | BA150: ="" ->  | BB150: ="" ->  | BC150: ="" -> 
A151: 2559510 | D151: 2 | E151: 55 | F151: 95 | G151: 10 | H151: 10.9 | I151: ="" ->  | J151: ="" ->  | K151: ="" ->  | L151: ="" ->  | M151: 913 | N151: 913 | O151: 913 | P151: 913 | Q151: 1.369 | R151: 1.369 | S151: 1.369 | T151: 1.369 | U151: 135 | V151: 135 | W151: 135 | X151: 135 | Y151: 23 | Z151: 23 | AA151: 23 | AB151: 23 | AC151: 0.00 | AD151: 0.00 | AE151: 0.00 | AF151: 0.00 | AG151: 0.0003969 | AH151: 1.7346 | AI151: 2 | AJ151: 0.000367347 | AK151: ="" ->  | AL151: ="" ->  | AM151: ="" ->  | AN151: ="" ->  | AO151: ="" ->  | AP151: ="" ->  | AQ151: ="" ->  | AR151: ="" ->  | AS151: ="" ->  | AT151: ="" ->  | AU151: ="" ->  | AV151: ="" ->  | AW151: ="" ->  | AX151: ="" ->  | AY151: ="" ->  | AZ151: 0.6 | BA151: ="" ->  | BB151: ="" ->  | BC151: ="" -> 
A152: 25510510 | D152: 2 | E152: 55 | F152: 105 | G152: 10 | H152: 10.9 | I152: ="" ->  | J152: ="" ->  | K152: ="" ->  | L152: ="" ->  | M152: 1024 | N152: 1024 | O152: 1024 | P152: 1024 | Q152: 1.369 | R152: 1.369 | S152: 1.369 | T152: 1.369 | U152: 151 | V152: 151 | W152: 151 | X152: 151 | Y152: 26 | Z152: 26 | AA152: 26 | AB152: 26 | AC152: 0.00 | AD152: 0.00 | AE152: 0.00 | AF152: 0.00 | AG152: 0.0003969 | AH152: 1.7346 | AI152: 2 | AJ152: 0.000367347 | AK152: ="" ->  | AL152: ="" ->  | AM152: ="" ->  | AN152: ="" ->  | AO152: ="" ->  | AP152: ="" ->  | AQ152: ="" ->  | AR152: ="" ->  | AS152: ="" ->  | AT152: ="" ->  | AU152: ="" ->  | AV152: ="" ->  | AW152: ="" ->  | AX152: ="" ->  | AY152: ="" ->  | AZ152: 0.7 | BA152: ="" ->  | BB152: ="" ->  | BC152: ="" -> 
A153: 25511510 | D153: 2 | E153: 55 | F153: 115 | G153: 10 | H153: 10.9 | I153: ="" ->  | J153: ="" ->  | K153: ="" ->  | L153: ="" ->  | M153: 1135 | N153: 1135 | O153: 1135 | P153: 1135 | Q153: 1.369 | R153: 1.369 | S153: 1.369 | T153: 1.369 | U153: 168 | V153: 168 | W153: 168 | X153: 168 | Y153: 29 | Z153: 29 | AA153: 29 | AB153: 29 | AC153: 0.01 | AD153: 0.01 | AE153: 0.01 | AF153: 0.01 | AG153: 0.0003969 | AH153: 1.7346 | AI153: 2 | AJ153: 0.000367347 | AK153: ="" ->  | AL153: ="" ->  | AM153: ="" ->  | AN153: ="" ->  | AO153: ="" ->  | AP153: ="" ->  | AQ153: ="" ->  | AR153: ="" ->  | AS153: ="" ->  | AT153: ="" ->  | AU153: ="" ->  | AV153: ="" ->  | AW153: ="" ->  | AX153: ="" ->  | AY153: ="" ->  | AZ153: 0.8 | BA153: ="" ->  | BB153: ="" ->  | BC153: ="" -> 
A154: 25513510 | D154: 2 | E154: 55 | F154: 135 | G154: 10 | H154: 10.9 | I154: ="" ->  | J154: ="" ->  | K154: ="" ->  | L154: ="" ->  | M154: 1358 | N154: 1358 | O154: 1358 | P154: 1358 | Q154: 1.369 | R154: 1.369 | S154: 1.369 | T154: 1.369 | U154: 201 | V154: 201 | W154: 201 | X154: 201 | Y154: 35 | Z154: 35 | AA154: 35 | AB154: 35 | AC154: 0.01 | AD154: 0.01 | AE154: 0.01 | AF154: 0.01 | AG154: 0.0003969 | AH154: 1.7346 | AI154: 2 | AJ154: 0.000367347 | AK154: ="" ->  | AL154: ="" ->  | AM154: ="" ->  | AN154: ="" ->  | AO154: ="" ->  | AP154: ="" ->  | AQ154: ="" ->  | AR154: ="" ->  | AS154: ="" ->  | AT154: ="" ->  | AU154: ="" ->  | AV154: ="" ->  | AW154: ="" ->  | AX154: ="" ->  | AY154: ="" ->  | AZ154: 0.9 | BA154: ="" ->  | BB154: ="" ->  | BC154: ="" -> 
A155: 25515510 | D155: 2 | E155: 55 | F155: 155 | G155: 10 | H155: 10.9 | I155: ="" ->  | J155: ="" ->  | K155: ="" ->  | L155: ="" ->  | M155: 1580 | N155: 1580 | O155: 1580 | P155: 1580 | Q155: 1.369 | R155: 1.369 | S155: 1.369 | T155: 1.369 | U155: 234 | V155: 234 | W155: 234 | X155: 234 | Y155: 40 | Z155: 40 | AA155: 40 | AB155: 40 | AC155: 0.01 | AD155: 0.01 | AE155: 0.01 | AF155: 0.01 | AG155: 0.0003969 | AH155: 1.7346 | AI155: 2 | AJ155: 0.000367347 | AK155: ="" ->  | AL155: ="" ->  | AM155: ="" ->  | AN155: ="" ->  | AO155: ="" ->  | AP155: ="" ->  | AQ155: ="" ->  | AR155: ="" ->  | AS155: ="" ->  | AT155: ="" ->  | AU155: ="" ->  | AV155: ="" ->  | AW155: ="" ->  | AX155: ="" ->  | AY155: ="" ->  | AZ155: 1.0 | BA155: ="" ->  | BB155: ="" ->  | BC155: ="" -> 
A156: =CONCATENATE(D156,E156,F156,G156) -> 25517510 | D156: 2 | E156: 55 | F156: 175 | G156: 10 | H156: 10.9 | I156: ="" ->  | J156: ="" ->  | K156: ="" ->  | L156: ="" ->  | M156: 1803 | N156: 1803 | O156: 1803 | P156: 1803 | Q156: 1.369 | R156: 1.369 | S156: 1.369 | T156: 1.369 | U156: =ROUND(M156*POWER(CF_heat,Q156),0) -> 267 | V156: 267 | W156: 267 | X156: 267 | Y156: =ROUND(U156*3600/(4186*ABS($O$1-$O$2)),0) -> 46 | Z156: 46 | AA156: 46 | AB156: 46 | AC156: =(($AG156*(Y156^$AH156)*((($F156-14.4)*$AI156)/100))+($AJ156*(Y156^2)))*0.0098 -> 0.02 | AD156: 0.02 | AE156: 0.02 | AF156: 0.02 | AG156: =IF($G156=$CO$103,CP$103,IF($G156=$CO$104,CP$104,IF($G156=$CO$105,CP$105,IF($G156=$CO$107,CP$107,IF($G156=$CO$108,CP$108,IF($G156=$CO$109,CP$109,IF($G156=$CO$111,CP$111,IF($G156=$CO$112,CP$112,IF($G156=$CO$113,CP$113,IF($G156=$CO$115,CP$115,IF($G156=$CO$116,CP$116,IF($G156=$CO$117,CP$117,IF($G156=$CO$119,CP$119,IF($G156=$CO$120,CP$120,)))))))))))))) -> 0.0003969 | AH156: 1.7346 | AI156: 2 | AJ156: 0.000367347 | AK156: ="" ->  | AL156: ="" ->  | AM156: ="" ->  | AN156: ="" ->  | AO156: ="" ->  | AP156: ="" ->  | AQ156: ="" ->  | AR156: ="" ->  | AS156: ="" ->  | AT156: ="" ->  | AU156: ="" ->  | AV156: ="" ->  | AW156: ="" ->  | AX156: ="" ->  | AY156: ="" ->  | AZ156: =ROUND(IF(G156=10,$CO$92*F156,IF(G156=11,$CO$93*F156,IF(G156=15,$CO$94*F156,IF(G156=16,$CO$95*F156,IF(G156=20,$CO$96*F156,IF(G156=21,$CO$97*F156,)))))),1) -> 1.2 | BA156: ="" ->  | BB156: ="" ->  | BC156: ="" -> 
A157: 25519510 | D157: 2 | E157: 55 | F157: 195 | G157: 10 | H157: 10.9 | I157: ="" ->  | J157: ="" ->  | K157: ="" ->  | L157: ="" ->  | M157: 2026 | N157: 2026 | O157: 2026 | P157: 2026 | Q157: 1.369 | R157: 1.369 | S157: 1.369 | T157: 1.369 | U157: 299 | V157: 299 | W157: 299 | X157: 299 | Y157: 51 | Z157: 51 | AA157: 51 | AB157: 51 | AC157: 0.02 | AD157: 0.02 | AE157: 0.02 | AF157: 0.02 | AG157: 0.0003969 | AH157: 1.7346 | AI157: 2 | AJ157: 0.000367347 | AK157: ="" ->  | AL157: ="" ->  | AM157: ="" ->  | AN157: ="" ->  | AO157: ="" ->  | AP157: ="" ->  | AQ157: ="" ->  | AR157: ="" ->  | AS157: ="" ->  | AT157: ="" ->  | AU157: ="" ->  | AV157: ="" ->  | AW157: ="" ->  | AX157: ="" ->  | AY157: ="" ->  | AZ157: 1.3 | BA157: ="" ->  | BB157: ="" ->  | BC157: ="" -> 
A158: 25521510 | D158: 2 | E158: 55 | F158: 215 | G158: 10 | H158: 10.9 | I158: ="" ->  | J158: ="" ->  | K158: ="" ->  | L158: ="" ->  | M158: 2248 | N158: 2248 | O158: 2248 | P158: 2248 | Q158: 1.369 | R158: 1.369 | S158: 1.369 | T158: 1.369 | U158: 332 | V158: 332 | W158: 332 | X158: 332 | Y158: 57 | Z158: 57 | AA158: 57 | AB158: 57 | AC158: 0.03 | AD158: 0.03 | AE158: 0.03 | AF158: 0.03 | AG158: 0.0003969 | AH158: 1.7346 | AI158: 2 | AJ158: 0.000367347 | AK158: ="" ->  | AL158: ="" ->  | AM158: ="" ->  | AN158: ="" ->  | AO158: ="" ->  | AP158: ="" ->  | AQ158: ="" ->  | AR158: ="" ->  | AS158: ="" ->  | AT158: ="" ->  | AU158: ="" ->  | AV158: ="" ->  | AW158: ="" ->  | AX158: ="" ->  | AY158: ="" ->  | AZ158: 1.4 | BA158: ="" ->  | BB158: ="" ->  | BC158: ="" -> 
A159: 25523510 | D159: 2 | E159: 55 | F159: 235 | G159: 10 | H159: 10.9 | I159: ="" ->  | J159: ="" ->  | K159: ="" ->  | L159: ="" ->  | M159: 2471 | N159: 2471 | O159: 2471 | P159: 2471 | Q159: 1.369 | R159: 1.369 | S159: 1.369 | T159: 1.369 | U159: 365 | V159: 365 | W159: 365 | X159: 365 | Y159: 63 | Z159: 63 | AA159: 63 | AB159: 63 | AC159: 0.04 | AD159: 0.04 | AE159: 0.04 | AF159: 0.04 | AG159: 0.0003969 | AH159: 1.7346 | AI159: 2 | AJ159: 0.000367347 | AK159: ="" ->  | AL159: ="" ->  | AM159: ="" ->  | AN159: ="" ->  | AO159: ="" ->  | AP159: ="" ->  | AQ159: ="" ->  | AR159: ="" ->  | AS159: ="" ->  | AT159: ="" ->  | AU159: ="" ->  | AV159: ="" ->  | AW159: ="" ->  | AX159: ="" ->  | AY159: ="" ->  | AZ159: 1.6 | BA159: ="" ->  | BB159: ="" ->  | BC159: ="" -> 
A160: 2605510 | D160: 2 | E160: 60 | F160: 55 | G160: 10 | H160: 10.9 | I160: ="" ->  | J160: ="" ->  | K160: ="" ->  | L160: ="" ->  | M160: 483 | N160: 483 | O160: 483 | P160: 483 | Q160: 1.3578 | R160: 1.3578 | S160: 1.3578 | T160: 1.3578 | U160: 72 | V160: 72 | W160: 72 | X160: 72 | Y160: 12 | Z160: 12 | AA160: 12 | AB160: 12 | AC160: 0.00 | AD160: 0.00 | AE160: 0.00 | AF160: 0.00 | AG160: 0.0003969 | AH160: 1.7346 | AI160: 2 | AJ160: 0.000367347 | AK160: ="" ->  | AL160: ="" ->  | AM160: ="" ->  | AN160: ="" ->  | AO160: ="" ->  | AP160: ="" ->  | AQ160: ="" ->  | AR160: ="" ->  | AS160: ="" ->  | AT160: ="" ->  | AU160: ="" ->  | AV160: ="" ->  | AW160: ="" ->  | AX160: ="" ->  | AY160: ="" ->  | AZ160: 0.4 | BA160: ="" ->  | BB160: ="" ->  | BC160: ="" -> 
A161: 2606510 | D161: 2 | E161: 60 | F161: 65 | G161: 10 | H161: 10.9 | I161: ="" ->  | J161: ="" ->  | K161: ="" ->  | L161: ="" ->  | M161: 597 | N161: 597 | O161: 597 | P161: 597 | Q161: 1.3578 | R161: 1.3578 | S161: 1.3578 | T161: 1.3578 | U161: 90 | V161: 90 | W161: 90 | X161: 90 | Y161: 15 | Z161: 15 | AA161: 15 | AB161: 15 | AC161: 0.00 | AD161: 0.00 | AE161: 0.00 | AF161: 0.00 | AG161: 0.0003969 | AH161: 1.7346 | AI161: 2 | AJ161: 0.000367347 | AK161: ="" ->  | AL161: ="" ->  | AM161: ="" ->  | AN161: ="" ->  | AO161: ="" ->  | AP161: ="" ->  | AQ161: ="" ->  | AR161: ="" ->  | AS161: ="" ->  | AT161: ="" ->  | AU161: ="" ->  | AV161: ="" ->  | AW161: ="" ->  | AX161: ="" ->  | AY161: ="" ->  | AZ161: 0.4 | BA161: ="" ->  | BB161: ="" ->  | BC161: ="" -> 
A162: 2607510 | D162: 2 | E162: 60 | F162: 75 | G162: 10 | H162: 10.9 | I162: ="" ->  | J162: ="" ->  | K162: ="" ->  | L162: ="" ->  | M162: 712 | N162: 712 | O162: 712 | P162: 712 | Q162: 1.3578 | R162: 1.3578 | S162: 1.3578 | T162: 1.3578 | U162: 107 | V162: 107 | W162: 107 | X162: 107 | Y162: 18 | Z162: 18 | AA162: 18 | AB162: 18 | AC162: 0.00 | AD162: 0.00 | AE162: 0.00 | AF162: 0.00 | AG162: 0.0003969 | AH162: 1.7346 | AI162: 2 | AJ162: 0.000367347 | AK162: ="" ->  | AL162: ="" ->  | AM162: ="" ->  | AN162: ="" ->  | AO162: ="" ->  | AP162: ="" ->  | AQ162: ="" ->  | AR162: ="" ->  | AS162: ="" ->  | AT162: ="" ->  | AU162: ="" ->  | AV162: ="" ->  | AW162: ="" ->  | AX162: ="" ->  | AY162: ="" ->  | AZ162: 0.5 | BA162: ="" ->  | BB162: ="" ->  | BC162: ="" -> 
A163: 2608510 | D163: 2 | E163: 60 | F163: 85 | G163: 10 | H163: 10.9 | I163: ="" ->  | J163: ="" ->  | K163: ="" ->  | L163: ="" ->  | M163: 827 | N163: 827 | O163: 827 | P163: 827 | Q163: 1.3578 | R163: 1.3578 | S163: 1.3578 | T163: 1.3578 | U163: 124 | V163: 124 | W163: 124 | X163: 124 | Y163: 21 | Z163: 21 | AA163: 21 | AB163: 21 | AC163: 0.00 | AD163: 0.00 | AE163: 0.00 | AF163: 0.00 | AG163: 0.0003969 | AH163: 1.7346 | AI163: 2 | AJ163: 0.000367347 | AK163: ="" ->  | AL163: ="" ->  | AM163: ="" ->  | AN163: ="" ->  | AO163: ="" ->  | AP163: ="" ->  | AQ163: ="" ->  | AR163: ="" ->  | AS163: ="" ->  | AT163: ="" ->  | AU163: ="" ->  | AV163: ="" ->  | AW163: ="" ->  | AX163: ="" ->  | AY163: ="" ->  | AZ163: 0.6 | BA163: ="" ->  | BB163: ="" ->  | BC163: ="" -> 
A164: 2609510 | D164: 2 | E164: 60 | F164: 95 | G164: 10 | H164: 10.9 | I164: ="" ->  | J164: ="" ->  | K164: ="" ->  | L164: ="" ->  | M164: 942 | N164: 942 | O164: 942 | P164: 942 | Q164: 1.3578 | R164: 1.3578 | S164: 1.3578 | T164: 1.3578 | U164: 141 | V164: 141 | W164: 141 | X164: 141 | Y164: 24 | Z164: 24 | AA164: 24 | AB164: 24 | AC164: 0.00 | AD164: 0.00 | AE164: 0.00 | AF164: 0.00 | AG164: 0.0003969 | AH164: 1.7346 | AI164: 2 | AJ164: 0.000367347 | AK164: ="" ->  | AL164: ="" ->  | AM164: ="" ->  | AN164: ="" ->  | AO164: ="" ->  | AP164: ="" ->  | AQ164: ="" ->  | AR164: ="" ->  | AS164: ="" ->  | AT164: ="" ->  | AU164: ="" ->  | AV164: ="" ->  | AW164: ="" ->  | AX164: ="" ->  | AY164: ="" ->  | AZ164: 0.6 | BA164: ="" ->  | BB164: ="" ->  | BC164: ="" -> 
A165: 26010510 | D165: 2 | E165: 60 | F165: 105 | G165: 10 | H165: 10.9 | I165: ="" ->  | J165: ="" ->  | K165: ="" ->  | L165: ="" ->  | M165: 1057 | N165: 1057 | O165: 1057 | P165: 1057 | Q165: 1.3578 | R165: 1.3578 | S165: 1.3578 | T165: 1.3578 | U165: 159 | V165: 159 | W165: 159 | X165: 159 | Y165: 27 | Z165: 27 | AA165: 27 | AB165: 27 | AC165: 0.00 | AD165: 0.00 | AE165: 0.00 | AF165: 0.00 | AG165: 0.0003969 | AH165: 1.7346 | AI165: 2 | AJ165: 0.000367347 | AK165: ="" ->  | AL165: ="" ->  | AM165: ="" ->  | AN165: ="" ->  | AO165: ="" ->  | AP165: ="" ->  | AQ165: ="" ->  | AR165: ="" ->  | AS165: ="" ->  | AT165: ="" ->  | AU165: ="" ->  | AV165: ="" ->  | AW165: ="" ->  | AX165: ="" ->  | AY165: ="" ->  | AZ165: 0.7 | BA165: ="" ->  | BB165: ="" ->  | BC165: ="" -> 
A166: 26011510 | D166: 2 | E166: 60 | F166: 115 | G166: 10 | H166: 10.9 | I166: ="" ->  | J166: ="" ->  | K166: ="" ->  | L166: ="" ->  | M166: 1172 | N166: 1172 | O166: 1172 | P166: 1172 | Q166: 1.3578 | R166: 1.3578 | S166: 1.3578 | T166: 1.3578 | U166: 176 | V166: 176 | W166: 176 | X166: 176 | Y166: 30 | Z166: 30 | AA166: 30 | AB166: 30 | AC166: 0.01 | AD166: 0.01 | AE166: 0.01 | AF166: 0.01 | AG166: 0.0003969 | AH166: 1.7346 | AI166: 2 | AJ166: 0.000367347 | AK166: ="" ->  | AL166: ="" ->  | AM166: ="" ->  | AN166: ="" ->  | AO166: ="" ->  | AP166: ="" ->  | AQ166: ="" ->  | AR166: ="" ->  | AS166: ="" ->  | AT166: ="" ->  | AU166: ="" ->  | AV166: ="" ->  | AW166: ="" ->  | AX166: ="" ->  | AY166: ="" ->  | AZ166: 0.8 | BA166: ="" ->  | BB166: ="" ->  | BC166: ="" -> 
A167: 26013510 | D167: 2 | E167: 60 | F167: 135 | G167: 10 | H167: 10.9 | I167: ="" ->  | J167: ="" ->  | K167: ="" ->  | L167: ="" ->  | M167: 1402 | N167: 1402 | O167: 1402 | P167: 1402 | Q167: 1.3578 | R167: 1.3578 | S167: 1.3578 | T167: 1.3578 | U167: 210 | V167: 210 | W167: 210 | X167: 210 | Y167: 36 | Z167: 36 | AA167: 36 | AB167: 36 | AC167: 0.01 | AD167: 0.01 | AE167: 0.01 | AF167: 0.01 | AG167: 0.0003969 | AH167: 1.7346 | AI167: 2 | AJ167: 0.000367347 | AK167: ="" ->  | AL167: ="" ->  | AM167: ="" ->  | AN167: ="" ->  | AO167: ="" ->  | AP167: ="" ->  | AQ167: ="" ->  | AR167: ="" ->  | AS167: ="" ->  | AT167: ="" ->  | AU167: ="" ->  | AV167: ="" ->  | AW167: ="" ->  | AX167: ="" ->  | AY167: ="" ->  | AZ167: 0.9 | BA167: ="" ->  | BB167: ="" ->  | BC167: ="" -> 
A168: 26015510 | D168: 2 | E168: 60 | F168: 155 | G168: 10 | H168: 10.9 | I168: ="" ->  | J168: ="" ->  | K168: ="" ->  | L168: ="" ->  | M168: 1632 | N168: 1632 | O168: 1632 | P168: 1632 | Q168: 1.3578 | R168: 1.3578 | S168: 1.3578 | T168: 1.3578 | U168: 245 | V168: 245 | W168: 245 | X168: 245 | Y168: 42 | Z168: 42 | AA168: 42 | AB168: 42 | AC168: 0.01 | AD168: 0.01 | AE168: 0.01 | AF168: 0.01 | AG168: 0.0003969 | AH168: 1.7346 | AI168: 2 | AJ168: 0.000367347 | AK168: ="" ->  | AL168: ="" ->  | AM168: ="" ->  | AN168: ="" ->  | AO168: ="" ->  | AP168: ="" ->  | AQ168: ="" ->  | AR168: ="" ->  | AS168: ="" ->  | AT168: ="" ->  | AU168: ="" ->  | AV168: ="" ->  | AW168: ="" ->  | AX168: ="" ->  | AY168: ="" ->  | AZ168: 1.0 | BA168: ="" ->  | BB168: ="" ->  | BC168: ="" -> 
A169: 26017510 | D169: 2 | E169: 60 | F169: 175 | G169: 10 | H169: 10.9 | I169: ="" ->  | J169: ="" ->  | K169: ="" ->  | L169: ="" ->  | M169: 1861 | N169: 1861 | O169: 1861 | P169: 1861 | Q169: 1.3578 | R169: 1.3578 | S169: 1.3578 | T169: 1.3578 | U169: 279 | V169: 279 | W169: 279 | X169: 279 | Y169: 48 | Z169: 48 | AA169: 48 | AB169: 48 | AC169: 0.02 | AD169: 0.02 | AE169: 0.02 | AF169: 0.02 | AG169: 0.0003969 | AH169: 1.7346 | AI169: 2 | AJ169: 0.000367347 | AK169: ="" ->  | AL169: ="" ->  | AM169: ="" ->  | AN169: ="" ->  | AO169: ="" ->  | AP169: ="" ->  | AQ169: ="" ->  | AR169: ="" ->  | AS169: ="" ->  | AT169: ="" ->  | AU169: ="" ->  | AV169: ="" ->  | AW169: ="" ->  | AX169: ="" ->  | AY169: ="" ->  | AZ169: 1.2 | BA169: ="" ->  | BB169: ="" ->  | BC169: ="" -> 
A170: 26019510 | D170: 2 | E170: 60 | F170: 195 | G170: 10 | H170: 10.9 | I170: ="" ->  | J170: ="" ->  | K170: ="" ->  | L170: ="" ->  | M170: 2091 | N170: 2091 | O170: 2091 | P170: 2091 | Q170: 1.3578 | R170: 1.3578 | S170: 1.3578 | T170: 1.3578 | U170: 314 | V170: 314 | W170: 314 | X170: 314 | Y170: 54 | Z170: 54 | AA170: 54 | AB170: 54 | AC170: 0.02 | AD170: 0.02 | AE170: 0.02 | AF170: 0.02 | AG170: 0.0003969 | AH170: 1.7346 | AI170: 2 | AJ170: 0.000367347 | AK170: ="" ->  | AL170: ="" ->  | AM170: ="" ->  | AN170: ="" ->  | AO170: ="" ->  | AP170: ="" ->  | AQ170: ="" ->  | AR170: ="" ->  | AS170: ="" ->  | AT170: ="" ->  | AU170: ="" ->  | AV170: ="" ->  | AW170: ="" ->  | AX170: ="" ->  | AY170: ="" ->  | AZ170: 1.3 | BA170: ="" ->  | BB170: ="" ->  | BC170: ="" -> 
A171: 26021510 | D171: 2 | E171: 60 | F171: 215 | G171: 10 | H171: 10.9 | I171: ="" ->  | J171: ="" ->  | K171: ="" ->  | L171: ="" ->  | M171: 2321 | N171: 2321 | O171: 2321 | P171: 2321 | Q171: 1.3578 | R171: 1.3578 | S171: 1.3578 | T171: 1.3578 | U171: 348 | V171: 348 | W171: 348 | X171: 348 | Y171: 60 | Z171: 60 | AA171: 60 | AB171: 60 | AC171: 0.03 | AD171: 0.03 | AE171: 0.03 | AF171: 0.03 | AG171: 0.0003969 | AH171: 1.7346 | AI171: 2 | AJ171: 0.000367347 | AK171: ="" ->  | AL171: ="" ->  | AM171: ="" ->  | AN171: ="" ->  | AO171: ="" ->  | AP171: ="" ->  | AQ171: ="" ->  | AR171: ="" ->  | AS171: ="" ->  | AT171: ="" ->  | AU171: ="" ->  | AV171: ="" ->  | AW171: ="" ->  | AX171: ="" ->  | AY171: ="" ->  | AZ171: 1.4 | BA171: ="" ->  | BB171: ="" ->  | BC171: ="" -> 
A172: 26023510 | D172: 2 | E172: 60 | F172: 235 | G172: 10 | H172: 10.9 | I172: ="" ->  | J172: ="" ->  | K172: ="" ->  | L172: ="" ->  | M172: 2551 | N172: 2551 | O172: 2551 | P172: 2551 | Q172: 1.3578 | R172: 1.3578 | S172: 1.3578 | T172: 1.3578 | U172: 383 | V172: 383 | W172: 383 | X172: 383 | Y172: 66 | Z172: 66 | AA172: 66 | AB172: 66 | AC172: 0.04 | AD172: 0.04 | AE172: 0.04 | AF172: 0.04 | AG172: 0.0003969 | AH172: 1.7346 | AI172: 2 | AJ172: 0.000367347 | AK172: ="" ->  | AL172: ="" ->  | AM172: ="" ->  | AN172: ="" ->  | AO172: ="" ->  | AP172: ="" ->  | AQ172: ="" ->  | AR172: ="" ->  | AS172: ="" ->  | AT172: ="" ->  | AU172: ="" ->  | AV172: ="" ->  | AW172: ="" ->  | AX172: ="" ->  | AY172: ="" ->  | AZ172: 1.6 | BA172: ="" ->  | BB172: ="" ->  | BC172: ="" -> 
A173: 2655510 | D173: 2 | E173: 65 | F173: 55 | G173: 10 | H173: 10.9 | I173: ="" ->  | J173: ="" ->  | K173: ="" ->  | L173: ="" ->  | M173: 496 | N173: 496 | O173: 496 | P173: 496 | Q173: 1.3466 | R173: 1.3466 | S173: 1.3466 | T173: 1.3466 | U173: 76 | V173: 76 | W173: 76 | X173: 76 | Y173: 13 | Z173: 13 | AA173: 13 | AB173: 13 | AC173: 0.00 | AD173: 0.00 | AE173: 0.00 | AF173: 0.00 | AG173: 0.0003969 | AH173: 1.7346 | AI173: 2 | AJ173: 0.000367347 | AK173: ="" ->  | AL173: ="" ->  | AM173: ="" ->  | AN173: ="" ->  | AO173: ="" ->  | AP173: ="" ->  | AQ173: ="" ->  | AR173: ="" ->  | AS173: ="" ->  | AT173: ="" ->  | AU173: ="" ->  | AV173: ="" ->  | AW173: ="" ->  | AX173: ="" ->  | AY173: ="" ->  | AZ173: 0.4 | BA173: ="" ->  | BB173: ="" ->  | BC173: ="" -> 
A174: 2656510 | D174: 2 | E174: 65 | F174: 65 | G174: 10 | H174: 10.9 | I174: ="" ->  | J174: ="" ->  | K174: ="" ->  | L174: ="" ->  | M174: 614 | N174: 614 | O174: 614 | P174: 614 | Q174: 1.3466 | R174: 1.3466 | S174: 1.3466 | T174: 1.3466 | U174: 94 | V174: 94 | W174: 94 | X174: 94 | Y174: 16 | Z174: 16 | AA174: 16 | AB174: 16 | AC174: 0.00 | AD174: 0.00 | AE174: 0.00 | AF174: 0.00 | AG174: 0.0003969 | AH174: 1.7346 | AI174: 2 | AJ174: 0.000367347 | AK174: ="" ->  | AL174: ="" ->  | AM174: ="" ->  | AN174: ="" ->  | AO174: ="" ->  | AP174: ="" ->  | AQ174: ="" ->  | AR174: ="" ->  | AS174: ="" ->  | AT174: ="" ->  | AU174: ="" ->  | AV174: ="" ->  | AW174: ="" ->  | AX174: ="" ->  | AY174: ="" ->  | AZ174: 0.4 | BA174: ="" ->  | BB174: ="" ->  | BC174: ="" -> 
A175: 2657510 | D175: 2 | E175: 65 | F175: 75 | G175: 10 | H175: 10.9 | I175: ="" ->  | J175: ="" ->  | K175: ="" ->  | L175: ="" ->  | M175: 732 | N175: 732 | O175: 732 | P175: 732 | Q175: 1.3466 | R175: 1.3466 | S175: 1.3466 | T175: 1.3466 | U175: 112 | V175: 112 | W175: 112 | X175: 112 | Y175: 19 | Z175: 19 | AA175: 19 | AB175: 19 | AC175: 0.00 | AD175: 0.00 | AE175: 0.00 | AF175: 0.00 | AG175: 0.0003969 | AH175: 1.7346 | AI175: 2 | AJ175: 0.000367347 | AK175: ="" ->  | AL175: ="" ->  | AM175: ="" ->  | AN175: ="" ->  | AO175: ="" ->  | AP175: ="" ->  | AQ175: ="" ->  | AR175: ="" ->  | AS175: ="" ->  | AT175: ="" ->  | AU175: ="" ->  | AV175: ="" ->  | AW175: ="" ->  | AX175: ="" ->  | AY175: ="" ->  | AZ175: 0.5 | BA175: ="" ->  | BB175: ="" ->  | BC175: ="" -> 
A176: 2658510 | D176: 2 | E176: 65 | F176: 85 | G176: 10 | H176: 10.9 | I176: ="" ->  | J176: ="" ->  | K176: ="" ->  | L176: ="" ->  | M176: 850 | N176: 850 | O176: 850 | P176: 850 | Q176: 1.3466 | R176: 1.3466 | S176: 1.3466 | T176: 1.3466 | U176: 130 | V176: 130 | W176: 130 | X176: 130 | Y176: 22 | Z176: 22 | AA176: 22 | AB176: 22 | AC176: 0.00 | AD176: 0.00 | AE176: 0.00 | AF176: 0.00 | AG176: 0.0003969 | AH176: 1.7346 | AI176: 2 | AJ176: 0.000367347 | AK176: ="" ->  | AL176: ="" ->  | AM176: ="" ->  | AN176: ="" ->  | AO176: ="" ->  | AP176: ="" ->  | AQ176: ="" ->  | AR176: ="" ->  | AS176: ="" ->  | AT176: ="" ->  | AU176: ="" ->  | AV176: ="" ->  | AW176: ="" ->  | AX176: ="" ->  | AY176: ="" ->  | AZ176: 0.6 | BA176: ="" ->  | BB176: ="" ->  | BC176: ="" -> 
A177: 2659510 | D177: 2 | E177: 65 | F177: 95 | G177: 10 | H177: 10.9 | I177: ="" ->  | J177: ="" ->  | K177: ="" ->  | L177: ="" ->  | M177: 968 | N177: 968 | O177: 968 | P177: 968 | Q177: 1.3466 | R177: 1.3466 | S177: 1.3466 | T177: 1.3466 | U177: 148 | V177: 148 | W177: 148 | X177: 148 | Y177: 25 | Z177: 25 | AA177: 25 | AB177: 25 | AC177: 0.00 | AD177: 0.00 | AE177: 0.00 | AF177: 0.00 | AG177: 0.0003969 | AH177: 1.7346 | AI177: 2 | AJ177: 0.000367347 | AK177: ="" ->  | AL177: ="" ->  | AM177: ="" ->  | AN177: ="" ->  | AO177: ="" ->  | AP177: ="" ->  | AQ177: ="" ->  | AR177: ="" ->  | AS177: ="" ->  | AT177: ="" ->  | AU177: ="" ->  | AV177: ="" ->  | AW177: ="" ->  | AX177: ="" ->  | AY177: ="" ->  | AZ177: 0.6 | BA177: ="" ->  | BB177: ="" ->  | BC177: ="" -> 
A178: 26510510 | D178: 2 | E178: 65 | F178: 105 | G178: 10 | H178: 10.9 | I178: ="" ->  | J178: ="" ->  | K178: ="" ->  | L178: ="" ->  | M178: 1087 | N178: 1087 | O178: 1087 | P178: 1087 | Q178: 1.3466 | R178: 1.3466 | S178: 1.3466 | T178: 1.3466 | U178: 166 | V178: 166 | W178: 166 | X178: 166 | Y178: 29 | Z178: 29 | AA178: 29 | AB178: 29 | AC178: 0.01 | AD178: 0.01 | AE178: 0.01 | AF178: 0.01 | AG178: 0.0003969 | AH178: 1.7346 | AI178: 2 | AJ178: 0.000367347 | AK178: ="" ->  | AL178: ="" ->  | AM178: ="" ->  | AN178: ="" ->  | AO178: ="" ->  | AP178: ="" ->  | AQ178: ="" ->  | AR178: ="" ->  | AS178: ="" ->  | AT178: ="" ->  | AU178: ="" ->  | AV178: ="" ->  | AW178: ="" ->  | AX178: ="" ->  | AY178: ="" ->  | AZ178: 0.7 | BA178: ="" ->  | BB178: ="" ->  | BC178: ="" -> 
A179: 26511510 | D179: 2 | E179: 65 | F179: 115 | G179: 10 | H179: 10.9 | I179: ="" ->  | J179: ="" ->  | K179: ="" ->  | L179: ="" ->  | M179: 1205 | N179: 1205 | O179: 1205 | P179: 1205 | Q179: 1.3466 | R179: 1.3466 | S179: 1.3466 | T179: 1.3466 | U179: 184 | V179: 184 | W179: 184 | X179: 184 | Y179: 32 | Z179: 32 | AA179: 32 | AB179: 32 | AC179: 0.01 | AD179: 0.01 | AE179: 0.01 | AF179: 0.01 | AG179: 0.0003969 | AH179: 1.7346 | AI179: 2 | AJ179: 0.000367347 | AK179: ="" ->  | AL179: ="" ->  | AM179: ="" ->  | AN179: ="" ->  | AO179: ="" ->  | AP179: ="" ->  | AQ179: ="" ->  | AR179: ="" ->  | AS179: ="" ->  | AT179: ="" ->  | AU179: ="" ->  | AV179: ="" ->  | AW179: ="" ->  | AX179: ="" ->  | AY179: ="" ->  | AZ179: 0.8 | BA179: ="" ->  | BB179: ="" ->  | BC179: ="" -> 
A180: 26513510 | D180: 2 | E180: 65 | F180: 135 | G180: 10 | H180: 10.9 | I180: ="" ->  | J180: ="" ->  | K180: ="" ->  | L180: ="" ->  | M180: 1441 | N180: 1441 | O180: 1441 | P180: 1441 | Q180: 1.3466 | R180: 1.3466 | S180: 1.3466 | T180: 1.3466 | U180: 220 | V180: 220 | W180: 220 | X180: 220 | Y180: 38 | Z180: 38 | AA180: 38 | AB180: 38 | AC180: 0.01 | AD180: 0.01 | AE180: 0.01 | AF180: 0.01 | AG180: 0.0003969 | AH180: 1.7346 | AI180: 2 | AJ180: 0.000367347 | AK180: ="" ->  | AL180: ="" ->  | AM180: ="" ->  | AN180: ="" ->  | AO180: ="" ->  | AP180: ="" ->  | AQ180: ="" ->  | AR180: ="" ->  | AS180: ="" ->  | AT180: ="" ->  | AU180: ="" ->  | AV180: ="" ->  | AW180: ="" ->  | AX180: ="" ->  | AY180: ="" ->  | AZ180: 0.9 | BA180: ="" ->  | BB180: ="" ->  | BC180: ="" -> 
A181: 26515510 | D181: 2 | E181: 65 | F181: 155 | G181: 10 | H181: 10.9 | I181: ="" ->  | J181: ="" ->  | K181: ="" ->  | L181: ="" ->  | M181: 1677 | N181: 1677 | O181: 1677 | P181: 1677 | Q181: 1.3466 | R181: 1.3466 | S181: 1.3466 | T181: 1.3466 | U181: 256 | V181: 256 | W181: 256 | X181: 256 | Y181: 44 | Z181: 44 | AA181: 44 | AB181: 44 | AC181: 0.01 | AD181: 0.01 | AE181: 0.01 | AF181: 0.01 | AG181: 0.0003969 | AH181: 1.7346 | AI181: 2 | AJ181: 0.000367347 | AK181: ="" ->  | AL181: ="" ->  | AM181: ="" ->  | AN181: ="" ->  | AO181: ="" ->  | AP181: ="" ->  | AQ181: ="" ->  | AR181: ="" ->  | AS181: ="" ->  | AT181: ="" ->  | AU181: ="" ->  | AV181: ="" ->  | AW181: ="" ->  | AX181: ="" ->  | AY181: ="" ->  | AZ181: 1.0 | BA181: ="" ->  | BB181: ="" ->  | BC181: ="" -> 
A182: 26517510 | D182: 2 | E182: 65 | F182: 175 | G182: 10 | H182: 10.9 | I182: ="" ->  | J182: ="" ->  | K182: ="" ->  | L182: ="" ->  | M182: 1913 | N182: 1913 | O182: 1913 | P182: 1913 | Q182: 1.3466 | R182: 1.3466 | S182: 1.3466 | T182: 1.3466 | U182: 292 | V182: 292 | W182: 292 | X182: 292 | Y182: 50 | Z182: 50 | AA182: 50 | AB182: 50 | AC182: 0.02 | AD182: 0.02 | AE182: 0.02 | AF182: 0.02 | AG182: 0.0003969 | AH182: 1.7346 | AI182: 2 | AJ182: 0.000367347 | AK182: ="" ->  | AL182: ="" ->  | AM182: ="" ->  | AN182: ="" ->  | AO182: ="" ->  | AP182: ="" ->  | AQ182: ="" ->  | AR182: ="" ->  | AS182: ="" ->  | AT182: ="" ->  | AU182: ="" ->  | AV182: ="" ->  | AW182: ="" ->  | AX182: ="" ->  | AY182: ="" ->  | AZ182: 1.2 | BA182: ="" ->  | BB182: ="" ->  | BC182: ="" -> 
A183: 26519510 | D183: 2 | E183: 65 | F183: 195 | G183: 10 | H183: 10.9 | I183: ="" ->  | J183: ="" ->  | K183: ="" ->  | L183: ="" ->  | M183: 2149 | N183: 2149 | O183: 2149 | P183: 2149 | Q183: 1.3466 | R183: 1.3466 | S183: 1.3466 | T183: 1.3466 | U183: 328 | V183: 328 | W183: 328 | X183: 328 | Y183: 56 | Z183: 56 | AA183: 56 | AB183: 56 | AC183: 0.03 | AD183: 0.03 | AE183: 0.03 | AF183: 0.03 | AG183: 0.0003969 | AH183: 1.7346 | AI183: 2 | AJ183: 0.000367347 | AK183: ="" ->  | AL183: ="" ->  | AM183: ="" ->  | AN183: ="" ->  | AO183: ="" ->  | AP183: ="" ->  | AQ183: ="" ->  | AR183: ="" ->  | AS183: ="" ->  | AT183: ="" ->  | AU183: ="" ->  | AV183: ="" ->  | AW183: ="" ->  | AX183: ="" ->  | AY183: ="" ->  | AZ183: 1.3 | BA183: ="" ->  | BB183: ="" ->  | BC183: ="" -> 
A184: 26521510 | D184: 2 | E184: 65 | F184: 215 | G184: 10 | H184: 10.9 | I184: ="" ->  | J184: ="" ->  | K184: ="" ->  | L184: ="" ->  | M184: 2386 | N184: 2386 | O184: 2386 | P184: 2386 | Q184: 1.3466 | R184: 1.3466 | S184: 1.3466 | T184: 1.3466 | U184: 364 | V184: 364 | W184: 364 | X184: 364 | Y184: 63 | Z184: 63 | AA184: 63 | AB184: 63 | AC184: 0.03 | AD184: 0.03 | AE184: 0.03 | AF184: 0.03 | AG184: 0.0003969 | AH184: 1.7346 | AI184: 2 | AJ184: 0.000367347 | AK184: ="" ->  | AL184: ="" ->  | AM184: ="" ->  | AN184: ="" ->  | AO184: ="" ->  | AP184: ="" ->  | AQ184: ="" ->  | AR184: ="" ->  | AS184: ="" ->  | AT184: ="" ->  | AU184: ="" ->  | AV184: ="" ->  | AW184: ="" ->  | AX184: ="" ->  | AY184: ="" ->  | AZ184: 1.4 | BA184: ="" ->  | BB184: ="" ->  | BC184: ="" -> 
A185: 26523510 | D185: 2 | E185: 65 | F185: 235 | G185: 10 | H185: 10.9 | I185: ="" ->  | J185: ="" ->  | K185: ="" ->  | L185: ="" ->  | M185: 2622 | N185: 2622 | O185: 2622 | P185: 2622 | Q185: 1.3466 | R185: 1.3466 | S185: 1.3466 | T185: 1.3466 | U185: 400 | V185: 400 | W185: 400 | X185: 400 | Y185: 69 | Z185: 69 | AA185: 69 | AB185: 69 | AC185: 0.04 | AD185: 0.04 | AE185: 0.04 | AF185: 0.04 | AG185: 0.0003969 | AH185: 1.7346 | AI185: 2 | AJ185: 0.000367347 | AK185: ="" ->  | AL185: ="" ->  | AM185: ="" ->  | AN185: ="" ->  | AO185: ="" ->  | AP185: ="" ->  | AQ185: ="" ->  | AR185: ="" ->  | AS185: ="" ->  | AT185: ="" ->  | AU185: ="" ->  | AV185: ="" ->  | AW185: ="" ->  | AX185: ="" ->  | AY185: ="" ->  | AZ185: 1.6 | BA185: ="" ->  | BB185: ="" ->  | BC185: ="" -> 
A186: 2705510 | D186: 2 | E186: 70 | F186: 55 | G186: 10 | H186: 10.9 | I186: ="" ->  | J186: ="" ->  | K186: ="" ->  | L186: ="" ->  | M186: 508 | N186: 508 | O186: 508 | P186: 508 | Q186: 1.3354 | R186: 1.3354 | S186: 1.3354 | T186: 1.3354 | U186: 79 | V186: 79 | W186: 79 | X186: 79 | Y186: 14 | Z186: 14 | AA186: 14 | AB186: 14 | AC186: 0.00 | AD186: 0.00 | AE186: 0.00 | AF186: 0.00 | AG186: 0.0003969 | AH186: 1.7346 | AI186: 2 | AJ186: 0.000367347 | AK186: ="" ->  | AL186: ="" ->  | AM186: ="" ->  | AN186: ="" ->  | AO186: ="" ->  | AP186: ="" ->  | AQ186: ="" ->  | AR186: ="" ->  | AS186: ="" ->  | AT186: ="" ->  | AU186: ="" ->  | AV186: ="" ->  | AW186: ="" ->  | AX186: ="" ->  | AY186: ="" ->  | AZ186: 0.4 | BA186: ="" ->  | BB186: ="" ->  | BC186: ="" -> 
A187: 2706510 | D187: 2 | E187: 70 | F187: 65 | G187: 10 | H187: 10.9 | I187: ="" ->  | J187: ="" ->  | K187: ="" ->  | L187: ="" ->  | M187: 629 | N187: 629 | O187: 629 | P187: 629 | Q187: 1.3354 | R187: 1.3354 | S187: 1.3354 | T187: 1.3354 | U187: 97 | V187: 97 | W187: 97 | X187: 97 | Y187: 17 | Z187: 17 | AA187: 17 | AB187: 17 | AC187: 0.00 | AD187: 0.00 | AE187: 0.00 | AF187: 0.00 | AG187: 0.0003969 | AH187: 1.7346 | AI187: 2 | AJ187: 0.000367347 | AK187: ="" ->  | AL187: ="" ->  | AM187: ="" ->  | AN187: ="" ->  | AO187: ="" ->  | AP187: ="" ->  | AQ187: ="" ->  | AR187: ="" ->  | AS187: ="" ->  | AT187: ="" ->  | AU187: ="" ->  | AV187: ="" ->  | AW187: ="" ->  | AX187: ="" ->  | AY187: ="" ->  | AZ187: 0.4 | BA187: ="" ->  | BB187: ="" ->  | BC187: ="" -> 
A188: 2707510 | D188: 2 | E188: 70 | F188: 75 | G188: 10 | H188: 10.9 | I188: ="" ->  | J188: ="" ->  | K188: ="" ->  | L188: ="" ->  | M188: 750 | N188: 750 | O188: 750 | P188: 750 | Q188: 1.3354 | R188: 1.3354 | S188: 1.3354 | T188: 1.3354 | U188: 116 | V188: 116 | W188: 116 | X188: 116 | Y188: 20 | Z188: 20 | AA188: 20 | AB188: 20 | AC188: 0.00 | AD188: 0.00 | AE188: 0.00 | AF188: 0.00 | AG188: 0.0003969 | AH188: 1.7346 | AI188: 2 | AJ188: 0.000367347 | AK188: ="" ->  | AL188: ="" ->  | AM188: ="" ->  | AN188: ="" ->  | AO188: ="" ->  | AP188: ="" ->  | AQ188: ="" ->  | AR188: ="" ->  | AS188: ="" ->  | AT188: ="" ->  | AU188: ="" ->  | AV188: ="" ->  | AW188: ="" ->  | AX188: ="" ->  | AY188: ="" ->  | AZ188: 0.5 | BA188: ="" ->  | BB188: ="" ->  | BC188: ="" -> 
A189: 2708510 | D189: 2 | E189: 70 | F189: 85 | G189: 10 | H189: 10.9 | I189: ="" ->  | J189: ="" ->  | K189: ="" ->  | L189: ="" ->  | M189: 871 | N189: 871 | O189: 871 | P189: 871 | Q189: 1.3354 | R189: 1.3354 | S189: 1.3354 | T189: 1.3354 | U189: 135 | V189: 135 | W189: 135 | X189: 135 | Y189: 23 | Z189: 23 | AA189: 23 | AB189: 23 | AC189: 0.00 | AD189: 0.00 | AE189: 0.00 | AF189: 0.00 | AG189: 0.0003969 | AH189: 1.7346 | AI189: 2 | AJ189: 0.000367347 | AK189: ="" ->  | AL189: ="" ->  | AM189: ="" ->  | AN189: ="" ->  | AO189: ="" ->  | AP189: ="" ->  | AQ189: ="" ->  | AR189: ="" ->  | AS189: ="" ->  | AT189: ="" ->  | AU189: ="" ->  | AV189: ="" ->  | AW189: ="" ->  | AX189: ="" ->  | AY189: ="" ->  | AZ189: 0.6 | BA189: ="" ->  | BB189: ="" ->  | BC189: ="" -> 
A190: 2709510 | D190: 2 | E190: 70 | F190: 95 | G190: 10 | H190: 10.9 | I190: ="" ->  | J190: ="" ->  | K190: ="" ->  | L190: ="" ->  | M190: 992 | N190: 992 | O190: 992 | P190: 992 | Q190: 1.3354 | R190: 1.3354 | S190: 1.3354 | T190: 1.3354 | U190: 154 | V190: 154 | W190: 154 | X190: 154 | Y190: 26 | Z190: 26 | AA190: 26 | AB190: 26 | AC190: 0.00 | AD190: 0.00 | AE190: 0.00 | AF190: 0.00 | AG190: 0.0003969 | AH190: 1.7346 | AI190: 2 | AJ190: 0.000367347 | AK190: ="" ->  | AL190: ="" ->  | AM190: ="" ->  | AN190: ="" ->  | AO190: ="" ->  | AP190: ="" ->  | AQ190: ="" ->  | AR190: ="" ->  | AS190: ="" ->  | AT190: ="" ->  | AU190: ="" ->  | AV190: ="" ->  | AW190: ="" ->  | AX190: ="" ->  | AY190: ="" ->  | AZ190: 0.6 | BA190: ="" ->  | BB190: ="" ->  | BC190: ="" -> 
A191: 27010510 | D191: 2 | E191: 70 | F191: 105 | G191: 10 | H191: 10.9 | I191: ="" ->  | J191: ="" ->  | K191: ="" ->  | L191: ="" ->  | M191: 1113 | N191: 1113 | O191: 1113 | P191: 1113 | Q191: 1.3354 | R191: 1.3354 | S191: 1.3354 | T191: 1.3354 | U191: 172 | V191: 172 | W191: 172 | X191: 172 | Y191: 30 | Z191: 30 | AA191: 30 | AB191: 30 | AC191: 0.01 | AD191: 0.01 | AE191: 0.01 | AF191: 0.01 | AG191: 0.0003969 | AH191: 1.7346 | AI191: 2 | AJ191: 0.000367347 | AK191: ="" ->  | AL191: ="" ->  | AM191: ="" ->  | AN191: ="" ->  | AO191: ="" ->  | AP191: ="" ->  | AQ191: ="" ->  | AR191: ="" ->  | AS191: ="" ->  | AT191: ="" ->  | AU191: ="" ->  | AV191: ="" ->  | AW191: ="" ->  | AX191: ="" ->  | AY191: ="" ->  | AZ191: 0.7 | BA191: ="" ->  | BB191: ="" ->  | BC191: ="" -> 
A192: 27011510 | D192: 2 | E192: 70 | F192: 115 | G192: 10 | H192: 10.9 | I192: ="" ->  | J192: ="" ->  | K192: ="" ->  | L192: ="" ->  | M192: 1234 | N192: 1234 | O192: 1234 | P192: 1234 | Q192: 1.3354 | R192: 1.3354 | S192: 1.3354 | T192: 1.3354 | U192: 191 | V192: 191 | W192: 191 | X192: 191 | Y192: 33 | Z192: 33 | AA192: 33 | AB192: 33 | AC192: 0.01 | AD192: 0.01 | AE192: 0.01 | AF192: 0.01 | AG192: 0.0003969 | AH192: 1.7346 | AI192: 2 | AJ192: 0.000367347 | AK192: ="" ->  | AL192: ="" ->  | AM192: ="" ->  | AN192: ="" ->  | AO192: ="" ->  | AP192: ="" ->  | AQ192: ="" ->  | AR192: ="" ->  | AS192: ="" ->  | AT192: ="" ->  | AU192: ="" ->  | AV192: ="" ->  | AW192: ="" ->  | AX192: ="" ->  | AY192: ="" ->  | AZ192: 0.8 | BA192: ="" ->  | BB192: ="" ->  | BC192: ="" -> 
A193: 27013510 | D193: 2 | E193: 70 | F193: 135 | G193: 10 | H193: 10.9 | I193: ="" ->  | J193: ="" ->  | K193: ="" ->  | L193: ="" ->  | M193: 1476 | N193: 1476 | O193: 1476 | P193: 1476 | Q193: 1.3354 | R193: 1.3354 | S193: 1.3354 | T193: 1.3354 | U193: 229 | V193: 229 | W193: 229 | X193: 229 | Y193: 39 | Z193: 39 | AA193: 39 | AB193: 39 | AC193: 0.01 | AD193: 0.01 | AE193: 0.01 | AF193: 0.01 | AG193: 0.0003969 | AH193: 1.7346 | AI193: 2 | AJ193: 0.000367347 | AK193: ="" ->  | AL193: ="" ->  | AM193: ="" ->  | AN193: ="" ->  | AO193: ="" ->  | AP193: ="" ->  | AQ193: ="" ->  | AR193: ="" ->  | AS193: ="" ->  | AT193: ="" ->  | AU193: ="" ->  | AV193: ="" ->  | AW193: ="" ->  | AX193: ="" ->  | AY193: ="" ->  | AZ193: 0.9 | BA193: ="" ->  | BB193: ="" ->  | BC193: ="" -> 
A194: 27015510 | D194: 2 | E194: 70 | F194: 155 | G194: 10 | H194: 10.9 | I194: ="" ->  | J194: ="" ->  | K194: ="" ->  | L194: ="" ->  | M194: 1718 | N194: 1718 | O194: 1718 | P194: 1718 | Q194: 1.3354 | R194: 1.3354 | S194: 1.3354 | T194: 1.3354 | U194: 266 | V194: 266 | W194: 266 | X194: 266 | Y194: 46 | Z194: 46 | AA194: 46 | AB194: 46 | AC194: 0.02 | AD194: 0.02 | AE194: 0.02 | AF194: 0.02 | AG194: 0.0003969 | AH194: 1.7346 | AI194: 2 | AJ194: 0.000367347 | AK194: ="" ->  | AL194: ="" ->  | AM194: ="" ->  | AN194: ="" ->  | AO194: ="" ->  | AP194: ="" ->  | AQ194: ="" ->  | AR194: ="" ->  | AS194: ="" ->  | AT194: ="" ->  | AU194: ="" ->  | AV194: ="" ->  | AW194: ="" ->  | AX194: ="" ->  | AY194: ="" ->  | AZ194: 1.0 | BA194: ="" ->  | BB194: ="" ->  | BC194: ="" -> 
A195: 27017510 | D195: 2 | E195: 70 | F195: 175 | G195: 10 | H195: 10.9 | I195: ="" ->  | J195: ="" ->  | K195: ="" ->  | L195: ="" ->  | M195: 1960 | N195: 1960 | O195: 1960 | P195: 1960 | Q195: 1.3354 | R195: 1.3354 | S195: 1.3354 | T195: 1.3354 | U195: 304 | V195: 304 | W195: 304 | X195: 304 | Y195: 52 | Z195: 52 | AA195: 52 | AB195: 52 | AC195: 0.02 | AD195: 0.02 | AE195: 0.02 | AF195: 0.02 | AG195: 0.0003969 | AH195: 1.7346 | AI195: 2 | AJ195: 0.000367347 | AK195: ="" ->  | AL195: ="" ->  | AM195: ="" ->  | AN195: ="" ->  | AO195: ="" ->  | AP195: ="" ->  | AQ195: ="" ->  | AR195: ="" ->  | AS195: ="" ->  | AT195: ="" ->  | AU195: ="" ->  | AV195: ="" ->  | AW195: ="" ->  | AX195: ="" ->  | AY195: ="" ->  | AZ195: 1.2 | BA195: ="" ->  | BB195: ="" ->  | BC195: ="" -> 
A196: 27019510 | D196: 2 | E196: 70 | F196: 195 | G196: 10 | H196: 10.9 | I196: ="" ->  | J196: ="" ->  | K196: ="" ->  | L196: ="" ->  | M196: 2202 | N196: 2202 | O196: 2202 | P196: 2202 | Q196: 1.3354 | R196: 1.3354 | S196: 1.3354 | T196: 1.3354 | U196: 341 | V196: 341 | W196: 341 | X196: 341 | Y196: 59 | Z196: 59 | AA196: 59 | AB196: 59 | AC196: 0.03 | AD196: 0.03 | AE196: 0.03 | AF196: 0.03 | AG196: 0.0003969 | AH196: 1.7346 | AI196: 2 | AJ196: 0.000367347 | AK196: ="" ->  | AL196: ="" ->  | AM196: ="" ->  | AN196: ="" ->  | AO196: ="" ->  | AP196: ="" ->  | AQ196: ="" ->  | AR196: ="" ->  | AS196: ="" ->  | AT196: ="" ->  | AU196: ="" ->  | AV196: ="" ->  | AW196: ="" ->  | AX196: ="" ->  | AY196: ="" ->  | AZ196: 1.3 | BA196: ="" ->  | BB196: ="" ->  | BC196: ="" -> 
A197: 27021510 | D197: 2 | E197: 70 | F197: 215 | G197: 10 | H197: 10.9 | I197: ="" ->  | J197: ="" ->  | K197: ="" ->  | L197: ="" ->  | M197: 2444 | N197: 2444 | O197: 2444 | P197: 2444 | Q197: 1.3354 | R197: 1.3354 | S197: 1.3354 | T197: 1.3354 | U197: 379 | V197: 379 | W197: 379 | X197: 379 | Y197: 65 | Z197: 65 | AA197: 65 | AB197: 65 | AC197: 0.04 | AD197: 0.04 | AE197: 0.04 | AF197: 0.04 | AG197: 0.0003969 | AH197: 1.7346 | AI197: 2 | AJ197: 0.000367347 | AK197: ="" ->  | AL197: ="" ->  | AM197: ="" ->  | AN197: ="" ->  | AO197: ="" ->  | AP197: ="" ->  | AQ197: ="" ->  | AR197: ="" ->  | AS197: ="" ->  | AT197: ="" ->  | AU197: ="" ->  | AV197: ="" ->  | AW197: ="" ->  | AX197: ="" ->  | AY197: ="" ->  | AZ197: 1.4 | BA197: ="" ->  | BB197: ="" ->  | BC197: ="" -> 
A198: 27023510 | D198: 2 | E198: 70 | F198: 235 | G198: 10 | H198: 10.9 | I198: ="" ->  | J198: ="" ->  | K198: ="" ->  | L198: ="" ->  | M198: 2686 | N198: 2686 | O198: 2686 | P198: 2686 | Q198: 1.3354 | R198: 1.3354 | S198: 1.3354 | T198: 1.3354 | U198: 416 | V198: 416 | W198: 416 | X198: 416 | Y198: 72 | Z198: 72 | AA198: 72 | AB198: 72 | AC198: 0.05 | AD198: 0.05 | AE198: 0.05 | AF198: 0.05 | AG198: 0.0003969 | AH198: 1.7346 | AI198: 2 | AJ198: 0.000367347 | AK198: ="" ->  | AL198: ="" ->  | AM198: ="" ->  | AN198: ="" ->  | AO198: ="" ->  | AP198: ="" ->  | AQ198: ="" ->  | AR198: ="" ->  | AS198: ="" ->  | AT198: ="" ->  | AU198: ="" ->  | AV198: ="" ->  | AW198: ="" ->  | AX198: ="" ->  | AY198: ="" ->  | AZ198: 1.6 | BA198: ="" ->  | BB198: ="" ->  | BC198: ="" -> 
A199: 2755510 | D199: 2 | E199: 75 | F199: 55 | G199: 10 | H199: 10.9 | I199: ="" ->  | J199: ="" ->  | K199: ="" ->  | L199: ="" ->  | M199: 519 | N199: 519 | O199: 519 | P199: 519 | Q199: 1.3298 | R199: 1.3298 | S199: 1.3298 | T199: 1.3298 | U199: 81 | V199: 81 | W199: 81 | X199: 81 | Y199: 14 | Z199: 14 | AA199: 14 | AB199: 14 | AC199: 0.00 | AD199: 0.00 | AE199: 0.00 | AF199: 0.00 | AG199: 0.0003969 | AH199: 1.7346 | AI199: 2 | AJ199: 0.000367347 | AK199: ="" ->  | AL199: ="" ->  | AM199: ="" ->  | AN199: ="" ->  | AO199: ="" ->  | AP199: ="" ->  | AQ199: ="" ->  | AR199: ="" ->  | AS199: ="" ->  | AT199: ="" ->  | AU199: ="" ->  | AV199: ="" ->  | AW199: ="" ->  | AX199: ="" ->  | AY199: ="" ->  | AZ199: 0.4 | BA199: ="" ->  | BB199: ="" ->  | BC199: ="" -> 
A200: 2756510 | D200: 2 | E200: 75 | F200: 65 | G200: 10 | H200: 10.9 | I200: ="" ->  | J200: ="" ->  | K200: ="" ->  | L200: ="" ->  | M200: 643 | N200: 643 | O200: 643 | P200: 643 | Q200: 1.3298 | R200: 1.3298 | S200: 1.3298 | T200: 1.3298 | U200: 100 | V200: 100 | W200: 100 | X200: 100 | Y200: 17 | Z200: 17 | AA200: 17 | AB200: 17 | AC200: 0.00 | AD200: 0.00 | AE200: 0.00 | AF200: 0.00 | AG200: 0.0003969 | AH200: 1.7346 | AI200: 2 | AJ200: 0.000367347 | AK200: ="" ->  | AL200: ="" ->  | AM200: ="" ->  | AN200: ="" ->  | AO200: ="" ->  | AP200: ="" ->  | AQ200: ="" ->  | AR200: ="" ->  | AS200: ="" ->  | AT200: ="" ->  | AU200: ="" ->  | AV200: ="" ->  | AW200: ="" ->  | AX200: ="" ->  | AY200: ="" ->  | AZ200: 0.4 | BA200: ="" ->  | BB200: ="" ->  | BC200: ="" -> 
... 414 more rows

Sheet NL (hidden)
B1: Selectiontool Strada Hybrid
B3: Lengte | D3: mm | E3: Invulformulier | F3: Statisch toestel | G3: rel. vocht. | H3: Unit | I3: Kopieer alle data
B4: Hoogte | D4: =D3 -> mm | E4: Uitvoering | F4: Hybrid toestel | G4: Eenheidsstelsel | H4: DBH set | I4: SI-eenheden
B5: Type | E5: Temperaturen | F5: DBH rail type | G5: Toestel | I5: Imperiale-eenheden
B6: Diepte | D6: =D3 -> mm | E6: Indien de ventilatoren uitgeschakeld zijn, is de afgifte een indicatieve waarde. | F6: Waterzijdig drukverlies
B8: Verwarmen: | G8: Koelen:
B9: Water aanvoer | E9: =B9 -> Water aanvoer | I9: =D9 -> 0
B10: Water retour | D10: =D9 -> 0 | E10: =B10 -> Water retour | I10: =D9 -> 0
B11: Ruimte (droge bol) | D11: =D9 -> 0 | E11: =B11 -> Ruimte (droge bol) | I11: =D9 -> 0
C13: =CONCATENATE(B8," ",C9,"/",C10,"/",C11) -> Verwarmen: // | E13: =CONCATENATE(G8," ",H9,"/",H10,"/",H11) -> Koelen: // | G13: Watervolume | H13: Elektrisch verbruik [W] | I13: Geluidsdrukniveau [dB(A)]**** | J13: Geluidsvermogen [dB(A)]****
C14: Verwarmvermogen | D14: Waterdebiet | E14: Koelvermogen | F14: =D14 -> Waterdebiet
A15: Statisch (indicatieve waarde)
A16: EN16430 | B16: Ventilatorsnelheid
B17: Ventilatorsnelheid 2
B18: Ventilatorsnelheid 3
B19: Stuurspanning [v]
A20: * | B20: Koelvermogen is berekend volgens EN16430 met de ventilatoren naar boven blazend voor alle types.
A21: ** | B21: Wanneer het watervolume in gallons wordt gegeven, zijn dit imperial gallons.
A22: *** | B22: Geluidsvermogen volgens ISO 3741:2010, Voor het geluidsdrukniveau is er een aangenomen kamerdemping van 8 dB(A).

Sheet EN (hidden)
B1: Selectiontool Strada Hybrid
B3: Length | D3: mm | E3: Formulary | F3: Static device | G3: rel. humid. | H3: Unit | I3: Copy all data
B4: Heigth | D4: =D3 -> mm | E4: Version | F4: Hybrid device | G4: Unit conversion | H4: DBH set | I4: SI-units
B5: Type | E5: Temperatures | F5: DBH rail type | G5: Device | I5: Imperial-units
B6: Depth | D6: =D3 -> mm | E6: If the fans are switched off, the output is an indicative value. | F6: Water side pressure loss
B8: Heating: | G8: Cooling:
B9: Supply water | E9: =B9 -> Supply water | I9: =D9 -> 0
B10: Return water | D10: =D9 -> 0 | E10: =B10 -> Return water | I10: =D9 -> 0
B11: Entering air (dry bulb) | D11: =D9 -> 0 | E11: =B11 -> Entering air (dry bulb) | I11: =D9 -> 0
C13: =CONCATENATE(B8," ",C9,"/",C10,"/",C11) -> Heating: // | E13: =CONCATENATE(G8," ",H9,"/",H10,"/",H11) -> Cooling: // | G13: Water volume | H13: Electrical consumption [W] | I13: Sound pressure level [dB(A)]**** | J13: Sound power [dB(A)]****
C14: Heating capacity | D14: Water flow | E14: Cooling capacity | F14: =D14 -> Water flow
A15: Fans off (indicative value)
A16: EN16430 | B16: Fan speed
B17: Fan speed selection 2
B18: Fan speed selection 3
B19: Fan voltage [V]
A20: * | B20: Cooling power is calcullated according EN16430 with fans blowing up for all heights.
A21: ** | B21: When the water volume is given in gallons, the units are specifically imperial gallons.
A22: *** | B22: Soundpower according to ISO 3741:2010, sound pressure level with assumed room damping of 8 dB(A).

Sheet FR (hidden)
B1: Selectiontool Strada Hybrid
B3: Longeur | D3: mm | E3: Formulaire | F3: Appareil statique | G3: hum. rel. | H3: Unité | I3: Copier toutes des données
B4: Hauteur | D4: =D3 -> mm | E4: Version | F4: Appareil Hybrid | G4: Système unitaire | H4: DBH set | I4: Unités-SI
B5: Type | E5: Températures | F5: DBH rail type | G5: Appareil | I5: Unités-Impériales
B6: Profondeur | D6: =D3 -> mm | E6: Si les ventilateurs sont éteints, la sortie est une valeur indicative. | F6: Perte de charge
B8: Chauffer: | G8: Refroidir:
B9: Entrée de l'eau | E9: =B9 -> Entrée de l'eau | I9: =D9 -> 0
B10: Retour de l'eau | D10: =D9 -> 0 | E10: =B10 -> Retour de l'eau | I10: =D9 -> 0
B11: Ambiante (bulbe sec) | D11: =D9 -> 0 | E11: =B11 -> Ambiante (bulbe sec) | I11: =D9 -> 0
C13: =CONCATENATE(B8," ",C9,"/",C10,"/",C11) -> Chauffer: // | E13: =CONCATENATE(G8," ",H9,"/",H10,"/",H11) -> Refroidir: // | G13: Volume d'eau | H13: Puissance absorbée elec. [W] | I13: Pression sonore [dB(A)]**** | J13: Puissance sonore [dB(A)]****
C14: Puissance de chauffer | D14: Débit d'eau | E14: Puissance de refroidir | F14: =D14 -> Débit d'eau
A15: Ventilateur éteint (indicative)
A16: EN16430 | B16: Vitesse ventilateur
B17: Vitesse du ventilateur 2
B18: Vitesse du ventilateur 3
B19: Tension ventilateur [V]
A20: * | B20: La puissance de refroidissement est calculée selon EN 16430 avec des ventilateurs qui soufflent pour toutes les hauteurs.
A21: ** | B21: Lorsque le volume d'eau est donné en gallons, ce sont des gallons impérial.
A22: *** | B22: Puissance acoustique selon ISO 3741: 2010, niveau de pression acoustique avec un amortissement de la pièce supposé de 8 dB(A).

Sheet DE (hidden)
B1: Selectiontool Strada Hybrid
B3: Länge | D3: mm | E3: Eingabefelder | F3: Statisches Gerät | G3: rel. Luftf. | H3: Unit | I3: Kopieren Sie alle daten
B4: Höhe | D4: =D3 -> mm | E4: Ausführung | F4: Hybrid Gerät | G4: Einheiten | H4: DBH set | I4: SI-einheiten
B5: Typ | E5: Temperaturen | F5: DBH rail typ | G5: Gerät | I5: Imperiale-einheiten
B6: Tiefe | D6: =D3 -> mm | E6: Wenn die Lüfter ausgeschaltet sind, ist der Ausgang ein Richtwert. | F6: zug. wassers. Druckverlust
B8: Heizen: | G8: Kühlen:
B9: Vorlauf wasser | E9: =B9 -> Vorlauf wasser | I9: =D9 -> 0
B10: Rücklauf wasser | D10: =D9 -> 0 | E10: =B10 -> Rücklauf wasser | I10: =D9 -> 0
B11: Raum (trocken) | D11: =D9 -> 0 | E11: =B11 -> Raum (trocken) | I11: =D9 -> 0
C13: =CONCATENATE(B8," ",C9,"/",C10,"/",C11) -> Heizen: // | E13: =CONCATENATE(G8," ",H9,"/",H10,"/",H11) -> Kühlen: // | G13: Wasservolumen | H13: Elektr. Leistung [W] | I13: Schalldruckpegel [dB(A)]**** | J13: Schallleistungspegel [dB(A)]****
C14: Heizleistung | D14: Heizmittelstrom | E14: Kühlleistung | F14: Kühlmittelstrom
A15: Lüfter aus (richtwert)
A16: EN16430 | B16: Auslegungsstufe
B17: Auslegungsstufe 2
B18: Auslegungsstufe 3
B19: Lufterspannung [V]
A20: * | B20: Die Kühlleistung wird nach EN 16430 berechnet, wobei die Lüfter für alle Höhen hochgehen.
A21: ** | B21: Wenn das Wasservolumen in Gallonen angegeben ist, sind dies imperiale Gallonen.
A22: *** | B22: Schallleistung nach ISO 3741: 2010, Schalldruckpegel bei angenommener Raumdämpfung von 8 dB(A).

Sheet NR (hidden)
B1: Selectiontool Strada Hybrid
B3: Lengde | D3: mm | E3: Inngangsskjema | F3: Statisk modell | G3: rel. fuktighet | H3: Unit | I3: Kopier alle data
B4: Høyde | D4: =D3 -> mm | E4: Versjon | F4: Hybrid modell | G4: Enhetssystem | H4: DBH set | I4: SI-enheter
B5: Type | E5: Temperaturer | F5: DBH rail type | G5: Modell | I5: Imperiale-enheter
B6: Bredde | D6: =D3 -> mm | E6: Hvis viftene er slått av, er utgangen en indikativ verdi. | F6: Trykktap
B8: Varme: | G8: Kjøling:
B9: Tur vann | E9: =B9 -> Tur vann | I9: =D9 -> 0
B10: Retur vann | D10: 0 | E10: =B10 -> Retur vann | I10: =D9 -> 0
B11: Rom (tørr pære) | D11: 0 | E11: =B11 -> Rom (tørr pære) | I11: =D9 -> 0
C13: =CONCATENATE(B8," ",C9,"/",C10,"/",C11) -> Varme: // | E13: =CONCATENATE(G8," ",H9,"/",H10,"/",H11) -> Kjøling: // | G13: Vannvolum | H13: Elektrisk effekt [W] | I13: Lydtrykk [dB(A)]**** | J13: Lydeffekt [dB(A)]****
C14: Varme effekt | D14: Vannmengde | E14: Kjøle effekt | F14: =D14 -> Vannmengde
A15: Lüfter aus (richtwert)
A16: EN16430 | B16: Styresignal
B17: Auslegungsstufe 2
B18: Auslegungsstufe 3
B19: Viftespenning [V]
A20: * | B20: Kjølekapasitet beregnes i henhold til EN16430 med viftene som blåser oppover for alle typer.
A21: ** | B21: Når vannvolumet er gitt i gallon, er dette imperial gallons.
A22: *** | B22: Lydeffekt i henhold til ISO 3741: 2010. For lydtrykknivået er det en antatt romdemping på 8 dB (A).

Sheet SP (hidden)
B1: Selectiontool Strada Hybrid
B3: Longitud | D3: mm | E3: Formulary | F3: Dispositivo estático | G3: Hum. Relativa | H3: Unit | I3: Copiar todos los datos
B4: Altura | D4: =D3 -> mm | E4: Versión | F4: Dispositivo Hybrid | G4: Convers. de unidades | H4: DBH set | I4: Unidades-SI
B5: Tipo | E5: Temperaturas | F5: tipo de riel DBH | G5: Despositivo | I5: Unidades-Imperial
B6: Profund. | D6: =D3 -> mm | E6: La velocidad del ventilador en "0" tiene una emisión indicativa. | F6: Pérdida de carga del agua
B8: Calefacción: | G8: Enfriamiento:
B9: Agua impulsión | E9: =B9 -> Agua impulsión | I9: =D9 -> 0
B10: Agua retorno | D10: =D9 -> 0 | E10: =B10 -> Agua retorno | I10: =D9 -> 0
B11: Ambiente (bulbo seco) | D11: =D9 -> 0 | E11: =B11 -> Ambiente (bulbo seco) | I11: =D9 -> 0
C13: =CONCATENATE(B8," ",C9,"/",C10,"/",C11) -> Calefacción: // | E13: =CONCATENATE(G8," ",H9,"/",H10,"/",H11) -> Enfriamiento: // | G13: Volumen de agua | H13: Potencia eléctrica absorbida [W] | I13: Presión sonora [dB(A)]**** | J13: Potencia sonora [dB(A)]****
C14: Emisión calefacción | D14: Caudal de agua, calefacción | E14: Emisión sensible Frío | F14: =D14 -> Caudal de agua, calefacción
A15: Fans off (indicative value)
A16: EN16430 | B16: Velocidad del ventilador
B17: Fan speed selection 2
B18: Fan speed selection 3
B19: Voltaje control [V]
A20: * | B20: La potencia de enfriamiento se calcula según la norma EN 16430 con ventiladores de todas las alturas.
A21: ** | B21: Cuando el volumen de agua se da en galones, las unidades son específicamente galones imperiales.
A22: *** | B22: Potencia sonora según ISO 3741: 2010, nivel de presión acústica con una amortiguación ambiental supuesta de 8 dB (A).

Sheet SW (hidden)
B1: Selectiontool Strada Hybrid
B3: Längd | D3: mm | E3: Inngangsskjema | F3: Statisk modell | G3: rel. Fuktighet | H3: Unit | I3: Kopiera all data
B4: Höjd | D4: =D3 -> mm | E4: Storlek | F4: Hybrid modell | G4: Enhetssystem | H4: DBH set | I4: SI-enheter
B5: Typ | E5: Temperaturer | F5: DBH rail typ | G5: Modell | I5: Imperiella-enheter
B6: Djup | D6: =D3 -> mm | E6: Om fläktarna är avstängda är utgången ett indikationsvärde. | F6: Tryckfall, vatten
B8: Värme: | G8: Kyla:
B9: Tillopp | E9: =B9 -> Tillopp | I9: =D9 -> 0
B10: Retur | D10: 0 | E10: =B10 -> Retur | I10: =D9 -> 0
B11: Rum (torr) | D11: 0 | E11: =B11 -> Rum (torr) | I11: =D9 -> 0
C13: =CONCATENATE(B8," ",C9,"/",C10,"/",C11) -> Värme: // | E13: =CONCATENATE(G8," ",H9,"/",H10,"/",H11) -> Kyla: // | G13: Vattenvolym | H13: Effektförbrukning [W] | I13: Ljudtryck [dB(A)]**** | J13: Ljudeffekt [dB(A)]****
C14: Effekt | D14: Vattenflöde | E14: Kyleffekt | F14: =D14 -> Vattenflöde
A15: Fans off (indicative value)
A16: EN16430 | B16: Fläkthastighet
B17: Fan speed selection 2
B18: Fan speed selection 3
B19: Spänning, Fläkt [V]
A20: * | B20: Kyleffekt är beräknad enligt EN16430 med fläktar blåsandes i riktning uppåt för alla höjder
A21: ** | B21: När vattenvolymen är given i gallon avser det Imperiella gallon.
A22: *** | B22: Ljudeffekt enligt ISO 3741:2010 ljudtryck med antagen ljudreduktion från rummet på 8 dB(A)

Sheet TS (hidden)
B1: Selectiontool Strada Hybrid
B3: Délka | D3: mm | E3: Formulary | F3: Statická jednotka | G3: Relativní vlhkost | H3: Jednotka | I3: Kopírovat všechna data
B4: Výška | D4: =D3 -> mm | E4: Verze | F4: Hybridní jednotka | G4: Převod jednotek | H4: DBH sada | I4: Mezinárodní (Sl)
B5: Typ | E5: Teploty | F5: DBH rail type | G5: Device | I5: Imperiální
B6: Hloubka | D6: =D3 -> mm | E6: Pokud jsou ventilátory vypnuté, je výkon pouze orientační. | F6: Tlaková ztráta
B8: Topení: | G8: Chlazení:
B9: Voda na přívodu | E9: =B9 -> Voda na přívodu | I9: =D9 -> 0
B10: Voda na zpátečce | D10: =D9 -> 0 | E10: =B10 -> Voda na zpátečce | I10: =D9 -> 0
B11: "Suchá" teplota vzduchu | D11: =D9 -> 0 | E11: =B11 -> "Suchá" teplota vzduchu | I11: =D9 -> 0
C13: =CONCATENATE(B8," ",C9,"/",C10,"/",C11) -> Topení: // | E13: =CONCATENATE(G8," ",H9,"/",H10,"/",H11) -> Chlazení: // | G13: Objem vody | H13: Elektrický výkon [W] | I13: Akustický tlak [dB(A)]**** | J13: Akustický výkon [dB(A)]****
C14: Výkon Topení | D14: Průtok vody | E14: Výkon Chlazení | F14: Průtok vody
A15: Fans off (indicative value)
A16: EN16430 | B16: Rychlost otáček ventilátoru
B17: Fan speed selection 2
B18: Fan speed selection 3
B19: Napětí ventilárotu [V]
A20: * | B20: Chladicí výkon vypočítán podle EN 16430 s ventilátory, které u všech typů - výšek foukají nahoru.
A21: ** | B21: Když je objem vody uveden v galonech, jednotky jsou konkrétně imperiální galony.
A22: *** | B22: Akustický výkon podle ISO 3741: 2010, hladina akustického tlaku s předpokládaným útlumem místnosti o 8 dB (A).

Sheet ExtraTaal1 (hidden)
B1: Selectiontool Strada Hybrid
B3: Length | D3: mm | E3: Formulary | F3: Static device | G3: rel. humid. | H3: Unit | I3: Copy all data
B4: Heigth | D4: =D3 -> mm | E4: Version | F4: Hybrid device | G4: Unit conversion | H4: DBH set | I4: SI-units
B5: Type | E5: Temperatures | F5: DBH rail type | G5: Device | I5: Imperial-units
B6: Depth | D6: =D3 -> mm | E6: If the fans are switched off, the output is an indicative value. | F6: Water side pressure loss
B8: Heating: | G8: Cooling:
B9: Supply water | E9: =B9 -> Supply water | I9: =D9 -> 0
B10: Return water | D10: =D9 -> 0 | E10: =B10 -> Return water | I10: =D9 -> 0
B11: Entering air (dry bulb) | D11: =D9 -> 0 | E11: =B11 -> Entering air (dry bulb) | I11: =D9 -> 0
C13: =CONCATENATE(B8," ",C9,"/",C10,"/",C11) -> Heating: // | E13: =CONCATENATE(G8," ",H9,"/",H10,"/",H11) -> Cooling: // | G13: Water volume | H13: Electrical consumption [W] | I13: Sound pressure level [dB(A)]**** | J13: Sound power [dB(A)]****
C14: Heating capacity | D14: Water flow | E14: Cooling capacity | F14: =D14 -> Water flow
A15: Fans off (indicative value)
A16: EN16430 | B16: Fan speed
B17: Fan speed selection 2
B18: Fan speed selection 3
B19: Fan voltage [V]
A20: * | B20: Cooling power is calcullated according EN16430 with fans blowing up for all heights.
A21: ** | B21: When the water volume is given in gallons, the units are specifically imperial gallons.
A22: *** | B22: Soundpower according to ISO 3741:2010, sound pressure level with assumed room damping of 8 dB(A).

Sheet ExtraTaal2 (hidden)
B1: Selectiontool Strada Hybrid
B3: Length | D3: mm | E3: Formulary | F3: Static device | G3: rel. humid. | H3: Unit | I3: Copy all data
B4: Heigth | D4: =D3 -> mm | E4: Version | F4: Hybrid device | G4: Unit conversion | H4: DBH set | I4: SI-units
B5: Type | E5: Temperatures | F5: DBH rail type | G5: Device | I5: Imperial-units
B6: Depth | D6: =D3 -> mm | E6: If the fans are switched off, the output is an indicative value. | F6: Water side pressure loss
B8: Heating: | G8: Cooling:
B9: Supply water | E9: =B9 -> Supply water | I9: =D9 -> 0
B10: Return water | D10: =D9 -> 0 | E10: =B10 -> Return water | I10: =D9 -> 0
B11: Entering air (dry bulb) | D11: =D9 -> 0 | E11: =B11 -> Entering air (dry bulb) | I11: =D9 -> 0
C13: =CONCATENATE(B8," ",C9,"/",C10,"/",C11) -> Heating: // | E13: =CONCATENATE(G8," ",H9,"/",H10,"/",H11) -> Cooling: // | G13: Water volume | H13: Electrical consumption [W] | I13: Sound pressure level [dB(A)]**** | J13: Sound power [dB(A)]****
C14: Heating capacity | D14: Water flow | E14: Cooling capacity | F14: =D14 -> Water flow
A15: Fans off (indicative value)
A16: EN16430 | B16: Fan speed
B17: Fan speed selection 2
B18: Fan speed selection 3
B19: Fan voltage [V]
A20: * | B20: Cooling power is calcullated according EN16430 with fans blowing up for all heights.
A21: ** | B21: When the water volume is given in gallons, the units are specifically imperial gallons.
A22: *** | B22: Soundpower according to ISO 3741:2010, sound pressure level with assumed room damping of 8 dB(A).

Sheet ExtraTaal3 (hidden)
B1: Selectiontool Strada Hybrid
B3: Length | D3: mm | E3: Formulary | F3: Static device | G3: rel. humid. | H3: Unit | I3: Copy all data
B4: Heigth | D4: =D3 -> mm | E4: Version | F4: Hybrid device | G4: Unit conversion | H4: DBH set | I4: SI-units
B5: Type | E5: Temperatures | F5: DBH rail type | G5: Device | I5: Imperial-units
B6: Depth | D6: =D3 -> mm | E6: If the fans are switched off, the output is an indicative value. | F6: Water side pressure loss
B8: Heating: | G8: Cooling:
B9: Supply water | E9: =B9 -> Supply water | I9: =D9 -> 0
B10: Return water | D10: =D9 -> 0 | E10: =B10 -> Return water | I10: =D9 -> 0
B11: Entering air (dry bulb) | D11: =D9 -> 0 | E11: =B11 -> Entering air (dry bulb) | I11: =D9 -> 0
C13: =CONCATENATE(B8," ",C9,"/",C10,"/",C11) -> Heating: // | E13: =CONCATENATE(G8," ",H9,"/",H10,"/",H11) -> Cooling: // | G13: Water volume | H13: Electrical consumption [W] | I13: Sound pressure level [dB(A)]**** | J13: Sound power [dB(A)]****
C14: Heating capacity | D14: Water flow | E14: Cooling capacity | F14: =D14 -> Water flow
A15: Fans off (indicative value)
A16: EN16430 | B16: Fan speed
B17: Fan speed selection 2
B18: Fan speed selection 3
B19: Fan voltage [V]
A20: * | B20: Cooling power is calcullated according EN16430 with fans blowing up for all heights.
A21: ** | B21: When the water volume is given in gallons, the units are specifically imperial gallons.
A22: *** | B22: Soundpower according to ISO 3741:2010, sound pressure level with assumed room damping of 8 dB(A).
